Workbook

Sheet Map
B1: S-102 | C1: S-106 | D1: S-110 | E1: S-114 | F1: S-118 | G1: S-122 | H1: S-126 | I1: S-130 | J1: S-132 | K1: S-134 | L1: S-136 | M1: S-138 | N1: S-142 | O1: S-146 | P1: S-150
A2: 101
A3: 102
A4: 103
A5: 104
A6: 105
A7: 106
A8: 107
A9: 108
A10: 109
A11: 110
A12: 111
A13: 112
A14: 113
A15: 114
A16: 115
A17: 116
A18: 117
A19: 118
A20: 119
A21: 120
A22: 121
A23: 122
A24: 123
A25: 124
A26: 125
A27: 126
A28: 127
A29: 128
A30: 129
A31: 130
A32: 131
A33: 132
A34: 133
A35: 134
A36: 135
A37: 136
A38: 137
A39: 138
A40: 139
A41: 140
A42: 141
A43: 142
A44: 143
A45: 144
A46: 145
A47: 146
A48: 147 | B48: NL
A49: 148
A50: 149
A51: 150
A52: 151
A53: 152
A54: 153
A55: 154
A56: 155
A57: 156
A58: 157
A59: 158
A60: 159
A61: 160
A62: 161
A63: 162
A64: 163
A65: 164
A66: 165
A67: 166
A68: 167
A69: 168
A70: 169
A71: 170
A72: 171
A73: 172
A74: 173
A75: 174
A76: 175 | F76: D

Sheet p (hidden)
A1: FALSE | D1: =COUNT(E:E) -> 2 | E1: File | F1: Date
A2: FALSE | E2: 422 | F2: 2013-03-19
A3: TRUE | E3: 426 | F3: 2013-03-19
A4: TRUE
A6: TRUE

Sheet Daily Prod
A1: Source | B1: Point | C1: Date | D1: File | E1: Process Type | F1: OB Comments | G1: Mapping Report
A2: 134 | B2: 144 | C2: 2013-03-20 | D2: 945 | F2: N/A | G2: 1 Good Acquired Points
A3: 134 | B3: 143 | C3: 2013-03-20 | D3: 946 | F3: Blowout, rifle. Weak shot | G3: 1 Good Acquired Points
A4: 134 | B4: 142 | C4: 2013-03-20 | D4: 947 | F4: Blowout, rifle | G4: 1 Good Acquired Points
A5: 134 | B5: 141 | C5: 2013-03-20 | D5: 948 | F5: Blowout, rifle | G5: 1 Good Acquired Points
A6: 136 | B6: 140 | C6: 2013-03-20 | D6: 949 | F6: Weak shot | G6: 1 Good Acquired Points
A7: 136 | B7: 139 | C7: 2013-03-20 | D7: 950 | F7: Weak shot | G7: 1 Good Acquired Points
A8: 136 | B8: 138 | C8: 2013-03-20 | D8: 951 | F8: N/A | G8: 1 Good Acquired Points
A9: 136 | B9: 137 | C9: 2013-03-20 | D9: 952 | F9: N/A | G9: 1 Good Acquired Points
A10: 136 | B10: 136 | C10: 2013-03-20 | D10: 953 | F10: Wrong header, sp 136136 in system as 138136. Extra shot | G10: 1 Acquired Points out of survey [136]
A11: 138 | B11: 136 | C11: 2013-03-20 | D11: 954 | F11: Weak shot. Wrong header sp 138136 in system as 138137 | G11: 1 Good Acquired Points
A12: 138 | B12: 137 | C12: 2013-03-20 | D12: 955 | F12: Weak shot. Wrong header sp 138137 in system as 138138 | G12: 1 Good Acquired Points
A13: 138 | B13: 138 | C13: 2013-03-20 | D13: 956 | F13: Wrong header, sp 138138 in system as 138139 | G13: 1 Good Acquired Points
A14: 138 | B14: 139 | C14: 2013-03-20 | D14: 957 | F14: Blowout, rifle. Wrong header sp 138139 in system as 138140 | G14: 1 Good Acquired Points
A15: 138 | B15: 140 | C15: 2013-03-20 | D15: 958 | F15: End of production on Lalor Lake 3D | G15: 1 Good Acquired Points

Sheet Survey
A1: Source Line | B1: BOL | C1: EOL | D1: Total Points | E1: Map Report
A2: 102 | B2: 101 | C2: 101 | E2: Points mapped (1)
A3: 102 | B3: 102 | C3: 102 | E3: Points mapped (1)
A4: 102 | B4: 103 | C4: 103 | E4: Points mapped (1)
A5: 102 | B5: 104 | C5: 104 | E5: Points mapped (1)
A6: 102 | B6: 105 | C6: 105 | E6: Points mapped (1)
A7: 102 | B7: 106 | C7: 106 | E7: Points mapped (1)
A8: 102 | B8: 107 | C8: 107 | E8: Points mapped (1)
A9: 102 | B9: 108 | C9: 108 | E9: Points mapped (1)
A10: 102 | B10: 109 | C10: 109 | E10: Points mapped (1)
A11: 102 | B11: 110 | C11: 110 | E11: Points mapped (1)
A12: 102 | B12: 111 | C12: 111 | E12: Points mapped (1)
A13: 102 | B13: 112 | C13: 112 | E13: Points mapped (1)
A14: 102 | B14: 113 | C14: 113 | E14: Points mapped (1)
A15: 102 | B15: 114 | C15: 114 | E15: Points mapped (1)
A16: 102 | B16: 115 | C16: 115 | E16: Points mapped (1)
A17: 102 | B17: 116 | C17: 116 | E17: Points mapped (1)
A18: 102 | B18: 117 | C18: 117 | E18: Points mapped (1)
A19: 102 | B19: 118 | C19: 118 | E19: Points mapped (1)
A20: 102 | B20: 119 | C20: 119 | E20: Points mapped (1)
A21: 102 | B21: 120 | C21: 120 | E21: Points mapped (1)
A22: 102 | B22: 121 | C22: 121 | E22: Points mapped (1)
A23: 102 | B23: 122 | C23: 122 | E23: Points mapped (1)
A24: 102 | B24: 123 | C24: 123 | E24: Points mapped (1)
A25: 102 | B25: 124 | C25: 124 | E25: Points mapped (1)
A26: 102 | B26: 125 | C26: 125 | E26: Points mapped (1)
A27: 102 | B27: 126 | C27: 126 | E27: Points mapped (1)
A28: 102 | B28: 127 | C28: 127 | E28: Points mapped (1)
A29: 102 | B29: 128 | C29: 128 | E29: Points mapped (1)
A30: 102 | B30: 129 | C30: 129 | E30: Points mapped (1)
A31: 102 | B31: 130 | C31: 130 | E31: Points mapped (1)
A32: 102 | B32: 131 | C32: 131 | E32: Points mapped (1)
A33: 102 | B33: 132 | C33: 132 | E33: Points mapped (1)
A34: 102 | B34: 133 | C34: 133 | E34: Points mapped (1)
A35: 102 | B35: 134 | C35: 134 | E35: Points mapped (1)
A36: 102 | B36: 135 | C36: 135 | E36: Points mapped (1)
A37: 102 | B37: 136 | C37: 136 | E37: Points mapped (1)
A38: 102 | B38: 137 | C38: 137 | E38: Points mapped (1)
A39: 102 | B39: 138 | C39: 138 | E39: Points mapped (1)
A40: 102 | B40: 139 | C40: 139 | E40: Points mapped (1)
A41: 102 | B41: 140 | C41: 140 | E41: Points mapped (1)
A42: 102 | B42: 141 | C42: 141 | E42: Points mapped (1)
A43: 102 | B43: 142 | C43: 142 | E43: Points mapped (1)
A44: 102 | B44: 143 | C44: 143 | E44: Points mapped (1)
A45: 102 | B45: 144 | C45: 144 | E45: Points mapped (1)
A46: 102 | B46: 145 | C46: 145 | E46: Points mapped (1)
A47: 102 | B47: 146 | C47: 146 | E47: Points mapped (1)
A48: 102 | B48: 147 | C48: 147 | E48: Points mapped (1)
A49: 102 | B49: 148 | C49: 148 | E49: Points mapped (1)
A50: 102 | B50: 149 | C50: 149 | E50: Points mapped (1)
A51: 102 | B51: 150 | C51: 150 | E51: Points mapped (1)
A52: 102 | B52: 151 | C52: 151 | E52: Points mapped (1)
A53: 102 | B53: 152 | C53: 152 | E53: Points mapped (1)
A54: 102 | B54: 153 | C54: 153 | E54: Points mapped (1)
A55: 102 | B55: 154 | C55: 154 | E55: Points mapped (1)
A56: 102 | B56: 155 | C56: 155 | E56: Points mapped (1)
A57: 102 | B57: 156 | C57: 156 | E57: Points mapped (1)
A58: 102 | B58: 157 | C58: 157 | E58: Points mapped (1)
A59: 102 | B59: 158 | C59: 158 | E59: Points mapped (1)
A60: 102 | B60: 159 | C60: 159 | E60: Points mapped (1)
A61: 102 | B61: 160 | C61: 160 | E61: Points mapped (1)
A62: 102 | B62: 161 | C62: 161 | E62: Points mapped (1)
A63: 102 | B63: 162 | C63: 162 | E63: Points mapped (1)
A64: 102 | B64: 163 | C64: 163 | E64: Points mapped (1)
A65: 102 | B65: 164 | C65: 164 | E65: Points mapped (1)
A66: 102 | B66: 165 | C66: 165 | E66: Points mapped (1)
A67: 102 | B67: 166 | C67: 166 | E67: Points mapped (1)
A68: 102 | B68: 167 | C68: 167 | E68: Points mapped (1)
A69: 102 | B69: 168 | C69: 168 | E69: Points mapped (1)
A70: 102 | B70: 169 | C70: 169 | E70: Points mapped (1)
A71: 102 | B71: 170 | C71: 170 | E71: Points mapped (1)
A72: 102 | B72: 171 | C72: 171 | E72: Points mapped (1)
A73: 102 | B73: 172 | C73: 172 | E73: Points mapped (1)
A74: 102 | B74: 173 | C74: 173 | E74: Points mapped (1)
A75: 102 | B75: 174 | C75: 174 | E75: Points mapped (1)
A76: 102 | B76: 175 | C76: 175 | E76: Points mapped (1)
A77: 106 | B77: 101 | C77: 101 | E77: Points mapped (1)
A78: 106 | B78: 102 | C78: 102 | E78: Points mapped (1)
A79: 106 | B79: 103 | C79: 103 | E79: Points mapped (1)
A80: 106 | B80: 104 | C80: 104 | E80: Points mapped (1)
A81: 106 | B81: 105 | C81: 105 | E81: Points mapped (1)
A82: 106 | B82: 106 | C82: 106 | E82: Points mapped (1)
A83: 106 | B83: 107 | C83: 107 | E83: Points mapped (1)
A84: 106 | B84: 108 | C84: 108 | E84: Points mapped (1)
A85: 106 | B85: 109 | C85: 109 | E85: Points mapped (1)
A86: 106 | B86: 110 | C86: 110 | E86: Points mapped (1)
A87: 106 | B87: 111 | C87: 111 | E87: Points mapped (1)
A88: 106 | B88: 112 | C88: 112 | E88: Points mapped (1)
A89: 106 | B89: 113 | C89: 113 | E89: Points mapped (1)
A90: 106 | B90: 114 | C90: 114 | E90: Points mapped (1)
A91: 106 | B91: 115 | C91: 115 | E91: Points mapped (1)
A92: 106 | B92: 116 | C92: 116 | E92: Points mapped (1)
A93: 106 | B93: 117 | C93: 117 | E93: Points mapped (1)
A94: 106 | B94: 118 | C94: 118 | E94: Points mapped (1)
A95: 106 | B95: 119 | C95: 119 | E95: Points mapped (1)
A96: 106 | B96: 120 | C96: 120 | E96: Points mapped (1)
A97: 106 | B97: 121 | C97: 121 | E97: Points mapped (1)
A98: 106 | B98: 122 | C98: 122 | E98: Points mapped (1)
A99: 106 | B99: 123 | C99: 123 | E99: Points mapped (1)
A100: 106 | B100: 124 | C100: 124 | E100: Points mapped (1)
A101: 106 | B101: 125 | C101: 125 | E101: Points mapped (1)
A102: 106 | B102: 126 | C102: 126 | E102: Points mapped (1)
A103: 106 | B103: 127 | C103: 127 | E103: Points mapped (1)
A104: 106 | B104: 128 | C104: 128 | E104: Points mapped (1)
A105: 106 | B105: 129 | C105: 129 | E105: Points mapped (1)
A106: 106 | B106: 130 | C106: 130 | E106: Points mapped (1)
A107: 106 | B107: 131 | C107: 131 | E107: Points mapped (1)
A108: 106 | B108: 132 | C108: 132 | E108: Points mapped (1)
A109: 106 | B109: 133 | C109: 133 | E109: Points mapped (1)
A110: 106 | B110: 134 | C110: 134 | E110: Points mapped (1)
A111: 106 | B111: 135 | C111: 135 | E111: Points mapped (1)
A112: 106 | B112: 136 | C112: 136 | E112: Points mapped (1)
A113: 106 | B113: 137 | C113: 137 | E113: Points mapped (1)
A114: 106 | B114: 138 | C114: 138 | E114: Points mapped (1)
A115: 106 | B115: 139 | C115: 139 | E115: Points mapped (1)
A116: 106 | B116: 140 | C116: 140 | E116: Points mapped (1)
A117: 106 | B117: 141 | C117: 141 | E117: Points mapped (1)
A118: 106 | B118: 142 | C118: 142 | E118: Points mapped (1)
A119: 106 | B119: 143 | C119: 143 | E119: Points mapped (1)
A120: 106 | B120: 144 | C120: 144 | E120: Points mapped (1)
A121: 106 | B121: 145 | C121: 145 | E121: Points mapped (1)
A122: 106 | B122: 146 | C122: 146 | E122: Points mapped (1)
A123: 106 | B123: 147 | C123: 147 | E123: Points mapped (1)
A124: 106 | B124: 148 | C124: 148 | E124: Points mapped (1)
A125: 106 | B125: 149 | C125: 149 | E125: Points mapped (1)
A126: 106 | B126: 150 | C126: 150 | E126: Points mapped (1)
A127: 106 | B127: 151 | C127: 151 | E127: Points mapped (1)
A128: 106 | B128: 152 | C128: 152 | E128: Points mapped (1)
A129: 106 | B129: 153 | C129: 153 | E129: Points mapped (1)
A130: 106 | B130: 154 | C130: 154 | E130: Points mapped (1)
A131: 106 | B131: 155 | C131: 155 | E131: Points mapped (1)
A132: 106 | B132: 156 | C132: 156 | E132: Points mapped (1)
A133: 106 | B133: 157 | C133: 157 | E133: Points mapped (1)
A134: 106 | B134: 158 | C134: 158 | E134: Points mapped (1)
A135: 106 | B135: 159 | C135: 159 | E135: Points mapped (1)
A136: 106 | B136: 160 | C136: 160 | E136: Points mapped (1)
A137: 106 | B137: 161 | C137: 161 | E137: Points mapped (1)
A138: 106 | B138: 162 | C138: 162 | E138: Points mapped (1)
A139: 106 | B139: 163 | C139: 163 | E139: Points mapped (1)
A140: 106 | B140: 164 | C140: 164 | E140: Points mapped (1)
A141: 106 | B141: 165 | C141: 165 | E141: Points mapped (1)
A142: 106 | B142: 166 | C142: 166 | E142: Points mapped (1)
A143: 106 | B143: 167 | C143: 167 | E143: Points mapped (1)
A144: 106 | B144: 168 | C144: 168 | E144: Points mapped (1)
A145: 106 | B145: 169 | C145: 169 | E145: Points mapped (1)
A146: 106 | B146: 170 | C146: 170 | E146: Points mapped (1)
A147: 106 | B147: 171 | C147: 171 | E147: Points mapped (1)
A148: 106 | B148: 172 | C148: 172 | E148: Points mapped (1)
A149: 106 | B149: 173 | C149: 173 | E149: Points mapped (1)
A150: 106 | B150: 174 | C150: 174 | E150: Points mapped (1)
A151: 106 | B151: 175 | C151: 175 | E151: Points mapped (1)
A152: 110 | B152: 101 | C152: 101 | E152: Points mapped (1)
A153: 110 | B153: 102 | C153: 102 | E153: Points mapped (1)
A154: 110 | B154: 103 | C154: 103 | E154: Points mapped (1)
A155: 110 | B155: 104 | C155: 104 | E155: Points mapped (1)
A156: 110 | B156: 105 | C156: 105 | E156: Points mapped (1)
A157: 110 | B157: 106 | C157: 106 | E157: Points mapped (1)
A158: 110 | B158: 107 | C158: 107 | E158: Points mapped (1)
A159: 110 | B159: 108 | C159: 108 | E159: Points mapped (1)
A160: 110 | B160: 109 | C160: 109 | E160: Points mapped (1)
A161: 110 | B161: 110 | C161: 110 | E161: Points mapped (1)
A162: 110 | B162: 111 | C162: 111 | E162: Points mapped (1)
A163: 110 | B163: 112 | C163: 112 | E163: Points mapped (1)
A164: 110 | B164: 113 | C164: 113 | E164: Points mapped (1)
A165: 110 | B165: 114 | C165: 114 | E165: Points mapped (1)
A166: 110 | B166: 115 | C166: 115 | E166: Points mapped (1)
A167: 110 | B167: 116 | C167: 116 | E167: Points mapped (1)
A168: 110 | B168: 117 | C168: 117 | E168: Points mapped (1)
A169: 110 | B169: 118 | C169: 118 | E169: Points mapped (1)
A170: 110 | B170: 119 | C170: 119 | E170: Points mapped (1)
A171: 110 | B171: 120 | C171: 120 | E171: Points mapped (1)
A172: 110 | B172: 121 | C172: 121 | E172: Points mapped (1)
A173: 110 | B173: 122 | C173: 122 | E173: Points mapped (1)
A174: 110 | B174: 123 | C174: 123 | E174: Points mapped (1)
A175: 110 | B175: 124 | C175: 124 | E175: Points mapped (1)
A176: 110 | B176: 125 | C176: 125 | E176: Points mapped (1)
A177: 110 | B177: 126 | C177: 126 | E177: Points mapped (1)
A178: 110 | B178: 127 | C178: 127 | E178: Points mapped (1)
A179: 110 | B179: 128 | C179: 128 | E179: Points mapped (1)
A180: 110 | B180: 129 | C180: 129 | E180: Points mapped (1)
A181: 110 | B181: 130 | C181: 130 | E181: Points mapped (1)
A182: 110 | B182: 131 | C182: 131 | E182: Points mapped (1)
A183: 110 | B183: 132 | C183: 132 | E183: Points mapped (1)
A184: 110 | B184: 133 | C184: 133 | E184: Points mapped (1)
A185: 110 | B185: 134 | C185: 134 | E185: Points mapped (1)
A186: 110 | B186: 135 | C186: 135 | E186: Points mapped (1)
A187: 110 | B187: 136 | C187: 136 | E187: Points mapped (1)
A188: 110 | B188: 137 | C188: 137 | E188: Points mapped (1)
A189: 110 | B189: 138 | C189: 138 | E189: Points mapped (1)
A190: 110 | B190: 139 | C190: 139 | E190: Points mapped (1)
A191: 110 | B191: 140 | C191: 140 | E191: Points mapped (1)
A192: 110 | B192: 141 | C192: 141 | E192: Points mapped (1)
A193: 110 | B193: 142 | C193: 142 | E193: Points mapped (1)
A194: 110 | B194: 143 | C194: 143 | E194: Points mapped (1)
A195: 110 | B195: 144 | C195: 144 | E195: Points mapped (1)
A196: 110 | B196: 145 | C196: 145 | E196: Points mapped (1)
A197: 110 | B197: 146 | C197: 146 | E197: Points mapped (1)
A198: 110 | B198: 147 | C198: 147 | E198: Points mapped (1)
A199: 110 | B199: 148 | C199: 148 | E199: Points mapped (1)
A200: 110 | B200: 149 | C200: 149 | E200: Points mapped (1)
... 711 more rows

Sheet map_undo1 (hidden)
B1: S-102 | C1: S-106 | D1: S-110 | E1: S-114 | F1: S-118 | G1: S-122 | H1: S-126 | I1: S-130 | J1: S-132 | K1: S-134 | L1: S-136 | M1: S-138 | N1: S-142 | O1: S-146 | P1: S-150
A2: 101
A3: 102
A4: 103
A5: 104
A6: 105
A7: 106
A8: 107
A9: 108
A10: 109
A11: 110
A12: 111
A13: 112
A14: 113
A15: 114
A16: 115
A17: 116
A18: 117
A19: 118
A20: 119
A21: 120
A22: 121
A23: 122
A24: 123
A25: 124
A26: 125
A27: 126
A28: 127
A29: 128
A30: 129
A31: 130
A32: 131
A33: 132
A34: 133
A35: 134
A36: 135
A37: 136
A38: 137
A39: 138
A40: 139
A41: 140
A42: 141
A43: 142
A44: 143
A45: 144
A46: 145
A47: 146
A48: 147 | B48: NL
A49: 148
A50: 149
A51: 150
A52: 151
A53: 152
A54: 153
A55: 154
A56: 155
A57: 156
A58: 157
A59: 158
A60: 159
A61: 160
A62: 161
A63: 162
A64: 163
A65: 164
A66: 165
A67: 166
A68: 167
A69: 168
A70: 169
A71: 170
A72: 171
A73: 172
A74: 173
A75: 174
A76: 175 | F76: D

Sheet survey_undo1 (hidden)
A1: Source Line | B1: BOL | C1: EOL | D1: Total Points | E1: Map Report
A2: 102 | B2: 101 | C2: 101 | E2: Points mapped (1)
A3: 102 | B3: 102 | C3: 102 | E3: Points mapped (1)
A4: 102 | B4: 103 | C4: 103 | E4: Points mapped (1)
A5: 102 | B5: 104 | C5: 104 | E5: Points mapped (1)
A6: 102 | B6: 105 | C6: 105 | E6: Points mapped (1)
A7: 102 | B7: 106 | C7: 106 | E7: Points mapped (1)
A8: 102 | B8: 107 | C8: 107 | E8: Points mapped (1)
A9: 102 | B9: 108 | C9: 108 | E9: Points mapped (1)
A10: 102 | B10: 109 | C10: 109 | E10: Points mapped (1)
A11: 102 | B11: 110 | C11: 110 | E11: Points mapped (1)
A12: 102 | B12: 111 | C12: 111 | E12: Points mapped (1)
A13: 102 | B13: 112 | C13: 112 | E13: Points mapped (1)
A14: 102 | B14: 113 | C14: 113 | E14: Points mapped (1)
A15: 102 | B15: 114 | C15: 114 | E15: Points mapped (1)
A16: 102 | B16: 115 | C16: 115 | E16: Points mapped (1)
A17: 102 | B17: 116 | C17: 116 | E17: Points mapped (1)
A18: 102 | B18: 117 | C18: 117 | E18: Points mapped (1)
A19: 102 | B19: 118 | C19: 118 | E19: Points mapped (1)
A20: 102 | B20: 119 | C20: 119 | E20: Points mapped (1)
A21: 102 | B21: 120 | C21: 120 | E21: Points mapped (1)
A22: 102 | B22: 121 | C22: 121 | E22: Points mapped (1)
A23: 102 | B23: 122 | C23: 122 | E23: Points mapped (1)
A24: 102 | B24: 123 | C24: 123 | E24: Points mapped (1)
A25: 102 | B25: 124 | C25: 124 | E25: Points mapped (1)
A26: 102 | B26: 125 | C26: 125 | E26: Points mapped (1)
A27: 102 | B27: 126 | C27: 126 | E27: Points mapped (1)
A28: 102 | B28: 127 | C28: 127 | E28: Points mapped (1)
A29: 102 | B29: 128 | C29: 128 | E29: Points mapped (1)
A30: 102 | B30: 129 | C30: 129 | E30: Points mapped (1)
A31: 102 | B31: 130 | C31: 130 | E31: Points mapped (1)
A32: 102 | B32: 131 | C32: 131 | E32: Points mapped (1)
A33: 102 | B33: 132 | C33: 132 | E33: Points mapped (1)
A34: 102 | B34: 133 | C34: 133 | E34: Points mapped (1)
A35: 102 | B35: 134 | C35: 134 | E35: Points mapped (1)
A36: 102 | B36: 135 | C36: 135 | E36: Points mapped (1)
A37: 102 | B37: 136 | C37: 136 | E37: Points mapped (1)
A38: 102 | B38: 137 | C38: 137 | E38: Points mapped (1)
A39: 102 | B39: 138 | C39: 138 | E39: Points mapped (1)
A40: 102 | B40: 139 | C40: 139 | E40: Points mapped (1)
A41: 102 | B41: 140 | C41: 140 | E41: Points mapped (1)
A42: 102 | B42: 141 | C42: 141 | E42: Points mapped (1)
A43: 102 | B43: 142 | C43: 142 | E43: Points mapped (1)
A44: 102 | B44: 143 | C44: 143 | E44: Points mapped (1)
A45: 102 | B45: 144 | C45: 144 | E45: Points mapped (1)
A46: 102 | B46: 145 | C46: 145 | E46: Points mapped (1)
A47: 102 | B47: 146 | C47: 146 | E47: Points mapped (1)
A48: 102 | B48: 147 | C48: 147 | E48: Points mapped (1)
A49: 102 | B49: 148 | C49: 148 | E49: Points mapped (1)
A50: 102 | B50: 149 | C50: 149 | E50: Points mapped (1)
A51: 102 | B51: 150 | C51: 150 | E51: Points mapped (1)
A52: 102 | B52: 151 | C52: 151 | E52: Points mapped (1)
A53: 102 | B53: 152 | C53: 152 | E53: Points mapped (1)
A54: 102 | B54: 153 | C54: 153 | E54: Points mapped (1)
A55: 102 | B55: 154 | C55: 154 | E55: Points mapped (1)
A56: 102 | B56: 155 | C56: 155 | E56: Points mapped (1)
A57: 102 | B57: 156 | C57: 156 | E57: Points mapped (1)
A58: 102 | B58: 157 | C58: 157 | E58: Points mapped (1)
A59: 102 | B59: 158 | C59: 158 | E59: Points mapped (1)
A60: 102 | B60: 159 | C60: 159 | E60: Points mapped (1)
A61: 102 | B61: 160 | C61: 160 | E61: Points mapped (1)
A62: 102 | B62: 161 | C62: 161 | E62: Points mapped (1)
A63: 102 | B63: 162 | C63: 162 | E63: Points mapped (1)
A64: 102 | B64: 163 | C64: 163 | E64: Points mapped (1)
A65: 102 | B65: 164 | C65: 164 | E65: Points mapped (1)
A66: 102 | B66: 165 | C66: 165 | E66: Points mapped (1)
A67: 102 | B67: 166 | C67: 166 | E67: Points mapped (1)
A68: 102 | B68: 167 | C68: 167 | E68: Points mapped (1)
A69: 102 | B69: 168 | C69: 168 | E69: Points mapped (1)
A70: 102 | B70: 169 | C70: 169 | E70: Points mapped (1)
A71: 102 | B71: 170 | C71: 170 | E71: Points mapped (1)
A72: 102 | B72: 171 | C72: 171 | E72: Points mapped (1)
A73: 102 | B73: 172 | C73: 172 | E73: Points mapped (1)
A74: 102 | B74: 173 | C74: 173 | E74: Points mapped (1)
A75: 102 | B75: 174 | C75: 174 | E75: Points mapped (1)
A76: 102 | B76: 175 | C76: 175 | E76: Points mapped (1)
A77: 106 | B77: 101 | C77: 101 | E77: Points mapped (1)
A78: 106 | B78: 102 | C78: 102 | E78: Points mapped (1)
A79: 106 | B79: 103 | C79: 103 | E79: Points mapped (1)
A80: 106 | B80: 104 | C80: 104 | E80: Points mapped (1)
A81: 106 | B81: 105 | C81: 105 | E81: Points mapped (1)
A82: 106 | B82: 106 | C82: 106 | E82: Points mapped (1)
A83: 106 | B83: 107 | C83: 107 | E83: Points mapped (1)
A84: 106 | B84: 108 | C84: 108 | E84: Points mapped (1)
A85: 106 | B85: 109 | C85: 109 | E85: Points mapped (1)
A86: 106 | B86: 110 | C86: 110 | E86: Points mapped (1)
A87: 106 | B87: 111 | C87: 111 | E87: Points mapped (1)
A88: 106 | B88: 112 | C88: 112 | E88: Points mapped (1)
A89: 106 | B89: 113 | C89: 113 | E89: Points mapped (1)
A90: 106 | B90: 114 | C90: 114 | E90: Points mapped (1)
A91: 106 | B91: 115 | C91: 115 | E91: Points mapped (1)
A92: 106 | B92: 116 | C92: 116 | E92: Points mapped (1)
A93: 106 | B93: 117 | C93: 117 | E93: Points mapped (1)
A94: 106 | B94: 118 | C94: 118 | E94: Points mapped (1)
A95: 106 | B95: 119 | C95: 119 | E95: Points mapped (1)
A96: 106 | B96: 120 | C96: 120 | E96: Points mapped (1)
A97: 106 | B97: 121 | C97: 121 | E97: Points mapped (1)
A98: 106 | B98: 122 | C98: 122 | E98: Points mapped (1)
A99: 106 | B99: 123 | C99: 123 | E99: Points mapped (1)
A100: 106 | B100: 124 | C100: 124 | E100: Points mapped (1)
A101: 106 | B101: 125 | C101: 125 | E101: Points mapped (1)
A102: 106 | B102: 126 | C102: 126 | E102: Points mapped (1)
A103: 106 | B103: 127 | C103: 127 | E103: Points mapped (1)
A104: 106 | B104: 128 | C104: 128 | E104: Points mapped (1)
A105: 106 | B105: 129 | C105: 129 | E105: Points mapped (1)
A106: 106 | B106: 130 | C106: 130 | E106: Points mapped (1)
A107: 106 | B107: 131 | C107: 131 | E107: Points mapped (1)
A108: 106 | B108: 132 | C108: 132 | E108: Points mapped (1)
A109: 106 | B109: 133 | C109: 133 | E109: Points mapped (1)
A110: 106 | B110: 134 | C110: 134 | E110: Points mapped (1)
A111: 106 | B111: 135 | C111: 135 | E111: Points mapped (1)
A112: 106 | B112: 136 | C112: 136 | E112: Points mapped (1)
A113: 106 | B113: 137 | C113: 137 | E113: Points mapped (1)
A114: 106 | B114: 138 | C114: 138 | E114: Points mapped (1)
A115: 106 | B115: 139 | C115: 139 | E115: Points mapped (1)
A116: 106 | B116: 140 | C116: 140 | E116: Points mapped (1)
A117: 106 | B117: 141 | C117: 141 | E117: Points mapped (1)
A118: 106 | B118: 142 | C118: 142 | E118: Points mapped (1)
A119: 106 | B119: 143 | C119: 143 | E119: Points mapped (1)
A120: 106 | B120: 144 | C120: 144 | E120: Points mapped (1)
A121: 106 | B121: 145 | C121: 145 | E121: Points mapped (1)
A122: 106 | B122: 146 | C122: 146 | E122: Points mapped (1)
A123: 106 | B123: 147 | C123: 147 | E123: Points mapped (1)
A124: 106 | B124: 148 | C124: 148 | E124: Points mapped (1)
A125: 106 | B125: 149 | C125: 149 | E125: Points mapped (1)
A126: 106 | B126: 150 | C126: 150 | E126: Points mapped (1)
A127: 106 | B127: 151 | C127: 151 | E127: Points mapped (1)
A128: 106 | B128: 152 | C128: 152 | E128: Points mapped (1)
A129: 106 | B129: 153 | C129: 153 | E129: Points mapped (1)
A130: 106 | B130: 154 | C130: 154 | E130: Points mapped (1)
A131: 106 | B131: 155 | C131: 155 | E131: Points mapped (1)
A132: 106 | B132: 156 | C132: 156 | E132: Points mapped (1)
A133: 106 | B133: 157 | C133: 157 | E133: Points mapped (1)
A134: 106 | B134: 158 | C134: 158 | E134: Points mapped (1)
A135: 106 | B135: 159 | C135: 159 | E135: Points mapped (1)
A136: 106 | B136: 160 | C136: 160 | E136: Points mapped (1)
A137: 106 | B137: 161 | C137: 161 | E137: Points mapped (1)
A138: 106 | B138: 162 | C138: 162 | E138: Points mapped (1)
A139: 106 | B139: 163 | C139: 163 | E139: Points mapped (1)
A140: 106 | B140: 164 | C140: 164 | E140: Points mapped (1)
A141: 106 | B141: 165 | C141: 165 | E141: Points mapped (1)
A142: 106 | B142: 166 | C142: 166 | E142: Points mapped (1)
A143: 106 | B143: 167 | C143: 167 | E143: Points mapped (1)
A144: 106 | B144: 168 | C144: 168 | E144: Points mapped (1)
A145: 106 | B145: 169 | C145: 169 | E145: Points mapped (1)
A146: 106 | B146: 170 | C146: 170 | E146: Points mapped (1)
A147: 106 | B147: 171 | C147: 171 | E147: Points mapped (1)
A148: 106 | B148: 172 | C148: 172 | E148: Points mapped (1)
A149: 106 | B149: 173 | C149: 173 | E149: Points mapped (1)
A150: 106 | B150: 174 | C150: 174 | E150: Points mapped (1)
A151: 106 | B151: 175 | C151: 175 | E151: Points mapped (1)
A152: 110 | B152: 101 | C152: 101 | E152: Points mapped (1)
A153: 110 | B153: 102 | C153: 102 | E153: Points mapped (1)
A154: 110 | B154: 103 | C154: 103 | E154: Points mapped (1)
A155: 110 | B155: 104 | C155: 104 | E155: Points mapped (1)
A156: 110 | B156: 105 | C156: 105 | E156: Points mapped (1)
A157: 110 | B157: 106 | C157: 106 | E157: Points mapped (1)
A158: 110 | B158: 107 | C158: 107 | E158: Points mapped (1)
A159: 110 | B159: 108 | C159: 108 | E159: Points mapped (1)
A160: 110 | B160: 109 | C160: 109 | E160: Points mapped (1)
A161: 110 | B161: 110 | C161: 110 | E161: Points mapped (1)
A162: 110 | B162: 111 | C162: 111 | E162: Points mapped (1)
A163: 110 | B163: 112 | C163: 112 | E163: Points mapped (1)
A164: 110 | B164: 113 | C164: 113 | E164: Points mapped (1)
A165: 110 | B165: 114 | C165: 114 | E165: Points mapped (1)
A166: 110 | B166: 115 | C166: 115 | E166: Points mapped (1)
A167: 110 | B167: 116 | C167: 116 | E167: Points mapped (1)
A168: 110 | B168: 117 | C168: 117 | E168: Points mapped (1)
A169: 110 | B169: 118 | C169: 118 | E169: Points mapped (1)
A170: 110 | B170: 119 | C170: 119 | E170: Points mapped (1)
A171: 110 | B171: 120 | C171: 120 | E171: Points mapped (1)
A172: 110 | B172: 121 | C172: 121 | E172: Points mapped (1)
A173: 110 | B173: 122 | C173: 122 | E173: Points mapped (1)
A174: 110 | B174: 123 | C174: 123 | E174: Points mapped (1)
A175: 110 | B175: 124 | C175: 124 | E175: Points mapped (1)
A176: 110 | B176: 125 | C176: 125 | E176: Points mapped (1)
A177: 110 | B177: 126 | C177: 126 | E177: Points mapped (1)
A178: 110 | B178: 127 | C178: 127 | E178: Points mapped (1)
A179: 110 | B179: 128 | C179: 128 | E179: Points mapped (1)
A180: 110 | B180: 129 | C180: 129 | E180: Points mapped (1)
A181: 110 | B181: 130 | C181: 130 | E181: Points mapped (1)
A182: 110 | B182: 131 | C182: 131 | E182: Points mapped (1)
A183: 110 | B183: 132 | C183: 132 | E183: Points mapped (1)
A184: 110 | B184: 133 | C184: 133 | E184: Points mapped (1)
A185: 110 | B185: 134 | C185: 134 | E185: Points mapped (1)
A186: 110 | B186: 135 | C186: 135 | E186: Points mapped (1)
A187: 110 | B187: 136 | C187: 136 | E187: Points mapped (1)
A188: 110 | B188: 137 | C188: 137 | E188: Points mapped (1)
A189: 110 | B189: 138 | C189: 138 | E189: Points mapped (1)
A190: 110 | B190: 139 | C190: 139 | E190: Points mapped (1)
A191: 110 | B191: 140 | C191: 140 | E191: Points mapped (1)
A192: 110 | B192: 141 | C192: 141 | E192: Points mapped (1)
A193: 110 | B193: 142 | C193: 142 | E193: Points mapped (1)
A194: 110 | B194: 143 | C194: 143 | E194: Points mapped (1)
A195: 110 | B195: 144 | C195: 144 | E195: Points mapped (1)
A196: 110 | B196: 145 | C196: 145 | E196: Points mapped (1)
A197: 110 | B197: 146 | C197: 146 | E197: Points mapped (1)
A198: 110 | B198: 147 | C198: 147 | E198: Points mapped (1)
A199: 110 | B199: 148 | C199: 148 | E199: Points mapped (1)
A200: 110 | B200: 149 | C200: 149 | E200: Points mapped (1)
... 711 more rows

Sheet daily_undo1 (hidden)
A1: Source | B1: Point | C1: Date | D1: File | E1: Process Type | F1: OB Comments | G1: Mapping Report
A2: 134 | B2: 144 | C2: 2013-03-20 | D2: 945 | F2: N/A
A3: 134 | B3: 143 | C3: 2013-03-20 | D3: 946 | F3: Blowout, rifle. Weak shot
A4: 134 | B4: 142 | C4: 2013-03-20 | D4: 947 | F4: Blowout, rifle
A5: 134 | B5: 141 | C5: 2013-03-20 | D5: 948 | F5: Blowout, rifle
A6: 136 | B6: 140 | C6: 2013-03-20 | D6: 949 | F6: Weak shot
A7: 136 | B7: 139 | C7: 2013-03-20 | D7: 950 | F7: Weak shot
A8: 136 | B8: 138 | C8: 2013-03-20 | D8: 951 | F8: N/A
A9: 136 | B9: 137 | C9: 2013-03-20 | D9: 952 | F9: N/A
A10: 136 | B10: 136 | C10: 2013-03-20 | D10: 953 | F10: Wrong header, sp 136136 in system as 138136. Extra shot
A11: 138 | B11: 136 | C11: 2013-03-20 | D11: 954 | F11: Weak shot. Wrong header sp 138136 in system as 138137
A12: 138 | B12: 137 | C12: 2013-03-20 | D12: 955 | F12: Weak shot. Wrong header sp 138137 in system as 138138
A13: 138 | B13: 138 | C13: 2013-03-20 | D13: 956 | F13: Wrong header, sp 138138 in system as 138139
A14: 138 | B14: 139 | C14: 2013-03-20 | D14: 957 | F14: Blowout, rifle. Wrong header sp 138139 in system as 138140
A15: 138 | B15: 140 | C15: 2013-03-20 | D15: 958 | F15: End of production on Lalor Lake 3D

Sheet map_redo1 (hidden)
B1: S-102 | C1: S-106 | D1: S-110 | E1: S-114 | F1: S-118 | G1: S-122 | H1: S-126 | I1: S-130 | J1: S-134 | K1: S-138 | L1: S-142 | M1: S-146 | N1: S-150 | O1: S-154 | P1: S-158 | Q1: S-162 | R1: S-166 | S1: S-170 | T1: S-174 | U1: S-178 | V1: S-182 | W1: S-186 | X1: S-190 | Y1: S-194 | Z1: S-198 | AA1: S-202 | AB1: S-206 | AC1: S-210 | AD1: S-214 | AE1: S-218 | AF1: S-222 | AG1: S-226 | AH1: S-230 | AI1: S-234 | AJ1: S-238 | AK1: S-242 | AL1: S-246 | AM1: S-250 | AN1: S-254 | AO1: S-258 | AP1: S-262 | AQ1: S-266 | AR1: S-270 | AS1: S-274 | AT1: S-278 | AU1: S-282 | AV1: S-286 | AW1: S-290 | AX1: S-294 | AY1: S-298 | AZ1: S-302 | BA1: S-306 | BB1: S-310 | BC1: S-314 | BD1: S-318 | BE1: S-322 | BF1: S-326 | BG1: S-330 | BH1: S-334 | BI1: S-338 | BJ1: S-342 | BK1: S-346 | BL1: S-350 | BM1: S-354 | BN1: S-358 | BO1: S-362 | BP1: S-366 | BQ1: S-370 | BR1: S-374 | BS1: S-378 | BT1: S-382 | BU1: S-386 | BV1: S-390 | BW1: S-394 | BX1: S-398 | BY1: S-402 | BZ1: S-406 | CA1: S-410 | CB1: S-414 | CC1: S-418 | CD1: S-422 | CE1: S-426 | CF1: S-430 | CG1: S-434 | CH1: S-438 | CI1: S-442 | CJ1: S-446 | CK1: S-450 | CL1: S-454 | CM1: S-458 | CN1: S-462 | CO1: S-466 | CP1: S-470 | CQ1: S-474 | CR1: S-478 | CS1: S-482 | CT1: S-486 | CU1: S-490 | CV1: S-494 | CW1: S-498 | CX1: S-502 | CY1: S-506 | CZ1: S-510 | DA1: S-514 | DB1: S-518 | DC1: S-522 | DD1: S-526 | DE1: S-530 | DF1: S-534 | DG1: S-538 | DH1: S-542 | DI1: S-546 | DJ1: S-550 | DK1: S-554 | DL1: S-558 | DM1: S-562 | DN1: S-566 | DO1: S-570 | DP1: S-574 | DQ1: S-578 | DR1: S-582 | DS1: S-586 | DT1: S-590 | DU1: S-594 | DV1: S-598 | DW1: S-602 | DX1: S-606 | DY1: S-610 | DZ1: S-614 | EA1: S-618 | EB1: S-622 | EC1: S-626 | ED1: S-630 | EE1: S-634 | EF1: S-638 | EG1: S-642 | EH1: S-646 | EI1: S-650 | EJ1: S-654 | EK1: S-658 | EL1: S-662 | EM1: S-666 | EN1: S-670 | EO1: S-674 | EP1: S-678 | EQ1: S-682 | ER1: S-686 | ES1: S-690 | ET1: S-694 | EU1: S-698 | EV1: S-702 | EW1: S-706 | EX1: S-710 | EY1: S-714 | EZ1: S-718 | FA1: S-722 | FB1: S-726 | FC1: S-730 | FD1: S-734 | FE1: S-738 | FF1: S-742 | FG1: S-746 | FH1: S-750 | FI1: S-754 | FJ1: S-758 | FK1: S-762
A2: 101 | DY2: N | DZ2: N
A3: 102 | EJ3: N
A4: 103 | EJ4: N
A5: 104 | DY5: N
A6: 105 | BO6: N | EL6: N
A7: 106
A8: 107
A9: 108
A10: 109
A11: 110
A12: 111
A13: 112
A14: 113
A15: 114
A16: 115
A17: 116
A18: 117
A19: 118
A20: 119
A21: 120
A22: 121
A23: 122 | EG23: N
A24: 123 | EG24: N
A25: 124
A26: 125
A27: 126
A28: 127
A29: 128
A30: 129
A31: 130 | BL31: N
A32: 131 | BL32: N
A33: 132 | BL33: N
A34: 133 | BL34: N
A35: 134 | BL35: N
A36: 135 | BL36: N
A37: 136
A38: 137
A39: 138
A40: 139 | AR40: N
A41: 140
A42: 141
A43: 142
A44: 143
A45: 144
A46: 145
A47: 146
A48: 147
A49: 148
A50: 149
A51: 150 | BI51: N
A52: 151 | BI52: N
A53: 152
A54: 153
A55: 154
A56: 155
A57: 156
A58: 157
A59: 158
A60: 159
A61: 160
A62: 161
A63: 162
A64: 163
A65: 164
A66: 165
A67: 166
A68: 167
A69: 168
A70: 169
A71: 170 | EM71: N
A72: 171 | EM72: N
A73: 172 | EM73: N
A74: 173
A75: 174
A76: 175
A77: 176
A78: 177
A79: 178
A80: 179
A81: 180
A82: 181
A83: 182
A84: 183
A85: 184
A86: 185
A87: 186
A88: 187
A89: 188
A90: 189
A91: 190
A92: 191
A93: 192
A94: 193
A95: 194
A96: 195 | BQ96: N
A97: 196
A98: 197
A99: 198 | DM99: N
A100: 199 | DM100: N
A101: 200
A102: 201
A103: 202
A104: 203 | DM104: N
A105: 204 | DM105: N
A106: 205 | DM106: N
A107: 206 | DZ107: N
A108: 207
A109: 208
A110: 209
A111: 210
A112: 211
A113: 212 | CA113: N
A114: 213
A115: 214
A116: 215
A117: 216
A118: 217
A119: 218
A120: 219
A121: 220
A122: 221
A123: 222
A124: 223
A125: 224
A126: 225 | BZ126: N
A127: 226 | BZ127: N | FD127: N
A128: 227
A129: 228
A130: 229 | DF130: N
A131: 230 | DF131: N
A132: 231
A133: 232
A134: 233 | CJ134: N
A135: 234
A136: 235
A137: 236 | DD137: N
A138: 237
A139: 238
A140: 239
A141: 240 | BB141: N
A142: 241 | BB142: N | CI142: N
A143: 242 | BB143: N
A144: 243 | BB144: N
A145: 244
A146: 245
A147: 246
A148: 247
A149: 248
A150: 249 | CG150: N
A151: 250
A152: 251
A153: 252
A154: 253
A155: 254
A156: 255
A157: 256
A158: 257
A159: 258
A160: 259
A161: 260
A162: 261
A163: 262
A164: 263
A165: 264
A166: 265
A167: 266
A168: 267
A169: 268
A170: 269
A171: 270
A172: 271
A173: 272
A174: 273
A175: 274
A176: 275
A177: 276
A178: 277
A179: 278 | DD179: N
A180: 279
A181: 280
A182: 281
A183: 282
A184: 283
A185: 284
A186: 285
A187: 286
A188: 287
A189: 288
A190: 289
A191: 290
A192: 291
A193: 292
A194: 293
A195: 294
A196: 295
A197: 296 | EF197: N
A198: 297 | EF198: N
A199: 298
A200: 299 | EL200: N
... 638 more rows

Sheet survey_redo1 (hidden)
A1: Source Line | B1: BOL | C1: EOL | D1: Total Points | E1: Map Report
A2: 102 | B2: 575 | C2: 575 | E2: Points mapped (1)
A3: 102 | B3: 576 | C3: 576 | E3: Points mapped (1)
A4: 102 | B4: 577 | C4: 577 | E4: Points mapped (1)
A5: 102 | B5: 578 | C5: 578 | E5: Points mapped (1)
A6: 102 | B6: 579 | C6: 579 | E6: Points mapped (1)
A7: 102 | B7: 580 | C7: 580 | E7: Points mapped (1)
A8: 102 | B8: 581 | C8: 581 | E8: Points mapped (1)
A9: 102 | B9: 582 | C9: 582 | E9: Points mapped (1)
A10: 102 | B10: 583 | C10: 583 | E10: Points mapped (1)
A11: 102 | B11: 584 | C11: 584 | E11: Points mapped (1)
A12: 106 | B12: 576 | C12: 576 | E12: Points mapped (1)
A13: 106 | B13: 577 | C13: 577 | E13: Points mapped (1)
A14: 106 | B14: 578 | C14: 578 | E14: Points mapped (1)
A15: 106 | B15: 579 | C15: 579 | E15: Points mapped (1)
A16: 106 | B16: 580 | C16: 580 | E16: Points mapped (1)
A17: 106 | B17: 581 | C17: 581 | E17: Points mapped (1)
A18: 106 | B18: 582 | C18: 582 | E18: Points mapped (1)
A19: 106 | B19: 583 | C19: 583 | E19: Points mapped (1)
A20: 106 | B20: 584 | C20: 584 | E20: Points mapped (1)
A21: 106 | B21: 585 | C21: 585 | E21: Points mapped (1)
A22: 106 | B22: 586 | C22: 586 | E22: Points mapped (1)
A23: 106 | B23: 587 | C23: 587 | E23: Points mapped (1)
A24: 106 | B24: 588 | C24: 588 | E24: Points mapped (1)
A25: 106 | B25: 589 | C25: 589 | E25: Points mapped (1)
A26: 106 | B26: 590 | C26: 590 | E26: Points mapped (1)
A27: 106 | B27: 591 | C27: 591 | E27: Points mapped (1)
A28: 106 | B28: 592 | C28: 592 | E28: Points mapped (1)
A29: 106 | B29: 593 | C29: 593 | E29: Points mapped (1)
A30: 106 | B30: 594 | C30: 594 | E30: Points mapped (1)
A31: 106 | B31: 595 | C31: 595 | E31: Points mapped (1)
A32: 106 | B32: 596 | C32: 596 | E32: Points mapped (1)
A33: 106 | B33: 597 | C33: 597 | E33: Points mapped (1)
A34: 106 | B34: 598 | C34: 598 | E34: Points mapped (1)
A35: 106 | B35: 599 | C35: 599 | E35: Points mapped (1)
A36: 106 | B36: 600 | C36: 600 | E36: Points mapped (1)
A37: 106 | B37: 601 | C37: 601 | E37: Points mapped (1)
A38: 106 | B38: 602 | C38: 602 | E38: Points mapped (1)
A39: 106 | B39: 603 | C39: 603 | E39: Points mapped (1)
A40: 106 | B40: 604 | C40: 604 | E40: Points mapped (1)
A41: 110 | B41: 575 | C41: 575 | E41: Points mapped (1)
A42: 110 | B42: 576 | C42: 576 | E42: Points mapped (1)
A43: 110 | B43: 577 | C43: 577 | E43: Points mapped (1)
A44: 110 | B44: 578 | C44: 578 | E44: Points mapped (1)
A45: 110 | B45: 579 | C45: 579 | E45: Points mapped (1)
A46: 110 | B46: 580 | C46: 580 | E46: Points mapped (1)
A47: 110 | B47: 581 | C47: 581 | E47: Points mapped (1)
A48: 110 | B48: 582 | C48: 582 | E48: Points mapped (1)
A49: 110 | B49: 583 | C49: 583 | E49: Points mapped (1)
A50: 110 | B50: 584 | C50: 584 | E50: Points mapped (1)
A51: 110 | B51: 585 | C51: 585 | E51: Points mapped (1)
A52: 110 | B52: 586 | C52: 586 | E52: Points mapped (1)
A53: 110 | B53: 587 | C53: 587 | E53: Points mapped (1)
A54: 110 | B54: 588 | C54: 588 | E54: Points mapped (1)
A55: 110 | B55: 589 | C55: 589 | E55: Points mapped (1)
A56: 110 | B56: 590 | C56: 590 | E56: Points mapped (1)
A57: 110 | B57: 591 | C57: 591 | E57: Points mapped (1)
A58: 110 | B58: 592 | C58: 592 | E58: Points mapped (1)
A59: 110 | B59: 593 | C59: 593 | E59: Points mapped (1)
A60: 110 | B60: 594 | C60: 594 | E60: Points mapped (1)
A61: 110 | B61: 595 | C61: 595 | E61: Points mapped (1)
A62: 110 | B62: 596 | C62: 596 | E62: Points mapped (1)
A63: 110 | B63: 597 | C63: 597 | E63: Points mapped (1)
A64: 110 | B64: 598 | C64: 598 | E64: Points mapped (1)
A65: 110 | B65: 599 | C65: 599 | E65: Points mapped (1)
A66: 110 | B66: 600 | C66: 600 | E66: Points mapped (1)
A67: 110 | B67: 601 | C67: 601 | E67: Points mapped (1)
A68: 110 | B68: 602 | C68: 602 | E68: Points mapped (1)
A69: 110 | B69: 603 | C69: 603 | E69: Points mapped (1)
A70: 110 | B70: 604 | C70: 604 | E70: Points mapped (1)
A71: 110 | B71: 605 | C71: 605 | E71: Points mapped (1)
A72: 110 | B72: 606 | C72: 606 | E72: Points mapped (1)
A73: 110 | B73: 607 | C73: 607 | E73: Points mapped (1)
A74: 110 | B74: 608 | C74: 608 | E74: Points mapped (1)
A75: 110 | B75: 609 | C75: 609 | E75: Points mapped (1)
A76: 110 | B76: 610 | C76: 610 | E76: Points mapped (1)
A77: 110 | B77: 611 | C77: 611 | E77: Points mapped (1)
A78: 110 | B78: 612 | C78: 612 | E78: Points mapped (1)
A79: 110 | B79: 613 | C79: 613 | E79: Points mapped (1)
A80: 110 | B80: 614 | C80: 614 | E80: Points mapped (1)
A81: 110 | B81: 615 | C81: 615 | E81: Points mapped (1)
A82: 110 | B82: 616 | C82: 616 | E82: Points mapped (1)
A83: 110 | B83: 617 | C83: 617 | E83: Points mapped (1)
A84: 110 | B84: 618 | C84: 618 | E84: Points mapped (1)
A85: 110 | B85: 619 | C85: 619 | E85: Points mapped (1)
A86: 110 | B86: 620 | C86: 620 | E86: Points mapped (1)
A87: 110 | B87: 621 | C87: 621 | E87: Points mapped (1)
A88: 114 | B88: 575 | C88: 575 | E88: Points mapped (1)
A89: 114 | B89: 576 | C89: 576 | E89: Points mapped (1)
A90: 114 | B90: 577 | C90: 577 | E90: Points mapped (1)
A91: 114 | B91: 578 | C91: 578 | E91: Points mapped (1)
A92: 114 | B92: 579 | C92: 579 | E92: Points mapped (1)
A93: 114 | B93: 580 | C93: 580 | E93: Points mapped (1)
A94: 114 | B94: 581 | C94: 581 | E94: Points mapped (1)
A95: 114 | B95: 582 | C95: 582 | E95: Points mapped (1)
A96: 114 | B96: 583 | C96: 583 | E96: Points mapped (1)
A97: 114 | B97: 584 | C97: 584 | E97: Points mapped (1)
A98: 114 | B98: 585 | C98: 585 | E98: Points mapped (1)
A99: 114 | B99: 586 | C99: 586 | E99: Points mapped (1)
A100: 114 | B100: 587 | C100: 587 | E100: Points mapped (1)
A101: 114 | B101: 588 | C101: 588 | E101: Points mapped (1)
A102: 114 | B102: 589 | C102: 589 | E102: Points mapped (1)
A103: 114 | B103: 590 | C103: 590 | E103: Points mapped (1)
A104: 114 | B104: 591 | C104: 591 | E104: Points mapped (1)
A105: 114 | B105: 592 | C105: 592 | E105: Points mapped (1)
A106: 114 | B106: 593 | C106: 593 | E106: Points mapped (1)
A107: 114 | B107: 594 | C107: 594 | E107: Points mapped (1)
A108: 114 | B108: 595 | C108: 595 | E108: Points mapped (1)
A109: 114 | B109: 596 | C109: 596 | E109: Points mapped (1)
A110: 114 | B110: 597 | C110: 597 | E110: Points mapped (1)
A111: 114 | B111: 598 | C111: 598 | E111: Points mapped (1)
A112: 114 | B112: 599 | C112: 599 | E112: Points mapped (1)
A113: 114 | B113: 600 | C113: 600 | E113: Points mapped (1)
A114: 114 | B114: 601 | C114: 601 | E114: Points mapped (1)
A115: 114 | B115: 602 | C115: 602 | E115: Points mapped (1)
A116: 114 | B116: 603 | C116: 603 | E116: Points mapped (1)
A117: 114 | B117: 604 | C117: 604 | E117: Points mapped (1)
A118: 114 | B118: 605 | C118: 605 | E118: Points mapped (1)
A119: 114 | B119: 606 | C119: 606 | E119: Points mapped (1)
A120: 114 | B120: 607 | C120: 607 | E120: Points mapped (1)
A121: 114 | B121: 608 | C121: 608 | E121: Points mapped (1)
A122: 114 | B122: 609 | C122: 609 | E122: Points mapped (1)
A123: 114 | B123: 610 | C123: 610 | E123: Points mapped (1)
A124: 114 | B124: 611 | C124: 611 | E124: Points mapped (1)
A125: 114 | B125: 612 | C125: 612 | E125: Points mapped (1)
A126: 114 | B126: 613 | C126: 613 | E126: Points mapped (1)
A127: 114 | B127: 614 | C127: 614 | E127: Points mapped (1)
A128: 114 | B128: 615 | C128: 615 | E128: Points mapped (1)
A129: 114 | B129: 616 | C129: 616 | E129: Points mapped (1)
A130: 114 | B130: 617 | C130: 617 | E130: Points mapped (1)
A131: 114 | B131: 618 | C131: 618 | E131: Points mapped (1)
A132: 114 | B132: 619 | C132: 619 | E132: Points mapped (1)
A133: 114 | B133: 620 | C133: 620 | E133: Points mapped (1)
A134: 114 | B134: 621 | C134: 621 | E134: Points mapped (1)
A135: 114 | B135: 622 | C135: 622 | E135: Points mapped (1)
A136: 114 | B136: 623 | C136: 623 | E136: Points mapped (1)
A137: 114 | B137: 624 | C137: 624 | E137: Points mapped (1)
A138: 114 | B138: 625 | C138: 625 | E138: Points mapped (1)
A139: 114 | B139: 626 | C139: 626 | E139: Points mapped (1)
A140: 114 | B140: 627 | C140: 627 | E140: Points mapped (1)
A141: 114 | B141: 628 | C141: 628 | E141: Points mapped (1)
A142: 114 | B142: 629 | C142: 629 | E142: Points mapped (1)
A143: 114 | B143: 630 | C143: 630 | E143: Points mapped (1)
A144: 114 | B144: 631 | C144: 631 | E144: Points mapped (1)
A145: 114 | B145: 632 | C145: 632 | E145: Points mapped (1)
A146: 114 | B146: 633 | C146: 633 | E146: Points mapped (1)
A147: 114 | B147: 634 | C147: 634 | E147: Points mapped (1)
A148: 114 | B148: 635 | C148: 635 | E148: Points mapped (1)
A149: 114 | B149: 636 | C149: 636 | E149: Points mapped (1)
A150: 114 | B150: 637 | C150: 637 | E150: Points mapped (1)
A151: 114 | B151: 638 | C151: 638 | E151: Points mapped (1)
A152: 114 | B152: 639 | C152: 639 | E152: Points mapped (1)
A153: 114 | B153: 640 | C153: 640 | E153: Points mapped (1)
A154: 118 | B154: 573 | C154: 573 | E154: Points mapped (1)
A155: 118 | B155: 574 | C155: 574 | E155: Points mapped (1)
A156: 118 | B156: 575 | C156: 575 | E156: Points mapped (1)
A157: 118 | B157: 576 | C157: 576 | E157: Points mapped (1)
A158: 118 | B158: 577 | C158: 577 | E158: Points mapped (1)
A159: 118 | B159: 578 | C159: 578 | E159: Points mapped (1)
A160: 118 | B160: 579 | C160: 579 | E160: Points mapped (1)
A161: 118 | B161: 580 | C161: 580 | E161: Points mapped (1)
A162: 118 | B162: 581 | C162: 581 | E162: Points mapped (1)
A163: 118 | B163: 582 | C163: 582 | E163: Points mapped (1)
A164: 118 | B164: 583 | C164: 583 | E164: Points mapped (1)
A165: 118 | B165: 584 | C165: 584 | E165: Points mapped (1)
A166: 118 | B166: 585 | C166: 585 | E166: Points mapped (1)
A167: 118 | B167: 586 | C167: 586 | E167: Points mapped (1)
A168: 118 | B168: 587 | C168: 587 | E168: Points mapped (1)
A169: 118 | B169: 588 | C169: 588 | E169: Points mapped (1)
A170: 118 | B170: 589 | C170: 589 | E170: Points mapped (1)
A171: 118 | B171: 590 | C171: 590 | E171: Points mapped (1)
A172: 118 | B172: 591 | C172: 591 | E172: Points mapped (1)
A173: 118 | B173: 592 | C173: 592 | E173: Points mapped (1)
A174: 118 | B174: 593 | C174: 593 | E174: Points mapped (1)
A175: 118 | B175: 594 | C175: 594 | E175: Points mapped (1)
A176: 118 | B176: 595 | C176: 595 | E176: Points mapped (1)
A177: 118 | B177: 596 | C177: 596 | E177: Points mapped (1)
A178: 118 | B178: 597 | C178: 597 | E178: Points mapped (1)
A179: 118 | B179: 598 | C179: 598 | E179: Points mapped (1)
A180: 118 | B180: 599 | C180: 599 | E180: Points mapped (1)
A181: 118 | B181: 600 | C181: 600 | E181: Points mapped (1)
A182: 118 | B182: 601 | C182: 601 | E182: Points mapped (1)
A183: 118 | B183: 602 | C183: 602 | E183: Points mapped (1)
A184: 118 | B184: 603 | C184: 603 | E184: Points mapped (1)
A185: 118 | B185: 604 | C185: 604 | E185: Points mapped (1)
A186: 118 | B186: 605 | C186: 605 | E186: Points mapped (1)
A187: 118 | B187: 606 | C187: 606 | E187: Points mapped (1)
A188: 118 | B188: 607 | C188: 607 | E188: Points mapped (1)
A189: 118 | B189: 608 | C189: 608 | E189: Points mapped (1)
A190: 118 | B190: 609 | C190: 609 | E190: Points mapped (1)
A191: 118 | B191: 610 | C191: 610 | E191: Points mapped (1)
A192: 118 | B192: 611 | C192: 611 | E192: Points mapped (1)
A193: 118 | B193: 612 | C193: 612 | E193: Points mapped (1)
A194: 118 | B194: 613 | C194: 613 | E194: Points mapped (1)
A195: 118 | B195: 614 | C195: 614 | E195: Points mapped (1)
A196: 118 | B196: 615 | C196: 615 | E196: Points mapped (1)
A197: 118 | B197: 616 | C197: 616 | E197: Points mapped (1)
A198: 118 | B198: 617 | C198: 617 | E198: Points mapped (1)
A199: 118 | B199: 618 | C199: 618 | E199: Points mapped (1)
A200: 118 | B200: 619 | C200: 619 | E200: Points mapped (1)
... 4300 more rows

Sheet daily_redo1 (hidden)
A1: Source | B1: Point | C1: Date | D1: File | E1: Process Type | F1: OB Comments | G1: Mapping Report
A2: 226 | B2: 782 | C2: 2013-02-22 | D2: 114286 | E2: CORREL BEFORE | F2: N/A | G2: 1 Good Acquired Points | H2: =(A2&B2)*1 -> 226782
A3: 286 | B3: 804 | C3: 2013-02-22 | D3: 114287 | E3: CORREL BEFORE | F3: N/A | G3: 1 Good Acquired Points | H3: 286804
A4: 286 | B4: 805 | C4: 2013-02-22 | D4: 114288 | E4: CORREL BEFORE | F4: N/A | G4: 1 Good Acquired Points | H4: 286805
A5: 226 | B5: 781 | C5: 2013-02-22 | D5: 114289 | E5: CORREL BEFORE | F5: N/A | G5: 1 Good Acquired Points | H5: 226781
A6: 286 | B6: 806 | C6: 2013-02-22 | D6: 114290 | E6: CORREL BEFORE | F6: N/A | G6: 1 Good Acquired Points | H6: 286806
A7: 226 | B7: 780 | C7: 2013-02-22 | D7: 114291 | E7: CORREL BEFORE | F7: N/A | G7: 1 Good Acquired Points | H7: 226780
A8: 286 | B8: 807 | C8: 2013-02-22 | D8: 114292 | E8: CORREL BEFORE | F8: N/A | G8: 1 Good Acquired Points | H8: 286807
A9: 286 | B9: 808 | C9: 2013-02-22 | D9: 114293 | E9: CORREL BEFORE | F9: N/A | G9: 1 Good Acquired Points | H9: 286808
A10: 286 | B10: 809 | C10: 2013-02-22 | D10: 114294 | E10: CORREL BEFORE | F10: N/A | G10: 1 Good Acquired Points | H10: 286809
A11: 286 | B11: 810 | C11: 2013-02-22 | D11: 114296 | E11: CORREL BEFORE | F11: N/A | G11: 1 Good Acquired Points | H11: 286810
A12: 286 | B12: 811 | C12: 2013-02-22 | D12: 114297 | E12: CORREL BEFORE | F12: N/A | G12: 1 Good Acquired Points | H12: 286811
A13: 286 | B13: 812 | C13: 2013-02-22 | D13: 114298 | E13: CORREL BEFORE | F13: N/A | G13: 1 Good Acquired Points | H13: 286812
A14: 286 | B14: 813 | C14: 2013-02-22 | D14: 114299 | E14: CORREL BEFORE | F14: N/A | G14: 1 Good Acquired Points | H14: 286813
A15: 286 | B15: 814 | C15: 2013-02-22 | D15: 114300 | E15: CORREL BEFORE | F15: N/A | G15: 1 Good Acquired Points | H15: 286814
A16: 286 | B16: 815 | C16: 2013-02-22 | D16: 114301 | E16: CORREL BEFORE | F16: N/A | G16: 1 Good Acquired Points | H16: 286815
A17: 286 | B17: 816 | C17: 2013-02-22 | D17: 114302 | E17: CORREL BEFORE | F17: N/A | G17: 1 Good Acquired Points | H17: 286816
A18: 286 | B18: 817 | C18: 2013-02-22 | D18: 114303 | E18: CORREL BEFORE | F18: N/A | G18: 1 Good Acquired Points | H18: 286817
A19: 286 | B19: 818 | C19: 2013-02-22 | D19: 114304 | E19: CORREL BEFORE | F19: N/A | G19: 1 Good Acquired Points | H19: 286818
A20: 286 | B20: 819 | C20: 2013-02-22 | D20: 114305 | E20: CORREL BEFORE | F20: N/A | G20: 1 Good Acquired Points | H20: 286819
A21: 286 | B21: 820 | C21: 2013-02-22 | D21: 114306 | E21: CORREL BEFORE | F21: N/A | G21: 1 Good Acquired Points | H21: 286820
A22: 286 | B22: 821 | C22: 2013-02-22 | D22: 114307 | E22: CORREL BEFORE | F22: N/A | G22: 1 Good Acquired Points | H22: 286821
A23: 286 | B23: 822 | C23: 2013-02-22 | D23: 114308 | E23: CORREL BEFORE | F23: N/A | G23: 1 Good Acquired Points | H23: 286822
A24: 286 | B24: 823 | C24: 2013-02-22 | D24: 114309 | E24: CORREL BEFORE | F24: Vibe detour | G24: 1 Good Acquired Points | H24: 286823
A25: 282 | B25: 823 | C25: 2013-02-22 | D25: 114310 | E25: CORREL BEFORE | F25: N/A | G25: 1 Good Acquired Points | H25: 282823
A26: 282 | B26: 822 | C26: 2013-02-22 | D26: 114311 | E26: CORREL BEFORE | F26: N/A | G26: 1 Good Acquired Points | H26: 282822
A27: 282 | B27: 821 | C27: 2013-02-22 | D27: 114312 | E27: CORREL BEFORE | F27: N/A | G27: 1 Good Acquired Points | H27: 282821
A28: 282 | B28: 820 | C28: 2013-02-22 | D28: 114313 | E28: CORREL BEFORE | F28: N/A | G28: 1 Good Acquired Points | H28: 282820
A29: 282 | B29: 819 | C29: 2013-02-22 | D29: 114314 | E29: CORREL BEFORE | F29: N/A | G29: 1 Good Acquired Points | H29: 282819
A30: 282 | B30: 818 | C30: 2013-02-22 | D30: 114315 | E30: CORREL BEFORE | F30: N/A | G30: 1 Good Acquired Points | H30: 282818
A31: 282 | B31: 817 | C31: 2013-02-22 | D31: 114316 | E31: CORREL BEFORE | F31: N/A | G31: 1 Good Acquired Points | H31: 282817
A32: 282 | B32: 816 | C32: 2013-02-22 | D32: 114317 | E32: CORREL BEFORE | F32: N/A | G32: 1 Good Acquired Points | H32: 282816
A33: 282 | B33: 815 | C33: 2013-02-22 | D33: 114318 | E33: CORREL BEFORE | F33: N/A | G33: 1 Good Acquired Points | H33: 282815
A34: 282 | B34: 814 | C34: 2013-02-22 | D34: 114319 | E34: CORREL BEFORE | F34: N/A | G34: 1 Good Acquired Points | H34: 282814
A35: 282 | B35: 813 | C35: 2013-02-22 | D35: 114320 | E35: CORREL BEFORE | F35: N/A | G35: 1 Good Acquired Points | H35: 282813
A36: 282 | B36: 812 | C36: 2013-02-22 | D36: 114321 | E36: CORREL BEFORE | F36: N/A | G36: 1 Good Acquired Points | H36: 282812
A37: 226 | B37: 779 | C37: 2013-02-22 | D37: 114322 | E37: CORREL BEFORE | F37: N/A | G37: 1 Good Acquired Points | H37: 226779
A38: 282 | B38: 811 | C38: 2013-02-22 | D38: 114323 | E38: CORREL BEFORE | F38: N/A | G38: 1 Good Acquired Points | H38: 282811
A39: 282 | B39: 810 | C39: 2013-02-22 | D39: 114324 | E39: CORREL BEFORE | F39: N/A | G39: 1 Good Acquired Points | H39: 282810
A40: 282 | B40: 809 | C40: 2013-02-22 | D40: 114325 | E40: CORREL BEFORE | F40: N/A | G40: 1 Good Acquired Points | H40: 282809
A41: 282 | B41: 808 | C41: 2013-02-22 | D41: 114326 | E41: CORREL BEFORE | F41: N/A | G41: 1 Good Acquired Points | H41: 282808
A42: 282 | B42: 807 | C42: 2013-02-22 | D42: 114327 | E42: CORREL BEFORE | F42: N/A | G42: 1 Good Acquired Points | H42: 282807
A43: 282 | B43: 806 | C43: 2013-02-22 | D43: 114328 | E43: CORREL BEFORE | F43: N/A | G43: 1 Good Acquired Points | H43: 282806
A44: 282 | B44: 805 | C44: 2013-02-22 | D44: 114329 | E44: CORREL BEFORE | F44: End of dayshift production 21-02-2013 | G44: 1 Good Acquired Points | H44: 282805
A45: 394 | B45: 805 | C45: 2013-02-22 | D45: 114330 | E45: CORREL BEFORE | F45: Start of nightshift production 22-02-2013 | G45: 1 Indexed Points (more than ones) [805] | H45: 394805
A46: 358 | B46: 804 | C46: 2013-02-22 | D46: 114331 | E46: CORREL BEFORE | F46: N/A | G46: 1 Good Acquired Points | H46: 358804
A47: 394 | B47: 806 | C47: 2013-02-22 | D47: 114332 | E47: CORREL BEFORE | F47: N/A | G47: 1 Indexed Points (more than ones) [806] | H47: 394806
A48: 358 | B48: 805 | C48: 2013-02-22 | D48: 114333 | E48: CORREL BEFORE | F48: N/A | G48: 1 Good Acquired Points | H48: 358805
A49: 394 | B49: 807 | C49: 2013-02-22 | D49: 114334 | E49: CORREL BEFORE | F49: N/A | G49: 1 Indexed Points (more than ones) [807] | H49: 394807
A50: 358 | B50: 806 | C50: 2013-02-22 | D50: 114335 | E50: CORREL BEFORE | F50: N/A | G50: 1 Good Acquired Points | H50: 358806
A51: 394 | B51: 808 | C51: 2013-02-22 | D51: 114336 | E51: CORREL BEFORE | F51: N/A | G51: 1 Indexed Points (more than ones) [808] | H51: 394808
A52: 358 | B52: 807 | C52: 2013-02-22 | D52: 114337 | E52: CORREL BEFORE | F52: N/A | G52: 1 Good Acquired Points | H52: 358807
A53: 394 | B53: 809 | C53: 2013-02-22 | D53: 114338 | E53: CORREL BEFORE | F53: N/A | G53: 1 Indexed Points (more than ones) [809] | H53: 394809
A54: 358 | B54: 808 | C54: 2013-02-22 | D54: 114339 | E54: CORREL BEFORE | F54: N/A | G54: 1 Good Acquired Points | H54: 358808
A55: 394 | B55: 810 | C55: 2013-02-22 | D55: 114340 | E55: CORREL BEFORE | F55: N/A | G55: 1 Indexed Points (more than ones) [810] | H55: 394810
A56: 358 | B56: 809 | C56: 2013-02-22 | D56: 114341 | E56: CORREL BEFORE | F56: N/A | G56: 1 Good Acquired Points | H56: 358809
A57: 394 | B57: 811 | C57: 2013-02-22 | D57: 114342 | E57: CORREL BEFORE | F57: N/A | G57: 1 Indexed Points (more than ones) [811] | H57: 394811
A58: 358 | B58: 810 | C58: 2013-02-22 | D58: 114343 | E58: CORREL BEFORE | F58: N/A | G58: 1 Good Acquired Points | H58: 358810
A59: 394 | B59: 812 | C59: 2013-02-22 | D59: 114344 | E59: CORREL BEFORE | F59: N/A | G59: 1 Indexed Points (more than ones) [812] | H59: 394812
A60: 358 | B60: 811 | C60: 2013-02-22 | D60: 114345 | E60: CORREL BEFORE | F60: N/A | G60: 1 Good Acquired Points | H60: 358811
A61: 394 | B61: 813 | C61: 2013-02-22 | D61: 114346 | E61: CORREL BEFORE | F61: N/A | G61: 1 Indexed Points (more than ones) [813] | H61: 394813
A62: 358 | B62: 812 | C62: 2013-02-22 | D62: 114347 | E62: CORREL BEFORE | F62: N/A | G62: 1 Good Acquired Points | H62: 358812
A63: 394 | B63: 814 | C63: 2013-02-22 | D63: 114348 | E63: CORREL BEFORE | F63: N/A | G63: 1 Indexed Points (more than ones) [814] | H63: 394814
A64: 358 | B64: 813 | C64: 2013-02-22 | D64: 114349 | E64: CORREL BEFORE | F64: N/A | G64: 1 Good Acquired Points | H64: 358813
A65: 394 | B65: 815 | C65: 2013-02-22 | D65: 114350 | E65: CORREL BEFORE | F65: N/A | G65: 1 Indexed Points (more than ones) [815] | H65: 394815
A66: 358 | B66: 814 | C66: 2013-02-22 | D66: 114351 | E66: CORREL BEFORE | F66: N/A | G66: 1 Good Acquired Points | H66: =(A66&B66)*1 -> 358814
A67: 394 | B67: 816 | C67: 2013-02-22 | D67: 114352 | E67: CORREL BEFORE | F67: N/A | G67: 1 Indexed Points (more than ones) [816] | H67: 394816
A68: 358 | B68: 815 | C68: 2013-02-22 | D68: 114353 | E68: CORREL BEFORE | F68: N/A | G68: 1 Good Acquired Points | H68: 358815
A69: 394 | B69: 817 | C69: 2013-02-22 | D69: 114354 | E69: CORREL BEFORE | F69: N/A | G69: 1 Indexed Points (more than ones) [817] | H69: 394817
A70: 358 | B70: 816 | C70: 2013-02-22 | D70: 114355 | E70: CORREL BEFORE | F70: N/A | G70: 1 Good Acquired Points | H70: 358816
A71: 394 | B71: 818 | C71: 2013-02-22 | D71: 114356 | E71: CORREL BEFORE | F71: N/A | G71: 1 Indexed Points (more than ones) [818] | H71: 394818
A72: 358 | B72: 817 | C72: 2013-02-22 | D72: 114357 | E72: CORREL BEFORE | F72: N/A | G72: 1 Good Acquired Points | H72: 358817
A73: 394 | B73: 819 | C73: 2013-02-22 | D73: 114358 | E73: CORREL BEFORE | F73: N/A | G73: 1 Indexed Points (more than ones) [819] | H73: 394819
A74: 358 | B74: 818 | C74: 2013-02-22 | D74: 114359 | E74: CORREL BEFORE | F74: N/A | G74: 1 Good Acquired Points | H74: 358818
A75: 394 | B75: 820 | C75: 2013-02-22 | D75: 114360 | E75: CORREL BEFORE | F75: N/A | G75: 1 Indexed Points (more than ones) [820] | H75: 394820
A76: 358 | B76: 819 | C76: 2013-02-22 | D76: 114361 | E76: CORREL BEFORE | F76: N/A | G76: 1 Good Acquired Points | H76: 358819
A77: 394 | B77: 821 | C77: 2013-02-22 | D77: 114362 | E77: CORREL BEFORE | F77: N/A | G77: 1 Indexed Points (more than ones) [821] | H77: 394821
A78: 358 | B78: 820 | C78: 2013-02-22 | D78: 114363 | E78: CORREL BEFORE | F78: N/A | G78: 1 Good Acquired Points | H78: 358820
A79: 394 | B79: 822 | C79: 2013-02-22 | D79: 114364 | E79: CORREL BEFORE | F79: N/A | G79: 1 Indexed Points (more than ones) [822] | H79: 394822
A80: 358 | B80: 821 | C80: 2013-02-22 | D80: 114365 | E80: CORREL BEFORE | F80: N/A | G80: 1 Good Acquired Points | H80: 358821
A81: 394 | B81: 823 | C81: 2013-02-22 | D81: 114366 | E81: CORREL BEFORE | F81: N/A | G81: 1 Indexed Points (more than ones) [823] | H81: 394823
A82: 358 | B82: 822 | C82: 2013-02-22 | D82: 114367 | E82: CORREL BEFORE | F82: N/A | G82: 1 Good Acquired Points | H82: 358822
A83: 394 | B83: 824 | C83: 2013-02-22 | D83: 114368 | E83: CORREL BEFORE | F83: N/A | G83: 1 Indexed Points (more than ones) [824] | H83: 394824
A84: 358 | B84: 823 | C84: 2013-02-22 | D84: 114369 | E84: CORREL BEFORE | F84: N/A | G84: 1 Good Acquired Points | H84: 358823
A85: 394 | B85: 825 | C85: 2013-02-22 | D85: 114370 | E85: CORREL BEFORE | F85: N/A | G85: 1 Indexed Points (more than ones) [825] | H85: 394825
A86: 358 | B86: 824 | C86: 2013-02-22 | D86: 114371 | E86: CORREL BEFORE | F86: N/A | G86: 1 Good Acquired Points | H86: 358824
A87: 394 | B87: 826 | C87: 2013-02-22 | D87: 114372 | E87: CORREL BEFORE | F87: N/A | G87: 1 Indexed Points (more than ones) [826] | H87: 394826
A88: 358 | B88: 825 | C88: 2013-02-22 | D88: 114373 | E88: CORREL BEFORE | F88: N/A | G88: 1 Good Acquired Points | H88: 358825
A89: 394 | B89: 827 | C89: 2013-02-22 | D89: 114374 | E89: CORREL BEFORE | F89: N/A | G89: 1 Indexed Points (more than ones) [827] | H89: 394827
A90: 358 | B90: 826 | C90: 2013-02-22 | D90: 114375 | E90: CORREL BEFORE | F90: N/A | G90: 1 Good Acquired Points | H90: 358826
A91: 394 | B91: 828 | C91: 2013-02-22 | D91: 114376 | E91: CORREL BEFORE | F91: N/A | G91: 1 Indexed Points (more than ones) [828] | H91: 394828
A92: 358 | B92: 827 | C92: 2013-02-22 | D92: 114377 | E92: CORREL BEFORE | F92: N/A | G92: 1 Good Acquired Points | H92: 358827
A93: 394 | B93: 829 | C93: 2013-02-22 | D93: 114378 | E93: CORREL BEFORE | F93: N/A | G93: 1 Indexed Points (more than ones) [829] | H93: 394829
A94: 358 | B94: 828 | C94: 2013-02-22 | D94: 114379 | E94: CORREL BEFORE | F94: N/A | G94: 1 Good Acquired Points | H94: 358828
A95: 394 | B95: 830 | C95: 2013-02-22 | D95: 114380 | E95: CORREL BEFORE | F95: N/A | G95: 1 Indexed Points (more than ones) [830] | H95: 394830
A96: 358 | B96: 829 | C96: 2013-02-22 | D96: 114381 | E96: CORREL BEFORE | F96: N/A | G96: 1 Good Acquired Points | H96: 358829
A97: 394 | B97: 831 | C97: 2013-02-22 | D97: 114382 | E97: CORREL BEFORE | F97: N/A | G97: 1 Indexed Points (more than ones) [831] | H97: 394831
A98: 358 | B98: 830 | C98: 2013-02-22 | D98: 114383 | E98: CORREL BEFORE | F98: N/A | G98: 1 Good Acquired Points | H98: 358830
A99: 394 | B99: 832 | C99: 2013-02-22 | D99: 114384 | E99: CORREL BEFORE | F99: N/A | G99: 1 Indexed Points (more than ones) [832] | H99: 394832
A100: 358 | B100: 831 | C100: 2013-02-22 | D100: 114385 | E100: CORREL BEFORE | F100: N/A | G100: 1 Good Acquired Points | H100: 358831
A101: 238 | B101: 788 | C101: 2013-02-22 | D101: 114386 | E101: CORREL BEFORE | F101: N/A | G101: 1 Good Acquired Points | H101: 238788
A102: 238 | B102: 789 | C102: 2013-02-22 | D102: 114387 | E102: CORREL BEFORE | F102: N/A | G102: 1 Good Acquired Points | H102: 238789
A103: 362 | B103: 832 | C103: 2013-02-22 | D103: 114388 | E103: CORREL BEFORE | F103: N/A | G103: 1 Good Acquired Points | H103: 362832
A104: 238 | B104: 790 | C104: 2013-02-22 | D104: 114389 | E104: CORREL BEFORE | F104: N/A | G104: 1 Good Acquired Points | H104: 238790
A105: 362 | B105: 831 | C105: 2013-02-22 | D105: 114390 | E105: CORREL BEFORE | F105: N/A | G105: 1 Good Acquired Points | H105: 362831
A106: 238 | B106: 791 | C106: 2013-02-22 | D106: 114391 | E106: CORREL BEFORE | F106: N/A | G106: 1 Good Acquired Points | H106: 238791
A107: 362 | B107: 830 | C107: 2013-02-22 | D107: 114392 | E107: CORREL BEFORE | F107: N/A | G107: 1 Good Acquired Points | H107: 362830
A108: 362 | B108: 829 | C108: 2013-02-22 | D108: 114393 | E108: CORREL BEFORE | F108: N/A | G108: 1 Good Acquired Points | H108: 362829
A109: 238 | B109: 792 | C109: 2013-02-22 | D109: 114394 | E109: CORREL BEFORE | F109: N/A | G109: 1 Good Acquired Points | H109: 238792
A110: 362 | B110: 828 | C110: 2013-02-22 | D110: 114395 | E110: CORREL BEFORE | F110: N/A | G110: 1 Good Acquired Points | H110: 362828
A111: 238 | B111: 793 | C111: 2013-02-22 | D111: 114396 | E111: CORREL BEFORE | F111: N/A | G111: 1 Good Acquired Points | H111: 238793
A112: 362 | B112: 827 | C112: 2013-02-22 | D112: 114397 | E112: CORREL BEFORE | F112: N/A | G112: 1 Good Acquired Points | H112: 362827
A113: 362 | B113: 826 | C113: 2013-02-22 | D113: 114398 | E113: CORREL BEFORE | F113: N/A | G113: 1 Good Acquired Points | H113: 362826
A114: 238 | B114: 794 | C114: 2013-02-22 | D114: 114399 | E114: CORREL BEFORE | F114: N/A | G114: 1 Good Acquired Points | H114: 238794
A115: 362 | B115: 825 | C115: 2013-02-22 | D115: 114400 | E115: CORREL BEFORE | F115: N/A | G115: 1 Good Acquired Points | H115: 362825
A116: 238 | B116: 795 | C116: 2013-02-22 | D116: 114401 | E116: CORREL BEFORE | F116: N/A | G116: 1 Good Acquired Points | H116: 238795
A117: 362 | B117: 824 | C117: 2013-02-22 | D117: 114402 | E117: CORREL BEFORE | F117: N/A | G117: 1 Good Acquired Points | H117: 362824
A118: 362 | B118: 823 | C118: 2013-02-22 | D118: 114403 | E118: CORREL BEFORE | F118: N/A | G118: 1 Good Acquired Points | H118: 362823
A119: 398 | B119: 832 | C119: 2013-02-22 | D119: 114405 | E119: CORREL BEFORE | F119: N/A | G119: 1 Indexed Points (more than ones) [832] | H119: 398832
A120: 362 | B120: 822 | C120: 2013-02-22 | D120: 114406 | E120: CORREL BEFORE | F120: N/A | G120: 1 Good Acquired Points | H120: 362822
A121: 238 | B121: 796 | C121: 2013-02-22 | D121: 114407 | E121: CORREL BEFORE | F121: N/A | G121: 1 Good Acquired Points | H121: 238796
A122: 398 | B122: 831 | C122: 2013-02-22 | D122: 114408 | E122: CORREL BEFORE | F122: N/A | G122: 1 Indexed Points (more than ones) [831] | H122: 398831
A123: 362 | B123: 821 | C123: 2013-02-22 | D123: 114409 | E123: CORREL BEFORE | F123: N/A | G123: 1 Good Acquired Points | H123: 362821
A124: 238 | B124: 797 | C124: 2013-02-22 | D124: 114410 | E124: CORREL BEFORE | G124: 1 Good Acquired Points | H124: 238797
A125: 398 | B125: 830 | C125: 2013-02-22 | D125: 114411 | E125: CORREL BEFORE | G125: 1 Indexed Points (more than ones) [830] | H125: 398830
A126: 362 | B126: 820 | C126: 2013-02-22 | D126: 114412 | E126: CORREL BEFORE | F126: N/A | G126: 1 Good Acquired Points | H126: 362820
A127: 398 | B127: 829 | C127: 2013-02-22 | D127: 114413 | E127: CORREL BEFORE | F127: N/A | G127: 1 Indexed Points (more than ones) [829] | H127: 398829
A128: 362 | B128: 819 | C128: 2013-02-22 | D128: 114415 | E128: CORREL BEFORE | G128: 1 Good Acquired Points | H128: 362819
A129: 398 | B129: 828 | C129: 2013-02-22 | D129: 114416 | E129: CORREL BEFORE | F129: N/A | G129: 1 Indexed Points (more than ones) [828] | H129: 398828
A130: 238 | B130: 798 | C130: 2013-02-22 | D130: 114417 | E130: CORREL BEFORE | F130: N/A | G130: 1 Good Acquired Points | H130: =(A130&B130)*1 -> 238798
A131: 362 | B131: 818 | C131: 2013-02-22 | D131: 114418 | E131: CORREL BEFORE | F131: N/A | G131: 1 Good Acquired Points | H131: 362818
A132: 398 | B132: 827 | C132: 2013-02-22 | D132: 114419 | E132: CORREL BEFORE | F132: N/A | G132: 1 Indexed Points (more than ones) [827] | H132: 398827
A133: 238 | B133: 799 | C133: 2013-02-22 | D133: 114420 | E133: CORREL BEFORE | F133: N/A | G133: 1 Good Acquired Points | H133: 238799
A134: 362 | B134: 817 | C134: 2013-02-22 | D134: 114421 | E134: CORREL BEFORE | F134: N/A | G134: 1 Good Acquired Points | H134: 362817
A135: 398 | B135: 826 | C135: 2013-02-22 | D135: 114422 | E135: CORREL BEFORE | F135: N/A | G135: 1 Indexed Points (more than ones) [826] | H135: 398826
A136: 362 | B136: 816 | C136: 2013-02-22 | D136: 114423 | E136: CORREL BEFORE | F136: N/A | G136: 1 Good Acquired Points | H136: 362816
A137: 238 | B137: 800 | C137: 2013-02-22 | D137: 114424 | E137: CORREL BEFORE | F137: N/A | G137: 1 Good Acquired Points | H137: 238800
A138: 398 | B138: 825 | C138: 2013-02-22 | D138: 114425 | E138: CORREL BEFORE | F138: N/A | G138: 1 Indexed Points (more than ones) [825] | H138: 398825
A139: 362 | B139: 815 | C139: 2013-02-22 | D139: 114426 | E139: CORREL BEFORE | F139: N/A | G139: 1 Good Acquired Points | H139: 362815
A140: 238 | B140: 801 | C140: 2013-02-22 | D140: 114427 | E140: CORREL BEFORE | F140: N/A | G140: 1 Good Acquired Points | H140: 238801
A141: 398 | B141: 824 | C141: 2013-02-22 | D141: 114428 | E141: CORREL BEFORE | F141: N/A | G141: 1 Indexed Points (more than ones) [824] | H141: 398824
A142: 362 | B142: 814 | C142: 2013-02-22 | D142: 114429 | E142: CORREL BEFORE | F142: N/A | G142: 1 Good Acquired Points | H142: 362814
A143: 238 | B143: 802 | C143: 2013-02-22 | D143: 114430 | E143: CORREL BEFORE | F143: N/A | G143: 1 Good Acquired Points | H143: 238802
A144: 398 | B144: 823 | C144: 2013-02-22 | D144: 114431 | E144: CORREL BEFORE | F144: N/A | G144: 1 Indexed Points (more than ones) [823] | H144: 398823
A145: 362 | B145: 813 | C145: 2013-02-22 | D145: 114432 | E145: CORREL BEFORE | F145: N/A | G145: 1 Good Acquired Points | H145: 362813
A146: 398 | B146: 822 | C146: 2013-02-22 | D146: 114433 | E146: CORREL BEFORE | F146: N/A | G146: 1 Indexed Points (more than ones) [822] | H146: 398822
A147: 362 | B147: 812 | C147: 2013-02-22 | D147: 114434 | E147: CORREL BEFORE | F147: N/A | G147: 1 Good Acquired Points | H147: 362812
A148: 398 | B148: 821 | C148: 2013-02-22 | D148: 114436 | E148: CORREL BEFORE | F148: N/A | G148: 1 Indexed Points (more than ones) [821] | H148: 398821
A149: 362 | B149: 811 | C149: 2013-02-22 | D149: 114437 | E149: CORREL BEFORE | F149: N/A | G149: 1 Good Acquired Points | H149: 362811
A150: 238 | B150: 803 | C150: 2013-02-22 | D150: 114438 | E150: CORREL BEFORE | F150: N/A | G150: 1 Good Acquired Points | H150: 238803
A151: 398 | B151: 820 | C151: 2013-02-22 | D151: 114439 | E151: CORREL BEFORE | F151: N/A | G151: 1 Indexed Points (more than ones) [820] | H151: 398820
A152: 362 | B152: 810 | C152: 2013-02-22 | D152: 114440 | E152: CORREL BEFORE | F152: N/A | G152: 1 Good Acquired Points | H152: 362810
A153: 238 | B153: 804 | C153: 2013-02-22 | D153: 114441 | E153: CORREL BEFORE | F153: N/A | G153: 1 Good Acquired Points | H153: 238804
A154: 398 | B154: 819 | C154: 2013-02-22 | D154: 114442 | E154: CORREL BEFORE | F154: N/A | G154: 1 Indexed Points (more than ones) [819] | H154: 398819
A155: 362 | B155: 809 | C155: 2013-02-22 | D155: 114443 | E155: CORREL BEFORE | F155: N/A | G155: 1 Good Acquired Points | H155: 362809
A156: 398 | B156: 818 | C156: 2013-02-22 | D156: 114444 | E156: CORREL BEFORE | F156: N/A | G156: 1 Indexed Points (more than ones) [818] | H156: 398818
A157: 362 | B157: 808 | C157: 2013-02-22 | D157: 114445 | E157: CORREL BEFORE | F157: N/A | G157: 1 Good Acquired Points | H157: 362808
A158: 398 | B158: 817 | C158: 2013-02-22 | D158: 114446 | E158: CORREL BEFORE | F158: N/A | G158: 1 Indexed Points (more than ones) [817] | H158: 398817
A159: 362 | B159: 807 | C159: 2013-02-22 | D159: 114447 | E159: CORREL BEFORE | F159: N/A | G159: 1 Good Acquired Points | H159: 362807
A160: 362 | B160: 806 | C160: 2013-02-22 | D160: 114448 | E160: CORREL BEFORE | F160: N/A | G160: 1 Good Acquired Points | H160: 362806
A161: 362 | B161: 805 | C161: 2013-02-22 | D161: 114449 | E161: CORREL BEFORE | F161: N/A | G161: 1 Good Acquired Points | H161: 362805
A162: 398 | B162: 816 | C162: 2013-02-22 | D162: 114450 | E162: CORREL BEFORE | F162: N/A | G162: 1 Indexed Points (more than ones) [816] | H162: 398816
A163: 398 | B163: 815 | C163: 2013-02-22 | D163: 114451 | E163: CORREL BEFORE | F163: N/A | G163: 1 Indexed Points (more than ones) [815] | H163: 398815
A164: 398 | B164: 814 | C164: 2013-02-22 | D164: 114452 | E164: CORREL BEFORE | F164: N/A | G164: 1 Indexed Points (more than ones) [814] | H164: 398814
A165: 398 | B165: 813 | C165: 2013-02-22 | D165: 114453 | E165: CORREL BEFORE | F165: N/A | G165: 1 Indexed Points (more than ones) [813] | H165: 398813
A166: 398 | B166: 812 | C166: 2013-02-22 | D166: 114454 | E166: CORREL BEFORE | F166: N/A | G166: 1 Indexed Points (more than ones) [812] | H166: 398812
A167: 398 | B167: 811 | C167: 2013-02-22 | D167: 114455 | E167: CORREL BEFORE | F167: N/A | G167: 1 Indexed Points (more than ones) [811] | H167: 398811
A168: 398 | B168: 810 | C168: 2013-02-22 | D168: 114456 | E168: CORREL BEFORE | F168: N/A | G168: 1 Indexed Points (more than ones) [810] | H168: 398810
A169: 398 | B169: 809 | C169: 2013-02-22 | D169: 114457 | E169: CORREL BEFORE | F169: N/A | G169: 1 Indexed Points (more than ones) [809] | H169: 398809
A170: 398 | B170: 808 | C170: 2013-02-22 | D170: 114458 | E170: CORREL BEFORE | F170: N/A | G170: 1 Indexed Points (more than ones) [808] | H170: 398808
A171: 398 | B171: 807 | C171: 2013-02-22 | D171: 114459 | E171: CORREL BEFORE | F171: N/A | G171: 1 Indexed Points (more than ones) [807] | H171: 398807
A172: 398 | B172: 806 | C172: 2013-02-22 | D172: 114460 | E172: CORREL BEFORE | F172: N/A | G172: 1 Indexed Points (more than ones) [806] | H172: 398806
A173: 398 | B173: 805 | C173: 2013-02-22 | D173: 114461 | E173: CORREL BEFORE | F173: Shift change | G173: 1 Indexed Points (more than ones) [805] | H173: 398805
A174: 354 | B174: 804 | C174: 2013-02-22 | D174: 114462 | E174: CORREL BEFORE | F174: N/A | G174: 1 Good Acquired Points | H174: 354804
A175: 354 | B175: 805 | C175: 2013-02-22 | D175: 114463 | E175: CORREL BEFORE | F175: N/A | G175: 1 Good Acquired Points | H175: 354805
A176: 354 | B176: 806 | C176: 2013-02-22 | D176: 114464 | E176: CORREL BEFORE | F176: N/A | G176: 1 Good Acquired Points | H176: 354806
A177: 354 | B177: 807 | C177: 2013-02-22 | D177: 114465 | E177: CORREL BEFORE | F177: N/A | G177: 1 Good Acquired Points | H177: 354807
A178: 354 | B178: 808 | C178: 2013-02-22 | D178: 114466 | E178: CORREL BEFORE | F178: N/A | G178: 1 Good Acquired Points | H178: 354808
A179: 354 | B179: 809 | C179: 2013-02-22 | D179: 114467 | E179: CORREL BEFORE | F179: N/A | G179: 1 Good Acquired Points | H179: 354809
A180: 354 | B180: 810 | C180: 2013-02-22 | D180: 114468 | E180: CORREL BEFORE | F180: N/A | G180: 1 Good Acquired Points | H180: 354810
A181: 354 | B181: 811 | C181: 2013-02-22 | D181: 114469 | E181: CORREL BEFORE | F181: N/A | G181: 1 Good Acquired Points | H181: 354811
A182: 354 | B182: 812 | C182: 2013-02-22 | D182: 114470 | E182: CORREL BEFORE | F182: N/A | G182: 1 Good Acquired Points | H182: 354812
A183: 354 | B183: 813 | C183: 2013-02-22 | D183: 114471 | E183: CORREL BEFORE | F183: N/A | G183: 1 Good Acquired Points | H183: 354813
A184: 354 | B184: 814 | C184: 2013-02-22 | D184: 114472 | E184: CORREL BEFORE | F184: N/A | G184: 1 Good Acquired Points | H184: 354814
A185: 274 | B185: 804 | C185: 2013-02-22 | D185: 114473 | E185: CORREL BEFORE | F185: N/A | G185: 1 Good Acquired Points | H185: 274804
A186: 354 | B186: 815 | C186: 2013-02-22 | D186: 114474 | E186: CORREL BEFORE | F186: N/A | G186: 1 Good Acquired Points | H186: 354815
A187: 274 | B187: 806 | C187: 2013-02-22 | D187: 114477 | E187: CORREL BEFORE | F187: N/A | G187: 1 Good Acquired Points | H187: 274806
A188: 390 | B188: 804 | C188: 2013-02-22 | D188: 114478 | E188: CORREL BEFORE | F188: N/A | G188: 1 Indexed Points (more than ones) [804] | H188: 390804
A189: 354 | B189: 816 | C189: 2013-02-22 | D189: 114479 | E189: CORREL BEFORE | F189: N/A | G189: 1 Good Acquired Points | H189: 354816
A190: 274 | B190: 805 | C190: 2013-02-22 | D190: 114480 | E190: CORREL BEFORE | F190: N/A | G190: 1 Good Acquired Points | H190: 274805
A191: 390 | B191: 805 | C191: 2013-02-22 | D191: 114481 | E191: CORREL BEFORE | F191: N/A | G191: 1 Indexed Points (more than ones) [805] | H191: 390805
A192: 354 | B192: 817 | C192: 2013-02-22 | D192: 114482 | E192: CORREL BEFORE | F192: N/A | G192: 1 Good Acquired Points | H192: 354817
A193: 274 | B193: 807 | C193: 2013-02-22 | D193: 114483 | E193: CORREL BEFORE | F193: N/A | G193: 1 Good Acquired Points | H193: 274807
A194: 390 | B194: 806 | C194: 2013-02-22 | D194: 114484 | E194: CORREL BEFORE | F194: N/A | G194: 1 Indexed Points (more than ones) [806] | H194: =(A194&B194)*1 -> 390806
A195: 354 | B195: 818 | C195: 2013-02-22 | D195: 114485 | E195: CORREL BEFORE | F195: N/A | G195: 1 Good Acquired Points | H195: 354818
A196: 274 | B196: 808 | C196: 2013-02-22 | D196: 114486 | E196: CORREL BEFORE | F196: N/A | G196: 1 Good Acquired Points | H196: 274808
A197: 390 | B197: 807 | C197: 2013-02-22 | D197: 114487 | E197: CORREL BEFORE | F197: N/A | G197: 1 Indexed Points (more than ones) [807] | H197: 390807
A198: 354 | B198: 819 | C198: 2013-02-22 | D198: 114488 | E198: CORREL BEFORE | F198: N/A | G198: 1 Good Acquired Points | H198: 354819
A199: 274 | B199: 809 | C199: 2013-02-22 | D199: 114489 | E199: CORREL BEFORE | F199: N/A | G199: 1 Good Acquired Points | H199: 274809
A200: 390 | B200: 808 | C200: 2013-02-22 | D200: 114490 | E200: CORREL BEFORE | F200: N/A | G200: 1 Indexed Points (more than ones) [808] | H200: 390808
... 1771 more rows

Sheet in (hidden)

Sheet Map_info (hidden)
B2: [3/19/2013=44][3/20/2013=630] | C2: [3/20/2013=617] | D2: [3/20/2013=632] | E2: [3/19/2013=24] | F2: [3/20/2013=883] | G2: [3/20/2013=935] | H2: [3/19/2013=429] | I2: [3/19/2013=436] | K2: [3/19/2013=461]
B3: [3/19/2013=45] | C3: [3/20/2013=614] | D3: [3/20/2013=636] | E3: [3/19/2013=25] | F3: [3/20/2013=885] | G3: [3/20/2013=932] | H3: [3/19/2013=425] | I3: [3/19/2013=441] | K3: [3/19/2013=463]
B4: [3/19/2013=51] | C4: [3/20/2013=612] | D4: [3/20/2013=638] | E4: [3/19/2013=26] | F4: [3/20/2013=886] | G4: [3/20/2013=930] | H4: [3/19/2013=421] | I4: [3/19/2013=443] | K4: [3/19/2013=465]
B5: [3/19/2013=56] | C5: [3/20/2013=609] | D5: [3/20/2013=639] | E5: [3/19/2013=27] | F5: [3/20/2013=889] | G5: [3/20/2013=928] | H5: [3/19/2013=420] | I5: [3/19/2013=445] | K5: [3/19/2013=467]
B6: [3/19/2013=64] | C6: [3/20/2013=607] | D6: [3/20/2013=641] | E6: [3/19/2013=28] | F6: [3/20/2013=890] | G6: [3/20/2013=925] | H6: [3/19/2013=418] | I6: [3/20/2013=491] | K6: [3/19/2013=469]
B7: [3/19/2013=66] | C7: [3/20/2013=605] | D7: [3/20/2013=643] | E7: [3/19/2013=29] | F7: [3/20/2013=891] | G7: [3/20/2013=923] | H7: [3/19/2013=416] | I7: [3/20/2013=492] | K7: [3/19/2013=470]
B8: [3/19/2013=68] | C8: [3/20/2013=603] | D8: [3/20/2013=645] | E8: [3/19/2013=30] | F8: [3/20/2013=892] | G8: [3/20/2013=920] | H8: [3/19/2013=412] | I8: [3/20/2013=493] | K8: [3/19/2013=471]
B9: [3/19/2013=71] | C9: [3/20/2013=601] | D9: [3/20/2013=649] | E9: [3/19/2013=31] | F9: [3/20/2013=894] | G9: [3/20/2013=918] | H9: [3/19/2013=410] | I9: [3/20/2013=500] | K9: [3/19/2013=475]
B10: [3/19/2013=73] | C10: [3/20/2013=599] | D10: [3/20/2013=651] | E10: [3/19/2013=32] | F10: [3/20/2013=895] | G10: [3/20/2013=917] | H10: [3/19/2013=408] | I10: [3/20/2013=503] | K10: [3/19/2013=477]
B11: [3/19/2013=76] | C11: [3/20/2013=596] | D11: [3/20/2013=656] | E11: [3/19/2013=33] | F11: [3/20/2013=897] | G11: [3/20/2013=916] | H11: [3/19/2013=337] | I11: [3/20/2013=508] | K11: [3/19/2013=481]
B12: [3/19/2013=81] | C12: [3/20/2013=594] | D12: [3/20/2013=657] | E12: [3/19/2013=34] | F12: [3/20/2013=899] | G12: [3/20/2013=913] | H12: [3/19/2013=335] | I12: [3/20/2013=512] | K12: [3/19/2013=480]
B13: [3/19/2013=87] | C13: [3/20/2013=592] | D13: [3/20/2013=659] | E13: [3/19/2013=35] | F13: [3/20/2013=901] | G13: [3/20/2013=911] | H13: [3/19/2013=329] | I13: [3/19/2013=454] | K13: [3/19/2013=479]
B14: [3/19/2013=91] | C14: [3/20/2013=590] | D14: [3/20/2013=660] | E14: [3/19/2013=36] | F14: [3/20/2013=902] | G14: [3/20/2013=910] | H14: [3/19/2013=325] | I14: [3/19/2013=451] | K14: [3/19/2013=478]
B15: [3/19/2013=96] | C15: [3/20/2013=588] | D15: [3/20/2013=661] | E15: [3/19/2013=37] | F15: [3/20/2013=906] | G15: [3/20/2013=909] | H15: [3/19/2013=320] | I15: [3/19/2013=449] | K15: [3/19/2013=476] | M15: [3/19/2013=472]
B16: [3/19/2013=99] | C16: [3/20/2013=586] | D16: [3/20/2013=663] | E16: [3/19/2013=38] | F16: [3/20/2013=908] | G16: [3/20/2013=907] | H16: [3/19/2013=314] | I16: [3/19/2013=359] | J16: [3/19/2013=367] | K16: [3/19/2013=405] | M16: [3/20/2013=544]
B17: [3/19/2013=102] | C17: [3/20/2013=585] | D17: [3/20/2013=665] | E17: [3/19/2013=39] | F17: [3/20/2013=912] | G17: [3/20/2013=905] | H17: [3/19/2013=310] | I17: [3/19/2013=357] | J17: [3/19/2013=370] | K17: [3/19/2013=403] | M17: [3/20/2013=546] | N17: [3/20/2013=669]
B18: [3/19/2013=104] | C18: [3/20/2013=583] | D18: [3/20/2013=666] | E18: [3/19/2013=40] | F18: [3/20/2013=914] | G18: [3/20/2013=904] | H18: [3/19/2013=302] | I18: [3/19/2013=354] | J18: [3/19/2013=374] | K18: [3/19/2013=401] | M18: [3/20/2013=549] | N18: [3/20/2013=672] | O18: [3/20/2013=667]
B19: [3/19/2013=110] | C19: [3/20/2013=580] | D19: [3/20/2013=668] | E19: [3/19/2013=41] | F19: [3/20/2013=915] | G19: [3/20/2013=903] | H19: [3/19/2013=296] | I19: [3/19/2013=352] | J19: [3/19/2013=377] | K19: [3/19/2013=398] | M19: [3/20/2013=553] | N19: [3/20/2013=673] | O19: [3/20/2013=664]
B20: [3/19/2013=111] | C20: [3/20/2013=578] | D20: [3/20/2013=670] | E20: [3/19/2013=42] | F20: [3/20/2013=919] | G20: [3/20/2013=900] | H20: [3/20/2013=689] | I20: [3/19/2013=350] | J20: [3/19/2013=379] | K20: [3/19/2013=395] | M20: [3/20/2013=557] | N20: [3/20/2013=675] | O20: [3/20/2013=662]
B21: [3/19/2013=113] | C21: [3/20/2013=566] | D21: [3/20/2013=671] | E21: [3/19/2013=43] | F21: [3/20/2013=921] | G21: [3/20/2013=898] | H21: [3/19/2013=261] | I21: [3/19/2013=348] | J21: [3/19/2013=380] | K21: [3/19/2013=393] | L21: [3/20/2013=573] | N21: [3/20/2013=677] | O21: [3/20/2013=658]
B22: [3/19/2013=115] | C22: [3/20/2013=574] | D22: [3/20/2013=674] | E22: [3/19/2013=46] | F22: [3/20/2013=922] | G22: [3/20/2013=896] | H22: [3/19/2013=258] | I22: [3/19/2013=347] | J22: [3/19/2013=382] | K22: [3/19/2013=391] | L22: [3/20/2013=576] | M22: [3/20/2013=676] | N22: [3/20/2013=679] | O22: [3/20/2013=655] | P22: [3/20/2013=654]
B23: [3/19/2013=141] | C23: [3/20/2013=555] | D23: [3/20/2013=740] | E23: [3/19/2013=47] | F23: [3/20/2013=924] | G23: [3/20/2013=893] | H23: [3/19/2013=254] | I23: [3/19/2013=345] | J23: [3/19/2013=384] | K23: [3/19/2013=389] | L23: [3/20/2013=582] | M23: [3/20/2013=678] | N23: [3/20/2013=680] | O23: [3/20/2013=744] | P23: [3/20/2013=653]
B24: [3/19/2013=146] | C24: [3/20/2013=554] | D24: [3/20/2013=687] | E24: [3/19/2013=48] | F24: [3/20/2013=926] | G24: [3/20/2013=888] | H24: [3/19/2013=248] | I24: [3/19/2013=343] | K24: [3/19/2013=387] | L24: [3/20/2013=597] | M24: [3/20/2013=681] | N24: [3/20/2013=682] | O24: [3/20/2013=747] | P24: [3/20/2013=652]
B25: [3/19/2013=150] | C25: [3/20/2013=552] | D25: [3/20/2013=690] | E25: [3/19/2013=49] | F25: [3/20/2013=927] | G25: [3/20/2013=880] | H25: [3/19/2013=245] | I25: [3/19/2013=341] | K25: [3/20/2013=604] | M25: [3/20/2013=683] | N25: [3/20/2013=684] | O25: [3/20/2013=749] | P25: [3/20/2013=650]
B26: [3/19/2013=154] | C26: [3/20/2013=551] | D26: [3/20/2013=692] | E26: [3/19/2013=50] | F26: [3/20/2013=929][3/20/2013=931] | G26: [3/20/2013=878] | H26: [3/19/2013=242] | I26: [3/19/2013=332] | K26: [3/20/2013=610] | M26: [3/20/2013=685] | N26: [3/20/2013=686] | O26: [3/20/2013=750] | P26: [3/20/2013=648]
B27: [3/19/2013=157] | C27: [3/20/2013=550] | D27: [3/20/2013=695] | E27: [3/19/2013=52] | F27: [3/20/2013=933] | G27: [3/20/2013=875] | H27: [3/19/2013=240] | I27: [3/19/2013=331] | K27: [3/20/2013=615] | M27: [3/20/2013=701] | N27: [3/20/2013=688] | O27: [3/20/2013=752] | P27: [3/20/2013=647]
B28: [3/19/2013=160] | C28: [3/20/2013=548] | D28: [3/20/2013=697] | E28: [3/19/2013=53] | F28: [3/20/2013=934] | G28: [3/20/2013=871] | H28: [3/19/2013=236] | I28: [3/19/2013=324] | K28: [3/20/2013=626] | M28: [3/20/2013=704] | N28: [3/20/2013=691] | O28: [3/20/2013=754] | P28: [3/20/2013=646]
B29: [3/19/2013=162] | C29: [3/20/2013=547] | D29: [3/20/2013=699] | E29: [3/19/2013=54] | F29: [3/20/2013=936] | G29: [3/20/2013=869] | H29: [3/19/2013=234] | I29: [3/19/2013=322] | K29: [3/20/2013=634] | M29: [3/20/2013=706] | N29: [3/20/2013=693] | O29: [3/20/2013=756] | P29: [3/20/2013=644]
B30: [3/19/2013=165] | C30: [3/20/2013=545] | D30: [3/20/2013=702] | E30: [3/19/2013=55] | F30: [3/20/2013=938] | G30: [3/20/2013=866] | H30: [3/19/2013=232] | I30: [3/19/2013=319] | M30: [3/20/2013=708] | N30: [3/20/2013=694] | O30: [3/20/2013=758] | P30: [3/20/2013=642]
B31: [3/19/2013=168] | C31: [3/20/2013=543] | D31: [3/20/2013=703] | E31: [3/19/2013=57] | F31: [3/20/2013=939] | G31: [3/20/2013=620] | H31: [3/19/2013=229] | I31: [3/19/2013=317] | M31: [3/20/2013=710] | N31: [3/20/2013=696] | O31: [3/20/2013=760] | P31: [3/20/2013=640]
B32: [3/19/2013=172] | C32: [3/20/2013=542] | D32: [3/20/2013=705] | E32: [3/19/2013=58] | F32: [3/20/2013=940] | G32: [3/20/2013=535] | H32: [3/19/2013=227] | I32: [3/19/2013=315] | M32: [3/20/2013=712] | N32: [3/20/2013=698] | O32: [3/20/2013=762] | P32: [3/20/2013=637]
B33: [3/19/2013=176] | C33: [3/19/2013=468] | D33: [3/20/2013=707] | E33: [3/19/2013=59] | F33: [3/20/2013=941] | G33: [3/20/2013=514] | H33: [3/19/2013=225] | I33: [3/19/2013=312] | M33: [3/20/2013=714] | N33: [3/20/2013=700] | O33: [3/20/2013=764] | P33: [3/20/2013=635]
B34: [3/19/2013=179] | C34: [3/19/2013=464] | D34: [3/20/2013=709] | E34: [3/19/2013=60] | F34: [3/19/2013=338] | G34: [3/20/2013=510] | H34: [3/19/2013=222] | I34: [3/19/2013=309] | M34: [3/20/2013=716] | O34: [3/20/2013=766] | P34: [3/20/2013=633]
B35: [3/19/2013=183] | C35: [3/19/2013=460] | D35: [3/20/2013=711] | E35: [3/19/2013=61] | F35: [3/19/2013=336] | G35: [3/20/2013=505] | H35: [3/19/2013=220] | I35: [3/19/2013=307] | M35: [3/20/2013=718] | O35: [3/20/2013=768] | P35: [3/20/2013=631]
B36: [3/19/2013=186] | C36: [3/19/2013=459] | D36: [3/20/2013=713] | E36: [3/19/2013=62] | F36: [3/19/2013=334] | G36: [3/19/2013=355] | H36: [3/19/2013=219] | I36: [3/19/2013=305] | M36: [3/20/2013=723] | O36: [3/20/2013=770] | P36: [3/20/2013=627]
B37: [3/19/2013=188] | C37: [3/19/2013=457] | D37: [3/20/2013=715] | E37: [3/19/2013=63] | F37: [3/19/2013=333] | G37: [3/19/2013=358] | H37: [3/19/2013=217] | I37: [3/19/2013=303] | L37: [3/20/2013=953] | M37: [3/20/2013=954] | N37: [3/20/2013=725] | O37: [3/20/2013=494] | P37: [3/20/2013=625]
B38: [3/19/2013=189] | C38: [3/19/2013=455] | D38: [3/20/2013=717] | E38: [3/19/2013=65] | F38: [3/19/2013=330] | G38: [3/19/2013=360] | H38: [3/19/2013=215] | I38: [3/19/2013=300] | L38: [3/20/2013=952] | M38: [3/20/2013=955] | N38: [3/20/2013=728] | O38: [3/20/2013=495] | P38: [3/20/2013=624]
B39: [3/19/2013=192] | C39: [3/19/2013=452] | D39: [3/20/2013=719] | E39: [3/19/2013=67] | F39: [3/19/2013=328] | G39: [3/19/2013=362] | H39: [3/19/2013=213] | I39: [3/19/2013=297] | L39: [3/20/2013=951] | M39: [3/20/2013=956] | N39: [3/20/2013=730] | O39: [3/20/2013=496] | P39: [3/20/2013=623]
B40: [3/19/2013=194] | C40: [3/19/2013=448] | D40: [3/20/2013=720] | E40: [3/19/2013=69] | F40: [3/19/2013=327] | G40: [3/19/2013=364] | H40: [3/19/2013=206] | I40: [3/19/2013=293] | L40: [3/20/2013=950] | M40: [3/20/2013=957] | N40: [3/20/2013=734] | O40: [3/20/2013=497] | P40: [3/20/2013=622]
B41: [3/19/2013=196] | C41: [3/19/2013=447] | D41: [3/20/2013=721] | E41: [3/19/2013=70] | F41: [3/19/2013=326] | G41: [3/19/2013=366] | H41: [3/19/2013=202] | I41: [3/19/2013=290] | L41: [3/20/2013=949] | M41: [3/20/2013=958] | N41: [3/20/2013=786] | O41: [3/20/2013=498] | P41: [3/20/2013=621]
B42: [3/19/2013=208] | C42: [3/19/2013=446] | D42: [3/20/2013=722] | E42: [3/19/2013=72] | F42: [3/19/2013=323] | G42: [3/19/2013=368] | H42: [3/19/2013=199] | I42: [3/19/2013=288] | K42: [3/20/2013=948] | M42: [3/20/2013=735] | N42: [3/20/2013=789] | O42: [3/20/2013=499] | P42: [3/20/2013=619]
B43: [3/19/2013=210] | C43: [3/19/2013=444] | D43: [3/20/2013=724] | E43: [3/19/2013=74] | F43: [3/19/2013=321] | G43: [3/19/2013=372] | H43: [3/19/2013=197] | I43: [3/19/2013=285] | K43: [3/20/2013=947] | M43: [3/20/2013=736] | N43: [3/20/2013=791] | O43: [3/20/2013=501] | P43: [3/20/2013=618]
B44: [3/19/2013=212] | C44: [3/19/2013=442] | D44: [3/20/2013=726] | E44: [3/19/2013=77] | F44: [3/19/2013=318] | G44: [3/19/2013=373] | H44: [3/19/2013=195] | I44: [3/19/2013=283] | K44: [3/20/2013=946] | M44: [3/20/2013=737] | N44: [3/20/2013=793] | O44: [3/20/2013=502] | P44: [3/20/2013=616]
B45: [3/19/2013=214] | C45: [3/19/2013=439] | D45: [3/20/2013=727] | E45: [3/19/2013=79] | F45: [3/19/2013=316] | G45: [3/19/2013=375] | H45: [3/19/2013=193] | I45: [3/19/2013=281] | K45: [3/20/2013=945] | M45: [3/20/2013=739] | N45: [3/20/2013=798] | O45: [3/20/2013=504] | P45: [3/20/2013=613]
B46: [3/19/2013=216] | C46: [3/19/2013=438] | D46: [3/20/2013=729] | E46: [3/19/2013=82] | F46: [3/19/2013=313] | H46: [3/19/2013=190] | I46: [3/19/2013=275] | K46: [3/20/2013=944] | M46: [3/20/2013=741] | N46: [3/20/2013=800] | O46: [3/20/2013=506] | P46: [3/20/2013=611]
B47: [3/19/2013=218] | C47: [3/19/2013=435] | D47: [3/20/2013=731] | E47: [3/19/2013=85] | F47: [3/19/2013=311] | G47: [3/19/2013=386] | H47: [3/19/2013=187] | I47: [3/19/2013=269] | K47: [3/20/2013=943] | M47: [3/20/2013=742] | N47: [3/20/2013=802] | O47: [3/20/2013=507] | P47: [3/20/2013=608]
C48: [3/19/2013=433] | D48: [3/20/2013=732] | E48: [3/19/2013=88] | F48: [3/19/2013=308] | G48: [3/19/2013=388] | H48: [3/19/2013=181] | I48: [3/19/2013=262][3/19/2013=266] | K48: [3/20/2013=942] | M48: [3/20/2013=743] | N48: [3/20/2013=805] | O48: [3/20/2013=509] | P48: [3/20/2013=606]
B49: [3/19/2013=221] | C49: [3/19/2013=430] | D49: [3/20/2013=733] | E49: [3/19/2013=90] | F49: [3/19/2013=306] | G49: [3/19/2013=390] | H49: [3/19/2013=178] | I49: [3/19/2013=259] | K49: [3/20/2013=937] | M49: [3/20/2013=745] | N49: [3/20/2013=807] | O49: [3/20/2013=511] | P49: [3/20/2013=602]
B50: [3/19/2013=223] | C50: [3/19/2013=427] | D50: [3/20/2013=782] | E50: [3/19/2013=93] | F50: [3/19/2013=304] | G50: [3/19/2013=392] | H50: [3/19/2013=174] | I50: [3/19/2013=255] | K50: [3/20/2013=887] | M50: [3/20/2013=746] | N50: [3/20/2013=809] | O50: [3/20/2013=513] | P50: [3/20/2013=600]
B51: [3/19/2013=224] | D51: [3/20/2013=783] | E51: [3/19/2013=95] | F51: [3/19/2013=301] | G51: [3/19/2013=396] | H51: [3/19/2013=169] | I51: [3/19/2013=252] | K51: [3/20/2013=873] | M51: [3/20/2013=748] | N51: [3/20/2013=811] | O51: [3/20/2013=515] | P51: [3/20/2013=598]
B52: [3/19/2013=226] | C52: [3/19/2013=424] | D52: [3/20/2013=785] | E52: [3/19/2013=97] | F52: [3/19/2013=298] | G52: [3/19/2013=399] | H52: [3/19/2013=158] | I52: [3/19/2013=249] | K52: [3/20/2013=867] | M52: [3/20/2013=751] | N52: [3/20/2013=813] | O52: [3/20/2013=516] | P52: [3/20/2013=595]
B53: [3/19/2013=228] | C53: [3/19/2013=423] | D53: [3/20/2013=787] | E53: [3/19/2013=100] | F53: [3/19/2013=294] | G53: [3/19/2013=402] | H53: [3/19/2013=153] | I53: [3/19/2013=244] | K53: [3/20/2013=863] | M53: [3/20/2013=753] | N53: [3/20/2013=815] | O53: [3/20/2013=517] | P53: [3/20/2013=593]
B54: [3/19/2013=230] | C54: [3/19/2013=415] | D54: [3/20/2013=790] | E54: [3/19/2013=103] | F54: [3/19/2013=291] | G54: [3/19/2013=404] | H54: [3/19/2013=149] | I54: [3/19/2013=241] | K54: [3/20/2013=859] | M54: [3/20/2013=755] | N54: [3/20/2013=817] | O54: [3/20/2013=518] | P54: [3/20/2013=591]
B55: [3/19/2013=231] | C55: [3/19/2013=406] | D55: [3/20/2013=792] | E55: [3/19/2013=106] | F55: [3/19/2013=284][3/19/2013=287] | G55: [3/19/2013=407] | H55: [3/19/2013=145] | I55: [3/19/2013=238] | K55: [3/20/2013=853] | M55: [3/20/2013=757] | N55: [3/20/2013=818] | O55: [3/20/2013=519] | P55: [3/20/2013=589]
B56: [3/19/2013=233] | C56: [3/19/2013=400] | D56: [3/20/2013=794] | E56: [3/19/2013=108] | F56: [3/19/2013=278][3/19/2013=280] | G56: [3/19/2013=409] | H56: [3/19/2013=138] | K56: [3/20/2013=851] | M56: [3/20/2013=759] | N56: [3/20/2013=820] | O56: [3/20/2013=520] | P56: [3/20/2013=587]
B57: [3/19/2013=235] | C57: [3/19/2013=397] | D57: [3/20/2013=795] | E57: [3/19/2013=116] | F57: [3/19/2013=276] | G57: [3/19/2013=411] | H57: [3/19/2013=133] | I57: [3/19/2013=191] | K57: [3/20/2013=850] | M57: [3/20/2013=761] | N57: [3/20/2013=829] | O57: [3/20/2013=521] | P57: [3/20/2013=584]
B58: [3/19/2013=237] | C58: [3/19/2013=394] | D58: [3/20/2013=797] | E58: [3/19/2013=119] | F58: [3/19/2013=273] | G58: [3/19/2013=413] | H58: [3/19/2013=130] | I58: [3/19/2013=182] | K58: [3/20/2013=849] | M58: [3/20/2013=763] | N58: [3/20/2013=852] | O58: [3/20/2013=522] | P58: [3/20/2013=581]
B59: [3/19/2013=239] | C59: [3/19/2013=385] | D59: [3/20/2013=799] | E59: [3/19/2013=122][3/19/2013=124] | F59: [3/19/2013=270] | G59: [3/19/2013=414] | H59: [3/19/2013=125] | I59: [3/19/2013=175] | K59: [3/20/2013=848] | M59: [3/20/2013=765] | N59: [3/20/2013=854] | O59: [3/20/2013=523] | P59: [3/20/2013=579]
B60: [3/19/2013=247] | C60: [3/19/2013=383] | D60: [3/20/2013=801] | E60: [3/19/2013=127] | F60: [3/19/2013=267] | G60: [3/19/2013=417] | H60: [3/19/2013=121] | I60: [3/19/2013=171] | K60: [3/20/2013=847] | M60: [3/20/2013=767] | N60: [3/20/2013=855] | O60: [3/20/2013=524] | P60: [3/20/2013=577]
B61: [3/19/2013=251] | C61: [3/19/2013=381] | D61: [3/20/2013=803] | E61: [3/19/2013=129] | F61: [3/19/2013=264] | G61: [3/19/2013=419] | H61: [3/19/2013=117] | I61: [3/19/2013=166] | K61: [3/20/2013=846] | M61: [3/20/2013=769] | N61: [3/20/2013=856] | O61: [3/20/2013=525] | P61: [3/20/2013=575]
B62: [3/19/2013=257] | C62: [3/19/2013=376] | D62: [3/20/2013=804] | E62: [3/19/2013=134] | F62: [3/19/2013=256] | G62: [3/19/2013=422][3/19/2013=426] | H62: [3/19/2013=114] | I62: [3/19/2013=163] | K62: [3/20/2013=845] | M62: [3/20/2013=771] | N62: [3/20/2013=857] | O62: [3/20/2013=526] | P62: [3/20/2013=572]
B63: [3/19/2013=260] | C63: [3/19/2013=371] | D63: [3/20/2013=806] | E63: [3/19/2013=136] | F63: [3/19/2013=253] | G63: [3/19/2013=428] | H63: [3/19/2013=112] | I63: [3/19/2013=161] | K63: [3/20/2013=844] | M63: [3/20/2013=772] | N63: [3/20/2013=858] | O63: [3/20/2013=527] | P63: [3/20/2013=571]
B64: [3/19/2013=263] | C64: [3/19/2013=369] | D64: [3/20/2013=808] | E64: [3/19/2013=139] | F64: [3/19/2013=250] | G64: [3/19/2013=431] | H64: [3/19/2013=109] | I64: [3/19/2013=159] | K64: [3/20/2013=843] | M64: [3/20/2013=773] | N64: [3/20/2013=860] | O64: [3/20/2013=528] | P64: [3/20/2013=570]
B65: [3/19/2013=265] | C65: [3/19/2013=365] | D65: [3/20/2013=810] | E65: [3/19/2013=144] | F65: [3/19/2013=246] | G65: [3/19/2013=432] | H65: [3/19/2013=105] | I65: [3/19/2013=156] | K65: [3/20/2013=842] | M65: [3/20/2013=774] | N65: [3/20/2013=861] | O65: [3/20/2013=529] | P65: [3/20/2013=569]
B66: [3/19/2013=268] | C66: [3/19/2013=363] | D66: [3/20/2013=812] | E66: [3/19/2013=147] | F66: [3/19/2013=243] | G66: [3/19/2013=434] | H66: [3/19/2013=84][3/19/2013=98] | I66: [3/19/2013=142] | K66: [3/20/2013=841] | M66: [3/20/2013=775] | N66: [3/20/2013=862] | O66: [3/20/2013=530] | P66: [3/20/2013=568]
B67: [3/19/2013=271] | C67: [3/19/2013=361] | D67: [3/20/2013=814] | E67: [3/19/2013=148] | F67: [3/19/2013=211] | G67: [3/19/2013=437] | H67: [3/19/2013=75] | I67: [3/19/2013=140] | K67: [3/20/2013=840] | M67: [3/20/2013=776] | N67: [3/20/2013=864] | O67: [3/20/2013=531] | P67: [3/20/2013=567]
B68: [3/19/2013=274] | C68: [3/19/2013=356] | D68: [3/20/2013=816] | E68: [3/19/2013=152] | F68: [3/19/2013=209] | G68: [3/19/2013=440] | H68: [3/19/2013=107] | I68: [3/19/2013=137] | K68: [3/20/2013=839] | M68: [3/20/2013=777] | N68: [3/20/2013=865] | O68: [3/20/2013=532] | P68: [3/20/2013=565]
B69: [3/19/2013=277] | C69: [3/19/2013=353] | D69: [3/20/2013=819] | E69: [3/19/2013=155][3/19/2013=164] | F69: [3/19/2013=207] | G69: [3/19/2013=450] | H69: [3/19/2013=101] | I69: [3/19/2013=135] | K69: [3/20/2013=838] | M69: [3/20/2013=778] | N69: [3/20/2013=868][3/20/2013=870][3/20/2013=872] | O69: [3/20/2013=533] | P69: [3/20/2013=564]
B70: [3/19/2013=279] | C70: [3/19/2013=351] | D70: [3/20/2013=821] | E70: [3/19/2013=167] | F70: [3/19/2013=205] | G70: [3/19/2013=453] | H70: [3/19/2013=78] | I70: [3/19/2013=132] | K70: [3/20/2013=837] | M70: [3/20/2013=779] | N70: [3/20/2013=874] | O70: [3/20/2013=534] | P70: [3/20/2013=563]
B71: [3/19/2013=282] | C71: [3/19/2013=349] | D71: [3/20/2013=822] | E71: [3/19/2013=170] | F71: [3/19/2013=204] | G71: [3/19/2013=456] | H71: [3/19/2013=80] | I71: [3/19/2013=131] | K71: [3/20/2013=836] | M71: [3/20/2013=780] | N71: [3/20/2013=876] | O71: [3/20/2013=536] | P71: [3/20/2013=562]
B72: [3/19/2013=286] | C72: [3/19/2013=346] | D72: [3/20/2013=823] | E72: [3/19/2013=173] | F72: [3/19/2013=203] | G72: [3/19/2013=458] | H72: [3/19/2013=83] | I72: [3/19/2013=128] | K72: [3/20/2013=835] | M72: [3/20/2013=781] | N72: [3/20/2013=877] | O72: [3/20/2013=537] | P72: [3/20/2013=561]
B73: [3/19/2013=289] | C73: [3/19/2013=344] | D73: [3/20/2013=824] | E73: [3/19/2013=177] | F73: [3/19/2013=201] | G73: [3/19/2013=462] | H73: [3/19/2013=86] | I73: [3/19/2013=126] | K73: [3/20/2013=834] | M73: [3/20/2013=784] | N73: [3/20/2013=879] | O73: [3/20/2013=538] | P73: [3/20/2013=560]
B74: [3/19/2013=292] | C74: [3/19/2013=342] | D74: [3/20/2013=825] | E74: [3/19/2013=180] | F74: [3/19/2013=200] | G74: [3/19/2013=466] | H74: [3/19/2013=89] | I74: [3/19/2013=123] | K74: [3/20/2013=833] | M74: [3/20/2013=788] | N74: [3/20/2013=881] | O74: [3/20/2013=539] | P74: [3/20/2013=559]
B75: [3/19/2013=295] | C75: [3/19/2013=340] | D75: [3/20/2013=827] | E75: [3/19/2013=184] | F75: [3/19/2013=198] | G75: [3/19/2013=473] | H75: [3/19/2013=92] | I75: [3/19/2013=120] | K75: [3/20/2013=832] | M75: [3/20/2013=826] | N75: [3/20/2013=882] | O75: [3/20/2013=540] | P75: [3/20/2013=558]
B76: [3/19/2013=299] | C76: [3/19/2013=339] | D76: [3/20/2013=828] | E76: [3/19/2013=185] | G76: [3/19/2013=474] | H76: [3/19/2013=94] | I76: [3/19/2013=118] | K76: [3/20/2013=831] | M76: [3/20/2013=830] | N76: [3/20/2013=884] | O76: [3/20/2013=541] | P76: [3/20/2013=556]

Sheet Map_info_redo1 (hidden)
AT2: [2/9/2013=75615] | AW2: [2/10/2013=78894] | AX2: [2/10/2013=78093] | AZ2: [2/10/2013=77147] | BA2: [2/10/2013=77124] | BB2: [2/10/2013=76351] | BE2: [2/9/2013=75085] | BF2: [2/9/2013=74757] | BI2: [2/9/2013=74531] | BJ2: [2/9/2013=74347] | BM2: [2/9/2013=74108] | BN2: [2/9/2013=74053] | BR2: [2/9/2013=74970] | BU2: [2/9/2013=74626] | BV2: [2/9/2013=74284] | BY2: [2/9/2013=73974] | BZ2: [2/9/2013=73852] | CC2: [2/8/2013=72983] | CD2: [2/8/2013=72139] | CG2: [2/8/2013=71596] | CH2: [2/8/2013=71056] | CK2: [2/8/2013=73425] | CL2: [2/8/2013=73130] | CO2: [2/8/2013=71693] | CP2: [2/8/2013=71656] | CS2: [2/8/2013=71061] | CW2: [2/8/2013=72485] | CX2: [2/8/2013=72469] | DA2: [2/8/2013=71255] | DB2: [2/8/2013=70704] | DE2: [2/9/2013=75245] | DF2: [2/7/2013=69374][2/8/2013=70531] | DI2: [2/7/2013=69616][2/7/2013=70270] | DJ2: [2/7/2013=69884][2/7/2013=70269] | DM2: [2/7/2013=69983] | DN2: [2/7/2013=70029] | DR2: [2/7/2013=68649] | DU2: [2/7/2013=69078] | DV2: [2/7/2013=69082] | DW2: [2/8/2013=72884] | EC2: [2/8/2013=70786] | ED2: [2/8/2013=70763] | EG2: [2/8/2013=70558] | EH2: [2/8/2013=70511] | EL2: [2/7/2013=70161] | EO2: [2/6/2013=66894] | EP2: [2/6/2013=66893] | ES2: [2/7/2013=70448] | ET2: [2/7/2013=70259] | EW2: [2/7/2013=69871] | EX2: [2/7/2013=69449] | FA2: [2/7/2013=69268] | FB2: [2/6/2013=66864] | FE2: [2/7/2013=68700] | FF2: [2/7/2013=68694] | FI2: [2/6/2013=64456] | FJ2: [2/6/2013=64464]
AT3: [2/9/2013=75603] | AU3: [2/10/2013=79544] | AV3: [2/10/2013=78896] | AW3: [2/10/2013=78888] | AX3: [2/10/2013=78099] | AY3: [2/10/2013=78084] | AZ3: [2/10/2013=77153] | BA3: [2/10/2013=77118] | BB3: [2/10/2013=76347] | BC3: [2/9/2013=75383] | BD3: [2/9/2013=75592] | BE3: [2/9/2013=75084] | BF3: [2/9/2013=74760] | BG3: [2/9/2013=74753] | BH3: [2/9/2013=74535] | BI3: [2/9/2013=74528] | BJ3: [2/9/2013=74348] | BK3: [2/9/2013=74256] | BL3: [2/9/2013=74199] | BM3: [2/9/2013=74110] | BN3: [2/9/2013=74056] | BQ3: [2/9/2013=75327] | BR3: [2/9/2013=74972] | BS3: [2/9/2013=74965] | BT3: [2/9/2013=74630] | BU3: [2/9/2013=74624] | BV3: [2/9/2013=74286] | BW3: [2/9/2013=74279] | BX3: [2/9/2013=73979] | BY3: [2/9/2013=73972] | BZ3: [2/9/2013=73854] | CA3: [2/8/2013=73460] | CB3: [2/8/2013=72991] | CC3: [2/8/2013=72980] | CD3: [2/8/2013=72142] | CE3: [2/8/2013=72129] | CF3: [2/8/2013=71603] | CG3: [2/8/2013=71592] | CH3: [2/8/2013=71063] | CI3: [2/9/2013=73828] | CJ3: [2/8/2013=73428] | CK3: [2/8/2013=73423] | CL3: [2/8/2013=73127] | CM3: [2/8/2013=72416] | CN3: [2/8/2013=72409] | CO3: [2/8/2013=71901] | CP3: [2/8/2013=71653] | CQ3: [2/8/2013=71245] | CR3: [2/8/2013=71133] | CS3: [2/8/2013=71064] | CW3: [2/8/2013=72494] | CX3: [2/8/2013=72466] | CY3: [2/8/2013=71860] | CZ3: [2/8/2013=71846] | DA3: [2/8/2013=71259] | DB3: [2/8/2013=70705] | DC3: [2/8/2013=70695] | DD3: [2/8/2013=70690] | DE3: [2/9/2013=75244] | DF3: [2/7/2013=69369][2/8/2013=70533] | DG3: [2/7/2013=69383][2/7/2013=70356] | DH3: [2/7/2013=69544][2/7/2013=70352] | DI3: [2/7/2013=69617][2/7/2013=70271] | DJ3: [2/7/2013=69882][2/7/2013=70268] | DK3: [2/7/2013=69885][2/7/2013=70145] | DL3: [2/7/2013=69961][2/7/2013=70081] | DM3: [2/7/2013=69984] | DN3: [2/7/2013=70030] | DO3: [2/7/2013=70069] | DP3: [2/8/2013=72885] | DQ3: [2/7/2013=68643] | DR3: [2/7/2013=68654] | DS3: [2/7/2013=68877] | DT3: [2/7/2013=68882] | DU3: [2/7/2013=69075] | DV3: [2/7/2013=69083] | DW3: [2/8/2013=72883] | DX3: [2/7/2013=69831] | DY3: [2/7/2013=69868] | DZ3: [2/7/2013=69992] | EA3: [2/6/2013=65238] | EB3: [2/6/2013=65222] | EC3: [2/8/2013=70788] | ED3: [2/8/2013=70766] | EE3: [2/8/2013=70631] | EF3: [2/7/2013=70449] | EG3: [2/8/2013=70561] | EH3: [2/8/2013=70514] | EI3: [2/7/2013=70464] | EK3: [2/7/2013=69913] | EL3: [2/7/2013=70159] | EM3: [2/8/2013=70777] | EN3: [2/8/2013=70780] | EO3: [2/6/2013=66895] | EP3: [2/6/2013=66892] | EQ3: [2/7/2013=69797] | ER3: [2/8/2013=70653] | ES3: [2/7/2013=70450] | ET3: [2/7/2013=70261] | EU3: [2/7/2013=70254] | EV3: [2/7/2013=70059] | EW3: [2/7/2013=69873] | EX3: [2/7/2013=69452] | EY3: [2/7/2013=69446] | EZ3: [2/7/2013=69269] | FA3: [2/7/2013=69267] | FB3: [2/6/2013=66861] | FC3: [2/6/2013=66866][2/7/2013=68982] | FD3: [2/7/2013=68972] | FE3: [2/7/2013=68703] | FF3: [2/7/2013=68690] | FG3: [2/6/2013=64196] | FH3: [2/6/2013=64202] | FI3: [2/6/2013=64452] | FJ3: [2/6/2013=64468] | FK3: [2/6/2013=64563]
AT4: [2/9/2013=75601] | AU4: [2/10/2013=79542] | AV4: [2/10/2013=78899] | AW4: [2/10/2013=78885] | AX4: [2/10/2013=78103] | AY4: [2/10/2013=78082] | AZ4: [2/10/2013=77158] | BA4: [2/10/2013=77113] | BB4: [2/10/2013=76344] | BC4: [2/9/2013=75380] | BD4: [2/9/2013=75594] | BE4: [2/9/2013=75083] | BF4: [2/9/2013=74762] | BG4: [2/9/2013=74751] | BH4: [2/9/2013=74537] | BI4: [2/9/2013=74526] | BJ4: [2/9/2013=74350] | BK4: [2/9/2013=74258] | BL4: [2/9/2013=74201] | BM4: [2/9/2013=74112] | BN4: [2/9/2013=74060] | BQ4: [2/9/2013=75324] | BR4: [2/9/2013=74974] | BS4: [2/9/2013=74961] | BT4: [2/9/2013=74632] | BU4: [2/9/2013=74622] | BV4: [2/9/2013=74290] | BW4: [2/9/2013=74277] | BX4: [2/9/2013=73981] | BY4: [2/9/2013=73971] | BZ4: [2/9/2013=73858] | CA4: [2/8/2013=73458] | CB4: [2/8/2013=72993] | CC4: [2/8/2013=72977] | CD4: [2/8/2013=72145] | CE4: [2/8/2013=72126] | CF4: [2/8/2013=71609] | CG4: [2/8/2013=71589] | CH4: [2/8/2013=71065] | CI4: [2/9/2013=73827] | CJ4: [2/8/2013=73430] | CK4: [2/8/2013=73419] | CL4: [2/8/2013=73125] | CM4: [2/8/2013=72420] | CN4: [2/8/2013=72405] | CO4: [2/8/2013=71898] | CP4: [2/8/2013=71649] | CQ4: [2/8/2013=71248] | CR4: [2/8/2013=71137] | CS4: [2/8/2013=71066] | CW4: [2/8/2013=72497] | CX4: [2/8/2013=72463] | CY4: [2/8/2013=71861] | CZ4: [2/8/2013=71843] | DA4: [2/8/2013=71262] | DB4: [2/8/2013=70706] | DC4: [2/8/2013=70697] | DD4: [2/8/2013=70688] | DE4: [2/9/2013=75243] | DF4: [2/7/2013=69360][2/8/2013=70527] | DG4: [2/7/2013=69388][2/7/2013=70358] | DH4: [2/7/2013=69541][2/7/2013=70351] | DI4: [2/7/2013=69619][2/7/2013=70272] | DJ4: [2/7/2013=69881][2/7/2013=70266] | DK4: [2/7/2013=69886][2/7/2013=70149] | DL4: [2/7/2013=69962][2/7/2013=70084] | DM4: [2/7/2013=69985] | DN4: [2/7/2013=70032] | DO4: [2/7/2013=70070] | DP4: [2/8/2013=72886] | DQ4: [2/7/2013=68641] | DR4: [2/7/2013=68656] | DS4: [2/7/2013=68872] | DT4: [2/7/2013=68885] | DU4: [2/7/2013=69072] | DV4: [2/7/2013=69085] | DW4: [2/8/2013=72882] | DX4: [2/7/2013=69828] | DY4: [2/7/2013=69877] | DZ4: [2/7/2013=69995] | EA4: [2/6/2013=65242] | EB4: [2/6/2013=65221] | EC4: [2/8/2013=70790] | ED4: [2/8/2013=70768] | EE4: [2/8/2013=70634] | EF4: [2/7/2013=70447] | EG4: [2/8/2013=70564] | EH4: [2/8/2013=70517] | EI4: [2/8/2013=70467] | EK4: [2/7/2013=69916] | EL4: [2/7/2013=70157] | EM4: [2/8/2013=70775] | EN4: [2/8/2013=70782] | EO4: [2/6/2013=66896] | EP4: [2/6/2013=66891] | EQ4: [2/7/2013=69795] | ER4: [2/8/2013=70648] | ES4: [2/7/2013=70451] | ET4: [2/7/2013=70263] | EU4: [2/7/2013=70252] | EV4: [2/7/2013=70062] | EW4: [2/7/2013=69876] | EX4: [2/7/2013=69455] | EY4: [2/7/2013=69444] | EZ4: [2/7/2013=69270] | FA4: [2/7/2013=69266] | FB4: [2/6/2013=66859] | FC4: [2/7/2013=68985] | FD4: [2/7/2013=68969] | FE4: [2/7/2013=68707] | FF4: [2/7/2013=68686] | FG4: [2/6/2013=64193] | FH4: [2/6/2013=64205] | FI4: [2/6/2013=64449] | FJ4: [2/6/2013=64474] | FK4: [2/6/2013=64561]
AT5: [2/9/2013=75599] | AU5: [2/10/2013=79540] | AV5: [2/10/2013=78902] | AW5: [2/10/2013=78882] | AX5: [2/10/2013=78108] | AY5: [2/10/2013=78079] | AZ5: [2/10/2013=77163] | BA5: [2/10/2013=77109] | BB5: [2/10/2013=76340] | BC5: [2/9/2013=75377] | BD5: [2/9/2013=75598] | BE5: [2/9/2013=75082] | BF5: [2/9/2013=74765] | BG5: [2/9/2013=74749] | BH5: [2/9/2013=74539] | BI5: [2/9/2013=74524] | BJ5: [2/9/2013=74352] | BK5: [2/9/2013=74260] | BL5: [2/9/2013=74203] | BM5: [2/9/2013=74114] | BN5: [2/9/2013=74064] | BQ5: [2/9/2013=75320] | BR5: [2/9/2013=74976] | BS5: [2/9/2013=74959] | BT5: [2/9/2013=74635] | BU5: [2/9/2013=74620] | BV5: [2/9/2013=74292] | BW5: [2/9/2013=74275] | BX5: [2/9/2013=73983] | BY5: [2/9/2013=73970] | BZ5: [2/9/2013=73861] | CA5: [2/8/2013=73453] | CB5: [2/8/2013=72995] | CC5: [2/8/2013=72974] | CD5: [2/8/2013=72148] | CE5: [2/8/2013=72123] | CF5: [2/8/2013=71613] | CG5: [2/8/2013=71583] | CH5: [2/8/2013=71068] | CI5: [2/9/2013=73826] | CJ5: [2/8/2013=73432] | CK5: [2/8/2013=73417] | CL5: [2/8/2013=73123] | CM5: [2/8/2013=72424] | CN5: [2/8/2013=72401] | CO5: [2/8/2013=71905] | CP5: [2/8/2013=71646] | CQ5: [2/8/2013=71251] | CR5: [2/8/2013=71141] | CS5: [2/8/2013=71067] | CW5: [2/8/2013=72501] | CX5: [2/8/2013=72459] | CY5: [2/8/2013=71862] | CZ5: [2/8/2013=71840] | DA5: [2/8/2013=71265] | DB5: [2/8/2013=70707] | DC5: [2/8/2013=70699] | DD5: [2/8/2013=70686] | DE5: [2/9/2013=75242] | DF5: [2/7/2013=69356][2/8/2013=70525] | DG5: [2/7/2013=69392][2/7/2013=70361] | DH5: [2/7/2013=69538][2/7/2013=70349] | DI5: [2/7/2013=69621][2/7/2013=70273] | DJ5: [2/7/2013=69878][2/7/2013=70264] | DK5: [2/7/2013=69887][2/7/2013=70151] | DL5: [2/7/2013=69963][2/7/2013=70085] | DM5: [2/7/2013=69987] | DN5: [2/7/2013=70034] | DO5: [2/7/2013=70071] | DP5: [2/8/2013=72887] | DQ5: [2/7/2013=68639] | DR5: [2/7/2013=68658] | DS5: [2/7/2013=68870] | DT5: [2/7/2013=68888] | DU5: [2/7/2013=69069] | DV5: [2/7/2013=69087] | DW5: [2/8/2013=72881] | DX5: [2/7/2013=69825] | DZ5: [2/7/2013=69998] | EA5: [2/6/2013=65246] | EB5: [2/6/2013=65219] | EC5: [2/8/2013=70792] | ED5: [2/8/2013=70770] | EE5: [2/8/2013=70637] | EF5: [2/7/2013=70445] | EG5: [2/8/2013=70566] | EH5: [2/8/2013=70520] | EI5: [2/8/2013=70469] | EJ5: [2/7/2013=70319] | EK5: [2/7/2013=69919] | EL5: [2/7/2013=70155] | EM5: [2/8/2013=70773] | EN5: [2/8/2013=70783] | EO5: [2/6/2013=66897] | EP5: [2/6/2013=66890] | EQ5: [2/7/2013=69793] | ER5: [2/8/2013=70645] | ES5: [2/7/2013=70456] | ET5: [2/7/2013=70265] | EU5: [2/7/2013=70250] | EV5: [2/7/2013=70064] | EW5: [2/7/2013=69880] | EX5: [2/7/2013=69458] | EY5: [2/7/2013=69442] | EZ5: [2/7/2013=69271] | FA5: [2/7/2013=69265] | FB5: [2/6/2013=66857] | FC5: [2/7/2013=68987] | FD5: [2/7/2013=68966] | FE5: [2/7/2013=68711] | FF5: [2/7/2013=68682] | FG5: [2/6/2013=64190] | FH5: [2/6/2013=64207] | FI5: [2/6/2013=64445] | FJ5: [2/6/2013=64476] | FK5: [2/6/2013=64559]
AT6: [2/9/2013=75597] | AU6: [2/10/2013=79538] | AV6: [2/10/2013=78911] | AW6: [2/10/2013=78879] | AX6: [2/10/2013=78112] | AY6: [2/10/2013=78075] | AZ6: [2/10/2013=77168] | BA6: [2/10/2013=77104] | BB6: [2/10/2013=76336] | BC6: [2/9/2013=75374] | BD6: [2/9/2013=75600] | BE6: [2/9/2013=75081] | BF6: [2/9/2013=74767] | BG6: [2/9/2013=74747] | BH6: [2/9/2013=74541] | BI6: [2/9/2013=74522] | BJ6: [2/9/2013=74356] | BK6: [2/9/2013=74262] | BL6: [2/9/2013=74205] | BM6: [2/9/2013=74116] | BN6: [2/9/2013=74067] | BQ6: [2/9/2013=75317] | BR6: [2/9/2013=74980] | BS6: [2/9/2013=74957] | BT6: [2/9/2013=74637] | BU6: [2/9/2013=74618] | BV6: [2/9/2013=74294] | BW6: [2/9/2013=74273] | BX6: [2/9/2013=73985] | BY6: [2/9/2013=73968] | BZ6: [2/9/2013=73863] | CA6: [2/8/2013=73456] | CB6: [2/8/2013=72997] | CC6: [2/8/2013=72965] | CD6: [2/8/2013=72150] | CE6: [2/8/2013=72119] | CF6: [2/8/2013=71620] | CG6: [2/8/2013=71580] | CH6: [2/8/2013=71072] | CI6: [2/9/2013=73824] | CJ6: [2/8/2013=73434] | CK6: [2/8/2013=73415] | CL6: [2/8/2013=73121] | CM6: [2/8/2013=72428] | CN6: [2/8/2013=72398] | CO6: [2/8/2013=71908] | CP6: [2/8/2013=71642] | CQ6: [2/8/2013=71254] | CR6: [2/8/2013=71145] | CS6: [2/8/2013=71069] | CW6: [2/8/2013=72505] | CX6: [2/8/2013=72456] | CY6: [2/8/2013=71863] | CZ6: [2/8/2013=71837] | DA6: [2/8/2013=71267] | DB6: [2/8/2013=70708] | DC6: [2/9/2013=75246] | DD6: [2/8/2013=70684] | DE6: [2/9/2013=75241] | DF6: [2/7/2013=69353][2/8/2013=70522] | DG6: [2/7/2013=69395][2/7/2013=70364] | DH6: [2/7/2013=69536][2/7/2013=70348] | DI6: [2/7/2013=69624][2/7/2013=70274] | DJ6: [2/7/2013=69875][2/7/2013=70262] | DK6: [2/7/2013=69889][2/7/2013=70154] | DL6: [2/7/2013=69964][2/7/2013=70088] | DM6: [2/7/2013=69989] | DN6: [2/7/2013=70038] | DO6: [2/7/2013=70072] | DP6: [2/8/2013=72888] | DQ6: [2/7/2013=68636] | DR6: [2/7/2013=68661] | DS6: [2/7/2013=68866] | DT6: [2/7/2013=68891] | DU6: [2/7/2013=69066] | DV6: [2/7/2013=69089] | DW6: [2/8/2013=72880] | DX6: [2/7/2013=69819] | DY6: [2/7/2013=69914] | DZ6: [2/7/2013=70002] | EA6: [2/6/2013=65250] | EB6: [2/6/2013=65217] | EC6: [2/8/2013=70794] | ED6: [2/8/2013=70772] | EE6: [2/8/2013=70640] | EF6: [2/7/2013=70443] | EG6: [2/8/2013=70568] | EH6: [2/8/2013=70530] | EI6: [2/8/2013=70473] | EJ6: [2/7/2013=70317] | EK6: [2/7/2013=69923] | EM6: [2/8/2013=70771] | EN6: [2/8/2013=70784] | EO6: [2/6/2013=66898] | EP6: [2/7/2013=69615] | EQ6: [2/7/2013=69791] | ER6: [2/8/2013=70642] | ES6: [2/7/2013=70458] | ET6: [2/7/2013=70267] | EU6: [2/7/2013=70248] | EV6: [2/7/2013=70065] | EW6: [2/7/2013=69883] | EX6: [2/7/2013=69461] | EY6: [2/7/2013=69440] | EZ6: [2/7/2013=69272] | FA6: [2/7/2013=69264] | FB6: [2/6/2013=66855] | FC6: [2/7/2013=68989] | FD6: [2/7/2013=68963] | FE6: [2/7/2013=68715] | FF6: [2/7/2013=68677] | FG6: [2/6/2013=64187] | FH6: [2/6/2013=64209] | FI6: [2/6/2013=64441] | FJ6: [2/6/2013=64479] | FK6: [2/6/2013=64557]
AT7: [2/9/2013=75595] | AU7: [2/10/2013=79536] | AV7: [2/10/2013=78908] | AW7: [2/10/2013=78877] | AX7: [2/10/2013=78116] | AY7: [2/10/2013=78071] | AZ7: [2/10/2013=77173] | BA7: [2/10/2013=77100] | BB7: [2/10/2013=76332] | BC7: [2/9/2013=75372] | BD7: [2/9/2013=75602] | BE7: [2/9/2013=75080] | BF7: [2/9/2013=74769] | BG7: [2/9/2013=74745] | BH7: [2/9/2013=74543] | BI7: [2/9/2013=74520] | BJ7: [2/9/2013=74366] | BK7: [2/9/2013=74264] | BL7: [2/9/2013=74207] | BM7: [2/9/2013=74118] | BN7: [2/9/2013=74071] | BO7: [2/9/2013=74103] | BQ7: [2/9/2013=75314] | BR7: [2/9/2013=74982] | BS7: [2/9/2013=74955] | BT7: [2/9/2013=74638] | BU7: [2/9/2013=74616] | BV7: [2/9/2013=74296] | BW7: [2/9/2013=74271] | BX7: [2/9/2013=73987] | BY7: [2/9/2013=73967] | BZ7: [2/9/2013=73865] | CA7: [2/8/2013=73449] | CB7: [2/8/2013=72999] | CC7: [2/8/2013=72963] | CD7: [2/8/2013=72152] | CE7: [2/8/2013=72116] | CF7: [2/8/2013=71625] | CG7: [2/8/2013=71577] | CH7: [2/8/2013=71075] | CI7: [2/9/2013=73822] | CJ7: [2/8/2013=73436] | CK7: [2/8/2013=73412] | CL7: [2/8/2013=73119] | CM7: [2/8/2013=72431] | CN7: [2/8/2013=72395] | CO7: [2/8/2013=71910] | CP7: [2/8/2013=71639] | CQ7: [2/8/2013=71258] | CR7: [2/8/2013=71149] | CS7: [2/8/2013=71071] | CW7: [2/8/2013=72509] | CX7: [2/8/2013=72453] | CY7: [2/8/2013=71864] | CZ7: [2/8/2013=71834] | DA7: [2/8/2013=71269] | DB7: [2/8/2013=70709] | DC7: [2/9/2013=75247] | DD7: [2/8/2013=70682] | DE7: [2/9/2013=75240] | DF7: [2/7/2013=69350][2/8/2013=70519] | DG7: [2/7/2013=69399][2/7/2013=70366] | DH7: [2/7/2013=69533][2/7/2013=70347] | DI7: [2/7/2013=69627][2/7/2013=70275] | DJ7: [2/7/2013=69874][2/7/2013=70260] | DK7: [2/7/2013=69891][2/7/2013=70156] | DL7: [2/7/2013=69965][2/7/2013=70091] | DM7: [2/7/2013=69991] | DN7: [2/7/2013=70040] | DO7: [2/7/2013=70074] | DP7: [2/8/2013=72889] | DQ7: [2/7/2013=68633] | DR7: [2/7/2013=68663] | DS7: [2/7/2013=68862] | DT7: [2/7/2013=68893] | DU7: [2/7/2013=69063] | DV7: [2/7/2013=69091] | DW7: [2/8/2013=72879] | DX7: [2/7/2013=69816] | DY7: [2/7/2013=69917] | DZ7: [2/7/2013=70006] | EA7: [2/6/2013=65254] | EB7: [2/6/2013=65212] | EC7: [2/8/2013=70796] | ED7: [2/8/2013=70774] | EE7: [2/8/2013=70643] | EF7: [2/7/2013=70441] | EG7: [2/8/2013=70571] | EH7: [2/8/2013=70526] | EI7: [2/8/2013=70476] | EJ7: [2/7/2013=70315] | EK7: [2/7/2013=69927] | EL7: [2/7/2013=70150] | EM7: [2/8/2013=70769] | EN7: [2/8/2013=70785] | EO7: [2/6/2013=66899] | EP7: [2/7/2013=69614] | EQ7: [2/7/2013=69789] | ER7: [2/8/2013=70639] | ES7: [2/7/2013=70460] | ET7: [2/7/2013=70440] | EU7: [2/7/2013=70245] | EV7: [2/7/2013=70066] | EW7: [2/7/2013=69890] | EX7: [2/7/2013=69463] | EY7: [2/7/2013=69438] | EZ7: [2/7/2013=69273] | FA7: [2/7/2013=69263] | FB7: [2/6/2013=66853] | FC7: [2/7/2013=68992] | FD7: [2/7/2013=68960] | FE7: [2/7/2013=68719] | FF7: [2/7/2013=68673] | FG7: [2/6/2013=64184] | FH7: [2/6/2013=64212] | FI7: [2/6/2013=64437] | FJ7: [2/6/2013=64482] | FK7: [2/6/2013=64555]
AT8: [2/9/2013=75593] | AU8: [2/10/2013=79534] | AV8: [2/10/2013=78914] | AW8: [2/10/2013=78875] | AX8: [2/10/2013=78121] | AY8: [2/10/2013=78068] | AZ8: [2/10/2013=77177] | BA8: [2/10/2013=77096] | BB8: [2/10/2013=76328] | BC8: [2/9/2013=75369] | BD8: [2/9/2013=75605] | BE8: [2/9/2013=75079] | BF8: [2/9/2013=74771] | BG8: [2/9/2013=74743] | BH8: [2/9/2013=74545] | BI8: [2/9/2013=74518] | BJ8: [2/9/2013=74360] | BK8: [2/9/2013=74266] | BL8: [2/9/2013=74210] | BM8: [2/9/2013=74120] | BN8: [2/9/2013=74074] | BO8: [2/9/2013=74102] | BQ8: [2/9/2013=75311] | BR8: [2/9/2013=74984] | BS8: [2/9/2013=74953] | BT8: [2/9/2013=74639] | BU8: [2/9/2013=74614] | BV8: [2/9/2013=74299] | BW8: [2/9/2013=74267] | BX8: [2/9/2013=73988] | BY8: [2/9/2013=73966] | BZ8: [2/9/2013=73867] | CA8: [2/8/2013=73447] | CB8: [2/8/2013=73001] | CC8: [2/8/2013=72961] | CD8: [2/8/2013=72153] | CE8: [2/8/2013=72113] | CF8: [2/8/2013=71628] | CG8: [2/8/2013=71574] | CH8: [2/8/2013=71081] | CI8: [2/9/2013=73821] | CJ8: [2/8/2013=73438] | CK8: [2/8/2013=73409] | CL8: [2/8/2013=73117] | CM8: [2/8/2013=72435] | CN8: [2/8/2013=72392] | CO8: [2/8/2013=71916] | CP8: [2/8/2013=71636] | CQ8: [2/8/2013=71263] | CR8: [2/8/2013=71153] | CS8: [2/8/2013=71074] | CW8: [2/8/2013=72513] | CX8: [2/8/2013=72449] | CY8: [2/8/2013=71865] | CZ8: [2/8/2013=71831] | DA8: [2/8/2013=71271] | DB8: [2/8/2013=70710] | DC8: [2/9/2013=75248] | DD8: [2/8/2013=70680] | DE8: [2/9/2013=75239] | DF8: [2/7/2013=69347][2/8/2013=70516] | DG8: [2/7/2013=69403][2/7/2013=70369] | DH8: [2/7/2013=69531][2/7/2013=70345] | DI8: [2/7/2013=69629][2/7/2013=70276] | DJ8: [2/7/2013=69872][2/7/2013=70258] | DK8: [2/7/2013=69894][2/7/2013=70158] | DL8: [2/7/2013=69966][2/7/2013=70093] | DM8: [2/7/2013=69994] | DN8: [2/7/2013=70042] | DO8: [2/7/2013=70075] | DP8: [2/8/2013=72890] | DQ8: [2/7/2013=68629] | DR8: [2/7/2013=68665] | DS8: [2/7/2013=68859] | DT8: [2/7/2013=68896] | DU8: [2/7/2013=69061] | DV8: [2/7/2013=69094] | DW8: [2/8/2013=72878] | DX8: [2/7/2013=69813] | DY8: [2/7/2013=69925] | DZ8: [2/7/2013=70010] | EA8: [2/6/2013=65257] | EB8: [2/6/2013=65209] | EC8: [2/8/2013=70798] | ED8: [2/8/2013=70776] | EE8: [2/8/2013=70646] | EF8: [2/7/2013=70438] | EG8: [2/8/2013=70574] | EH8: [2/8/2013=70532] | EI8: [2/8/2013=70479] | EJ8: [2/7/2013=70313] | EK8: [2/7/2013=69930] | EL8: [2/7/2013=70146] | EM8: [2/8/2013=70767] | EN8: [2/8/2013=70787] | EO8: [2/7/2013=66900] | EP8: [2/7/2013=69613] | EQ8: [2/7/2013=69787] | ER8: [2/8/2013=70636] | ES8: [2/7/2013=70462] | ET8: [2/7/2013=70437] | EU8: [2/7/2013=70243] | EV8: [2/7/2013=70067] | EW8: [2/7/2013=69893] | EX8: [2/7/2013=69466] | EY8: [2/7/2013=69436] | EZ8: [2/7/2013=69274] | FA8: [2/7/2013=69262] | FB8: [2/6/2013=66851] | FC8: [2/7/2013=68994] | FD8: [2/7/2013=68957] | FE8: [2/7/2013=68723] | FF8: [2/7/2013=68670] | FG8: [2/6/2013=64181] | FH8: [2/6/2013=64217] | FI8: [2/6/2013=64433] | FJ8: [2/6/2013=64485] | FK8: [2/6/2013=64553]
AT9: [2/9/2013=75591] | AU9: [2/10/2013=79531] | AV9: [2/10/2013=78917] | AW9: [2/10/2013=78873] | AX9: [2/10/2013=78126] | AY9: [2/10/2013=78065] | AZ9: [2/10/2013=77182] | BA9: [2/10/2013=77092] | BB9: [2/10/2013=76324] | BC9: [2/9/2013=75366] | BD9: [2/9/2013=75608] | BE9: [2/9/2013=75078] | BF9: [2/9/2013=74773] | BG9: [2/9/2013=74741] | BH9: [2/9/2013=74547] | BI9: [2/9/2013=74516] | BJ9: [2/9/2013=74368] | BK9: [2/9/2013=74268] | BL9: [2/9/2013=74212] | BM9: [2/9/2013=74123] | BN9: [2/9/2013=74077] | BO9: [2/9/2013=74101] | BQ9: [2/9/2013=75308] | BR9: [2/9/2013=74986] | BS9: [2/9/2013=74951] | BT9: [2/9/2013=74640] | BU9: [2/9/2013=74612] | BV9: [2/9/2013=74301] | BW9: [2/9/2013=74265] | BX9: [2/9/2013=73989] | BY9: [2/9/2013=73965] | BZ9: [2/9/2013=73871] | CA9: [2/8/2013=73445] | CB9: [2/8/2013=73002] | CC9: [2/8/2013=72958] | CD9: [2/8/2013=72154] | CE9: [2/8/2013=72110] | CF9: [2/8/2013=71632] | CG9: [2/8/2013=71572] | CH9: [2/8/2013=71085] | CI9: [2/9/2013=73819] | CJ9: [2/8/2013=73440] | CK9: [2/8/2013=73406] | CL9: [2/8/2013=73115] | CM9: [2/8/2013=72438] | CN9: [2/8/2013=72388] | CO9: [2/8/2013=71919] | CP9: [2/8/2013=71633] | CQ9: [2/8/2013=71276] | CR9: [2/8/2013=71156] | CS9: [2/8/2013=71077] | CW9: [2/8/2013=72517] | CX9: [2/8/2013=72446] | CY9: [2/8/2013=71866] | CZ9: [2/8/2013=71828] | DA9: [2/8/2013=71272] | DB9: [2/8/2013=70711] | DC9: [2/8/2013=70927] | DD9: [2/8/2013=70678] | DE9: [2/9/2013=75238] | DF9: [2/7/2013=69344][2/8/2013=70513] | DG9: [2/7/2013=69407][2/7/2013=70372] | DH9: [2/7/2013=69529][2/7/2013=70344] | DI9: [2/7/2013=69631][2/7/2013=70277] | DJ9: [2/7/2013=69870][2/7/2013=70257] | DK9: [2/7/2013=69895][2/7/2013=70160] | DL9: [2/7/2013=69967][2/7/2013=70096] | DM9: [2/7/2013=69997] | DN9: [2/7/2013=70044] | DO9: [2/7/2013=70076] | DP9: [2/8/2013=72891] | DQ9: [2/7/2013=68626] | DR9: [2/7/2013=68668] | DS9: [2/7/2013=68855] | DT9: [2/7/2013=68899] | DU9: [2/7/2013=69058] | DV9: [2/7/2013=69097] | DW9: [2/8/2013=72877] | DX9: [2/7/2013=69810] | DY9: [2/7/2013=69935] | DZ9: [2/7/2013=70014] | EA9: [2/6/2013=65260] | EB9: [2/6/2013=65207] | EC9: [2/8/2013=70800] | ED9: [2/8/2013=70778] | EE9: [2/8/2013=70649] | EF9: [2/7/2013=70435] | EG9: [2/8/2013=70577] | EH9: [2/8/2013=70534] | EI9: [2/8/2013=70482] | EJ9: [2/7/2013=70312] | EK9: [2/7/2013=69933] | EL9: [2/7/2013=70143] | EM9: [2/8/2013=70765] | EN9: [2/8/2013=70789] | EO9: [2/7/2013=66901] | EP9: [2/7/2013=69612] | EQ9: [2/7/2013=69785] | ER9: [2/8/2013=70633] | ES9: [2/8/2013=70466] | ET9: [2/7/2013=70429] | EU9: [2/7/2013=70241] | EV9: [2/7/2013=70068] | EW9: [2/7/2013=69896] | EX9: [2/7/2013=69468] | EY9: [2/7/2013=69434] | EZ9: [2/7/2013=69275] | FA9: [2/7/2013=69261] | FB9: [2/6/2013=66849] | FC9: [2/7/2013=68997] | FD9: [2/7/2013=68953] | FE9: [2/7/2013=68727] | FF9: [2/7/2013=68667] | FG9: [2/6/2013=64178] | FH9: [2/6/2013=64220] | FI9: [2/6/2013=64430] | FJ9: [2/6/2013=64487] | FK9: [2/6/2013=64551]
AT10: [2/9/2013=75590] | AU10: [2/10/2013=79528] | AV10: [2/10/2013=78920] | AW10: [2/10/2013=78871] | AX10: [2/10/2013=78130] | AY10: [2/10/2013=78062] | AZ10: [2/10/2013=77186] | BA10: [2/10/2013=77088] | BB10: [2/10/2013=76320] | BC10: [2/9/2013=75364] | BD10: [2/9/2013=75610] | BE10: [2/9/2013=75076] | BF10: [2/9/2013=74775] | BG10: [2/9/2013=74739] | BH10: [2/9/2013=74548] | BI10: [2/9/2013=74514] | BJ10: [2/9/2013=74370] | BK10: [2/9/2013=74270] | BL10: [2/9/2013=74215] | BM10: [2/9/2013=74126] | BN10: [2/9/2013=74080] | BO10: [2/9/2013=74100] | BQ10: [2/9/2013=75306] | BR10: [2/9/2013=74989] | BS10: [2/9/2013=74949] | BT10: [2/9/2013=74642] | BU10: [2/9/2013=74608] | BV10: [2/9/2013=74303] | BW10: [2/9/2013=74263] | BX10: [2/9/2013=73991] | BY10: [2/9/2013=73964] | BZ10: [2/9/2013=73873] | CA10: [2/8/2013=73443] | CB10: [2/8/2013=73003] | CC10: [2/8/2013=72715] | CD10: [2/8/2013=72155] | CE10: [2/8/2013=72107] | CF10: [2/8/2013=71643] | CG10: [2/8/2013=71569] | CH10: [2/8/2013=71089] | CI10: [2/9/2013=73817] | CJ10: [2/8/2013=73442] | CK10: [2/8/2013=73403] | CL10: [2/8/2013=73113] | CM10: [2/8/2013=72441] | CN10: [2/8/2013=72386] | CO10: [2/8/2013=71928] | CP10: [2/8/2013=71630] | CQ10: [2/8/2013=71279] | CR10: [2/8/2013=71160] | CS10: [2/8/2013=71080] | CW10: [2/8/2013=72520] | CX10: [2/8/2013=72443] | CY10: [2/8/2013=71867] | CZ10: [2/8/2013=71824] | DA10: [2/8/2013=71274] | DB10: [2/8/2013=70713] | DC10: [2/8/2013=70926] | DD10: [2/8/2013=70676] | DE10: [2/9/2013=75237] | DF10: [2/7/2013=69341][2/8/2013=70510] | DG10: [2/7/2013=69410][2/7/2013=70375] | DH10: [2/7/2013=69527][2/7/2013=70343] | DI10: [2/7/2013=69633][2/7/2013=70278] | DJ10: [2/7/2013=69869][2/7/2013=70256] | DK10: [2/7/2013=69897][2/7/2013=70162] | DL10: [2/7/2013=69968][2/7/2013=70098] | DM10: [2/7/2013=70000] | DN10: [2/7/2013=70046] | DO10: [2/7/2013=70077] | DP10: [2/8/2013=72892] | DQ10: [2/7/2013=68622] | DR10: [2/7/2013=68671] | DS10: [2/7/2013=68851] | DT10: [2/7/2013=68902] | DU10: [2/7/2013=69055] | DV10: [2/7/2013=69100] | DW10: [2/8/2013=72876] | DX10: [2/7/2013=69807] | DY10: [2/7/2013=69939] | DZ10: [2/7/2013=70019] | EA10: [2/6/2013=65263] | EB10: [2/6/2013=65204] | EC10: [2/8/2013=70801] | ED10: [2/8/2013=70779] | EE10: [2/8/2013=70655] | EF10: [2/7/2013=70433] | EG10: [2/8/2013=70580] | EH10: [2/8/2013=70535] | EI10: [2/8/2013=70485] | EJ10: [2/7/2013=70311] | EK10: [2/7/2013=69936] | EL10: [2/7/2013=70140] | EM10: [2/8/2013=70762] | EN10: [2/8/2013=70791] | EO10: [2/7/2013=66902] | EP10: [2/7/2013=69611] | EQ10: [2/7/2013=69783] | ER10: [2/8/2013=70630] | ES10: [2/8/2013=70472] | ET10: [2/7/2013=70426] | EU10: [2/7/2013=70239] | EV10: [2/7/2013=70080] | EW10: [2/7/2013=69898] | EX10: [2/7/2013=69469] | EY10: [2/7/2013=69432] | EZ10: [2/7/2013=69276] | FA10: [2/7/2013=69260] | FB10: [2/6/2013=66846] | FC10: [2/7/2013=69000] | FD10: [2/7/2013=68949] | FE10: [2/7/2013=68731] | FF10: [2/7/2013=68664] | FG10: [2/6/2013=64175] | FH10: [2/6/2013=64223] | FI10: [2/6/2013=64426] | FJ10: [2/6/2013=64490] | FK10: [2/6/2013=64549]
AT11: [2/9/2013=75589] | AU11: [2/10/2013=79525] | AV11: [2/10/2013=78923] | AW11: [2/10/2013=78869] | AX11: [2/10/2013=78135] | AY11: [2/10/2013=78059] | AZ11: [2/10/2013=77190] | BA11: [2/10/2013=77084] | BB11: [2/10/2013=76315] | BC11: [2/9/2013=75361] | BD11: [2/9/2013=75612] | BE11: [2/9/2013=75075] | BF11: [2/9/2013=74777] | BG11: [2/9/2013=74737] | BH11: [2/9/2013=74549] | BI11: [2/9/2013=74512] | BJ11: [2/9/2013=74372] | BK11: [2/9/2013=74272] | BL11: [2/9/2013=74218] | BM11: [2/9/2013=74129] | BN11: [2/9/2013=74083] | BO11: [2/9/2013=74099] | BQ11: [2/9/2013=75304] | BR11: [2/9/2013=74991] | BS11: [2/9/2013=74947] | BT11: [2/9/2013=74644] | BU11: [2/9/2013=74606] | BV11: [2/9/2013=74305] | BW11: [2/9/2013=74261] | BX11: [2/9/2013=73995] | BY11: [2/9/2013=73963] | BZ11: [2/9/2013=73875] | CA11: [2/8/2013=73441] | CB11: [2/8/2013=73004] | CC11: [2/8/2013=72713] | CD11: [2/8/2013=72157] | CE11: [2/8/2013=72104] | CF11: [2/8/2013=71647] | CG11: [2/8/2013=71567] | CH11: [2/8/2013=71093] | CI11: [2/9/2013=73815] | CJ11: [2/8/2013=73444] | CK11: [2/8/2013=73400] | CL11: [2/8/2013=73111] | CM11: [2/8/2013=72444] | CN11: [2/8/2013=72383] | CO11: [2/8/2013=71931] | CP11: [2/8/2013=71627] | CQ11: [2/8/2013=71281] | CR11: [2/8/2013=71164] | CS11: [2/8/2013=71084] | CW11: [2/8/2013=72523] | CX11: [2/8/2013=72439] | CY11: [2/8/2013=71868] | CZ11: [2/8/2013=71821] | DA11: [2/8/2013=71277] | DB11: [2/8/2013=70715] | DC11: [2/8/2013=70925] | DD11: [2/8/2013=70674] | DE11: [2/9/2013=75236] | DF11: [2/7/2013=69338][2/8/2013=70508] | DG11: [2/7/2013=69413][2/7/2013=70378] | DH11: [2/7/2013=69526][2/7/2013=70342] | DI11: [2/7/2013=69635][2/7/2013=70279] | DJ11: [2/7/2013=69867][2/7/2013=70255] | DK11: [2/7/2013=69899][2/7/2013=70163] | DL11: [2/7/2013=69969][2/7/2013=70099] | DM11: [2/7/2013=70003] | DN11: [2/7/2013=70048] | DO11: [2/7/2013=70078] | DP11: [2/8/2013=72893] | DQ11: [2/7/2013=68618] | DR11: [2/7/2013=68674] | DS11: [2/7/2013=68847] | DT11: [2/7/2013=68905] | DU11: [2/7/2013=69052] | DV11: [2/7/2013=69103] | DW11: [2/8/2013=72875] | DX11: [2/7/2013=69799] | DY11: [2/7/2013=69943] | DZ11: [2/7/2013=70022] | EA11: [2/6/2013=65267] | EB11: [2/6/2013=65202] | EC11: [2/8/2013=70802] | ED11: [2/8/2013=70781] | EE11: [2/8/2013=70657] | EF11: [2/7/2013=70430] | EG11: [2/8/2013=70583] | EH11: [2/8/2013=70536] | EI11: [2/8/2013=70488] | EJ11: [2/7/2013=70309] | EK11: [2/7/2013=69938] | EL11: [2/7/2013=70138] | EM11: [2/8/2013=70760] | EN11: [2/8/2013=70793] | EO11: [2/7/2013=69570] | EP11: [2/7/2013=69610] | EQ11: [2/7/2013=69781] | ER11: [2/8/2013=70628] | ES11: [2/8/2013=70475] | ET11: [2/7/2013=70423] | EU11: [2/7/2013=70237] | EV11: [2/7/2013=70083] | EW11: [2/7/2013=69900] | EX11: [2/7/2013=69470] | EY11: [2/7/2013=69429] | EZ11: [2/7/2013=69277] | FA11: [2/7/2013=69259] | FB11: [2/6/2013=66844] | FC11: [2/7/2013=69002] | FD11: [2/7/2013=68945] | FE11: [2/7/2013=68735] | FF11: [2/7/2013=68660] | FG11: [2/6/2013=64172] | FH11: [2/6/2013=64230] | FI11: [2/6/2013=64422] | FJ11: [2/6/2013=64495] | FK11: [2/6/2013=64547]
AT12: [2/9/2013=75587] | AU12: [2/10/2013=79522] | AV12: [2/10/2013=78926] | AW12: [2/10/2013=78867] | AX12: [2/10/2013=78139] | AY12: [2/10/2013=78057] | AZ12: [2/10/2013=77194] | BA12: [2/10/2013=77081] | BB12: [2/10/2013=76310] | BC12: [2/9/2013=75358] | BD12: [2/9/2013=75614] | BE12: [2/9/2013=75073] | BF12: [2/9/2013=74778] | BG12: [2/9/2013=74735] | BH12: [2/9/2013=74550] | BI12: [2/9/2013=74510] | BJ12: [2/9/2013=74374] | BK12: [2/9/2013=74274] | BL12: [2/9/2013=74221] | BM12: [2/9/2013=74133] | BN12: [2/9/2013=74086] | BO12: [2/9/2013=74098] | BQ12: [2/9/2013=75302] | BR12: [2/9/2013=74993] | BS12: [2/9/2013=74945] | BT12: [2/9/2013=74646] | BU12: [2/9/2013=74604] | BV12: [2/9/2013=74307] | BW12: [2/9/2013=74259] | BX12: [2/9/2013=73999] | BY12: [2/9/2013=73962] | BZ12: [2/9/2013=73877] | CA12: [2/8/2013=73439] | CB12: [2/8/2013=73005] | CC12: [2/8/2013=72711] | CD12: [2/8/2013=72159] | CE12: [2/8/2013=72101] | CF12: [2/8/2013=71650] | CG12: [2/8/2013=71563] | CH12: [2/8/2013=71097] | CI12: [2/9/2013=73813] | CJ12: [2/8/2013=73446] | CK12: [2/8/2013=73397] | CL12: [2/8/2013=73109] | CM12: [2/8/2013=72447] | CN12: [2/8/2013=72381] | CO12: [2/8/2013=71934] | CP12: [2/8/2013=71624] | CQ12: [2/8/2013=71284] | CR12: [2/8/2013=71168] | CS12: [2/8/2013=71088] | CV12: [2/8/2013=73194] | CW12: [2/8/2013=72527] | CX12: [2/8/2013=72436] | CY12: [2/8/2013=71869] | CZ12: [2/8/2013=71818] | DA12: [2/8/2013=71280] | DB12: [2/8/2013=70717] | DC12: [2/8/2013=70924] | DD12: [2/8/2013=70672] | DE12: [2/8/2013=70620][2/9/2013=75235] | DF12: [2/7/2013=69336][2/8/2013=70506] | DG12: [2/7/2013=69416][2/7/2013=70381] | DH12: [2/7/2013=69525][2/7/2013=70341] | DI12: [2/7/2013=69637][2/7/2013=70280] | DJ12: [2/7/2013=69866][2/7/2013=70253] | DK12: [2/7/2013=69901][2/7/2013=70164] | DL12: [2/7/2013=69970][2/7/2013=70101] | DM12: [2/7/2013=70005] | DN12: [2/7/2013=70050] | DO12: [2/7/2013=70079] | DP12: [2/8/2013=72894] | DQ12: [2/7/2013=68615] | DR12: [2/7/2013=68676] | DS12: [2/7/2013=68843] | DT12: [2/7/2013=68907] | DU12: [2/7/2013=69049] | DV12: [2/7/2013=69106] | DW12: [2/8/2013=72874] | DX12: [2/7/2013=69798] | DY12: [2/7/2013=69948] | DZ12: [2/7/2013=70025] | EA12: [2/6/2013=65270] | EB12: [2/6/2013=65200] | EC12: [2/8/2013=70803] | ED12: [2/8/2013=72871] | EE12: [2/8/2013=70659][2/8/2013=72776] | EF12: [2/7/2013=70427] | EG12: [2/8/2013=70586] | EH12: [2/8/2013=70537] | EI12: [2/8/2013=70491] | EJ12: [2/7/2013=70307] | EK12: [2/7/2013=69941] | EL12: [2/7/2013=70136] | EM12: [2/8/2013=70758] | EN12: [2/8/2013=70795] | EO12: [2/7/2013=69569] | EP12: [2/7/2013=69609] | EQ12: [2/7/2013=69779] | ER12: [2/8/2013=70627] | ES12: [2/8/2013=70478] | ET12: [2/7/2013=70420] | EU12: [2/7/2013=70224] | EV12: [2/7/2013=70087] | EW12: [2/7/2013=69902] | EX12: [2/7/2013=69471] | EY12: [2/7/2013=69426] | EZ12: [2/7/2013=69279] | FA12: [2/7/2013=69258] | FB12: [2/6/2013=66841] | FC12: [2/7/2013=69005] | FD12: [2/7/2013=68941] | FE12: [2/7/2013=68738] | FF12: [2/7/2013=68657] | FG12: [2/6/2013=64170] | FH12: [2/6/2013=64232] | FI12: [2/6/2013=64419] | FJ12: [2/6/2013=64498] | FK12: [2/6/2013=64545]
AT13: [2/9/2013=75586] | AU13: [2/10/2013=79517] | AV13: [2/10/2013=78929] | AW13: [2/10/2013=78866] | AX13: [2/10/2013=78143] | AY13: [2/10/2013=78055] | AZ13: [2/10/2013=77198] | BA13: [2/10/2013=77075] | BB13: [2/10/2013=76306] | BC13: [2/9/2013=75353] | BD13: [2/9/2013=75617] | BE13: [2/9/2013=75071] | BF13: [2/9/2013=74780] | BG13: [2/9/2013=74733] | BH13: [2/9/2013=74551] | BI13: [2/9/2013=74508] | BJ13: [2/9/2013=74376] | BK13: [2/9/2013=74276] | BL13: [2/9/2013=74224] | BM13: [2/9/2013=74135] | BN13: [2/9/2013=74089] | BQ13: [2/9/2013=75300] | BR13: [2/9/2013=74995] | BS13: [2/9/2013=74943] | BT13: [2/9/2013=74648] | BU13: [2/9/2013=74602] | BV13: [2/9/2013=74309] | BW13: [2/9/2013=74255] | BX13: [2/9/2013=74001] | BY13: [2/9/2013=73961] | BZ13: [2/9/2013=73472] | CA13: [2/8/2013=73437] | CB13: [2/8/2013=73007] | CC13: [2/8/2013=72709] | CD13: [2/8/2013=72161] | CE13: [2/8/2013=72097] | CF13: [2/8/2013=71654] | CG13: [2/8/2013=71560] | CH13: [2/8/2013=71100] | CI13: [2/9/2013=73810] | CJ13: [2/8/2013=73448] | CK13: [2/8/2013=73394] | CL13: [2/8/2013=73107] | CM13: [2/8/2013=72450] | CN13: [2/8/2013=72379] | CO13: [2/8/2013=71937] | CP13: [2/8/2013=71621] | CQ13: [2/8/2013=71287] | CR13: [2/8/2013=71172] | CS13: [2/8/2013=71092] | CV13: [2/8/2013=73191] | CW13: [2/8/2013=72531] | CX13: [2/8/2013=72432] | CY13: [2/8/2013=71870] | CZ13: [2/8/2013=71814] | DA13: [2/8/2013=71282] | DB13: [2/8/2013=70719] | DC13: [2/8/2013=70923] | DD13: [2/8/2013=70671] | DE13: [2/8/2013=70616] | DF13: [2/7/2013=69333][2/8/2013=70504] | DG13: [2/7/2013=69419][2/7/2013=70384] | DH13: [2/7/2013=69524][2/7/2013=70340] | DI13: [2/7/2013=69640][2/7/2013=70281] | DJ13: [2/7/2013=69865][2/7/2013=70251] | DK13: [2/7/2013=69903][2/7/2013=70167] | DL13: [2/7/2013=69971][2/7/2013=70103] | DM13: [2/7/2013=70008] | DN13: [2/7/2013=70052] | DO13: [2/8/2013=72940] | DP13: [2/8/2013=72895] | DQ13: [2/7/2013=68612] | DR13: [2/7/2013=68680] | DS13: [2/7/2013=68840] | DT13: [2/7/2013=68911] | DU13: [2/7/2013=69046] | DV13: [2/7/2013=69109] | DW13: [2/8/2013=72873] | DX13: [2/7/2013=69796] | DY13: [2/7/2013=69951] | DZ13: [2/7/2013=70028] | EA13: [2/6/2013=65272] | EB13: [2/6/2013=65198] | EC13: [2/8/2013=70804] | ED13: [2/8/2013=72870] | EE13: [2/8/2013=72774] | EF13: [2/7/2013=70424] | EG13: [2/8/2013=70589] | EH13: [2/8/2013=70538] | EI13: [2/8/2013=70493] | EJ13: [2/7/2013=70305] | EK13: [2/7/2013=69944] | EL13: [2/7/2013=70133] | EM13: [2/8/2013=70756] | EN13: [2/8/2013=70797] | EO13: [2/7/2013=69568] | EP13: [2/7/2013=69608] | EQ13: [2/7/2013=69777] | ER13: [2/8/2013=70626] | ES13: [2/8/2013=70481] | ET13: [2/7/2013=70417] | EU13: [2/7/2013=70222] | EV13: [2/7/2013=70090] | EW13: [2/7/2013=69904] | EX13: [2/7/2013=69473] | EY13: [2/7/2013=69423] | EZ13: [2/7/2013=69280] | FA13: [2/7/2013=69257] | FB13: [2/6/2013=66838] | FC13: [2/7/2013=69008] | FD13: [2/7/2013=68937] | FE13: [2/7/2013=68741] | FF13: [2/7/2013=68655] | FG13: [2/6/2013=64167] | FH13: [2/6/2013=64234] | FI13: [2/6/2013=64415] | FJ13: [2/6/2013=64501] | FK13: [2/6/2013=64543]
AT14: [2/9/2013=75584] | AU14: [2/10/2013=79515] | AV14: [2/10/2013=78932] | AW14: [2/10/2013=78865] | AX14: [2/10/2013=78146] | AY14: [2/10/2013=78052] | AZ14: [2/10/2013=77202] | BA14: [2/10/2013=77070] | BB14: [2/10/2013=76302] | BC14: [2/9/2013=75351] | BD14: [2/9/2013=75619] | BE14: [2/9/2013=75069] | BF14: [2/9/2013=74782] | BG14: [2/9/2013=74731] | BH14: [2/9/2013=74553] | BI14: [2/9/2013=74506] | BJ14: [2/9/2013=74378] | BK14: [2/9/2013=74278] | BL14: [2/9/2013=74227] | BM14: [2/9/2013=74136] | BQ14: [2/9/2013=75298] | BR14: [2/9/2013=74997] | BS14: [2/9/2013=74941] | BT14: [2/9/2013=74652] | BU14: [2/9/2013=74600] | BV14: [2/9/2013=74311] | BW14: [2/9/2013=74254] | BX14: [2/9/2013=74003] | BY14: [2/9/2013=73960] | BZ14: [2/9/2013=73474] | CA14: [2/8/2013=73435] | CB14: [2/8/2013=73009] | CC14: [2/8/2013=72707] | CD14: [2/8/2013=72163] | CE14: [2/8/2013=72094] | CF14: [2/8/2013=71658] | CG14: [2/8/2013=71557] | CH14: [2/8/2013=71103] | CI14: [2/9/2013=73807] | CJ14: [2/8/2013=73450] | CK14: [2/8/2013=73391] | CL14: [2/8/2013=73105] | CM14: [2/8/2013=72452] | CN14: [2/8/2013=72376] | CO14: [2/8/2013=71940] | CP14: [2/8/2013=71617] | CQ14: [2/8/2013=71290] | CR14: [2/8/2013=71176] | CS14: [2/8/2013=71096] | CV14: [2/8/2013=73187] | CW14: [2/8/2013=72535] | CX14: [2/8/2013=72427] | CY14: [2/8/2013=71871] | CZ14: [2/8/2013=71811] | DA14: [2/8/2013=71285] | DB14: [2/8/2013=70721] | DC14: [2/8/2013=70922] | DD14: [2/8/2013=70670] | DE14: [2/8/2013=70613] | DF14: [2/7/2013=69330][2/8/2013=70502] | DG14: [2/7/2013=69422][2/7/2013=70387] | DH14: [2/7/2013=69522][2/7/2013=70339] | DI14: [2/7/2013=69643][2/7/2013=70282] | DJ14: [2/7/2013=69864][2/7/2013=70249] | DK14: [2/7/2013=69905][2/7/2013=70166] | DL14: [2/7/2013=69972][2/7/2013=70105] | DM14: [2/7/2013=70011] | DN14: [2/7/2013=70054] | DO14: [2/8/2013=72939] | DP14: [2/8/2013=72896] | DQ14: [2/7/2013=68609] | DR14: [2/7/2013=68683] | DS14: [2/7/2013=68837] | DT14: [2/7/2013=68914] | DU14: [2/7/2013=69043] | DV14: [2/7/2013=69111] | DW14: [2/8/2013=72872] | DX14: [2/7/2013=69794] | DY14: [2/7/2013=69954] | EA14: [2/6/2013=65275] | EB14: [2/6/2013=65196] | EC14: [2/8/2013=70805] | ED14: [2/8/2013=72869] | EE14: [2/8/2013=72771] | EF14: [2/7/2013=70421] | EG14: [2/8/2013=70592] | EH14: [2/8/2013=70539] | EI14: [2/8/2013=70496] | EJ14: [2/7/2013=70303] | EK14: [2/7/2013=69946] | EL14: [2/7/2013=70130] | EM14: [2/8/2013=70754] | EN14: [2/8/2013=70799] | EO14: [2/7/2013=69567] | EP14: [2/7/2013=69607] | EQ14: [2/7/2013=69775] | ER14: [2/8/2013=70625] | ES14: [2/8/2013=70484] | ET14: [2/7/2013=70411] | EU14: [2/7/2013=70220] | EV14: [2/7/2013=70094] | EW14: [2/7/2013=69906] | EX14: [2/7/2013=69475] | EY14: [2/7/2013=69420] | EZ14: [2/7/2013=69282] | FA14: [2/7/2013=69256] | FB14: [2/6/2013=66837] | FC14: [2/7/2013=69011] | FD14: [2/7/2013=68933] | FE14: [2/7/2013=68743] | FF14: [2/7/2013=68653] | FG14: [2/6/2013=64164] | FH14: [2/6/2013=64237] | FI14: [2/6/2013=64411] | FJ14: [2/6/2013=64504]
AT15: [2/9/2013=75582] | AU15: [2/10/2013=79510] | AV15: [2/10/2013=78935] | AW15: [2/10/2013=78864] | AX15: [2/10/2013=78149] | AY15: [2/10/2013=78049] | AZ15: [2/10/2013=77206] | BA15: [2/10/2013=77065] | BB15: [2/10/2013=76298] | BC15: [2/9/2013=75348] | BD15: [2/9/2013=75621] | BE15: [2/9/2013=75067] | BF15: [2/9/2013=74784] | BG15: [2/9/2013=74729] | BH15: [2/9/2013=74555] | BI15: [2/9/2013=74503] | BJ15: [2/9/2013=74380] | BK15: [2/9/2013=74280] | BL15: [2/9/2013=74229] | BM15: [2/9/2013=74138] | BQ15: [2/9/2013=75296] | BR15: [2/9/2013=74999] | BS15: [2/9/2013=74939] | BT15: [2/9/2013=74653] | BU15: [2/9/2013=74598] | BV15: [2/9/2013=74315] | BW15: [2/9/2013=74252] | BX15: [2/9/2013=74005] | BY15: [2/9/2013=73959] | BZ15: [2/9/2013=73476] | CA15: [2/8/2013=73433] | CB15: [2/8/2013=73011] | CC15: [2/8/2013=72705] | CD15: [2/8/2013=72165] | CE15: [2/8/2013=72090] | CF15: [2/8/2013=71662] | CG15: [2/8/2013=71555] | CH15: [2/8/2013=71106] | CI15: [2/9/2013=73805] | CJ15: [2/8/2013=73452] | CK15: [2/8/2013=73388] | CL15: [2/8/2013=73102] | CM15: [2/8/2013=72455] | CN15: [2/8/2013=72373] | CO15: [2/8/2013=71946] | CP15: [2/8/2013=71614] | CQ15: [2/8/2013=71293] | CR15: [2/8/2013=71179] | CS15: [2/8/2013=71099] | CU15: [2/8/2013=73414] | CV15: [2/8/2013=73184] | CW15: [2/8/2013=72539] | CX15: [2/8/2013=72423] | CY15: [2/8/2013=71872] | CZ15: [2/8/2013=71809] | DA15: [2/8/2013=71288] | DB15: [2/8/2013=70723] | DC15: [2/8/2013=70921] | DD15: [2/8/2013=70669] | DE15: [2/8/2013=70610] | DF15: [2/7/2013=69327][2/8/2013=70500] | DG15: [2/7/2013=69425][2/7/2013=70389] | DH15: [2/7/2013=69520][2/7/2013=70338] | DI15: [2/7/2013=69646][2/7/2013=70283] | DJ15: [2/7/2013=69863][2/7/2013=70247] | DK15: [2/7/2013=69907][2/7/2013=70178] | DL15: [2/7/2013=69973][2/7/2013=70107] | DM15: [2/7/2013=70013] | DN15: [2/7/2013=70056] | DO15: [2/8/2013=72938] | DP15: [2/8/2013=72897] | DQ15: [2/7/2013=68606] | DR15: [2/7/2013=68687] | DS15: [2/7/2013=68834] | DT15: [2/7/2013=68918] | DU15: [2/7/2013=69041] | DV15: [2/7/2013=69114] | DW15: [2/7/2013=69688] | DX15: [2/7/2013=69788] | DY15: [2/7/2013=69957] | EA15: [2/6/2013=65282] | EB15: [2/6/2013=65194] | EC15: [2/8/2013=70806] | ED15: [2/8/2013=72868] | EE15: [2/8/2013=72769] | EF15: [2/7/2013=70418] | EG15: [2/8/2013=70595] | EH15: [2/8/2013=70541] | EI15: [2/7/2013=66939] | EJ15: [2/7/2013=70301] | EK15: [2/7/2013=69949] | EL15: [2/7/2013=70127] | EM15: [2/8/2013=70752] | EN15: [2/7/2013=66903] | EO15: [2/7/2013=69566] | EP15: [2/7/2013=69606] | EQ15: [2/7/2013=69773] | ER15: [2/8/2013=70624] | ES15: [2/8/2013=70487] | ET15: [2/7/2013=70408] | EU15: [2/7/2013=70219] | EV15: [2/6/2013=66763] | EW15: [2/7/2013=69908] | EX15: [2/7/2013=69477] | EY15: [2/7/2013=69417] | EZ15: [2/7/2013=69284] | FA15: [2/7/2013=69255] | FB15: [2/6/2013=66835] | FC15: [2/7/2013=69013] | FD15: [2/7/2013=68930] | FE15: [2/7/2013=68746] | FF15: [2/7/2013=68651] | FG15: [2/6/2013=64160] | FH15: [2/6/2013=64240] | FI15: [2/6/2013=64407] | FJ15: [2/6/2013=64506]
AT16: [2/9/2013=75580] | AU16: [2/10/2013=79504] | AV16: [2/10/2013=78938] | AW16: [2/10/2013=78863] | AX16: [2/10/2013=78153] | AY16: [2/10/2013=78047] | AZ16: [2/10/2013=77210] | BA16: [2/10/2013=77061] | BB16: [2/10/2013=76294] | BC16: [2/9/2013=75346] | BD16: [2/9/2013=75624] | BE16: [2/9/2013=75065] | BF16: [2/9/2013=74786] | BG16: [2/9/2013=74727] | BH16: [2/9/2013=74557] | BI16: [2/9/2013=74501] | BJ16: [2/9/2013=74382] | BK16: [2/9/2013=74281] | BL16: [2/9/2013=74231] | BM16: [2/9/2013=74140] | BQ16: [2/9/2013=75294] | BR16: [2/9/2013=75001] | BS16: [2/9/2013=74937] | BT16: [2/9/2013=74655] | BU16: [2/9/2013=74596] | BV16: [2/9/2013=74317] | BW16: [2/9/2013=74251] | BX16: [2/9/2013=74007] | BY16: [2/9/2013=73957] | BZ16: [2/9/2013=73478] | CA16: [2/8/2013=73431] | CB16: [2/8/2013=73013] | CC16: [2/8/2013=72703] | CD16: [2/8/2013=72167] | CE16: [2/8/2013=72086] | CF16: [2/8/2013=71664] | CG16: [2/8/2013=71550] | CH16: [2/8/2013=71109] | CI16: [2/9/2013=73801] | CJ16: [2/8/2013=73454] | CK16: [2/8/2013=73385] | CL16: [2/8/2013=73099] | CM16: [2/8/2013=72458] | CN16: [2/8/2013=72370] | CO16: [2/8/2013=71949] | CP16: [2/8/2013=71610] | CQ16: [2/8/2013=71296] | CR16: [2/8/2013=71182] | CS16: [2/8/2013=71102] | CU16: [2/8/2013=73411] | CV16: [2/8/2013=73180] | CW16: [2/8/2013=72543] | CX16: [2/8/2013=72418] | CY16: [2/8/2013=71873] | CZ16: [2/8/2013=71806] | DA16: [2/8/2013=71291] | DB16: [2/8/2013=70725] | DC16: [2/8/2013=70920] | DD16: [2/8/2013=70668] | DE16: [2/8/2013=70608] | DF16: [2/7/2013=69324][2/8/2013=70498] | DG16: [2/7/2013=69428][2/7/2013=70392] | DH16: [2/7/2013=69518][2/7/2013=70337] | DI16: [2/7/2013=69648][2/7/2013=70284] | DJ16: [2/7/2013=69862][2/7/2013=70246] | DK16: [2/7/2013=69909][2/7/2013=70181] | DL16: [2/7/2013=69974][2/7/2013=70108] | DM16: [2/7/2013=70016] | DN16: [2/7/2013=70058] | DO16: [2/8/2013=72937] | DP16: [2/8/2013=72898] | DQ16: [2/7/2013=68604] | DR16: [2/7/2013=68691] | DS16: [2/7/2013=68831] | DT16: [2/7/2013=68921] | DU16: [2/7/2013=69038] | DV16: [2/7/2013=69117] | DW16: [2/7/2013=69686] | DX16: [2/7/2013=69786] | DY16: [2/7/2013=69960] | DZ16: [2/7/2013=70152] | EA16: [2/6/2013=65279] | EB16: [2/6/2013=65192] | EC16: [2/8/2013=70807] | ED16: [2/8/2013=72867] | EE16: [2/8/2013=72767] | EF16: [2/7/2013=70415] | EG16: [2/8/2013=70598] | EH16: [2/8/2013=70543] | EI16: [2/7/2013=66937] | EJ16: [2/7/2013=70299] | EK16: [2/7/2013=69952] | EL16: [2/7/2013=70123] | EM16: [2/8/2013=70750] | EN16: [2/7/2013=66904] | EO16: [2/7/2013=69565] | EP16: [2/7/2013=69605] | EQ16: [2/7/2013=69771] | ER16: [2/8/2013=70623] | ES16: [2/8/2013=70490] | ET16: [2/7/2013=70405] | EU16: [2/7/2013=70217] | EV16: [2/6/2013=66765] | EW16: [2/7/2013=69910] | EX16: [2/7/2013=69478] | EY16: [2/7/2013=69414] | EZ16: [2/7/2013=69286] | FA16: [2/7/2013=69254] | FB16: [2/6/2013=66833] | FC16: [2/7/2013=69016] | FD16: [2/7/2013=68927] | FE16: [2/7/2013=68749] | FF16: [2/7/2013=68650] | FG16: [2/6/2013=64156] | FH16: [2/6/2013=64243] | FI16: [2/6/2013=64403] | FJ16: [2/6/2013=64509]
AT17: [2/9/2013=75578] | AU17: [2/10/2013=79501] | AV17: [2/10/2013=78944] | AW17: [2/10/2013=78862] | AX17: [2/10/2013=78157] | AY17: [2/10/2013=78044] | AZ17: [2/10/2013=77213] | BA17: [2/10/2013=77057] | BB17: [2/10/2013=76290] | BC17: [2/9/2013=75343] | BD17: [2/9/2013=75626] | BE17: [2/9/2013=75063] | BF17: [2/9/2013=74788] | BG17: [2/9/2013=74725] | BH17: [2/9/2013=74559] | BI17: [2/9/2013=74499] | BJ17: [2/9/2013=74384] | BK17: [2/9/2013=74282] | BL17: [2/9/2013=74233] | BM17: [2/9/2013=74142] | BQ17: [2/9/2013=75292] | BR17: [2/9/2013=75003] | BS17: [2/9/2013=74935] | BT17: [2/9/2013=74656] | BU17: [2/9/2013=74594] | BV17: [2/9/2013=74319] | BW17: [2/9/2013=74250] | BX17: [2/9/2013=74009] | BY17: [2/9/2013=73956] | BZ17: [2/9/2013=73479] | CA17: [2/8/2013=73429] | CB17: [2/8/2013=73014] | CC17: [2/8/2013=72701] | CD17: [2/8/2013=72170] | CE17: [2/8/2013=72082] | CF17: [2/8/2013=71669] | CG17: [2/8/2013=71546] | CH17: [2/8/2013=71112] | CI17: [2/9/2013=73799] | CJ17: [2/8/2013=73455] | CK17: [2/8/2013=73382] | CL17: [2/8/2013=73096] | CM17: [2/8/2013=72461] | CN17: [2/8/2013=72367] | CO17: [2/8/2013=71952] | CP17: [2/8/2013=71607] | CQ17: [2/8/2013=71303] | CR17: [2/8/2013=71186] | CS17: [2/8/2013=71105] | CU17: [2/8/2013=73408] | CV17: [2/8/2013=73177] | CW17: [2/8/2013=72547] | CX17: [2/8/2013=72414] | CY17: [2/8/2013=71875] | CZ17: [2/8/2013=71804] | DA17: [2/8/2013=71294] | DB17: [2/8/2013=70727] | DC17: [2/8/2013=70919] | DD17: [2/8/2013=70667] | DE17: [2/8/2013=70605] | DF17: [2/7/2013=69320][2/8/2013=70495] | DG17: [2/7/2013=69431][2/7/2013=70395] | DH17: [2/7/2013=69516][2/7/2013=70336] | DI17: [2/7/2013=69652][2/7/2013=70285] | DJ17: [2/7/2013=69861][2/7/2013=70244] | DK17: [2/7/2013=69911][2/7/2013=70184] | DL17: [2/7/2013=69975][2/7/2013=70110] | DM17: [2/7/2013=70018] | DN17: [2/7/2013=70061] | DO17: [2/8/2013=72936] | DP17: [2/8/2013=72899] | DQ17: [2/7/2013=68601] | DR17: [2/7/2013=68695] | DS17: [2/7/2013=68827] | DT17: [2/7/2013=68925] | DU17: [2/7/2013=69035] | DV17: [2/7/2013=69120] | DW17: [2/7/2013=69684] | DX17: [2/7/2013=69784] | DZ17: [2/7/2013=70147] | EA17: [2/6/2013=65284] | EB17: [2/6/2013=65190] | EC17: [2/8/2013=70808] | ED17: [2/8/2013=72866] | EE17: [2/8/2013=72764] | EF17: [2/7/2013=70412] | EG17: [2/8/2013=70601] | EH17: [2/8/2013=70545] | EI17: [2/7/2013=66935] | EJ17: [2/7/2013=70327] | EK17: [2/7/2013=69955] | EL17: [2/7/2013=70121] | EM17: [2/8/2013=70748] | EN17: [2/7/2013=66906] | EO17: [2/7/2013=69564] | EP17: [2/7/2013=69604] | EQ17: [2/7/2013=69768] | ER17: [2/8/2013=70622] | ES17: [2/8/2013=70494] | ET17: [2/7/2013=70401] | EU17: [2/7/2013=70215] | EV17: [2/6/2013=66767] | EW17: [2/6/2013=66815] | EX17: [2/7/2013=69479] | EY17: [2/7/2013=69411] | EZ17: [2/7/2013=69288] | FA17: [2/7/2013=69253] | FB17: [2/6/2013=66831] | FC17: [2/7/2013=69018] | FD17: [2/7/2013=68923] | FE17: [2/7/2013=68751] | FF17: [2/7/2013=68648] | FG17: [2/6/2013=64153] | FH17: [2/6/2013=64246] | FI17: [2/6/2013=64399] | FJ17: [2/6/2013=64512]
AT18: [2/9/2013=75576] | AU18: [2/10/2013=79499] | AV18: [2/10/2013=78947] | AW18: [2/10/2013=78861] | AX18: [2/10/2013=78161] | AY18: [2/10/2013=78040] | AZ18: [2/10/2013=77216] | BA18: [2/10/2013=77053] | BB18: [2/10/2013=76286] | BC18: [2/9/2013=75341] | BD18: [2/9/2013=75629] | BE18: [2/9/2013=75061] | BF18: [2/9/2013=74790] | BG18: [2/9/2013=74723] | BH18: [2/9/2013=74561] | BI18: [2/9/2013=74496] | BJ18: [2/9/2013=74386] | BK18: [2/9/2013=74283] | BL18: [2/9/2013=74234] | BM18: [2/9/2013=74144] | BP18: [2/9/2013=75344] | BQ18: [2/9/2013=75277] | BR18: [2/9/2013=75005] | BS18: [2/9/2013=74933] | BT18: [2/9/2013=74658] | BU18: [2/9/2013=74592] | BV18: [2/9/2013=74321] | BW18: [2/9/2013=74249] | BX18: [2/9/2013=74011] | BY18: [2/9/2013=73955] | BZ18: [2/9/2013=73480] | CA18: [2/8/2013=73427] | CB18: [2/8/2013=73016] | CC18: [2/8/2013=72699] | CD18: [2/8/2013=72173] | CE18: [2/8/2013=72078] | CF18: [2/8/2013=71672] | CG18: [2/8/2013=71543] | CH18: [2/8/2013=71118] | CI18: [2/9/2013=73797] | CJ18: [2/8/2013=73457] | CK18: [2/8/2013=73379] | CL18: [2/8/2013=73093] | CM18: [2/8/2013=72464] | CN18: [2/8/2013=72363] | CO18: [2/8/2013=71954] | CP18: [2/8/2013=71605] | CQ18: [2/8/2013=71305] | CR18: [2/8/2013=71190] | CS18: [2/8/2013=71108] | CU18: [2/8/2013=73405] | CV18: [2/8/2013=73174] | CW18: [2/8/2013=72551] | CX18: [2/8/2013=72411] | CY18: [2/8/2013=71877] | CZ18: [2/8/2013=71801] | DA18: [2/8/2013=71298] | DB18: [2/8/2013=70729] | DC18: [2/8/2013=70918] | DD18: [2/8/2013=70666] | DE18: [2/8/2013=70602] | DF18: [2/7/2013=69318][2/8/2013=70492] | DG18: [2/7/2013=69433][2/7/2013=70398] | DH18: [2/7/2013=69514][2/7/2013=70335] | DI18: [2/7/2013=69656][2/7/2013=70286] | DJ18: [2/7/2013=69860][2/7/2013=70242] | DK18: [2/7/2013=69912][2/7/2013=70186] | DL18: [2/7/2013=69976][2/7/2013=70112] | DM18: [2/7/2013=70021] | DN18: [2/7/2013=70063] | DO18: [2/8/2013=72935] | DP18: [2/8/2013=72900] | DQ18: [2/7/2013=68598] | DR18: [2/7/2013=68698] | DS18: [2/7/2013=68823] | DT18: [2/7/2013=68932] | DU18: [2/7/2013=69032] | DV18: [2/7/2013=69122] | DW18: [2/7/2013=69681] | DX18: [2/7/2013=69782] | DZ18: [2/7/2013=70142] | EA18: [2/6/2013=65288] | EB18: [2/6/2013=65188] | EC18: [2/8/2013=70809] | ED18: [2/8/2013=72865] | EE18: [2/8/2013=72762] | EF18: [2/7/2013=70409] | EG18: [2/8/2013=70604] | EH18: [2/8/2013=70547] | EI18: [2/7/2013=66932] | EJ18: [2/7/2013=69843] | EK18: [2/7/2013=69959] | EL18: [2/7/2013=70118] | EM18: [2/8/2013=70746] | EN18: [2/8/2013=70703] | EO18: [2/7/2013=69563] | EP18: [2/7/2013=69602] | EQ18: [2/7/2013=69765] | ER18: [2/8/2013=70621] | ES18: [2/8/2013=70497] | ET18: [2/7/2013=70396] | EU18: [2/7/2013=70213] | EV18: [2/6/2013=66769] | EW18: [2/6/2013=66813] | EX18: [2/7/2013=69480] | EY18: [2/7/2013=69408] | EZ18: [2/7/2013=69290] | FA18: [2/7/2013=69251] | FB18: [2/6/2013=66829] | FC18: [2/7/2013=69020] | FD18: [2/7/2013=68919] | FE18: [2/7/2013=68754] | FF18: [2/7/2013=68646] | FG18: [2/6/2013=64149] | FH18: [2/6/2013=64249] | FI18: [2/6/2013=64395] | FJ18: [2/6/2013=64514]
AT19: [2/9/2013=75574] | AU19: [2/10/2013=79495] | AV19: [2/10/2013=78950] | AW19: [2/10/2013=78860] | AX19: [2/10/2013=78166] | AY19: [2/10/2013=78036] | AZ19: [2/10/2013=77219] | BA19: [2/10/2013=77049] | BB19: [2/10/2013=76282] | BC19: [2/9/2013=75339] | BD19: [2/9/2013=75632] | BE19: [2/9/2013=75059] | BF19: [2/9/2013=74792] | BG19: [2/9/2013=74721] | BH19: [2/9/2013=74563] | BI19: [2/9/2013=74494] | BJ19: [2/9/2013=74388] | BK19: [2/9/2013=74285] | BL19: [2/9/2013=74236] | BM19: [2/9/2013=74146] | BP19: [2/9/2013=75347] | BQ19: [2/9/2013=75274] | BR19: [2/9/2013=75007] | BS19: [2/9/2013=74932] | BT19: [2/9/2013=74663] | BU19: [2/9/2013=74590] | BV19: [2/9/2013=74323] | BW19: [2/9/2013=74248] | BX19: [2/9/2013=74013] | BY19: [2/9/2013=73954] | BZ19: [2/9/2013=73481] | CA19: [2/8/2013=73426] | CB19: [2/8/2013=73018] | CC19: [2/8/2013=72697] | CD19: [2/8/2013=72179] | CE19: [2/8/2013=72074] | CF19: [2/8/2013=71676] | CG19: [2/8/2013=71539] | CH19: [2/8/2013=71122] | CI19: [2/9/2013=73790] | CJ19: [2/8/2013=73459] | CK19: [2/8/2013=73376] | CL19: [2/8/2013=73090] | CM19: [2/8/2013=72467] | CN19: [2/8/2013=72359] | CO19: [2/8/2013=71957] | CP19: [2/8/2013=71602] | CQ19: [2/8/2013=71308] | CR19: [2/8/2013=71193] | CS19: [2/8/2013=71111] | CU19: [2/8/2013=73402] | CV19: [2/8/2013=73172] | CW19: [2/8/2013=72555] | CX19: [2/8/2013=72407] | CY19: [2/8/2013=71879] | CZ19: [2/8/2013=71798] | DA19: [2/8/2013=71302] | DB19: [2/8/2013=70731] | DC19: [2/8/2013=70916] | DD19: [2/8/2013=70665] | DE19: [2/8/2013=70599] | DF19: [2/7/2013=69316][2/8/2013=70489] | DG19: [2/7/2013=69435][2/7/2013=70399] | DH19: [2/7/2013=69512][2/7/2013=70334] | DI19: [2/7/2013=69659][2/7/2013=70287] | DJ19: [2/7/2013=69859][2/7/2013=70240] | DK19: [2/7/2013=69915][2/7/2013=70189] | DL19: [2/7/2013=69977][2/7/2013=70113] | DM19: [2/7/2013=70024] | DN19: [2/8/2013=72941] | DO19: [2/8/2013=72934] | DP19: [2/8/2013=72901] | DQ19: [2/7/2013=68595] | DR19: [2/7/2013=68702] | DS19: [2/7/2013=68819] | DT19: [2/7/2013=68936] | DU19: [2/7/2013=69029] | DV19: [2/7/2013=69124] | DW19: [2/7/2013=69679] | DX19: [2/7/2013=69780] | DZ19: [2/7/2013=70135] | EA19: [2/6/2013=65290] | EB19: [2/6/2013=65186] | EC19: [2/8/2013=70810] | ED19: [2/8/2013=72864] | EE19: [2/8/2013=72760] | EF19: [2/7/2013=70406] | EG19: [2/8/2013=70607] | EH19: [2/8/2013=70550] | EI19: [2/7/2013=66930] | EJ19: [2/7/2013=69842] | EK19: [2/7/2013=69986] | EL19: [2/7/2013=70073] | EM19: [2/8/2013=70744] | EN19: [2/8/2013=70702] | EO19: [2/7/2013=69562] | EP19: [2/7/2013=69600] | EQ19: [2/7/2013=69761] | ER19: [2/8/2013=70619] | ES19: [2/8/2013=70499] | ET19: [2/7/2013=70393] | EU19: [2/7/2013=70211] | EV19: [2/6/2013=66771] | EW19: [2/6/2013=66811] | EX19: [2/7/2013=69481] | EY19: [2/7/2013=69404] | EZ19: [2/7/2013=69291] | FA19: [2/7/2013=69249] | FB19: [2/7/2013=69123] | FC19: [2/7/2013=69022] | FD19: [2/7/2013=68915] | FE19: [2/7/2013=68756] | FF19: [2/7/2013=68644] | FG19: [2/6/2013=64145] | FH19: [2/6/2013=64251] | FI19: [2/6/2013=64391] | FJ19: [2/6/2013=64516]
AT20: [2/9/2013=75572] | AU20: [2/10/2013=79489] | AV20: [2/10/2013=78953] | AW20: [2/10/2013=78859] | AX20: [2/10/2013=78170] | AY20: [2/10/2013=78032] | AZ20: [2/10/2013=77222] | BA20: [2/10/2013=77044] | BB20: [2/10/2013=76278] | BC20: [2/9/2013=75338] | BD20: [2/9/2013=75635] | BE20: [2/9/2013=75057] | BF20: [2/9/2013=74794] | BG20: [2/9/2013=74719] | BH20: [2/9/2013=74565] | BI20: [2/9/2013=74492] | BJ20: [2/9/2013=74390] | BK20: [2/9/2013=74287] | BL20: [2/9/2013=74238] | BM20: [2/9/2013=74148] | BP20: [2/9/2013=75350] | BQ20: [2/9/2013=75272] | BR20: [2/9/2013=75009] | BS20: [2/9/2013=74931] | BT20: [2/9/2013=74664] | BU20: [2/9/2013=74588] | BV20: [2/9/2013=74325] | BW20: [2/9/2013=74247] | BX20: [2/9/2013=74015] | BY20: [2/9/2013=73953] | BZ20: [2/9/2013=73484] | CA20: [2/8/2013=73424] | CB20: [2/8/2013=73020] | CC20: [2/8/2013=72695] | CD20: [2/8/2013=72181] | CE20: [2/8/2013=72070] | CF20: [2/8/2013=71680] | CG20: [2/8/2013=71531] | CH20: [2/8/2013=71124] | CI20: [2/9/2013=73787] | CJ20: [2/8/2013=73461] | CK20: [2/8/2013=73373] | CL20: [2/8/2013=73087] | CM20: [2/8/2013=72470] | CN20: [2/8/2013=72355] | CO20: [2/8/2013=71960] | CP20: [2/8/2013=71600] | CQ20: [2/8/2013=71311] | CR20: [2/8/2013=71197] | CS20: [2/8/2013=71114] | CU20: [2/8/2013=73399] | CV20: [2/8/2013=73170] | CW20: [2/8/2013=72558] | CX20: [2/8/2013=72403] | CY20: [2/8/2013=71881] | CZ20: [2/8/2013=71794] | DA20: [2/8/2013=71306] | DB20: [2/8/2013=70733] | DC20: [2/8/2013=70914] | DD20: [2/8/2013=70664] | DE20: [2/8/2013=70596] | DF20: [2/7/2013=69313][2/8/2013=70486] | DG20: [2/7/2013=69437][2/7/2013=70402] | DH20: [2/7/2013=69511][2/7/2013=70333] | DI20: [2/7/2013=69662][2/7/2013=70288] | DJ20: [2/7/2013=69858][2/7/2013=70238] | DK20: [2/7/2013=69918][2/7/2013=70192] | DL20: [2/7/2013=69978][2/7/2013=70115] | DM20: [2/8/2013=72781] | DN20: [2/8/2013=72942] | DO20: [2/8/2013=72933] | DP20: [2/8/2013=72902] | DQ20: [2/7/2013=68592] | DR20: [2/7/2013=68706] | DS20: [2/7/2013=68816] | DT20: [2/7/2013=68940] | DU20: [2/7/2013=69027] | DV20: [2/7/2013=69126] | DW20: [2/7/2013=69692] | DX20: [2/7/2013=69776] | DY20: [2/7/2013=70199] | DZ20: [2/7/2013=70132] | EA20: [2/6/2013=65292] | EB20: [2/6/2013=65184] | EC20: [2/8/2013=70811] | ED20: [2/8/2013=72863] | EE20: [2/8/2013=72757] | EF20: [2/7/2013=70403] | EG20: [2/8/2013=70611] | EH20: [2/7/2013=66945] | EI20: [2/7/2013=66929] | EJ20: [2/7/2013=69841] | EK20: [2/7/2013=69988] | EL20: [2/7/2013=70060] | EM20: [2/8/2013=70742] | EN20: [2/8/2013=70701] | EO20: [2/7/2013=69561] | EP20: [2/7/2013=69598] | EQ20: [2/7/2013=69756] | ER20: [2/8/2013=70618] | ES20: [2/8/2013=70501] | ET20: [2/7/2013=70390] | EU20: [2/7/2013=70208] | EV20: [2/6/2013=66773] | EW20: [2/6/2013=66809] | EX20: [2/7/2013=69482] | EY20: [2/7/2013=69400] | EZ20: [2/7/2013=69293] | FA20: [2/7/2013=69248] | FB20: [2/7/2013=69119] | FC20: [2/7/2013=69024] | FD20: [2/7/2013=68912] | FE20: [2/7/2013=68758] | FF20: [2/7/2013=68642] | FG20: [2/6/2013=64141] | FH20: [2/6/2013=64253] | FI20: [2/6/2013=64387] | FJ20: [2/6/2013=64518]
AS21: [2/9/2013=75637] | AT21: [2/9/2013=75569] | AU21: [2/10/2013=79488] | AV21: [2/10/2013=78956] | AW21: [2/10/2013=78858] | AX21: [2/10/2013=78174] | AY21: [2/10/2013=78026] | AZ21: [2/10/2013=77226] | BA21: [2/10/2013=77040] | BB21: [2/10/2013=76274] | BC21: [2/9/2013=75337] | BD21: [2/9/2013=75639] | BE21: [2/9/2013=75055] | BF21: [2/9/2013=74796] | BG21: [2/9/2013=74717] | BH21: [2/9/2013=74569] | BI21: [2/9/2013=74490] | BJ21: [2/9/2013=74393] | BK21: [2/9/2013=74289] | BL21: [2/9/2013=74240] | BP21: [2/9/2013=75352] | BQ21: [2/9/2013=75270] | BR21: [2/9/2013=75011] | BS21: [2/9/2013=74930] | BT21: [2/9/2013=74666] | BU21: [2/9/2013=74586] | BV21: [2/9/2013=74326] | BW21: [2/9/2013=74246] | BX21: [2/9/2013=74017] | BY21: [2/9/2013=73952] | BZ21: [2/9/2013=73487] | CA21: [2/8/2013=73422] | CB21: [2/8/2013=73022] | CC21: [2/8/2013=72693] | CD21: [2/8/2013=72184] | CE21: [2/8/2013=72066] | CF21: [2/8/2013=71685] | CG21: [2/8/2013=71527] | CH21: [2/8/2013=71127] | CI21: [2/9/2013=73784] | CJ21: [2/8/2013=73462] | CK21: [2/8/2013=73370] | CL21: [2/8/2013=73084] | CM21: [2/8/2013=72472] | CN21: [2/8/2013=72351] | CO21: [2/8/2013=71962] | CP21: [2/8/2013=71598] | CQ21: [2/8/2013=71314] | CR21: [2/8/2013=71201] | CS21: [2/8/2013=71117] | CU21: [2/8/2013=73396] | CV21: [2/8/2013=73168] | CW21: [2/8/2013=72562] | CX21: [2/8/2013=72399] | CY21: [2/8/2013=71884] | CZ21: [2/8/2013=71791] | DA21: [2/8/2013=71309] | DB21: [2/8/2013=70735] | DC21: [2/8/2013=70912] | DD21: [2/8/2013=70663] | DE21: [2/8/2013=70593] | DF21: [2/7/2013=69311][2/8/2013=70483] | DG21: [2/7/2013=69439][2/7/2013=70404] | DH21: [2/7/2013=69510][2/7/2013=70332] | DI21: [2/7/2013=69665][2/7/2013=70289] | DJ21: [2/7/2013=69857][2/7/2013=70236] | DK21: [2/7/2013=69921][2/7/2013=70195] | DL21: [2/7/2013=69979][2/7/2013=70117] | DM21: [2/8/2013=72782] | DN21: [2/8/2013=72943] | DO21: [2/8/2013=72932] | DP21: [2/8/2013=72903] | DQ21: [2/7/2013=68589] | DR21: [2/7/2013=68710] | DS21: [2/7/2013=68812] | DT21: [2/7/2013=68944] | DU21: [2/7/2013=69025] | DV21: [2/7/2013=69128] | DW21: [2/7/2013=69671] | DX21: [2/7/2013=69778] | DY21: [2/7/2013=70196] | DZ21: [2/7/2013=70129] | EA21: [2/6/2013=65294] | EB21: [2/6/2013=65182] | EC21: [2/8/2013=70814] | ED21: [2/8/2013=72862] | EE21: [2/8/2013=72755] | EF21: [2/7/2013=70400] | EG21: [2/8/2013=70614] | EH21: [2/7/2013=66947] | EI21: [2/7/2013=66927] | EJ21: [2/7/2013=69839] | EK21: [2/7/2013=69990] | EL21: [2/7/2013=70057] | EM21: [2/8/2013=70740] | EN21: [2/8/2013=70700] | EO21: [2/7/2013=69560] | EP21: [2/7/2013=69596] | EQ21: [2/7/2013=69752] | ER21: [2/8/2013=70615] | ES21: [2/8/2013=70503] | ET21: [2/7/2013=70386] | EU21: [2/7/2013=70201] | EV21: [2/6/2013=66775] | EW21: [2/6/2013=66807] | EX21: [2/7/2013=69483] | EY21: [2/7/2013=69396] | EZ21: [2/7/2013=69295] | FA21: [2/7/2013=69245] | FB21: [2/7/2013=69116] | FC21: [2/7/2013=69026] | FD21: [2/7/2013=68909] | FE21: [2/7/2013=68760] | FF21: [2/7/2013=68640] | FG21: [2/6/2013=64137] | FH21: [2/6/2013=64255] | FI21: [2/6/2013=64383] | FJ21: [2/6/2013=64520]
AS22: [2/9/2013=75642] | AT22: [2/9/2013=75567] | AU22: [2/10/2013=79485] | AV22: [2/10/2013=78960] | AW22: [2/10/2013=78857] | AX22: [2/10/2013=78179] | AY22: [2/10/2013=78022] | AZ22: [2/10/2013=77229] | BA22: [2/10/2013=77036] | BB22: [2/10/2013=76270] | BC22: [2/9/2013=75336] | BD22: [2/9/2013=75643] | BE22: [2/9/2013=75053] | BF22: [2/9/2013=74798] | BG22: [2/9/2013=74715] | BH22: [2/9/2013=74571] | BI22: [2/9/2013=74488] | BJ22: [2/9/2013=74395] | BK22: [2/9/2013=74291] | BL22: [2/9/2013=74243] | BO22: [2/9/2013=73949] | BP22: [2/9/2013=75354] | BQ22: [2/9/2013=75268] | BR22: [2/9/2013=75015] | BS22: [2/9/2013=74926] | BT22: [2/9/2013=74669] | BU22: [2/9/2013=74584] | BV22: [2/9/2013=74329] | BW22: [2/9/2013=74245] | BX22: [2/9/2013=74021] | BY22: [2/9/2013=73951] | BZ22: [2/9/2013=73490] | CA22: [2/8/2013=73420] | CB22: [2/8/2013=73024] | CC22: [2/8/2013=72691] | CD22: [2/8/2013=72187] | CE22: [2/8/2013=72062] | CF22: [2/8/2013=71689] | CG22: [2/8/2013=71524] | CH22: [2/8/2013=71129] | CI22: [2/9/2013=73781] | CJ22: [2/8/2013=73463] | CK22: [2/8/2013=73367] | CL22: [2/8/2013=73082] | CM22: [2/8/2013=72474] | CN22: [2/8/2013=72347] | CO22: [2/8/2013=71964] | CP22: [2/8/2013=71595] | CQ22: [2/8/2013=71317] | CR22: [2/8/2013=71208] | CU22: [2/8/2013=73393] | CV22: [2/8/2013=73166] | CW22: [2/8/2013=72566] | CX22: [2/8/2013=72393] | CY22: [2/8/2013=71885] | CZ22: [2/8/2013=71789] | DA22: [2/8/2013=71312] | DB22: [2/8/2013=70737] | DC22: [2/8/2013=70910] | DD22: [2/8/2013=70662] | DE22: [2/8/2013=70590] | DF22: [2/7/2013=69308][2/8/2013=70480] | DG22: [2/7/2013=69441][2/7/2013=70407] | DH22: [2/7/2013=69509][2/7/2013=70331] | DI22: [2/7/2013=69668][2/7/2013=70290] | DJ22: [2/7/2013=69856][2/7/2013=70235] | DK22: [2/7/2013=69924][2/7/2013=70197] | DL22: [2/7/2013=69980][2/7/2013=70119] | DM22: [2/8/2013=72783] | DN22: [2/8/2013=72944] | DO22: [2/8/2013=72931] | DP22: [2/8/2013=72904] | DQ22: [2/7/2013=68585] | DR22: [2/7/2013=68714] | DS22: [2/7/2013=68808] | DT22: [2/7/2013=68948] | DU22: [2/7/2013=69023] | DV22: [2/7/2013=69130] | DW22: [2/7/2013=69667] | DX22: [2/7/2013=69769] | DY22: [2/7/2013=70193] | DZ22: [2/7/2013=70126] | EA22: [2/6/2013=65296] | EB22: [2/6/2013=65180] | EC22: [2/8/2013=70815] | ED22: [2/8/2013=72861] | EE22: [2/8/2013=72752] | EF22: [2/7/2013=70397] | EG22: [2/8/2013=70617] | EH22: [2/7/2013=66949] | EI22: [2/7/2013=66924] | EJ22: [2/7/2013=69838] | EK22: [2/7/2013=69993] | EL22: [2/7/2013=70055] | EM22: [2/8/2013=70738] | EN22: [2/8/2013=70698] | EO22: [2/7/2013=69559] | EP22: [2/7/2013=69594] | EQ22: [2/7/2013=69738] | ER22: [2/8/2013=70612] | ES22: [2/8/2013=70505] | ET22: [2/7/2013=70382] | EU22: [2/7/2013=70198] | EV22: [2/6/2013=66777] | EW22: [2/6/2013=66806] | EX22: [2/7/2013=69484] | EY22: [2/7/2013=69393] | EZ22: [2/7/2013=69297] | FA22: [2/7/2013=69242] | FB22: [2/7/2013=69113] | FC22: [2/7/2013=69028] | FD22: [2/7/2013=68906] | FE22: [2/7/2013=68761] | FF22: [2/7/2013=68637] | FG22: [2/6/2013=64134] | FH22: [2/6/2013=64257] | FI22: [2/6/2013=64380] | FJ22: [2/6/2013=64522]
AS23: [2/9/2013=75647] | AT23: [2/9/2013=75564] | AU23: [2/10/2013=79481] | AV23: [2/10/2013=78963] | AW23: [2/10/2013=78856] | AX23: [2/10/2013=78183] | AY23: [2/10/2013=78017] | AZ23: [2/10/2013=77232] | BA23: [2/10/2013=77032] | BB23: [2/10/2013=76265] | BC23: [2/9/2013=75334] | BD23: [2/9/2013=75648] | BE23: [2/9/2013=75051] | BF23: [2/9/2013=74800] | BG23: [2/9/2013=74713] | BH23: [2/9/2013=74573] | BI23: [2/9/2013=74486] | BJ23: [2/9/2013=74397] | BK23: [2/9/2013=74293] | BL23: [2/9/2013=75426] | BN23: [2/9/2013=73986] | BO23: [2/9/2013=73947] | BP23: [2/9/2013=75356] | BQ23: [2/9/2013=75266] | BR23: [2/9/2013=75017] | BS23: [2/9/2013=74924] | BT23: [2/9/2013=74673] | BU23: [2/9/2013=74582] | BV23: [2/9/2013=74330] | BW23: [2/9/2013=74244] | BX23: [2/9/2013=74023] | BY23: [2/9/2013=73950] | BZ23: [2/9/2013=73493] | CA23: [2/8/2013=73418] | CB23: [2/8/2013=73028] | CC23: [2/8/2013=72689] | CD23: [2/8/2013=72191] | CE23: [2/8/2013=72058] | CF23: [2/8/2013=71692] | CG23: [2/8/2013=71520] | CH23: [2/8/2013=71131] | CI23: [2/9/2013=73778] | CJ23: [2/8/2013=73464] | CK23: [2/8/2013=73364] | CL23: [2/8/2013=73079] | CM23: [2/8/2013=72477] | CN23: [2/8/2013=72343] | CO23: [2/8/2013=71967] | CP23: [2/8/2013=71593] | CQ23: [2/8/2013=71319] | CR23: [2/8/2013=71210] | CU23: [2/8/2013=73390] | CV23: [2/8/2013=73164] | CW23: [2/8/2013=72570] | CX23: [2/8/2013=72390] | CY23: [2/8/2013=71887] | CZ23: [2/8/2013=71787] | DA23: [2/8/2013=71315] | DB23: [2/8/2013=70739] | DC23: [2/8/2013=70908] | DD23: [2/8/2013=70661] | DE23: [2/8/2013=70587] | DF23: [2/7/2013=69306][2/8/2013=70477] | DG23: [2/7/2013=69443][2/7/2013=70410] | DH23: [2/7/2013=69508][2/7/2013=70330] | DI23: [2/7/2013=69670][2/7/2013=70291] | DJ23: [2/7/2013=69855][2/7/2013=70234] | DK23: [2/7/2013=69926][2/7/2013=70200] | DL23: [2/7/2013=69981][2/7/2013=70122] | DM23: [2/8/2013=72784] | DN23: [2/8/2013=72945] | DO23: [2/8/2013=72930] | DP23: [2/8/2013=72905] | DQ23: [2/7/2013=68581] | DR23: [2/7/2013=68718] | DS23: [2/7/2013=68804] | DT23: [2/7/2013=68952] | DU23: [2/7/2013=69021] | DV23: [2/7/2013=69132] | DW23: [2/7/2013=69664] | DX23: [2/7/2013=69766] | DY23: [2/7/2013=70190] | DZ23: [2/7/2013=70120] | EA23: [2/6/2013=65298] | EB23: [2/6/2013=65179] | EC23: [2/8/2013=70816] | ED23: [2/8/2013=72860] | EE23: [2/8/2013=72749] | EF23: [2/7/2013=70394] | EH23: [2/7/2013=66951] | EI23: [2/7/2013=66923] | EJ23: [2/7/2013=69836] | EK23: [2/7/2013=69996] | EL23: [2/7/2013=70053] | EM23: [2/8/2013=70736] | EN23: [2/8/2013=70696] | EO23: [2/7/2013=69558] | EP23: [2/7/2013=69592] | EQ23: [2/7/2013=69734] | ER23: [2/8/2013=70609] | ES23: [2/8/2013=70507] | ET23: [2/7/2013=70379] | EU23: [2/7/2013=70194] | EV23: [2/6/2013=66779] | EW23: [2/6/2013=66804] | EX23: [2/7/2013=69485] | EY23: [2/7/2013=69390] | EZ23: [2/7/2013=69298] | FA23: [2/7/2013=69240] | FB23: [2/7/2013=69110] | FC23: [2/7/2013=69030] | FD23: [2/7/2013=68903] | FE23: [2/7/2013=68764] | FF23: [2/7/2013=68635] | FG23: [2/6/2013=64131] | FH23: [2/6/2013=64259] | FI23: [2/6/2013=64377] | FJ23: [2/6/2013=64524]
AS24: [2/9/2013=75652] | AT24: [2/9/2013=75561] | AU24: [2/10/2013=79479] | AV24: [2/10/2013=78965] | AW24: [2/10/2013=78853] | AX24: [2/10/2013=78188] | AY24: [2/10/2013=78012] | AZ24: [2/10/2013=77235] | BA24: [2/10/2013=77028] | BB24: [2/10/2013=76260] | BC24: [2/9/2013=75333] | BD24: [2/9/2013=75653] | BE24: [2/9/2013=75049] | BF24: [2/9/2013=74804] | BG24: [2/9/2013=74710] | BH24: [2/9/2013=74575] | BI24: [2/9/2013=74484] | BJ24: [2/9/2013=74399] | BK24: [2/9/2013=74295] | BL24: [2/9/2013=75422] | BN24: [2/9/2013=73984] | BO24: [2/9/2013=73945] | BP24: [2/9/2013=75359] | BQ24: [2/9/2013=75264] | BR24: [2/9/2013=75019] | BS24: [2/9/2013=74923] | BT24: [2/9/2013=74681] | BU24: [2/9/2013=74580] | BV24: [2/9/2013=74331] | BW24: [2/9/2013=74242] | BX24: [2/9/2013=74025] | BY24: [2/9/2013=73946] | BZ24: [2/9/2013=73496] | CA24: [2/8/2013=73416] | CB24: [2/8/2013=73030] | CC24: [2/8/2013=72687] | CD24: [2/8/2013=72194] | CE24: [2/8/2013=72054] | CF24: [2/8/2013=71696] | CG24: [2/8/2013=71516] | CH24: [2/8/2013=71134] | CI24: [2/9/2013=73775] | CJ24: [2/8/2013=73465] | CK24: [2/8/2013=73361] | CL24: [2/8/2013=73078] | CM24: [2/8/2013=72481] | CN24: [2/8/2013=72339] | CO24: [2/8/2013=71970] | CP24: [2/8/2013=71590] | CQ24: [2/8/2013=71321] | CR24: [2/8/2013=71213] | CU24: [2/8/2013=73387] | CV24: [2/8/2013=73162] | CW24: [2/8/2013=72574] | CX24: [2/8/2013=72387] | CY24: [2/8/2013=71889] | CZ24: [2/8/2013=71785] | DA24: [2/8/2013=71318] | DB24: [2/8/2013=70741] | DC24: [2/8/2013=70906] | DD24: [2/8/2013=70660] | DE24: [2/8/2013=70584] | DF24: [2/7/2013=69304][2/8/2013=70474] | DG24: [2/7/2013=69445][2/7/2013=70413] | DH24: [2/7/2013=69507][2/7/2013=70329] | DI24: [2/7/2013=69673][2/7/2013=70292] | DJ24: [2/7/2013=69854][2/7/2013=70233] | DK24: [2/7/2013=69929][2/7/2013=70202] | DL24: [2/7/2013=69982][2/7/2013=70124] | DM24: [2/8/2013=72785] | DN24: [2/8/2013=72946] | DO24: [2/8/2013=72929] | DP24: [2/8/2013=72906] | DQ24: [2/7/2013=68577] | DR24: [2/7/2013=68722] | DS24: [2/7/2013=68801] | DT24: [2/7/2013=68956] | DU24: [2/7/2013=69019] | DV24: [2/7/2013=69134] | DW24: [2/7/2013=69661] | DX24: [2/7/2013=69763] | DY24: [2/7/2013=70187] | DZ24: [2/7/2013=70116] | EA24: [2/6/2013=65300] | EB24: [2/6/2013=65177] | EC24: [2/8/2013=70817] | ED24: [2/8/2013=72859] | EE24: [2/8/2013=72747] | EF24: [2/7/2013=70391] | EH24: [2/7/2013=69653] | EI24: [2/7/2013=66922] | EJ24: [2/7/2013=69834] | EK24: [2/7/2013=69999] | EL24: [2/7/2013=70051] | EM24: [2/8/2013=70734] | EN24: [2/8/2013=70694] | EO24: [2/7/2013=69557] | EP24: [2/7/2013=69591] | EQ24: [2/7/2013=69731] | ER24: [2/8/2013=70606] | ES24: [2/8/2013=70509] | ET24: [2/7/2013=70376] | EU24: [2/7/2013=70191] | EV24: [2/6/2013=66781] | EW24: [2/6/2013=66802] | EX24: [2/7/2013=69486] | EY24: [2/7/2013=69386] | EZ24: [2/7/2013=69300] | FA24: [2/7/2013=69237] | FB24: [2/7/2013=69107] | FC24: [2/7/2013=69033] | FD24: [2/7/2013=68900] | FE24: [2/7/2013=68766] | FF24: [2/7/2013=68631] | FG24: [2/6/2013=64128] | FH24: [2/6/2013=64261] | FI24: [2/6/2013=64374] | FJ24: [2/6/2013=64525]
AS25: [2/9/2013=75657] | AT25: [2/9/2013=75558] | AU25: [2/10/2013=79477] | AV25: [2/10/2013=78968] | AW25: [2/10/2013=78850] | AX25: [2/10/2013=78193] | AY25: [2/10/2013=78008] | AZ25: [2/10/2013=77238] | BA25: [2/10/2013=77023] | BB25: [2/10/2013=76255] | BC25: [2/9/2013=75332] | BD25: [2/9/2013=75658] | BE25: [2/9/2013=75048] | BF25: [2/9/2013=74806] | BG25: [2/9/2013=74708] | BH25: [2/9/2013=74577] | BI25: [2/9/2013=74482] | BJ25: [2/9/2013=74401] | BK25: [2/9/2013=74297] | BL25: [2/9/2013=75420] | BN25: [2/9/2013=73982] | BO25: [2/9/2013=73943] | BP25: [2/9/2013=75365] | BQ25: [2/9/2013=75262] | BR25: [2/9/2013=75021] | BS25: [2/9/2013=74922] | BT25: [2/9/2013=74683] | BU25: [2/9/2013=74578] | BV25: [2/9/2013=74332] | BW25: [2/9/2013=74241] | BX25: [2/9/2013=74027] | BY25: [2/9/2013=73944] | BZ25: [2/9/2013=73499] | CA25: [2/8/2013=73413] | CB25: [2/8/2013=73032] | CC25: [2/8/2013=72685] | CD25: [2/8/2013=72196] | CE25: [2/8/2013=72050] | CF25: [2/8/2013=71698] | CG25: [2/8/2013=71512] | CH25: [2/8/2013=71138] | CI25: [2/9/2013=73772] | CJ25: [2/8/2013=73466] | CK25: [2/8/2013=73358] | CL25: [2/8/2013=73077] | CM25: [2/8/2013=72483] | CN25: [2/8/2013=72335] | CO25: [2/8/2013=71973] | CP25: [2/8/2013=71587] | CQ25: [2/8/2013=71324] | CR25: [2/8/2013=71217] | CU25: [2/8/2013=73384] | CV25: [2/8/2013=73160] | CW25: [2/8/2013=72579] | CX25: [2/8/2013=72384] | CY25: [2/8/2013=71891] | CZ25: [2/8/2013=71782] | DA25: [2/8/2013=71320] | DB25: [2/8/2013=70743] | DC25: [2/8/2013=70904] | DD25: [2/8/2013=70658] | DE25: [2/8/2013=70581] | DF25: [2/7/2013=69301][2/8/2013=70471] | DG25: [2/7/2013=69447][2/7/2013=70416] | DH25: [2/7/2013=69506][2/7/2013=70328] | DI25: [2/7/2013=69676][2/7/2013=70293] | DJ25: [2/7/2013=69853][2/7/2013=70232] | DK25: [2/7/2013=69932][2/7/2013=70203] | DL25: [2/8/2013=72780] | DM25: [2/8/2013=72786] | DN25: [2/8/2013=72947] | DO25: [2/8/2013=72928] | DP25: [2/8/2013=72907] | DQ25: [2/7/2013=68573] | DR25: [2/7/2013=68725] | DS25: [2/7/2013=68797] | DT25: [2/7/2013=68959] | DU25: [2/7/2013=69017] | DV25: [2/7/2013=69144] | DW25: [2/7/2013=69658] | DX25: [2/7/2013=69759] | DY25: [2/7/2013=70183] | DZ25: [2/7/2013=70114] | EA25: [2/6/2013=65304] | EB25: [2/6/2013=65175] | EC25: [2/8/2013=70818] | ED25: [2/8/2013=72858] | EE25: [2/8/2013=72744] | EF25: [2/7/2013=70388] | EG25: [2/7/2013=66968] | EH25: [2/7/2013=69649] | EI25: [2/7/2013=66921] | EJ25: [2/7/2013=69832] | EK25: [2/7/2013=70001] | EL25: [2/7/2013=70049] | EM25: [2/8/2013=70732] | EN25: [2/8/2013=70693] | EO25: [2/7/2013=69556] | EP25: [2/7/2013=69590] | EQ25: [2/7/2013=69727] | ER25: [2/8/2013=70603] | ES25: [2/8/2013=70512] | ET25: [2/7/2013=70373] | EU25: [2/7/2013=70188] | EV25: [2/6/2013=66783] | EW25: [2/6/2013=66800] | EX25: [2/7/2013=69487] | EY25: [2/7/2013=69382] | EZ25: [2/7/2013=69302] | FA25: [2/7/2013=69234] | FB25: [2/7/2013=69104] | FC25: [2/7/2013=69036] | FD25: [2/7/2013=68897] | FE25: [2/7/2013=68769] | FF25: [2/7/2013=68628] | FG25: [2/6/2013=64126] | FH25: [2/6/2013=64263] | FI25: [2/6/2013=64371] | FJ25: [2/6/2013=64526]
AS26: [2/9/2013=75659] | AT26: [2/9/2013=75551] | AU26: [2/10/2013=79475] | AV26: [2/10/2013=78971] | AW26: [2/10/2013=78847] | AX26: [2/10/2013=78198] | AY26: [2/10/2013=78004] | AZ26: [2/10/2013=77241] | BA26: [2/10/2013=77020] | BB26: [2/10/2013=76250] | BC26: [2/9/2013=75330] | BD26: [2/9/2013=75660] | BE26: [2/9/2013=75047] | BF26: [2/9/2013=74808] | BG26: [2/9/2013=74706] | BH26: [2/9/2013=74579] | BI26: [2/9/2013=74480] | BJ26: [2/9/2013=74405] | BK26: [2/9/2013=74298] | BL26: [2/9/2013=75418] | BN26: [2/9/2013=73980] | BO26: [2/9/2013=73941] | BP26: [2/9/2013=75368] | BQ26: [2/9/2013=75260] | BR26: [2/9/2013=75023] | BS26: [2/9/2013=74918] | BT26: [2/9/2013=74685] | BU26: [2/9/2013=74576] | BV26: [2/9/2013=74334] | BW26: [2/9/2013=74239] | BX26: [2/9/2013=74029] | BY26: [2/9/2013=73942] | BZ26: [2/9/2013=73502] | CA26: [2/8/2013=73410] | CB26: [2/8/2013=73033] | CC26: [2/8/2013=72684] | CD26: [2/8/2013=72200] | CE26: [2/8/2013=72045] | CF26: [2/8/2013=71702] | CG26: [2/8/2013=71508] | CH26: [2/8/2013=71144] | CI26: [2/9/2013=73769] | CJ26: [2/8/2013=73467] | CK26: [2/8/2013=73355] | CL26: [2/8/2013=73076] | CM26: [2/8/2013=72486] | CN26: [2/8/2013=72331] | CO26: [2/8/2013=71975] | CP26: [2/8/2013=71584] | CQ26: [2/8/2013=71327] | CR26: [2/8/2013=71219] | CU26: [2/8/2013=73381] | CV26: [2/8/2013=73158] | CW26: [2/8/2013=72583] | CX26: [2/8/2013=72382] | CY26: [2/8/2013=71893] | CZ26: [2/8/2013=71779] | DA26: [2/8/2013=71326] | DB26: [2/8/2013=70745] | DC26: [2/8/2013=70901] | DD26: [2/8/2013=70656] | DE26: [2/8/2013=70579] | DF26: [2/7/2013=69299][2/8/2013=70470] | DG26: [2/7/2013=69448][2/7/2013=70425] | DH26: [2/7/2013=69505][2/7/2013=70326] | DI26: [2/7/2013=69677][2/7/2013=70294] | DJ26: [2/7/2013=69852][2/7/2013=70231] | DK26: [2/7/2013=69934][2/7/2013=70204] | DL26: [2/8/2013=72779] | DM26: [2/8/2013=72787] | DN26: [2/8/2013=72948] | DO26: [2/8/2013=72927] | DP26: [2/8/2013=72908] | DQ26: [2/7/2013=68569] | DR26: [2/7/2013=68729] | DS26: [2/7/2013=68794] | DT26: [2/7/2013=68961] | DU26: [2/7/2013=69015] | DV26: [2/7/2013=69146] | DW26: [2/7/2013=69655] | DX26: [2/7/2013=69755] | DY26: [2/7/2013=70180] | DZ26: [2/7/2013=70111] | EA26: [2/6/2013=65308] | EB26: [2/6/2013=65174] | EC26: [2/8/2013=70819] | ED26: [2/8/2013=72857] | EE26: [2/8/2013=72742] | EF26: [2/7/2013=70385] | EG26: [2/7/2013=66966] | EH26: [2/7/2013=69645] | EI26: [2/7/2013=66920] | EJ26: [2/7/2013=69829] | EK26: [2/7/2013=70004] | EL26: [2/7/2013=70047] | EM26: [2/8/2013=70730] | EN26: [2/8/2013=70692] | EO26: [2/7/2013=69555] | EP26: [2/7/2013=69589] | EQ26: [2/7/2013=69725] | ER26: [2/8/2013=70600] | ES26: [2/8/2013=70515] | ET26: [2/7/2013=70370] | EU26: [2/7/2013=70185] | EV26: [2/6/2013=66785] | EW26: [2/7/2013=70153] | EX26: [2/7/2013=69488] | EY26: [2/7/2013=69380] | EZ26: [2/7/2013=69303] | FA26: [2/7/2013=69230] | FB26: [2/7/2013=69101] | FC26: [2/7/2013=69039] | FD26: [2/7/2013=68895] | FE26: [2/7/2013=68772] | FF26: [2/7/2013=68624] | FG26: [2/6/2013=64124] | FH26: [2/6/2013=64265] | FI26: [2/6/2013=64368] | FJ26: [2/6/2013=64528]
AS27: [2/9/2013=75661] | AT27: [2/9/2013=75547] | AU27: [2/10/2013=79471] | AV27: [2/10/2013=78974] | AW27: [2/10/2013=78841] | AX27: [2/10/2013=78203] | AY27: [2/10/2013=78001] | AZ27: [2/10/2013=77244] | BA27: [2/10/2013=77017] | BB27: [2/10/2013=76247] | BC27: [2/9/2013=75329] | BD27: [2/9/2013=75662] | BE27: [2/9/2013=75045] | BF27: [2/9/2013=74810] | BG27: [2/9/2013=74704] | BH27: [2/9/2013=74581] | BI27: [2/9/2013=74478] | BJ27: [2/9/2013=74407] | BK27: [2/9/2013=74300] | BL27: [2/9/2013=75416] | BN27: [2/9/2013=73978] | BO27: [2/9/2013=73939] | BP27: [2/9/2013=75371] | BQ27: [2/9/2013=75258] | BR27: [2/9/2013=75025] | BS27: [2/9/2013=74916] | BT27: [2/9/2013=74687] | BU27: [2/9/2013=74574] | BV27: [2/9/2013=74335] | BW27: [2/9/2013=74237] | BX27: [2/9/2013=74033] | BY27: [2/9/2013=73940] | BZ27: [2/9/2013=73508] | CA27: [2/8/2013=73407] | CB27: [2/8/2013=73034] | CC27: [2/8/2013=72682] | CD27: [2/8/2013=72204] | CE27: [2/8/2013=72041] | CF27: [2/8/2013=71704] | CG27: [2/8/2013=71504] | CH27: [2/8/2013=71148] | CI27: [2/9/2013=73766] | CJ27: [2/8/2013=73468] | CK27: [2/8/2013=73352] | CL27: [2/8/2013=73075] | CM27: [2/8/2013=72488] | CN27: [2/8/2013=72323] | CO27: [2/8/2013=71978] | CP27: [2/8/2013=71581] | CQ27: [2/8/2013=71330] | CR27: [2/8/2013=71221] | CT27: [2/9/2013=73636] | CU27: [2/8/2013=73378] | CV27: [2/8/2013=73156] | CW27: [2/8/2013=72587] | CX27: [2/8/2013=72380] | CY27: [2/8/2013=71896] | CZ27: [2/8/2013=71776] | DA27: [2/8/2013=71329] | DB27: [2/8/2013=70747] | DC27: [2/8/2013=70899] | DD27: [2/8/2013=70654] | DE27: [2/8/2013=70576] | DF27: [2/7/2013=69296][2/8/2013=70468] | DG27: [2/7/2013=69450][2/7/2013=70422] | DH27: [2/7/2013=69504][2/7/2013=70325] | DI27: [2/7/2013=69678][2/7/2013=70295] | DJ27: [2/7/2013=69851][2/7/2013=70230] | DK27: [2/7/2013=69937][2/7/2013=70205] | DL27: [2/8/2013=72778] | DM27: [2/8/2013=72788] | DN27: [2/8/2013=72949] | DO27: [2/8/2013=72926] | DP27: [2/8/2013=72909] | DQ27: [2/7/2013=68565] | DR27: [2/7/2013=68733] | DS27: [2/7/2013=68790] | DT27: [2/7/2013=68965] | DU27: [2/7/2013=69012] | DV27: [2/7/2013=69149] | DW27: [2/7/2013=69651] | DX27: [2/7/2013=69751] | DY27: [2/7/2013=70177] | DZ27: [2/7/2013=70109] | EA27: [2/6/2013=65311] | EB27: [2/6/2013=65172] | EC27: [2/8/2013=70820] | ED27: [2/8/2013=72856] | EE27: [2/8/2013=72740] | EF27: [2/7/2013=70383] | EG27: [2/7/2013=66964] | EH27: [2/7/2013=69642] | EI27: [2/7/2013=66918] | EJ27: [2/7/2013=69826] | EK27: [2/7/2013=70007] | EL27: [2/7/2013=70045] | EM27: [2/8/2013=70728] | EN27: [2/8/2013=70691] | EO27: [2/7/2013=69553] | EP27: [2/7/2013=69588] | EQ27: [2/7/2013=69674] | ER27: [2/8/2013=70597] | ES27: [2/8/2013=70518] | ET27: [2/7/2013=70367] | EU27: [2/7/2013=70182] | EV27: [2/6/2013=66787] | EW27: [2/7/2013=70148] | EX27: [2/7/2013=69489] | EY27: [2/7/2013=69377] | EZ27: [2/7/2013=69305] | FA27: [2/7/2013=69227] | FB27: [2/7/2013=69098] | FC27: [2/7/2013=69042] | FD27: [2/7/2013=68892] | FE27: [2/7/2013=68775] | FF27: [2/7/2013=68621] | FG27: [2/6/2013=64121] | FH27: [2/6/2013=64267] | FI27: [2/6/2013=64364] | FJ27: [2/6/2013=64530]
AS28: [2/9/2013=75663] | AT28: [2/9/2013=75544] | AU28: [2/10/2013=79468] | AV28: [2/10/2013=78977] | AW28: [2/10/2013=78838] | AX28: [2/10/2013=78208] | AY28: [2/10/2013=77997] | AZ28: [2/10/2013=77247] | BA28: [2/10/2013=77013] | BB28: [2/10/2013=76244] | BC28: [2/9/2013=75326] | BD28: [2/9/2013=75664] | BE28: [2/9/2013=75043] | BF28: [2/9/2013=74812] | BG28: [2/9/2013=74702] | BH28: [2/9/2013=74585] | BI28: [2/9/2013=74476] | BJ28: [2/9/2013=74409] | BK28: [2/9/2013=74302] | BL28: [2/9/2013=75414] | BN28: [2/9/2013=73977] | BO28: [2/9/2013=73937] | BP28: [2/9/2013=75375] | BQ28: [2/9/2013=75256] | BR28: [2/9/2013=75027] | BS28: [2/9/2013=74915] | BT28: [2/9/2013=74692] | BU28: [2/9/2013=74572] | BV28: [2/9/2013=74336] | BW28: [2/9/2013=74232] | BX28: [2/9/2013=74035] | BY28: [2/9/2013=73936] | BZ28: [2/9/2013=73511] | CA28: [2/8/2013=73404] | CB28: [2/8/2013=73035] | CC28: [2/8/2013=72680] | CD28: [2/8/2013=72207] | CE28: [2/8/2013=72037] | CF28: [2/8/2013=71706] | CG28: [2/8/2013=71501] | CH28: [2/8/2013=71151] | CI28: [2/9/2013=73763] | CJ28: [2/8/2013=73469] | CK28: [2/8/2013=73349] | CL28: [2/8/2013=73074] | CM28: [2/8/2013=72490] | CN28: [2/8/2013=72319] | CO28: [2/8/2013=71981] | CP28: [2/8/2013=71578] | CQ28: [2/8/2013=71332] | CR28: [2/8/2013=71223] | CT28: [2/9/2013=73635] | CU28: [2/8/2013=73375] | CV28: [2/8/2013=73153] | CW28: [2/8/2013=72590] | CX28: [2/8/2013=72377] | CY28: [2/8/2013=71899] | CZ28: [2/8/2013=71773] | DA28: [2/8/2013=71333] | DB28: [2/8/2013=70749] | DC28: [2/8/2013=70897] | DD28: [2/8/2013=70650] | DE28: [2/8/2013=70573] | DF28: [2/7/2013=69294][2/8/2013=70465] | DG28: [2/7/2013=69453][2/7/2013=70428] | DH28: [2/7/2013=69503][2/7/2013=70324] | DI28: [2/7/2013=69680][2/7/2013=70296] | DJ28: [2/7/2013=69850][2/7/2013=70229] | DK28: [2/7/2013=69940][2/7/2013=70206] | DL28: [2/8/2013=72777] | DM28: [2/8/2013=72789] | DN28: [2/8/2013=72950] | DO28: [2/8/2013=72925] | DP28: [2/8/2013=72910] | DQ28: [2/7/2013=68563] | DR28: [2/7/2013=68736] | DS28: [2/7/2013=68785] | DT28: [2/7/2013=68968] | DU28: [2/7/2013=69010] | DV28: [2/7/2013=69152] | DW28: [2/7/2013=69647] | DX28: [2/7/2013=69747] | DY28: [2/7/2013=70176] | DZ28: [2/7/2013=70106] | EA28: [2/6/2013=65316] | EB28: [2/6/2013=65170] | EC28: [2/8/2013=70821] | ED28: [2/8/2013=72855] | EE28: [2/8/2013=72737] | EF28: [2/7/2013=70380] | EG28: [2/7/2013=66962] | EH28: [2/7/2013=69639] | EI28: [2/7/2013=66917] | EJ28: [2/7/2013=69823] | EK28: [2/7/2013=70009] | EL28: [2/7/2013=70043] | EM28: [2/8/2013=70726] | EN28: [2/8/2013=70689] | EO28: [2/7/2013=69551] | EP28: [2/7/2013=69587] | EQ28: [2/7/2013=69672] | ER28: [2/8/2013=70594] | ES28: [2/8/2013=70524] | ET28: [2/7/2013=70363] | EU28: [2/7/2013=70179] | EV28: [2/6/2013=66789] | EW28: [2/7/2013=70144] | EX28: [2/7/2013=69490] | EY28: [2/7/2013=69373] | EZ28: [2/7/2013=69307] | FA28: [2/7/2013=69224] | FB28: [2/7/2013=69095] | FC28: [2/7/2013=69045] | FD28: [2/7/2013=68889] | FE28: [2/7/2013=68779] | FF28: [2/7/2013=68617] | FG28: [2/6/2013=64118] | FH28: [2/6/2013=64269] | FI28: [2/6/2013=64361] | FJ28: [2/6/2013=64532]
AS29: [2/9/2013=75665] | AT29: [2/9/2013=75540] | AU29: [2/10/2013=79466] | AV29: [2/10/2013=78981] | AW29: [2/10/2013=78835] | AX29: [2/10/2013=78213] | AY29: [2/10/2013=77993] | AZ29: [2/10/2013=77250] | BA29: [2/10/2013=77009] | BB29: [2/10/2013=76240] | BC29: [2/9/2013=75323] | BD29: [2/9/2013=75666] | BE29: [2/9/2013=75039] | BF29: [2/9/2013=74814] | BG29: [2/9/2013=74700] | BH29: [2/9/2013=74587] | BI29: [2/9/2013=74474] | BJ29: [2/9/2013=74411] | BK29: [2/9/2013=74304] | BL29: [2/9/2013=75412] | BN29: [2/9/2013=73976] | BO29: [2/9/2013=73935] | BP29: [2/9/2013=75378] | BQ29: [2/9/2013=75254] | BR29: [2/9/2013=75030] | BS29: [2/9/2013=74913] | BT29: [2/9/2013=74695] | BU29: [2/9/2013=74570] | BV29: [2/9/2013=74337] | BW29: [2/9/2013=74230] | BX29: [2/9/2013=74037] | BY29: [2/9/2013=73934] | BZ29: [2/9/2013=73514] | CA29: [2/8/2013=73401] | CB29: [2/8/2013=73036] | CC29: [2/8/2013=72678] | CD29: [2/8/2013=72210] | CE29: [2/8/2013=72033] | CF29: [2/8/2013=71708] | CG29: [2/8/2013=71497] | CH29: [2/8/2013=71155] | CI29: [2/9/2013=73760] | CJ29: [2/9/2013=73471] | CK29: [2/8/2013=73346] | CL29: [2/8/2013=73073] | CM29: [2/8/2013=72492] | CN29: [2/8/2013=72316] | CO29: [2/8/2013=71984] | CP29: [2/8/2013=71575] | CQ29: [2/8/2013=71335] | CR29: [2/8/2013=71225] | CT29: [2/9/2013=73633] | CU29: [2/8/2013=73372] | CV29: [2/8/2013=73151] | CW29: [2/8/2013=72593] | CX29: [2/8/2013=72374] | CY29: [2/8/2013=71902] | CZ29: [2/8/2013=71771] | DA29: [2/8/2013=71336] | DB29: [2/8/2013=70751] | DC29: [2/8/2013=70895] | DD29: [2/8/2013=70647] | DE29: [2/8/2013=70570] | DF29: [2/7/2013=69289][2/7/2013=70463] | DG29: [2/7/2013=69456][2/7/2013=70431] | DH29: [2/7/2013=69502][2/7/2013=70323] | DI29: [2/7/2013=69682][2/7/2013=70297] | DJ29: [2/7/2013=69849][2/7/2013=70228] | DK29: [2/7/2013=69942][2/7/2013=70207] | DL29: [2/8/2013=72775] | DM29: [2/8/2013=72790] | DN29: [2/8/2013=72951] | DO29: [2/8/2013=72924] | DP29: [2/8/2013=72911] | DQ29: [2/7/2013=68560] | DR29: [2/7/2013=68739] | DS29: [2/7/2013=68781] | DT29: [2/7/2013=68971] | DU29: [2/7/2013=69007] | DV29: [2/7/2013=69155] | DW29: [2/7/2013=69644] | DX29: [2/7/2013=69744] | DY29: [2/7/2013=70175] | DZ29: [2/7/2013=70102] | EA29: [2/6/2013=65313] | EB29: [2/6/2013=65168] | EC29: [2/8/2013=70822] | ED29: [2/7/2013=69467] | EE29: [2/8/2013=70813] | EF29: [2/7/2013=70377] | EG29: [2/7/2013=66960] | EH29: [2/7/2013=69636] | EI29: [2/7/2013=66916] | EJ29: [2/7/2013=69821] | EK29: [2/7/2013=70012] | EL29: [2/7/2013=70041] | EM29: [2/8/2013=70724] | EN29: [2/8/2013=70687] | EO29: [2/7/2013=69549] | EP29: [2/7/2013=69586] | EQ29: [2/7/2013=69669] | ER29: [2/8/2013=70591] | ES29: [2/8/2013=70544] | ET29: [2/7/2013=70360] | EU29: [2/6/2013=66761] | EV29: [2/6/2013=66790] | EW29: [2/7/2013=70141] | EX29: [2/7/2013=69491] | EY29: [2/7/2013=69370] | EZ29: [2/7/2013=69309] | FA29: [2/7/2013=69222] | FB29: [2/7/2013=69092] | FC29: [2/7/2013=69048] | FD29: [2/7/2013=68886] | FE29: [2/7/2013=68782] | FF29: [2/7/2013=68614] | FG29: [2/6/2013=64115] | FH29: [2/6/2013=64271] | FI29: [2/6/2013=64358] | FJ29: [2/6/2013=64533]
AS30: [2/9/2013=75668] | AT30: [2/9/2013=75536] | AU30: [2/10/2013=79464] | AV30: [2/10/2013=78985] | AW30: [2/10/2013=78832] | AX30: [2/10/2013=78217] | AY30: [2/10/2013=77989] | AZ30: [2/10/2013=77253] | BA30: [2/10/2013=77006] | BB30: [2/10/2013=76236] | BC30: [2/9/2013=75321] | BD30: [2/9/2013=75667] | BE30: [2/9/2013=75037] | BF30: [2/9/2013=74816] | BG30: [2/9/2013=74698] | BH30: [2/9/2013=74589] | BI30: [2/9/2013=74472] | BJ30: [2/9/2013=74413] | BK30: [2/9/2013=74306] | BL30: [2/9/2013=75406] | BN30: [2/9/2013=73975] | BO30: [2/9/2013=73933] | BP30: [2/9/2013=75381] | BQ30: [2/9/2013=75252] | BR30: [2/9/2013=75032] | BS30: [2/9/2013=74911] | BT30: [2/9/2013=74697] | BU30: [2/9/2013=74568] | BV30: [2/9/2013=74339] | BW30: [2/9/2013=74228] | BX30: [2/9/2013=74039] | BY30: [2/9/2013=73932] | BZ30: [2/9/2013=73517] | CA30: [2/8/2013=73398] | CB30: [2/8/2013=73037] | CC30: [2/8/2013=72676] | CD30: [2/8/2013=72213] | CE30: [2/8/2013=72029] | CF30: [2/8/2013=71710] | CG30: [2/8/2013=71493] | CH30: [2/8/2013=71159] | CI30: [2/9/2013=73757] | CJ30: [2/9/2013=73473] | CK30: [2/8/2013=73343] | CL30: [2/8/2013=73072] | CM30: [2/8/2013=72495] | CN30: [2/8/2013=72312] | CO30: [2/8/2013=71987] | CP30: [2/8/2013=71570] | CQ30: [2/8/2013=71338] | CR30: [2/8/2013=71226] | CT30: [2/9/2013=73630] | CU30: [2/8/2013=73369] | CV30: [2/8/2013=73149] | CW30: [2/8/2013=72596] | CX30: [2/8/2013=72371] | CY30: [2/8/2013=71904] | CZ30: [2/8/2013=71769] | DA30: [2/8/2013=71339] | DB30: [2/8/2013=70753] | DC30: [2/8/2013=70893] | DD30: [2/8/2013=70644] | DE30: [2/8/2013=70567] | DF30: [2/7/2013=69287][2/7/2013=70461] | DG30: [2/7/2013=69459][2/7/2013=70434] | DH30: [2/7/2013=69501][2/7/2013=70322] | DI30: [2/7/2013=69683][2/7/2013=70298] | DJ30: [2/7/2013=69848][2/7/2013=70227] | DK30: [2/7/2013=69945][2/7/2013=70209] | DL30: [2/8/2013=72773] | DM30: [2/8/2013=72791] | DN30: [2/8/2013=72952] | DO30: [2/8/2013=72923] | DP30: [2/8/2013=72912] | DQ30: [2/7/2013=68558] | DR30: [2/7/2013=68742] | DS30: [2/7/2013=68777] | DT30: [2/7/2013=68974] | DU30: [2/7/2013=69004] | DV30: [2/7/2013=69158] | DW30: [2/7/2013=69641] | DX30: [2/7/2013=69741] | DY30: [2/7/2013=70174] | DZ30: [2/7/2013=70100] | EA30: [2/6/2013=65318] | EB30: [2/6/2013=65165] | EC30: [2/8/2013=70823] | ED30: [2/7/2013=69464] | EE30: [2/8/2013=70812] | EF30: [2/7/2013=70374] | EG30: [2/7/2013=66958][2/7/2013=69729] | EH30: [2/7/2013=69634] | EI30: [2/7/2013=67764] | EJ30: [2/7/2013=69818] | EK30: [2/7/2013=70015] | EL30: [2/7/2013=70039] | EM30: [2/8/2013=70722] | EN30: [2/8/2013=70685] | EO30: [2/7/2013=69547] | EP30: [2/7/2013=69585] | EQ30: [2/7/2013=69666] | ER30: [2/8/2013=70588] | ES30: [2/8/2013=70546] | ET30: [2/7/2013=70357] | EU30: [2/6/2013=66762] | EV30: [2/6/2013=66792] | EW30: [2/7/2013=70139] | EX30: [2/7/2013=69492] | EY30: [2/7/2013=69366] | EZ30: [2/7/2013=69310] | FA30: [2/7/2013=69219] | FB30: [2/7/2013=69133] | FC30: [2/7/2013=69050] | FD30: [2/7/2013=68883] | FE30: [2/7/2013=68786] | FF30: [2/7/2013=68611] | FG30: [2/6/2013=64112] | FH30: [2/6/2013=64273] | FI30: [2/6/2013=64356] | FJ30: [2/6/2013=64537]
AS31: [2/9/2013=75670] | AT31: [2/9/2013=75534] | AU31: [2/10/2013=79462] | AV31: [2/10/2013=78988] | AW31: [2/10/2013=78829] | AX31: [2/10/2013=78221] | AY31: [2/10/2013=77985] | AZ31: [2/10/2013=77255] | BA31: [2/10/2013=77003] | BB31: [2/10/2013=76232] | BC31: [2/9/2013=75318] | BD31: [2/9/2013=75669] | BE31: [2/9/2013=75035] | BF31: [2/9/2013=74820] | BG31: [2/9/2013=74696] | BH31: [2/9/2013=74591] | BI31: [2/9/2013=74470] | BJ31: [2/9/2013=74415] | BK31: [2/9/2013=74308] | BN31: [2/9/2013=73973] | BO31: [2/9/2013=73929] | BP31: [2/9/2013=75384] | BQ31: [2/9/2013=75250] | BR31: [2/9/2013=75036] | BS31: [2/9/2013=74909] | BT31: [2/9/2013=74699] | BU31: [2/9/2013=74566] | BV31: [2/9/2013=74341] | BW31: [2/9/2013=74226] | BX31: [2/9/2013=74041] | BY31: [2/9/2013=73930] | BZ31: [2/9/2013=73520] | CA31: [2/8/2013=73395] | CB31: [2/8/2013=73038] | CC31: [2/8/2013=72671] | CD31: [2/8/2013=72219] | CE31: [2/8/2013=72026] | CF31: [2/8/2013=71711] | CG31: [2/8/2013=71490] | CH31: [2/8/2013=71162] | CI31: [2/9/2013=73754] | CJ31: [2/9/2013=73475] | CK31: [2/8/2013=73341] | CL31: [2/8/2013=73071] | CM31: [2/8/2013=72499] | CN31: [2/8/2013=72308] | CO31: [2/8/2013=71990] | CP31: [2/8/2013=71568] | CQ31: [2/8/2013=71341] | CR31: [2/8/2013=71228] | CT31: [2/9/2013=73627] | CU31: [2/8/2013=73366] | CV31: [2/8/2013=73147] | CW31: [2/8/2013=72599] | CX31: [2/8/2013=72368] | CY31: [2/8/2013=71907] | CZ31: [2/8/2013=71766] | DA31: [2/8/2013=71342] | DB31: [2/8/2013=70755] | DC31: [2/8/2013=70890] | DD31: [2/8/2013=70641] | DE31: [2/8/2013=70562] | DF31: [2/7/2013=69285][2/7/2013=70459] | DG31: [2/7/2013=69462][2/7/2013=70436] | DH31: [2/7/2013=69500][2/7/2013=70321] | DI31: [2/7/2013=69685][2/7/2013=70304] | DJ31: [2/7/2013=69847][2/7/2013=70226] | DK31: [2/7/2013=69947][2/7/2013=70210] | DL31: [2/8/2013=72772] | DM31: [2/8/2013=72792] | DN31: [2/8/2013=72953] | DO31: [2/8/2013=72922] | DP31: [2/8/2013=72913] | DQ31: [2/7/2013=68555] | DR31: [2/7/2013=68745] | DS31: [2/7/2013=68774] | DT31: [2/7/2013=68976] | DU31: [2/7/2013=69001] | DV31: [2/7/2013=69161] | DW31: [2/7/2013=69638] | DX31: [2/7/2013=69737] | DY31: [2/7/2013=70173] | DZ31: [2/7/2013=70097] | EA31: [2/6/2013=65320] | EB31: [2/6/2013=65164] | EC31: [2/8/2013=70824] | ED31: [2/7/2013=69460] | EE31: [2/7/2013=69523] | EF31: [2/7/2013=70371] | EG31: [2/7/2013=69735] | EH31: [2/7/2013=69632] | EI31: [2/7/2013=67761] | EJ31: [2/7/2013=69815] | EK31: [2/7/2013=70017] | EL31: [2/7/2013=70037] | EM31: [2/8/2013=70720] | EN31: [2/8/2013=70683] | EO31: [2/7/2013=69545] | EP31: [2/7/2013=69584] | EQ31: [2/7/2013=69663] | ER31: [2/8/2013=70585] | ES31: [2/8/2013=70548] | ET31: [2/7/2013=70355] | EU31: [2/6/2013=66764] | EV31: [2/6/2013=66793] | EW31: [2/7/2013=70137] | EX31: [2/7/2013=69493] | EY31: [2/7/2013=69362] | EZ31: [2/7/2013=69312] | FA31: [2/7/2013=69216] | FB31: [2/7/2013=69136] | FC31: [2/7/2013=69053] | FD31: [2/7/2013=68880] | FE31: [2/7/2013=68789] | FF31: [2/7/2013=68608] | FG31: [2/6/2013=64110] | FH31: [2/6/2013=64275] | FI31: [2/6/2013=64353]
AS32: [2/9/2013=75672] | AT32: [2/9/2013=75532] | AU32: [2/10/2013=79460] | AV32: [2/10/2013=78992] | AW32: [2/10/2013=78826] | AX32: [2/10/2013=78225] | AY32: [2/10/2013=77983] | AZ32: [2/10/2013=77257] | BA32: [2/10/2013=77000] | BB32: [2/10/2013=76228] | BC32: [2/9/2013=75316] | BD32: [2/9/2013=75671] | BE32: [2/9/2013=75033] | BF32: [2/9/2013=74822] | BG32: [2/9/2013=74694] | BH32: [2/9/2013=74593] | BI32: [2/9/2013=74468] | BJ32: [2/9/2013=74417] | BK32: [2/9/2013=74310] | BN32: [2/9/2013=73990] | BO32: [2/9/2013=73927] | BP32: [2/9/2013=75386] | BQ32: [2/9/2013=75233] | BR32: [2/9/2013=75038] | BS32: [2/9/2013=74907] | BT32: [2/9/2013=74701] | BU32: [2/9/2013=74564] | BV32: [2/9/2013=74342] | BW32: [2/9/2013=74225] | BX32: [2/9/2013=74043] | BY32: [2/9/2013=73928] | BZ32: [2/9/2013=73523] | CA32: [2/8/2013=73392] | CB32: [2/8/2013=73039] | CC32: [2/8/2013=72669] | CD32: [2/8/2013=72226] | CE32: [2/8/2013=72022] | CF32: [2/8/2013=71713] | CG32: [2/8/2013=71487] | CH32: [2/8/2013=71166] | CI32: [2/9/2013=73752] | CJ32: [2/9/2013=73477] | CK32: [2/8/2013=73339] | CL32: [2/8/2013=73070] | CM32: [2/8/2013=72503] | CN32: [2/8/2013=72305] | CO32: [2/8/2013=71993] | CP32: [2/8/2013=71565] | CQ32: [2/8/2013=71344] | CR32: [2/8/2013=71230] | CT32: [2/9/2013=73616] | CU32: [2/8/2013=73363] | CV32: [2/8/2013=73145] | CW32: [2/8/2013=72602] | CX32: [2/8/2013=72365] | CY32: [2/8/2013=71911] | CZ32: [2/8/2013=71764] | DA32: [2/8/2013=71346] | DB32: [2/8/2013=70757] | DC32: [2/8/2013=70888] | DD32: [2/8/2013=70638] | DE32: [2/8/2013=70559] | DF32: [2/7/2013=69283][2/7/2013=70457] | DG32: [2/7/2013=69465][2/7/2013=70439] | DH32: [2/7/2013=69499][2/7/2013=70320] | DI32: [2/7/2013=69687][2/7/2013=70302] | DJ32: [2/7/2013=69846][2/7/2013=70225] | DK32: [2/7/2013=69950][2/7/2013=70212] | DL32: [2/8/2013=72770] | DM32: [2/8/2013=72793] | DN32: [2/8/2013=72954] | DO32: [2/8/2013=72921] | DP32: [2/8/2013=72914] | DQ32: [2/7/2013=68552] | DR32: [2/7/2013=68747] | DS32: [2/7/2013=68771] | DT32: [2/7/2013=68977] | DU32: [2/7/2013=68998] | DV32: [2/7/2013=69164] | DW32: [2/7/2013=69626] | DX32: [2/7/2013=69733] | DY32: [2/7/2013=70172] | DZ32: [2/7/2013=70092] | EA32: [2/6/2013=65322] | EB32: [2/6/2013=65163] | EC32: [2/8/2013=70825] | ED32: [2/7/2013=69457] | EE32: [2/7/2013=69521] | EF32: [2/7/2013=70368] | EG32: [2/7/2013=69739] | EH32: [2/7/2013=69630] | EI32: [2/7/2013=67758] | EJ32: [2/7/2013=69812] | EK32: [2/7/2013=70020] | EL32: [2/7/2013=70035] | EM32: [2/8/2013=70718] | EN32: [2/8/2013=70681] | EO32: [2/7/2013=69535] | EP32: [2/7/2013=69583] | EQ32: [2/7/2013=69660] | ER32: [2/8/2013=70578] | ES32: [2/8/2013=70552] | ET32: [2/7/2013=70354] | EU32: [2/6/2013=66766] | EV32: [2/6/2013=66794] | EW32: [2/7/2013=70134] | EX32: [2/7/2013=69494] | EY32: [2/7/2013=69358] | EZ32: [2/7/2013=69314] | FA32: [2/7/2013=69214] | FB32: [2/7/2013=69147] | FC32: [2/7/2013=69056] | FD32: [2/7/2013=68879] | FE32: [2/7/2013=68792] | FF32: [2/7/2013=68605] | FG32: [2/6/2013=64107] | FH32: [2/6/2013=64277] | FI32: [2/6/2013=64351]
AS33: [2/9/2013=75674] | AT33: [2/9/2013=75530] | AU33: [2/10/2013=79458] | AV33: [2/10/2013=78996] | AW33: [2/10/2013=78823] | AX33: [2/10/2013=78229] | AY33: [2/10/2013=77980] | AZ33: [2/10/2013=77259] | BA33: [2/10/2013=76996] | BB33: [2/10/2013=76225] | BC33: [2/9/2013=75313] | BD33: [2/9/2013=75673] | BE33: [2/9/2013=75031] | BF33: [2/9/2013=74824] | BG33: [2/9/2013=74693] | BH33: [2/9/2013=74595] | BI33: [2/9/2013=74466] | BJ33: [2/9/2013=74419] | BK33: [2/9/2013=74312] | BN33: [2/9/2013=73992] | BO33: [2/9/2013=73925] | BP33: [2/9/2013=75387] | BQ33: [2/9/2013=75231] | BR33: [2/9/2013=75040] | BS33: [2/9/2013=74905] | BT33: [2/9/2013=74703] | BU33: [2/9/2013=74562] | BV33: [2/9/2013=74343] | BW33: [2/9/2013=74223] | BX33: [2/9/2013=74045] | BY33: [2/9/2013=73926] | BZ33: [2/9/2013=73526] | CA33: [2/8/2013=73389] | CB33: [2/8/2013=73040] | CC33: [2/8/2013=72667] | CD33: [2/8/2013=72230] | CE33: [2/8/2013=72020] | CF33: [2/8/2013=71715] | CG33: [2/8/2013=71484] | CH33: [2/8/2013=71169] | CI33: [2/9/2013=73749] | CJ33: [2/9/2013=73483] | CK33: [2/8/2013=73334] | CL33: [2/8/2013=73069] | CM33: [2/8/2013=72507] | CN33: [2/8/2013=72302] | CO33: [2/8/2013=71996] | CP33: [2/8/2013=71562] | CQ33: [2/8/2013=71348] | CR33: [2/8/2013=71232] | CT33: [2/9/2013=73614] | CU33: [2/8/2013=73360] | CV33: [2/8/2013=73144] | CW33: [2/8/2013=72605] | CX33: [2/8/2013=72361] | CY33: [2/8/2013=71913] | CZ33: [2/8/2013=71762] | DA33: [2/8/2013=71350] | DB33: [2/8/2013=70759] | DC33: [2/8/2013=70886] | DD33: [2/8/2013=70635] | DE33: [2/8/2013=70553] | DF33: [2/7/2013=69281][2/7/2013=70455] | DG33: [2/7/2013=69472][2/7/2013=70442] | DH33: [2/7/2013=69498][2/7/2013=70318] | DI33: [2/7/2013=69689][2/7/2013=70306] | DJ33: [2/7/2013=69845][2/7/2013=70223] | DK33: [2/7/2013=69953][2/7/2013=70214] | DL33: [2/8/2013=72768] | DM33: [2/8/2013=72794] | DN33: [2/8/2013=72955] | DO33: [2/8/2013=72920] | DP33: [2/8/2013=72915] | DQ33: [2/7/2013=68549] | DR33: [2/7/2013=68752] | DS33: [2/7/2013=68768] | DT33: [2/7/2013=68979] | DU33: [2/7/2013=68995] | DV33: [2/7/2013=69167] | DW33: [2/7/2013=69623] | DX33: [2/7/2013=69730] | DY33: [2/7/2013=70171] | DZ33: [2/7/2013=70089] | EA33: [2/6/2013=65327] | EB33: [2/6/2013=65161] | EC33: [2/8/2013=70826] | ED33: [2/7/2013=69454] | EE33: [2/7/2013=69519] | EF33: [2/7/2013=70365] | EG33: [2/7/2013=69742] | EH33: [2/7/2013=69628] | EI33: [2/7/2013=67754] | EJ33: [2/7/2013=69809] | EK33: [2/7/2013=70023] | EL33: [2/7/2013=70033] | EM33: [2/8/2013=70716] | EN33: [2/8/2013=70679] | EO33: [2/7/2013=69539] | EP33: [2/7/2013=69581] | EQ33: [2/7/2013=69657] | ER33: [2/8/2013=70582] | ES33: [2/8/2013=70554] | ET33: [2/7/2013=70353] | EU33: [2/6/2013=66768] | EV33: [2/6/2013=66795] | EW33: [2/7/2013=70131] | EX33: [2/7/2013=69495] | EY33: [2/7/2013=69355] | EZ33: [2/7/2013=69315] | FA33: [2/7/2013=69211] | FB33: [2/7/2013=69150] | FC33: [2/7/2013=69059] | FD33: [2/7/2013=68876] | FE33: [2/7/2013=68796] | FF33: [2/7/2013=68602] | FG33: [2/6/2013=64104] | FH33: [2/6/2013=64279] | FI33: [2/6/2013=64348]
AS34: [2/9/2013=75676] | AT34: [2/9/2013=75529] | AU34: [2/10/2013=79456] | AV34: [2/10/2013=79000] | AW34: [2/10/2013=78820] | AX34: [2/10/2013=78233] | AY34: [2/10/2013=77976] | AZ34: [2/10/2013=77261] | BA34: [2/10/2013=76992] | BB34: [2/10/2013=76221] | BC34: [2/9/2013=75310] | BD34: [2/9/2013=75675] | BE34: [2/9/2013=75029] | BF34: [2/9/2013=74826] | BG34: [2/9/2013=74691] | BH34: [2/9/2013=74597] | BI34: [2/9/2013=74464] | BJ34: [2/9/2013=74421] | BK34: [2/9/2013=74314] | BN34: [2/9/2013=73994] | BO34: [2/9/2013=73923] | BP34: [2/9/2013=75388] | BQ34: [2/9/2013=75229] | BR34: [2/9/2013=75042] | BS34: [2/9/2013=74903] | BT34: [2/9/2013=74705] | BU34: [2/9/2013=74560] | BV34: [2/9/2013=74344] | BW34: [2/9/2013=74220] | BX34: [2/9/2013=74047] | BY34: [2/9/2013=73924] | BZ34: [2/9/2013=73529] | CA34: [2/8/2013=73386] | CB34: [2/8/2013=73041] | CC34: [2/8/2013=72665] | CD34: [2/8/2013=72233] | CE34: [2/8/2013=72016] | CF34: [2/8/2013=71717] | CG34: [2/8/2013=71481] | CH34: [2/8/2013=71173] | CI34: [2/9/2013=73746] | CJ34: [2/9/2013=73486] | CK34: [2/8/2013=73329] | CL34: [2/8/2013=73067] | CM34: [2/8/2013=72510] | CN34: [2/8/2013=72292] | CO34: [2/8/2013=72002] | CP34: [2/8/2013=71559] | CQ34: [2/8/2013=71352] | CR34: [2/8/2013=71233] | CT34: [2/9/2013=73611] | CU34: [2/8/2013=73357] | CV34: [2/8/2013=73143] | CW34: [2/8/2013=72608] | CX34: [2/8/2013=72357] | CY34: [2/8/2013=71917] | CZ34: [2/8/2013=71760] | DA34: [2/8/2013=71355] | DB34: [2/8/2013=70761] | DC34: [2/8/2013=70881] | DD34: [2/8/2013=70632] | DE34: [2/8/2013=70556] | DF34: [2/7/2013=69278][2/7/2013=70454] | DG34: [2/7/2013=69474][2/7/2013=70444] | DH34: [2/7/2013=69497][2/7/2013=70316] | DI34: [2/7/2013=69690][2/7/2013=70308] | DJ34: [2/7/2013=69844][2/7/2013=70221] | DK34: [2/7/2013=69956][2/7/2013=70216] | DL34: [2/8/2013=72766] | DM34: [2/8/2013=72795] | DN34: [2/6/2013=65996][2/8/2013=71007] | DO34: [2/8/2013=72919] | DP34: [2/8/2013=72916] | DQ34: [2/7/2013=68546] | DR34: [2/7/2013=68755] | DS34: [2/7/2013=68765] | DT34: [2/7/2013=68981] | DU34: [2/7/2013=68993] | DV34: [2/7/2013=69169] | DW34: [2/7/2013=69620] | DX34: [2/7/2013=69726] | DY34: [2/7/2013=70170] | DZ34: [2/7/2013=70082] | EA34: [2/6/2013=65329] | EB34: [2/6/2013=65158] | EC34: [2/8/2013=70827] | ED34: [2/7/2013=69451] | EE34: [2/7/2013=69517] | EF34: [2/7/2013=70362] | EG34: [2/7/2013=69745] | EH34: [2/7/2013=69625] | EI34: [2/7/2013=67751] | EJ34: [2/7/2013=69803] | EK34: [2/7/2013=70026] | EL34: [2/7/2013=70031] | EM34: [2/8/2013=70714] | EN34: [2/8/2013=70677] | EO34: [2/7/2013=69530] | EP34: [2/7/2013=69579] | EQ34: [2/7/2013=69654] | ER34: [2/8/2013=70572] | ES34: [2/8/2013=70560] | ET34: [2/7/2013=70350] | EU34: [2/6/2013=66770] | EV34: [2/6/2013=66796] | EW34: [2/7/2013=70128] | EX34: [2/7/2013=69496] | EY34: [2/7/2013=69352] | EZ34: [2/7/2013=69317] | FA34: [2/7/2013=69208] | FB34: [2/7/2013=69153] | FC34: [2/7/2013=69062] | FD34: [2/7/2013=68873] | FE34: [2/7/2013=68799] | FF34: [2/7/2013=68599] | FG34: [2/6/2013=64100] | FH34: [2/6/2013=64281] | FI34: [2/6/2013=64345]
AS35: [2/9/2013=75678] | AT35: [2/9/2013=75527] | AU35: [2/10/2013=79454] | AV35: [2/10/2013=79004] | AW35: [2/10/2013=78818] | AX35: [2/10/2013=78236] | AY35: [2/10/2013=77970] | AZ35: [2/10/2013=77262] | BA35: [2/10/2013=76988] | BB35: [2/10/2013=76218] | BC35: [2/9/2013=75307] | BD35: [2/9/2013=75677] | BE35: [2/9/2013=75028] | BF35: [2/9/2013=74833] | BG35: [2/9/2013=74690] | BH35: [2/9/2013=74599] | BI35: [2/9/2013=74463] | BJ35: [2/9/2013=74423] | BK35: [2/9/2013=74316] | BN35: [2/9/2013=73996] | BO35: [2/9/2013=73921] | BP35: [2/9/2013=75389] | BQ35: [2/9/2013=75227] | BR35: [2/9/2013=75044] | BS35: [2/9/2013=74901] | BT35: [2/9/2013=74707] | BU35: [2/9/2013=74558] | BV35: [2/9/2013=74345] | BW35: [2/9/2013=74216] | BX35: [2/9/2013=74050] | BY35: [2/9/2013=73920] | BZ35: [2/9/2013=73532] | CA35: [2/8/2013=73383] | CB35: [2/8/2013=73043] | CC35: [2/8/2013=72662] | CD35: [2/8/2013=72237] | CE35: [2/8/2013=72012] | CF35: [2/8/2013=71719] | CG35: [2/8/2013=71478] | CH35: [2/8/2013=71180] | CI35: [2/9/2013=73743] | CJ35: [2/9/2013=73489] | CK35: [2/8/2013=73326] | CL35: [2/8/2013=73068] | CM35: [2/8/2013=72514] | CN35: [2/8/2013=72288] | CO35: [2/8/2013=72006] | CP35: [2/8/2013=71553] | CQ35: [2/8/2013=71354] | CR35: [2/8/2013=71236] | CT35: [2/9/2013=73608] | CU35: [2/8/2013=73354] | CV35: [2/8/2013=73142] | CW35: [2/8/2013=72611] | CX35: [2/8/2013=72354] | CY35: [2/8/2013=71920] | CZ35: [2/8/2013=71757] | DA35: [2/8/2013=71362] | DB35: [2/8/2013=70764] | DC35: [2/8/2013=70879] | DD35: [2/8/2013=70629] | DE35: [2/8/2013=70549] | DF35: [2/7/2013=68129][2/7/2013=70452][2/8/2013=72516] | DG35: [2/7/2013=69476][2/7/2013=70446] | DH35: [2/7/2013=67324][2/7/2013=70314] | DI35: [2/7/2013=69691][2/7/2013=70310] | DJ35: [2/7/2013=67035][2/8/2013=71571] | DK35: [2/7/2013=69958][2/7/2013=70218] | DL35: [2/8/2013=72765] | DM35: [2/8/2013=72796] | DN35: [2/6/2013=65994][2/8/2013=71003] | DO35: [2/8/2013=72918] | DP35: [2/8/2013=72917] | DQ35: [2/7/2013=68543] | DR35: [2/7/2013=67845] | DS35: [2/7/2013=68762] | DT35: [2/7/2013=68984] | DU35: [2/7/2013=68990] | DV35: [2/7/2013=69172] | DW35: [2/7/2013=69618] | DX35: [2/7/2013=69724] | DY35: [2/7/2013=70169] | DZ35: [2/6/2013=65658] | EA35: [2/6/2013=65332] | EB35: [2/6/2013=65154] | EC35: [2/8/2013=70828] | ED35: [2/7/2013=69359] | EE35: [2/7/2013=69515] | EF35: [2/7/2013=70359] | EG35: [2/7/2013=69748] | EH35: [2/7/2013=69622] | EI35: [2/7/2013=67748] | EJ35: [2/7/2013=69805] | EK35: [2/7/2013=70027] | EL35: [2/6/2013=66123] | EM35: [2/8/2013=70712] | EN35: [2/8/2013=70675] | EO35: [2/7/2013=69528] | EP35: [2/7/2013=68299] | EQ35: [2/7/2013=69650] | ER35: [2/8/2013=70569] | ES35: [2/8/2013=70563] | ET35: [2/7/2013=67284] | EU35: [2/6/2013=66772] | EV35: [2/7/2013=67137] | EW35: [2/7/2013=70125] | EX35: [2/7/2013=67150] | EY35: [2/7/2013=69349] | EZ35: [2/7/2013=69319] | FA35: [2/7/2013=69206] | FB35: [2/7/2013=69156] | FC35: [2/7/2013=69065] | FD35: [2/7/2013=68871] | FE35: [2/7/2013=68803] | FF35: [2/7/2013=68596] | FG35: [2/6/2013=64096] | FH35: [2/6/2013=64284] | FI35: [2/6/2013=64343]
AS36: [2/9/2013=75680] | AT36: [2/9/2013=75526] | AU36: [2/10/2013=79453] | AV36: [2/10/2013=79008] | AW36: [2/10/2013=78815] | AX36: [2/10/2013=78240] | AY36: [2/10/2013=77967] | AZ36: [2/10/2013=77263] | BA36: [2/10/2013=76983] | BB36: [2/10/2013=76215] | BC36: [2/9/2013=75303] | BD36: [2/9/2013=75679] | BE36: [2/9/2013=75026] | BF36: [2/9/2013=74830] | BG36: [2/9/2013=74688] | BH36: [2/9/2013=74601] | BI36: [2/9/2013=74462] | BJ36: [2/9/2013=74424] | BK36: [2/9/2013=74318] | BN36: [2/9/2013=73998] | BO36: [2/9/2013=73919] | BP36: [2/9/2013=75391] | BQ36: [2/9/2013=75225] | BR36: [2/9/2013=75046] | BS36: [2/9/2013=74899] | BT36: [2/9/2013=74709] | BU36: [2/9/2013=74556] | BV36: [2/9/2013=74346] | BW36: [2/9/2013=74214] | BX36: [2/9/2013=74052] | BY36: [2/9/2013=73918] | BZ36: [2/9/2013=73535] | CA36: [2/8/2013=73380] | CB36: [2/8/2013=73045] | CC36: [2/8/2013=72659] | CD36: [2/8/2013=72244] | CE36: [2/8/2013=72008] | CF36: [2/8/2013=71720] | CG36: [2/8/2013=71475] | CH36: [2/8/2013=71184] | CI36: [2/9/2013=73741] | CJ36: [2/9/2013=73492] | CK36: [2/8/2013=73323] | CL36: [2/8/2013=73065] | CM36: [2/8/2013=72518] | CN36: [2/8/2013=72284] | CO36: [2/8/2013=72010] | CP36: [2/8/2013=71545] | CQ36: [2/8/2013=71357] | CT36: [2/9/2013=73605] | CU36: [2/8/2013=73351] | CV36: [2/8/2013=73141] | CW36: [2/8/2013=72614] | CX36: [2/8/2013=72350] | CY36: [2/8/2013=71923] | CZ36: [2/8/2013=71755] | DA36: [2/8/2013=71365] | DB36: [2/8/2013=71215] | DC36: [2/8/2013=70876] | DD36: [2/7/2013=68652][2/8/2013=70945] | DE36: [2/7/2013=68647][2/8/2013=72526] | DF36: [2/7/2013=68132][2/8/2013=72512] | DG36: [2/7/2013=67589][2/8/2013=72171] | DH36: [2/7/2013=67327][2/8/2013=71998] | DI36: [2/7/2013=67028][2/8/2013=71741] | DJ36: [2/7/2013=67039][2/8/2013=71573] | DK36: [2/6/2013=66004][2/8/2013=71566] | DL36: [2/8/2013=72763] | DM36: [2/8/2013=72797] | DN36: [2/6/2013=65992][2/8/2013=70999] | DO36: [2/8/2013=72840] | DP36: [2/8/2013=72841] | DQ36: [2/7/2013=68537][2/8/2013=70992] | DR36: [2/7/2013=67848] | DS36: [2/7/2013=67831] | DT36: [2/7/2013=67464] | DU36: [2/7/2013=67458] | DV36: [2/7/2013=67013] | DW36: [2/7/2013=67003] | DX36: [2/6/2013=65795] | DY36: [2/6/2013=65664] | DZ36: [2/6/2013=65655] | EA36: [2/6/2013=65335] | EB36: [2/6/2013=65151] | EC36: [2/7/2013=69177] | ED36: [2/7/2013=69363] | EE36: [2/7/2013=69513] | EF36: [2/7/2013=69593] | EG36: [2/7/2013=69749] | EH36: [2/7/2013=67786] | EI36: [2/7/2013=67741] | EJ36: [2/7/2013=67101] | EK36: [2/7/2013=67093] | EL36: [2/6/2013=66125] | EM36: [2/6/2013=66103] | EN36: [2/6/2013=64850] | EO36: [2/6/2013=64839] | EP36: [2/7/2013=68308] | EQ36: [2/7/2013=68293] | ER36: [2/7/2013=67891] | ES36: [2/7/2013=67885] | ET36: [2/7/2013=67287] | EU36: [2/6/2013=66774] | EV36: [2/7/2013=67132] | EW36: [2/7/2013=67254] | EX36: [2/7/2013=67153] | EY36: [2/7/2013=69346] | EZ36: [2/7/2013=69321] | FA36: [2/7/2013=69203] | FB36: [2/7/2013=69159] | FC36: [2/7/2013=69068] | FD36: [2/7/2013=68867] | FE36: [2/7/2013=68807] | FF36: [2/7/2013=68593] | FG36: [2/6/2013=64092] | FH36: [2/6/2013=64288] | FI36: [2/6/2013=64341]
AS37: [2/9/2013=75682] | AT37: [2/9/2013=75524] | AU37: [2/10/2013=79451] | AV37: [2/10/2013=79013] | AW37: [2/10/2013=78812] | AX37: [2/10/2013=78244] | AY37: [2/10/2013=77965] | AZ37: [2/10/2013=77265] | BA37: [2/10/2013=76978] | BB37: [2/10/2013=76213] | BC37: [2/9/2013=75301] | BD37: [2/9/2013=75681] | BE37: [2/9/2013=75024] | BF37: [2/9/2013=74835] | BG37: [2/9/2013=74686] | BH37: [2/9/2013=74603] | BI37: [2/9/2013=74461] | BJ37: [2/9/2013=74425] | BK37: [2/9/2013=74320] | BN37: [2/9/2013=74000] | BO37: [2/9/2013=73917] | BP37: [2/9/2013=75395] | BQ37: [2/9/2013=75223] | BR37: [2/9/2013=75050] | BS37: [2/9/2013=74897] | BT37: [2/9/2013=74711] | BU37: [2/9/2013=74554] | BV37: [2/9/2013=74349] | BW37: [2/9/2013=74211] | BX37: [2/9/2013=74055] | BY37: [2/9/2013=73916] | BZ37: [2/9/2013=73537] | CA37: [2/8/2013=73377] | CB37: [2/8/2013=73047] | CC37: [2/8/2013=72656] | CD37: [2/8/2013=72248] | CE37: [2/8/2013=72004] | CF37: [2/8/2013=71722] | CG37: [2/8/2013=71471] | CH37: [2/8/2013=71189] | CI37: [2/9/2013=73739] | CJ37: [2/9/2013=73495] | CK37: [2/8/2013=73320] | CL37: [2/8/2013=73064] | CM37: [2/8/2013=72521] | CN37: [2/8/2013=72281] | CO37: [2/8/2013=72014] | CP37: [2/8/2013=71541] | CQ37: [2/8/2013=71359] | CT37: [2/9/2013=73602] | CU37: [2/8/2013=73348] | CV37: [2/8/2013=73140] | CW37: [2/8/2013=72617] | CX37: [2/8/2013=72346] | CY37: [2/8/2013=71926] | CZ37: [2/8/2013=71753] | DA37: [2/8/2013=71368] | DB37: [2/8/2013=71212] | DC37: [2/7/2013=69246][2/8/2013=70871] | DD37: [2/7/2013=68679][2/8/2013=70948] | DE37: [2/7/2013=68645][2/8/2013=72530] | DF37: [2/7/2013=68135][2/8/2013=72508] | DG37: [2/7/2013=67593][2/8/2013=72174] | DH37: [2/7/2013=67330][2/8/2013=72001] | DI37: [2/7/2013=67024][2/8/2013=71743] | DJ37: [2/7/2013=67043][2/8/2013=71576] | DK37: [2/6/2013=66006][2/8/2013=71564] | DL37: [2/8/2013=72761] | DM37: [2/8/2013=72798] | DN37: [2/6/2013=65991][2/8/2013=71009] | DO37: [2/8/2013=72839] | DP37: [2/8/2013=72842] | DQ37: [2/7/2013=68534][2/8/2013=70991] | DR37: [2/7/2013=67850] | DS37: [2/7/2013=67828] | DT37: [2/7/2013=67467] | DU37: [2/7/2013=67455] | DV37: [2/7/2013=67017] | DW37: [2/6/2013=66740] | DX37: [2/6/2013=65796] | DY37: [2/6/2013=65667] | DZ37: [2/6/2013=65653] | EA37: [2/6/2013=65337] | EB37: [2/6/2013=65148] | EC37: [2/7/2013=69180] | ED37: [2/7/2013=69367] | EE37: [2/7/2013=69534] | EF37: [2/7/2013=69595] | EG37: [2/7/2013=69753] | EH37: [2/7/2013=67789] | EI37: [2/7/2013=67736] | EJ37: [2/7/2013=67106] | EK37: [2/7/2013=67089] | EL37: [2/6/2013=66128] | EM37: [2/6/2013=66101] | EN37: [2/6/2013=64853] | EO37: [2/6/2013=64837] | EP37: [2/7/2013=68311] | EQ37: [2/7/2013=68290] | ER37: [2/7/2013=67894] | ES37: [2/7/2013=67882] | ET37: [2/7/2013=67290] | EU37: [2/6/2013=66776] | EV37: [2/7/2013=67128] | EW37: [2/7/2013=67256] | EX37: [2/7/2013=67156] | EY37: [2/7/2013=69343] | EZ37: [2/7/2013=69323] | FA37: [2/7/2013=69200] | FB37: [2/7/2013=69162] | FC37: [2/7/2013=69070] | FD37: [2/7/2013=68864] | FE37: [2/7/2013=68811] | FF37: [2/7/2013=68590] | FG37: [2/6/2013=64088] | FH37: [2/6/2013=64292] | FI37: [2/6/2013=64338]
AS38: [2/9/2013=75685] | AT38: [2/9/2013=75523] | AU38: [2/10/2013=79449] | AV38: [2/10/2013=79018] | AW38: [2/10/2013=78811] | AX38: [2/10/2013=78248] | AY38: [2/10/2013=77963] | AZ38: [2/10/2013=77267] | BA38: [2/10/2013=76972] | BB38: [2/10/2013=76210] | BC38: [2/9/2013=75299] | BD38: [2/9/2013=75683] | BE38: [2/9/2013=75022] | BF38: [2/9/2013=74837] | BG38: [2/9/2013=74684] | BH38: [2/9/2013=74605] | BI38: [2/9/2013=74460] | BJ38: [2/9/2013=74426] | BK38: [2/9/2013=74322] | BN38: [2/9/2013=74002] | BO38: [2/9/2013=73915] | BP38: [2/9/2013=75397] | BQ38: [2/9/2013=75221] | BR38: [2/9/2013=75052] | BS38: [2/9/2013=74895] | BT38: [2/9/2013=74712] | BU38: [2/9/2013=74552] | BV38: [2/9/2013=74351] | BW38: [2/9/2013=74209] | BX38: [2/9/2013=74058] | BY38: [2/9/2013=73912] | BZ38: [2/9/2013=73540] | CA38: [2/8/2013=73374] | CB38: [2/8/2013=73049] | CC38: [2/8/2013=72653] | CD38: [2/8/2013=72252] | CE38: [2/8/2013=72000] | CF38: [2/8/2013=71724] | CG38: [2/8/2013=71468] | CH38: [2/8/2013=71194] | CI38: [2/9/2013=73737] | CJ38: [2/9/2013=73498] | CK38: [2/8/2013=73317] | CL38: [2/8/2013=73063] | CM38: [2/8/2013=72524] | CN38: [2/8/2013=72277] | CO38: [2/8/2013=72018] | CP38: [2/8/2013=71537] | CQ38: [2/8/2013=71361] | CT38: [2/9/2013=73599] | CU38: [2/8/2013=73345] | CV38: [2/8/2013=73139] | CW38: [2/8/2013=72620] | CX38: [2/8/2013=72342] | CY38: [2/8/2013=71929] | CZ38: [2/8/2013=71750] | DA38: [2/8/2013=71371] | DB38: [2/8/2013=71209] | DC38: [2/7/2013=69243][2/8/2013=70869] | DD38: [2/7/2013=68684][2/8/2013=70950] | DE38: [2/7/2013=68638][2/8/2013=72534] | DF38: [2/7/2013=68138][2/8/2013=72504] | DG38: [2/7/2013=67623][2/8/2013=72178] | DH38: [2/7/2013=67334][2/8/2013=72005] | DI38: [2/7/2013=67020][2/8/2013=71744] | DJ38: [2/7/2013=67046][2/8/2013=71579] | DK38: [2/6/2013=66007][2/8/2013=71561] | DL38: [2/8/2013=72759] | DM38: [2/8/2013=72799] | DN38: [2/6/2013=65990][2/8/2013=71011] | DO38: [2/8/2013=72838] | DP38: [2/8/2013=72843] | DQ38: [2/7/2013=68531][2/8/2013=70989] | DR38: [2/7/2013=67853] | DS38: [2/7/2013=67823] | DT38: [2/7/2013=67470] | DU38: [2/7/2013=67452] | DV38: [2/7/2013=67021] | DW38: [2/6/2013=66735] | DX38: [2/6/2013=65797] | DY38: [2/6/2013=65670] | DZ38: [2/6/2013=65650] | EA38: [2/6/2013=65340] | EB38: [2/6/2013=65145] | EC38: [2/7/2013=69182] | ED38: [2/7/2013=69371] | EE38: [2/7/2013=69537] | EF38: [2/7/2013=69597] | EG38: [2/7/2013=69757] | EH38: [2/7/2013=67792] | EI38: [2/7/2013=67733] | EJ38: [2/7/2013=67110] | EK38: [2/7/2013=67085] | EL38: [2/6/2013=66146] | EM38: [2/6/2013=66099] | EN38: [2/6/2013=64859] | EO38: [2/6/2013=64835] | EP38: [2/7/2013=68314] | EQ38: [2/7/2013=68287] | ER38: [2/7/2013=67897] | ES38: [2/7/2013=67880] | ET38: [2/7/2013=67293] | EU38: [2/6/2013=66778] | EV38: [2/7/2013=67124] | EW38: [2/7/2013=67257] | EX38: [2/7/2013=67160] | EY38: [2/7/2013=69340] | EZ38: [2/7/2013=69326] | FA38: [2/7/2013=69198] | FB38: [2/7/2013=69165] | FC38: [2/7/2013=69073] | FD38: [2/7/2013=68860] | FE38: [2/7/2013=68814] | FF38: [2/7/2013=68587] | FG38: [2/6/2013=64085] | FH38: [2/6/2013=64295] | FI38: [2/6/2013=64335]
AS39: [2/9/2013=75688] | AT39: [2/9/2013=75521] | AU39: [2/10/2013=79448] | AV39: [2/10/2013=79023] | AW39: [2/10/2013=78809] | AX39: [2/10/2013=78252] | AY39: [2/10/2013=77961] | AZ39: [2/10/2013=77271] | BA39: [2/10/2013=76967] | BB39: [2/10/2013=76207] | BC39: [2/9/2013=75297] | BD39: [2/9/2013=75684] | BE39: [2/9/2013=75020] | BF39: [2/9/2013=74839] | BG39: [2/9/2013=74682] | BH39: [2/9/2013=74607] | BI39: [2/9/2013=74459] | BJ39: [2/9/2013=74428] | BK39: [2/9/2013=74324] | BN39: [2/9/2013=74004] | BO39: [2/9/2013=73913] | BP39: [2/9/2013=75399] | BQ39: [2/9/2013=75219] | BR39: [2/9/2013=75054] | BS39: [2/9/2013=74893] | BT39: [2/9/2013=74714] | BU39: [2/9/2013=74546] | BV39: [2/9/2013=74353] | BW39: [2/9/2013=74208] | BX39: [2/9/2013=74061] | BY39: [2/9/2013=73910] | BZ39: [2/9/2013=73543] | CA39: [2/8/2013=73371] | CB39: [2/8/2013=73052] | CC39: [2/8/2013=72650] | CD39: [2/8/2013=72256] | CE39: [2/8/2013=71997] | CF39: [2/8/2013=71726] | CG39: [2/8/2013=71465] | CH39: [2/8/2013=71199] | CI39: [2/9/2013=73734] | CJ39: [2/9/2013=73501] | CK39: [2/8/2013=73314] | CL39: [2/8/2013=73061] | CM39: [2/8/2013=72528] | CN39: [2/8/2013=72273] | CO39: [2/8/2013=72021] | CP39: [2/8/2013=71534] | CQ39: [2/8/2013=71364] | CT39: [2/9/2013=73596] | CU39: [2/8/2013=73342] | CV39: [2/8/2013=73138] | CW39: [2/8/2013=72624] | CX39: [2/8/2013=72338] | CY39: [2/8/2013=71932] | CZ39: [2/8/2013=71748] | DA39: [2/8/2013=71374] | DB39: [2/8/2013=71206] | DC39: [2/7/2013=69239][2/8/2013=70867] | DD39: [2/7/2013=68688][2/8/2013=70952] | DE39: [2/7/2013=68634][2/8/2013=72537] | DF39: [2/7/2013=68141][2/8/2013=72500] | DG39: [2/7/2013=69693][2/8/2013=72185] | DH39: [2/7/2013=67337][2/8/2013=72009] | DI39: [2/7/2013=67016][2/8/2013=71746] | DJ39: [2/7/2013=67049][2/8/2013=71582] | DK39: [2/6/2013=66009][2/8/2013=71558] | DL39: [2/8/2013=72758] | DM39: [2/8/2013=72800] | DN39: [2/6/2013=65989][2/8/2013=71013] | DO39: [2/8/2013=72837] | DP39: [2/8/2013=72844] | DQ39: [2/7/2013=68528][2/8/2013=70987] | DR39: [2/7/2013=67856] | DS39: [2/7/2013=67818] | DT39: [2/7/2013=67473] | DU39: [2/7/2013=67449] | DV39: [2/7/2013=67025] | DW39: [2/6/2013=66729] | DX39: [2/6/2013=65799] | DY39: [2/6/2013=65673] | DZ39: [2/6/2013=65647] | EA39: [2/6/2013=65343] | EB39: [2/6/2013=65142] | EC39: [2/7/2013=69185] | ED39: [2/7/2013=69375] | EE39: [2/7/2013=69540] | EF39: [2/7/2013=69599] | EG39: [2/7/2013=69760] | EH39: [2/7/2013=67795] | EI39: [2/7/2013=67730] | EJ39: [2/7/2013=67114] | EK39: [2/7/2013=67081] | EL39: [2/6/2013=66148] | EM39: [2/6/2013=66097] | EN39: [2/6/2013=64870] | EO39: [2/6/2013=64833] | EP39: [2/7/2013=68316] | EQ39: [2/7/2013=68281] | ER39: [2/7/2013=67900] | ES39: [2/7/2013=67878] | ET39: [2/7/2013=67298] | EU39: [2/6/2013=66780] | EV39: [2/7/2013=67120] | EW39: [2/7/2013=67258] | EX39: [2/7/2013=67164] | EY39: [2/6/2013=66110] | EZ39: [2/7/2013=69329] | FA39: [2/7/2013=69195] | FB39: [2/7/2013=69168] | FC39: [2/7/2013=69076] | FD39: [2/7/2013=68856] | FE39: [2/7/2013=68818] | FF39: [2/7/2013=68583] | FG39: [2/6/2013=64081] | FH39: [2/6/2013=64299] | FI39: [2/6/2013=64332]
AS40: [2/9/2013=75904] | AT40: [2/9/2013=75514] | AU40: [2/10/2013=79446] | AV40: [2/10/2013=79028] | AW40: [2/10/2013=78807] | AX40: [2/10/2013=78257] | AY40: [2/10/2013=77958] | AZ40: [2/10/2013=77274] | BA40: [2/10/2013=76962] | BB40: [2/10/2013=76204] | BC40: [2/9/2013=75295] | BD40: [2/9/2013=75686] | BE40: [2/9/2013=75018] | BF40: [2/9/2013=74841] | BG40: [2/9/2013=74680] | BH40: [2/9/2013=74609] | BI40: [2/9/2013=74458] | BJ40: [2/9/2013=74430] | BK40: [2/9/2013=74327] | BN40: [2/9/2013=74006] | BO40: [2/9/2013=73911] | BP40: [2/9/2013=75401] | BQ40: [2/9/2013=75217] | BR40: [2/9/2013=75056] | BS40: [2/9/2013=74891] | BT40: [2/9/2013=74718] | BU40: [2/9/2013=74544] | BV40: [2/9/2013=74355] | BW40: [2/9/2013=74206] | BX40: [2/9/2013=74063] | BY40: [2/9/2013=73908] | BZ40: [2/9/2013=73546] | CA40: [2/8/2013=73368] | CB40: [2/8/2013=73054] | CC40: [2/8/2013=72647] | CD40: [2/8/2013=72260] | CE40: [2/8/2013=71994] | CF40: [2/8/2013=71728] | CG40: [2/8/2013=71463] | CH40: [2/8/2013=71203] | CI40: [2/9/2013=73731] | CJ40: [2/9/2013=73504] | CK40: [2/8/2013=73311] | CL40: [2/8/2013=73059] | CM40: [2/8/2013=72532] | CN40: [2/8/2013=72269] | CO40: [2/8/2013=72023] | CP40: [2/8/2013=71530] | CQ40: [2/8/2013=71367] | CS40: [2/9/2013=73795] | CT40: [2/9/2013=73593] | CU40: [2/8/2013=73340] | CV40: [2/8/2013=73137] | CW40: [2/8/2013=72627] | CX40: [2/8/2013=72334] | CY40: [2/8/2013=71935] | CZ40: [2/8/2013=71740] | DA40: [2/8/2013=71377] | DB40: [2/8/2013=71204] | DC40: [2/7/2013=69235][2/8/2013=70866] | DD40: [2/7/2013=68696][2/8/2013=70954] | DE40: [2/7/2013=68630][2/8/2013=72541] | DF40: [2/7/2013=68145][2/8/2013=72496] | DG40: [2/7/2013=69694][2/8/2013=72189] | DH40: [2/7/2013=67340][2/8/2013=72024] | DI40: [2/7/2013=67012][2/8/2013=71749] | DJ40: [2/7/2013=67052][2/8/2013=71585] | DK40: [2/6/2013=66011][2/8/2013=71556] | DL40: [2/8/2013=72756] | DM40: [2/8/2013=72801] | DN40: [2/6/2013=65988][2/8/2013=71015] | DO40: [2/8/2013=72836] | DP40: [2/8/2013=72845] | DQ40: [2/7/2013=68522][2/8/2013=70985] | DR40: [2/7/2013=67859] | DS40: [2/7/2013=67815] | DT40: [2/7/2013=67476] | DU40: [2/7/2013=67446] | DV40: [2/7/2013=67029] | DW40: [2/6/2013=66724] | DX40: [2/6/2013=65801] | DY40: [2/6/2013=65676] | DZ40: [2/6/2013=65645] | EA40: [2/6/2013=65345] | EB40: [2/6/2013=65139] | EC40: [2/7/2013=69188] | ED40: [2/7/2013=69378] | EE40: [2/7/2013=69542] | EF40: [2/7/2013=69601] | EG40: [2/7/2013=66979] | EH40: [2/7/2013=67798] | EI40: [2/7/2013=67727] | EJ40: [2/7/2013=67118] | EK40: [2/7/2013=67077] | EL40: [2/6/2013=66150] | EM40: [2/6/2013=66095] | EN40: [2/6/2013=64866] | EO40: [2/6/2013=64830] | EP40: [2/7/2013=68318] | EQ40: [2/7/2013=68276] | ER40: [2/7/2013=67903] | ES40: [2/7/2013=67876] | ET40: [2/7/2013=67301] | EU40: [2/6/2013=66782] | EV40: [2/7/2013=67116] | EW40: [2/7/2013=67259] | EX40: [2/7/2013=67168] | EY40: [2/6/2013=66111] | EZ40: [2/7/2013=69332] | FA40: [2/7/2013=69192] | FB40: [2/7/2013=69171] | FC40: [2/7/2013=69079] | FD40: [2/7/2013=68852] | FE40: [2/7/2013=68822] | FF40: [2/7/2013=68579] | FG40: [2/6/2013=64077] | FH40: [2/6/2013=64302] | FI40: [2/6/2013=64330]
AR41: [2/9/2013=75889] | AS41: [2/9/2013=75908] | AT41: [2/9/2013=75511] | AU41: [2/10/2013=79444] | AV41: [2/10/2013=79033] | AW41: [2/10/2013=78805] | AX41: [2/10/2013=78261] | AY41: [2/10/2013=77955] | AZ41: [2/10/2013=77277] | BA41: [2/10/2013=76957] | BB41: [2/10/2013=76200] | BC41: [2/9/2013=75293] | BD41: [2/9/2013=75687] | BE41: [2/9/2013=75016] | BF41: [2/9/2013=74843] | BG41: [2/9/2013=74679] | BH41: [2/9/2013=74611] | BI41: [2/9/2013=74448] | BJ41: [2/9/2013=74432] | BN41: [2/9/2013=74008] | BO41: [2/9/2013=73909] | BP41: [2/9/2013=75403] | BQ41: [2/9/2013=75215] | BR41: [2/9/2013=75058] | BS41: [2/9/2013=74889] | BT41: [2/9/2013=74720] | BU41: [2/9/2013=74542] | BV41: [2/9/2013=74357] | BW41: [2/9/2013=74204] | BX41: [2/9/2013=74066] | BY41: [2/9/2013=73905] | BZ41: [2/9/2013=73549] | CA41: [2/8/2013=73365] | CB41: [2/8/2013=73056] | CC41: [2/8/2013=72644] | CD41: [2/8/2013=72264] | CE41: [2/8/2013=71991] | CF41: [2/8/2013=71729] | CG41: [2/8/2013=71460] | CH41: [2/8/2013=71205] | CI41: [2/9/2013=73729] | CJ41: [2/9/2013=73507] | CK41: [2/8/2013=73308] | CL41: [2/8/2013=73057] | CM41: [2/8/2013=72536] | CN41: [2/8/2013=72265] | CO41: [2/8/2013=72028] | CP41: [2/8/2013=71526] | CQ41: [2/8/2013=71370] | CS41: [2/9/2013=73792] | CT41: [2/9/2013=73590] | CU41: [2/8/2013=73338] | CV41: [2/8/2013=73135] | CW41: [2/8/2013=72630] | CX41: [2/8/2013=72330] | CY41: [2/8/2013=71938] | CZ41: [2/8/2013=71736] | DA41: [2/8/2013=71380] | DB41: [2/8/2013=71202] | DC41: [2/7/2013=69232][2/8/2013=70865] | DD41: [2/7/2013=68699][2/8/2013=70956] | DE41: [2/7/2013=68625][2/8/2013=72545] | DF41: [2/7/2013=68150][2/8/2013=72493] | DG41: [2/7/2013=69695][2/8/2013=72193] | DH41: [2/7/2013=67343][2/8/2013=72017] | DI41: [2/7/2013=67009][2/8/2013=71751] | DJ41: [2/7/2013=67056][2/8/2013=71588] | DK41: [2/6/2013=66013][2/8/2013=71551] | DL41: [2/8/2013=72754] | DM41: [2/8/2013=72802] | DN41: [2/6/2013=65987][2/8/2013=71018] | DO41: [2/8/2013=72835] | DP41: [2/8/2013=72846] | DQ41: [2/7/2013=68519][2/8/2013=70983] | DR41: [2/7/2013=67862] | DS41: [2/7/2013=67812] | DT41: [2/7/2013=67479] | DU41: [2/7/2013=67443] | DV41: [2/7/2013=67033] | DW41: [2/6/2013=66719] | DX41: [2/6/2013=65803] | DY41: [2/6/2013=65679] | DZ41: [2/6/2013=65643] | EA41: [2/6/2013=65348] | EB41: [2/6/2013=65136] | EC41: [2/7/2013=69191] | ED41: [2/7/2013=69381] | EE41: [2/7/2013=69546] | EF41: [2/7/2013=69603] | EG41: [2/7/2013=66981] | EH41: [2/7/2013=67801] | EI41: [2/7/2013=67724] | EJ41: [2/7/2013=67122] | EK41: [2/7/2013=67072] | EL41: [2/6/2013=66152] | EM41: [2/6/2013=66093] | EN41: [2/6/2013=64873] | EO41: [2/6/2013=64827] | EP41: [2/7/2013=68320] | EQ41: [2/7/2013=68272] | ER41: [2/7/2013=67906] | ES41: [2/7/2013=67873] | ET41: [2/7/2013=67303] | EU41: [2/6/2013=66784] | EV41: [2/7/2013=67112] | EW41: [2/7/2013=67260] | EX41: [2/7/2013=67172] | EY41: [2/6/2013=66112] | EZ41: [2/7/2013=69334] | FA41: [2/7/2013=69189] | FB41: [2/7/2013=69173] | FC41: [2/6/2013=66889] | FD41: [2/7/2013=68849] | FE41: [2/7/2013=68826] | FF41: [2/7/2013=68576] | FG41: [2/6/2013=64073] | FH41: [2/6/2013=64306] | FI41: [2/6/2013=64327]
AR42: [2/9/2013=75884] | AS42: [2/9/2013=75912] | AT42: [2/9/2013=75509] | AU42: [2/10/2013=79442] | AV42: [2/10/2013=79038] | AW42: [2/10/2013=78803] | AX42: [2/10/2013=78265] | AY42: [2/10/2013=77953] | AZ42: [2/10/2013=77280] | BA42: [2/10/2013=76952] | BB42: [2/10/2013=76197] | BC42: [2/9/2013=75275] | BD42: [2/9/2013=75689] | BE42: [2/9/2013=75012] | BF42: [2/9/2013=74845] | BG42: [2/9/2013=74677] | BH42: [2/9/2013=74613] | BI42: [2/9/2013=74449] | BJ42: [2/9/2013=74434] | BN42: [2/9/2013=74010] | BO42: [2/9/2013=73907] | BP42: [2/9/2013=75404] | BQ42: [2/9/2013=75213] | BR42: [2/9/2013=75060] | BS42: [2/9/2013=74887] | BT42: [2/9/2013=74722] | BU42: [2/9/2013=74540] | BV42: [2/9/2013=74359] | BW42: [2/9/2013=74202] | BX42: [2/9/2013=74070] | BY42: [2/9/2013=73903] | BZ42: [2/9/2013=73552] | CA42: [2/8/2013=73362] | CB42: [2/8/2013=73058] | CC42: [2/8/2013=72641] | CD42: [2/8/2013=72268] | CE42: [2/8/2013=71988] | CF42: [2/8/2013=71731] | CG42: [2/8/2013=71457] | CH42: [2/8/2013=71211] | CI42: [2/9/2013=73726] | CJ42: [2/9/2013=73510] | CK42: [2/8/2013=73305] | CL42: [2/8/2013=73055] | CM42: [2/8/2013=72540] | CN42: [2/8/2013=72261] | CO42: [2/8/2013=72032] | CP42: [2/8/2013=71522] | CQ42: [2/8/2013=71373] | CS42: [2/9/2013=73788] | CT42: [2/9/2013=73587] | CU42: [2/8/2013=73335] | CV42: [2/8/2013=73133] | CW42: [2/8/2013=72633] | CX42: [2/8/2013=72326] | CY42: [2/8/2013=71941] | CZ42: [2/8/2013=71734] | DA42: [2/8/2013=71383] | DB42: [2/8/2013=71198] | DC42: [2/7/2013=69229][2/8/2013=70864] | DD42: [2/7/2013=68704][2/8/2013=70958] | DE42: [2/7/2013=68620][2/8/2013=72549] | DF42: [2/7/2013=68154][2/8/2013=72491] | DG42: [2/7/2013=69696][2/8/2013=72198] | DH42: [2/7/2013=67345][2/8/2013=72027] | DI42: [2/7/2013=67006][2/8/2013=71754] | DJ42: [2/7/2013=67059][2/8/2013=71591] | DK42: [2/6/2013=66014][2/8/2013=71548] | DL42: [2/8/2013=72753] | DM42: [2/8/2013=72803] | DN42: [2/6/2013=65986][2/8/2013=71020] | DO42: [2/8/2013=72834] | DP42: [2/8/2013=72847] | DQ42: [2/7/2013=68516][2/8/2013=70981] | DR42: [2/7/2013=67865] | DS42: [2/7/2013=67809] | DT42: [2/7/2013=67482] | DU42: [2/7/2013=67440] | DV42: [2/7/2013=67037] | DW42: [2/6/2013=66714] | DX42: [2/6/2013=65815] | DY42: [2/6/2013=65682] | DZ42: [2/6/2013=65641] | EA42: [2/6/2013=65350] | EB42: [2/6/2013=65133] | EC42: [2/7/2013=69193] | ED42: [2/7/2013=69385] | EE42: [2/7/2013=69548] | EF42: [2/7/2013=66994] | EG42: [2/7/2013=66983] | EH42: [2/7/2013=67804] | EI42: [2/7/2013=67717] | EJ42: [2/7/2013=67126] | EK42: [2/7/2013=67068] | EL42: [2/6/2013=66154] | EM42: [2/6/2013=66091] | EN42: [2/6/2013=64876] | EO42: [2/6/2013=64824] | EP42: [2/7/2013=68324] | EQ42: [2/7/2013=68268] | ER42: [2/7/2013=67909] | ES42: [2/7/2013=67871] | ET42: [2/7/2013=67306] | EU42: [2/6/2013=66786] | EV42: [2/7/2013=67108] | EW42: [2/7/2013=67261] | EX42: [2/7/2013=67176] | EY42: [2/6/2013=66113] | EZ42: [2/6/2013=66109] | FA42: [2/7/2013=69186] | FB42: [2/7/2013=69175] | FC42: [2/6/2013=66888] | FD42: [2/7/2013=68845] | FE42: [2/7/2013=68829] | FF42: [2/7/2013=68572] | FG42: [2/6/2013=64069] | FH42: [2/6/2013=64309] | FI42: [2/6/2013=64325]
AR43: [2/9/2013=75879] | AS43: [2/9/2013=75916] | AT43: [2/9/2013=75506] | AU43: [2/10/2013=79439] | AV43: [2/10/2013=79043] | AW43: [2/10/2013=78802] | AX43: [2/10/2013=78269] | AY43: [2/10/2013=77951] | AZ43: [2/10/2013=77283] | BA43: [2/10/2013=76947] | BB43: [2/10/2013=76193] | BC43: [2/9/2013=75273] | BD43: [2/9/2013=75693] | BE43: [2/9/2013=75010] | BF43: [2/9/2013=74847] | BG43: [2/9/2013=74676] | BH43: [2/9/2013=74615] | BI43: [2/9/2013=74450] | BJ43: [2/9/2013=74436] | BM43: [2/9/2013=74197] | BN43: [2/9/2013=74012] | BO43: [2/9/2013=73906] | BP43: [2/9/2013=75405] | BQ43: [2/9/2013=75211] | BR43: [2/9/2013=75062] | BS43: [2/9/2013=74885] | BT43: [2/9/2013=74724] | BU43: [2/9/2013=74536] | BV43: [2/9/2013=74363] | BW43: [2/9/2013=74200] | BX43: [2/9/2013=74075] | BY43: [2/9/2013=73901] | BZ43: [2/9/2013=73555] | CA43: [2/8/2013=73359] | CB43: [2/8/2013=73060] | CC43: [2/8/2013=72638] | CD43: [2/8/2013=72272] | CE43: [2/8/2013=71985] | CF43: [2/8/2013=71733] | CG43: [2/8/2013=71454] | CH43: [2/8/2013=71214] | CI43: [2/9/2013=73724] | CJ43: [2/9/2013=73513] | CK43: [2/8/2013=73302] | CL43: [2/8/2013=73053] | CM43: [2/8/2013=72544] | CN43: [2/8/2013=72257] | CO43: [2/8/2013=72036] | CP43: [2/8/2013=71518] | CQ43: [2/8/2013=71376] | CS43: [2/9/2013=73785] | CT43: [2/9/2013=73584] | CU43: [2/8/2013=73333] | CV43: [2/8/2013=73131] | CW43: [2/8/2013=72636] | CX43: [2/8/2013=72322] | CY43: [2/8/2013=71945] | CZ43: [2/8/2013=71732] | DA43: [2/8/2013=71386] | DB43: [2/8/2013=71195] | DC43: [2/7/2013=69225][2/8/2013=70863] | DD43: [2/7/2013=68708][2/8/2013=70960] | DE43: [2/7/2013=68616][2/8/2013=72553] | DF43: [2/7/2013=68158][2/8/2013=72489] | DG43: [2/7/2013=69697][2/8/2013=72203] | DH43: [2/7/2013=67347][2/8/2013=72031] | DI43: [2/7/2013=67002][2/8/2013=71756] | DJ43: [2/7/2013=67063][2/8/2013=71594] | DK43: [2/6/2013=66017][2/8/2013=71544] | DL43: [2/8/2013=72751] | DM43: [2/8/2013=72804] | DN43: [2/6/2013=65985][2/8/2013=71022] | DO43: [2/8/2013=72833] | DP43: [2/8/2013=72848] | DQ43: [2/7/2013=68513][2/8/2013=70979] | DR43: [2/7/2013=67867] | DS43: [2/7/2013=67805] | DT43: [2/7/2013=67485] | DU43: [2/7/2013=67438] | DV43: [2/7/2013=67042] | DW43: [2/6/2013=66710] | DX43: [2/6/2013=65806] | DY43: [2/6/2013=65684] | DZ43: [2/6/2013=65638] | EA43: [2/6/2013=65352] | EB43: [2/6/2013=65130] | EC43: [2/7/2013=69196] | ED43: [2/7/2013=69389] | EE43: [2/7/2013=69550] | EF43: [2/7/2013=66993] | EG43: [2/7/2013=66985] | EH43: [2/7/2013=67807] | EI43: [2/7/2013=67715] | EJ43: [2/7/2013=67130] | EK43: [2/7/2013=67054] | EL43: [2/6/2013=66156] | EM43: [2/6/2013=66089] | EN43: [2/6/2013=64879] | EO43: [2/6/2013=64821] | EP43: [2/7/2013=68328] | EQ43: [2/7/2013=68264] | ER43: [2/7/2013=67912] | ES43: [2/7/2013=67868] | ET43: [2/7/2013=67308] | EU43: [2/6/2013=66788] | EV43: [2/7/2013=67104] | EW43: [2/7/2013=67262] | EX43: [2/7/2013=67180] | EY43: [2/6/2013=66114] | EZ43: [2/6/2013=66108] | FA43: [2/7/2013=69183] | FB43: [2/7/2013=69178] | FC43: [2/6/2013=66887] | FD43: [2/7/2013=68841] | FE43: [2/7/2013=68833] | FF43: [2/7/2013=68568] | FG43: [2/6/2013=64065] | FH43: [2/6/2013=64313] | FI43: [2/6/2013=64321]
AR44: [2/9/2013=75875] | AS44: [2/9/2013=75917] | AT44: [2/9/2013=75501] | AU44: [2/10/2013=79436] | AV44: [2/10/2013=79048] | AW44: [2/10/2013=78800] | AX44: [2/10/2013=78273] | AY44: [2/10/2013=77948] | AZ44: [2/10/2013=77287] | BA44: [2/10/2013=76943] | BB44: [2/10/2013=76189] | BC44: [2/9/2013=75271] | BD44: [2/9/2013=75696] | BE44: [2/9/2013=75008] | BF44: [2/9/2013=74849] | BG44: [2/9/2013=74674] | BH44: [2/9/2013=74617] | BI44: [2/9/2013=74451] | BJ44: [2/9/2013=74438] | BM44: [2/9/2013=74195] | BN44: [2/9/2013=74014] | BO44: [2/9/2013=73904] | BP44: [2/9/2013=75407] | BQ44: [2/9/2013=75205] | BR44: [2/9/2013=75064] | BS44: [2/9/2013=74883] | BT44: [2/9/2013=74726] | BU44: [2/9/2013=74534] | BV44: [2/9/2013=74365] | BW44: [2/9/2013=74198] | BX44: [2/9/2013=74078] | BY44: [2/9/2013=73899] | BZ44: [2/9/2013=73558] | CA44: [2/8/2013=73356] | CB44: [2/8/2013=73062] | CC44: [2/8/2013=72631] | CD44: [2/8/2013=72276] | CE44: [2/8/2013=71983] | CF44: [2/8/2013=71735] | CG44: [2/8/2013=71451] | CH44: [2/8/2013=71216] | CI44: [2/9/2013=73723] | CJ44: [2/9/2013=73516] | CK44: [2/8/2013=73299] | CL44: [2/8/2013=73051] | CM44: [2/8/2013=72548] | CN44: [2/8/2013=72253] | CO44: [2/8/2013=72040] | CP44: [2/8/2013=71514] | CQ44: [2/8/2013=71379] | CS44: [2/9/2013=73782] | CT44: [2/9/2013=73581] | CU44: [2/8/2013=73331] | CV44: [2/8/2013=73129] | CW44: [2/8/2013=72639] | CX44: [2/8/2013=72318] | CY44: [2/8/2013=71948] | CZ44: [2/8/2013=71730] | DA44: [2/8/2013=71389] | DB44: [2/8/2013=71191] | DC44: [2/7/2013=69221][2/8/2013=70862] | DD44: [2/7/2013=68712][2/8/2013=70962] | DE44: [2/7/2013=68613][2/8/2013=72559] | DF44: [2/7/2013=68161][2/8/2013=72487] | DG44: [2/7/2013=69698][2/8/2013=72216] | DH44: [2/7/2013=67350][2/8/2013=72035] | DI44: [2/7/2013=66999][2/8/2013=71758] | DJ44: [2/7/2013=67067][2/8/2013=71597] | DK44: [2/6/2013=66020][2/8/2013=71540] | DL44: [2/8/2013=72750] | DM44: [2/8/2013=72805] | DN44: [2/6/2013=65984][2/8/2013=71024] | DO44: [2/8/2013=72832] | DP44: [2/8/2013=72849] | DQ44: [2/7/2013=68509][2/8/2013=70977] | DR44: [2/7/2013=67869] | DS44: [2/7/2013=67802] | DT44: [2/7/2013=67488] | DU44: [2/7/2013=67435] | DV44: [2/7/2013=67047] | DW44: [2/6/2013=66706] | DX44: [2/6/2013=65808] | DY44: [2/6/2013=65687] | DZ44: [2/6/2013=65636] | EA44: [2/6/2013=65353] | EB44: [2/6/2013=65127] | EC44: [2/7/2013=69199] | ED44: [2/7/2013=69397] | EE44: [2/7/2013=69552] | EF44: [2/7/2013=66992] | EG44: [2/7/2013=66987] | EH44: [2/7/2013=67813] | EI44: [2/7/2013=67708] | EJ44: [2/7/2013=67135] | EK44: [2/7/2013=67045] | EL44: [2/6/2013=66158] | EM44: [2/6/2013=66087] | EN44: [2/6/2013=64880] | EO44: [2/6/2013=64818] | EP44: [2/7/2013=68332] | EQ44: [2/7/2013=68260] | ER44: [2/7/2013=67915] | ES44: [2/7/2013=67866] | ET44: [2/7/2013=67310] | EU44: [2/6/2013=66791] | EV44: [2/7/2013=67100] | EW44: [2/7/2013=67263] | EX44: [2/7/2013=67184] | EY44: [2/6/2013=66115] | EZ44: [2/6/2013=66107] | FA44: [2/6/2013=66871] | FB44: [2/6/2013=66872] | FC44: [2/6/2013=66886] | FD44: [2/6/2013=65357] | FE44: [2/6/2013=63758] | FF44: [2/6/2013=65351] | FG44: [2/6/2013=64061] | FH44: [2/6/2013=63825] | FI44: [2/6/2013=63824]
AR45: [2/9/2013=75872] | AS45: [2/9/2013=75918] | AT45: [2/9/2013=75499] | AU45: [2/10/2013=79433] | AV45: [2/10/2013=79051] | AW45: [2/10/2013=78798] | AX45: [2/10/2013=78277] | AY45: [2/10/2013=77945] | AZ45: [2/10/2013=77292] | BA45: [2/10/2013=76939] | BB45: [2/10/2013=76185] | BC45: [2/9/2013=75269] | BD45: [2/9/2013=75700] | BE45: [2/9/2013=75006] | BF45: [2/9/2013=74851] | BG45: [2/9/2013=74672] | BH45: [2/9/2013=74619] | BI45: [2/9/2013=74452] | BJ45: [2/9/2013=74440] | BM45: [2/9/2013=74193] | BN45: [2/9/2013=74016] | BO45: [2/9/2013=73902] | BP45: [2/9/2013=75408] | BQ45: [2/9/2013=75203] | BR45: [2/9/2013=75066] | BS45: [2/9/2013=74881] | BT45: [2/9/2013=74728] | BU45: [2/9/2013=74533] | BV45: [2/9/2013=74369] | BW45: [2/9/2013=74196] | BX45: [2/9/2013=74082] | BY45: [2/9/2013=73897] | BZ45: [2/9/2013=73561] | CA45: [2/8/2013=73353] | CB45: [2/8/2013=73080] | CC45: [2/8/2013=72628] | CD45: [2/8/2013=72280] | CE45: [2/8/2013=71980] | CF45: [2/8/2013=71737] | CG45: [2/8/2013=71447] | CH45: [2/8/2013=71218] | CI45: [2/9/2013=73722] | CJ45: [2/9/2013=73519] | CK45: [2/8/2013=73296] | CL45: [2/8/2013=73050] | CM45: [2/8/2013=72552] | CN45: [2/8/2013=72249] | CO45: [2/8/2013=72044] | CP45: [2/8/2013=71511] | CQ45: [2/8/2013=71382] | CS45: [2/9/2013=73779] | CT45: [2/9/2013=73578] | CU45: [2/8/2013=73328] | CV45: [2/8/2013=73128] | CW45: [2/8/2013=72642] | CX45: [2/8/2013=72315] | CY45: [2/8/2013=71951] | CZ45: [2/8/2013=71727] | DA45: [2/8/2013=71392] | DB45: [2/8/2013=71187] | DC45: [2/7/2013=69217][2/8/2013=70861] | DD45: [2/7/2013=68716][2/8/2013=70964] | DE45: [2/7/2013=68610][2/8/2013=72563] | DF45: [2/7/2013=68165][2/8/2013=72484] | DG45: [2/7/2013=69699][2/8/2013=72222] | DH45: [2/7/2013=67352][2/8/2013=72038] | DI45: [2/7/2013=66996][2/8/2013=71761] | DJ45: [2/7/2013=67071][2/8/2013=71599] | DK45: [2/6/2013=66023][2/8/2013=71536] | DL45: [2/8/2013=72748] | DM45: [2/8/2013=72806] | DN45: [2/6/2013=65983][2/8/2013=71026] | DO45: [2/8/2013=72831] | DP45: [2/8/2013=72850] | DQ45: [2/7/2013=68505][2/8/2013=70975] | DR45: [2/7/2013=67872] | DS45: [2/7/2013=67799] | DT45: [2/7/2013=67491] | DU45: [2/7/2013=67432] | DV45: [2/7/2013=67053] | DW45: [2/6/2013=66700] | DX45: [2/6/2013=65810] | DY45: [2/6/2013=65690] | DZ45: [2/6/2013=65633] | EA45: [2/6/2013=65354] | EB45: [2/6/2013=65124] | EC45: [2/7/2013=69202] | ED45: [2/7/2013=69401] | EE45: [2/7/2013=69554] | EF45: [2/7/2013=66991] | EG45: [2/7/2013=68375] | EH45: [2/7/2013=67820] | EI45: [2/7/2013=67703] | EJ45: [2/7/2013=67139] | EK45: [2/7/2013=67041] | EL45: [2/6/2013=66160] | EM45: [2/6/2013=66085] | EN45: [2/6/2013=64882] | EO45: [2/6/2013=64815] | EP45: [2/7/2013=68335] | EQ45: [2/7/2013=68256] | ER45: [2/7/2013=67918] | ES45: [2/7/2013=67864] | ET45: [2/7/2013=67312] | EU45: [2/7/2013=67666] | EV45: [2/7/2013=67097] | EW45: [2/7/2013=67264] | EX45: [2/7/2013=67188] | EY45: [2/6/2013=66116] | EZ45: [2/6/2013=66106] | FA45: [2/6/2013=66870] | FB45: [2/6/2013=66873] | FC45: [2/6/2013=66885] | FD45: [2/6/2013=65360] | FE45: [2/6/2013=63754] | FF45: [2/6/2013=65349] | FG45: [2/6/2013=64058] | FH45: [2/6/2013=63826] | FI45: [2/6/2013=63823]
AR46: [2/9/2013=75869] | AS46: [2/9/2013=75924] | AT46: [2/9/2013=75495] | AU46: [2/10/2013=79430] | AV46: [2/10/2013=79055] | AW46: [2/10/2013=78796] | AX46: [2/10/2013=78281] | AY46: [2/10/2013=77942] | AZ46: [2/10/2013=77296] | BA46: [2/10/2013=76935] | BB46: [2/10/2013=76180] | BC46: [2/9/2013=75267] | BD46: [2/9/2013=75704] | BE46: [2/9/2013=75004] | BF46: [2/9/2013=74853] | BG46: [2/9/2013=74670] | BH46: [2/9/2013=74621] | BI46: [2/9/2013=74453] | BJ46: [2/9/2013=74442] | BM46: [2/9/2013=74191] | BN46: [2/9/2013=74018] | BO46: [2/9/2013=73900] | BP46: [2/9/2013=75410] | BQ46: [2/9/2013=75208] | BR46: [2/9/2013=75068] | BS46: [2/9/2013=74879] | BT46: [2/9/2013=74730] | BU46: [2/9/2013=74532] | BV46: [2/9/2013=74371] | BW46: [2/9/2013=74194] | BX46: [2/9/2013=74085] | BY46: [2/9/2013=73895] | BZ46: [2/9/2013=73565] | CA46: [2/8/2013=73350] | CB46: [2/8/2013=73083] | CC46: [2/8/2013=72625] | CD46: [2/8/2013=72286] | CE46: [2/8/2013=71977] | CF46: [2/8/2013=71738] | CG46: [2/8/2013=71445] | CH46: [2/8/2013=71220] | CI46: [2/9/2013=73721] | CJ46: [2/9/2013=73522] | CK46: [2/8/2013=73294] | CL46: [2/8/2013=73048] | CM46: [2/8/2013=72556] | CN46: [2/8/2013=72245] | CO46: [2/8/2013=72052] | CP46: [2/8/2013=71507] | CQ46: [2/8/2013=71385] | CS46: [2/9/2013=73776] | CT46: [2/9/2013=73575] | CU46: [2/8/2013=73325] | CV46: [2/8/2013=73126] | CW46: [2/8/2013=72646] | CX46: [2/8/2013=72311] | CY46: [2/8/2013=71955] | CZ46: [2/8/2013=71725] | DA46: [2/8/2013=71395] | DB46: [2/8/2013=71183] | DC46: [2/7/2013=69213][2/8/2013=70860] | DD46: [2/7/2013=68721][2/8/2013=70966] | DE46: [2/7/2013=68607][2/8/2013=72567] | DF46: [2/7/2013=68168][2/8/2013=72482] | DG46: [2/7/2013=69700][2/8/2013=72229] | DH46: [2/7/2013=67355][2/8/2013=72042] | DI46: [2/6/2013=66758][2/8/2013=71763] | DJ46: [2/7/2013=67075][2/8/2013=71601] | DK46: [2/6/2013=66054][2/8/2013=71533] | DL46: [2/8/2013=72746] | DM46: [2/8/2013=72807] | DN46: [2/6/2013=65982][2/8/2013=71028] | DO46: [2/8/2013=72830] | DP46: [2/8/2013=72851] | DQ46: [2/7/2013=68501][2/8/2013=70973] | DR46: [2/7/2013=67874] | DS46: [2/7/2013=67796] | DT46: [2/7/2013=67494] | DU46: [2/7/2013=67429] | DV46: [2/7/2013=67057] | DW46: [2/6/2013=66695] | DX46: [2/6/2013=65812] | DY46: [2/6/2013=65693] | DZ46: [2/6/2013=65631] | EA46: [2/6/2013=65355] | EB46: [2/6/2013=65121] | EC46: [2/7/2013=69204] | ED46: [2/7/2013=69405] | EE46: [2/7/2013=69571] | EF46: [2/7/2013=68331] | EG46: [2/7/2013=68372] | EH46: [2/7/2013=67824] | EI46: [2/7/2013=67701] | EJ46: [2/7/2013=67142] | EK46: [2/7/2013=67038] | EL46: [2/6/2013=66164] | EM46: [2/6/2013=66083] | EN46: [2/6/2013=64884] | EO46: [2/6/2013=64812] | EP46: [2/7/2013=68338] | EQ46: [2/7/2013=68252] | ER46: [2/7/2013=67921] | ES46: [2/7/2013=67861] | ET46: [2/7/2013=67314] | EU46: [2/7/2013=67664] | EV46: [2/7/2013=67094] | EW46: [2/7/2013=67265] | EX46: [2/7/2013=67192] | EY46: [2/6/2013=66117] | EZ46: [2/6/2013=66105] | FA46: [2/6/2013=66869] | FB46: [2/6/2013=66874] | FC46: [2/6/2013=66884] | FD46: [2/6/2013=65363] | FE46: [2/6/2013=63750] | FF46: [2/6/2013=65347] | FG46: [2/6/2013=64054] | FH46: [2/6/2013=63827] | FI46: [2/6/2013=63822]
AR47: [2/9/2013=75866] | AS47: [2/9/2013=75926][2/10/2013=75968] | AT47: [2/9/2013=75493] | AU47: [2/10/2013=79428] | AV47: [2/10/2013=79059] | AW47: [2/10/2013=78794] | AX47: [2/10/2013=78285] | AY47: [2/10/2013=77939] | AZ47: [2/10/2013=77300] | BA47: [2/10/2013=76931] | BB47: [2/10/2013=76175] | BC47: [2/9/2013=75265] | BD47: [2/9/2013=75708] | BE47: [2/9/2013=75002] | BF47: [2/9/2013=74855] | BG47: [2/9/2013=74668] | BH47: [2/9/2013=74623] | BI47: [2/9/2013=74454] | BJ47: [2/9/2013=74444] | BM47: [2/9/2013=74189] | BN47: [2/9/2013=74020] | BO47: [2/9/2013=73898] | BP47: [2/9/2013=75411] | BQ47: [2/9/2013=75199] | BR47: [2/9/2013=75070] | BS47: [2/9/2013=74878] | BT47: [2/9/2013=74732] | BU47: [2/9/2013=74529] | BV47: [2/9/2013=74373] | BW47: [2/9/2013=74192] | BX47: [2/9/2013=74088] | BY47: [2/9/2013=73892] | BZ47: [2/9/2013=73568] | CA47: [2/8/2013=73347] | CB47: [2/8/2013=73085] | CC47: [2/8/2013=72622] | CD47: [2/8/2013=72290] | CE47: [2/8/2013=71974] | CF47: [2/8/2013=71742] | CG47: [2/8/2013=71441] | CH47: [2/8/2013=71222] | CI47: [2/9/2013=73720] | CJ47: [2/9/2013=73525] | CK47: [2/8/2013=73289] | CL47: [2/8/2013=73046] | CM47: [2/8/2013=72560] | CN47: [2/8/2013=72242] | CO47: [2/8/2013=72056] | CP47: [2/8/2013=71503] | CQ47: [2/8/2013=71388] | CS47: [2/9/2013=73773] | CT47: [2/9/2013=73572] | CU47: [2/8/2013=73322] | CV47: [2/8/2013=73124] | CW47: [2/8/2013=72649] | CX47: [2/8/2013=72306] | CY47: [2/8/2013=71963] | CZ47: [2/8/2013=71723] | DA47: [2/8/2013=71397] | DB47: [2/8/2013=71178] | DC47: [2/7/2013=69209][2/8/2013=70859] | DD47: [2/7/2013=68726][2/8/2013=70968] | DE47: [2/7/2013=68603][2/8/2013=72571] | DF47: [2/7/2013=68170][2/8/2013=72480] | DG47: [2/7/2013=69701][2/8/2013=72236] | DH47: [2/7/2013=67358][2/8/2013=72046] | DI47: [2/6/2013=66755][2/8/2013=71765] | DJ47: [2/7/2013=67080][2/8/2013=71604] | DK47: [2/6/2013=66056][2/8/2013=71529] | DL47: [2/8/2013=72745] | DM47: [2/8/2013=72808] | DN47: [2/6/2013=65981][2/8/2013=71029] | DO47: [2/8/2013=72829] | DP47: [2/8/2013=72852] | DQ47: [2/7/2013=68497][2/8/2013=70971] | DR47: [2/7/2013=67877] | DS47: [2/7/2013=67793] | DT47: [2/7/2013=67496] | DU47: [2/7/2013=67427] | DV47: [2/7/2013=67061] | DW47: [2/6/2013=66690] | DX47: [2/6/2013=65817] | DY47: [2/6/2013=65696] | DZ47: [2/6/2013=65628] | EA47: [2/6/2013=65356] | EB47: [2/6/2013=65118] | EC47: [2/7/2013=69207] | ED47: [2/7/2013=69409] | EE47: [2/7/2013=69573] | EF47: [2/7/2013=68327] | EG47: [2/7/2013=68369] | EH47: [2/7/2013=67826] | EI47: [2/7/2013=67697] | EJ47: [2/7/2013=67145] | EK47: [2/7/2013=67034] | EL47: [2/6/2013=66168] | EM47: [2/6/2013=66081] | EN47: [2/6/2013=64886] | EO47: [2/6/2013=64808] | EP47: [2/7/2013=68341] | EQ47: [2/7/2013=68248] | ER47: [2/7/2013=67924] | ES47: [2/7/2013=67857] | ET47: [2/7/2013=67316] | EU47: [2/7/2013=67662] | EV47: [2/7/2013=67090] | EW47: [2/7/2013=67267] | EX47: [2/7/2013=67196] | EY47: [2/6/2013=66118] | EZ47: [2/6/2013=66104] | FA47: [2/6/2013=66868] | FB47: [2/6/2013=66875] | FC47: [2/6/2013=66883] | FD47: [2/6/2013=65365] | FE47: [2/6/2013=63747] | FF47: [2/6/2013=65344] | FG47: [2/6/2013=64050] | FH47: [2/6/2013=63829] | FI47: [2/6/2013=63821]
AR48: [2/9/2013=75861] | AS48: [2/10/2013=75970] | AT48: [2/9/2013=75491] | AU48: [2/10/2013=79425] | AV48: [2/10/2013=79063] | AW48: [2/10/2013=78792] | AX48: [2/10/2013=78291] | AY48: [2/10/2013=77936] | AZ48: [2/10/2013=77303] | BA48: [2/10/2013=76927] | BB48: [2/10/2013=76170] | BC48: [2/9/2013=75263] | BD48: [2/9/2013=75712] | BE48: [2/9/2013=75000] | BF48: [2/9/2013=74857] | BG48: [2/9/2013=74667] | BH48: [2/9/2013=74625] | BI48: [2/9/2013=74455] | BJ48: [2/9/2013=74446] | BM48: [2/9/2013=74187] | BN48: [2/9/2013=74022] | BO48: [2/9/2013=73896] | BP48: [2/9/2013=75413] | BQ48: [2/9/2013=75197] | BR48: [2/9/2013=75072] | BS48: [2/9/2013=74876] | BT48: [2/9/2013=74738] | BU48: [2/9/2013=74527] | BV48: [2/9/2013=74375] | BW48: [2/9/2013=74190] | BX48: [2/9/2013=74090] | BY48: [2/9/2013=73890] | BZ48: [2/9/2013=73571] | CA48: [2/8/2013=73344] | CB48: [2/8/2013=73088] | CC48: [2/8/2013=72619] | CD48: [2/8/2013=72294] | CE48: [2/8/2013=71971] | CF48: [2/8/2013=71745] | CG48: [2/8/2013=71437] | CH48: [2/8/2013=71224] | CI48: [2/9/2013=73718] | CJ48: [2/9/2013=73528] | CK48: [2/8/2013=73286] | CL48: [2/8/2013=73044] | CM48: [2/8/2013=72564] | CN48: [2/8/2013=72238] | CO48: [2/8/2013=72060] | CP48: [2/8/2013=71499] | CQ48: [2/8/2013=71391] | CS48: [2/9/2013=73770] | CT48: [2/9/2013=73569] | CU48: [2/8/2013=73319] | CV48: [2/8/2013=73122] | CW48: [2/8/2013=72652] | CX48: [2/8/2013=72303] | CY48: [2/8/2013=71966] | CZ48: [2/8/2013=71721] | DA48: [2/8/2013=71399] | DB48: [2/8/2013=71175] | DC48: [2/7/2013=69205][2/8/2013=70858] | DD48: [2/7/2013=68730][2/8/2013=70970] | DE48: [2/7/2013=68600][2/8/2013=72575] | DF48: [2/7/2013=68174][2/8/2013=72478] | DG48: [2/7/2013=69702][2/8/2013=72240] | DH48: [2/7/2013=67362][2/8/2013=72049] | DI48: [2/6/2013=66752][2/8/2013=71767] | DJ48: [2/7/2013=67084][2/8/2013=71606] | DK48: [2/6/2013=66059][2/8/2013=71525] | DL48: [2/8/2013=72743] | DM48: [2/8/2013=72809] | DN48: [2/6/2013=65980][2/8/2013=71030] | DO48: [2/8/2013=72828] | DP48: [2/8/2013=72853] | DQ48: [2/7/2013=68493][2/8/2013=70969] | DR48: [2/7/2013=67879] | DS48: [2/7/2013=67790] | DT48: [2/7/2013=67499] | DU48: [2/7/2013=67423] | DV48: [2/7/2013=67065] | DW48: [2/6/2013=66685] | DX48: [2/6/2013=65819] | DY48: [2/6/2013=65698] | DZ48: [2/6/2013=65625] | EA48: [2/6/2013=65359] | EB48: [2/6/2013=65115] | EC48: [2/7/2013=69210] | ED48: [2/7/2013=69412] | EE48: [2/7/2013=69574] | EF48: [2/7/2013=68323] | EG48: [2/7/2013=68366] | EH48: [2/7/2013=67829] | EI48: [2/7/2013=67693] | EJ48: [2/7/2013=67148] | EK48: [2/7/2013=67031] | EL48: [2/6/2013=66172] | EM48: [2/6/2013=66080] | EN48: [2/6/2013=64888] | EO48: [2/6/2013=64799] | EP48: [2/7/2013=68344] | EQ48: [2/7/2013=68244] | ER48: [2/7/2013=67927] | ES48: [2/7/2013=67854] | ET48: [2/7/2013=67319] | EU48: [2/7/2013=67660] | EV48: [2/7/2013=67086] | EW48: [2/7/2013=67268] | EX48: [2/7/2013=67200] | EY48: [2/6/2013=66119] | EZ48: [2/6/2013=66102] | FA48: [2/6/2013=66867] | FB48: [2/6/2013=66876] | FC48: [2/6/2013=65573] | FD48: [2/6/2013=65368] | FE48: [2/6/2013=63740] | FF48: [2/6/2013=65341] | FG48: [2/6/2013=64046] | FH48: [2/6/2013=63831] | FI48: [2/6/2013=63820]
AR49: [2/9/2013=75857] | AS49: [2/10/2013=75974] | AT49: [2/9/2013=75489] | AU49: [2/10/2013=79424] | AV49: [2/10/2013=79066] | AW49: [2/10/2013=78789] | AX49: [2/10/2013=78296] | AY49: [2/10/2013=77933] | AZ49: [2/10/2013=77307] | BA49: [2/10/2013=76923] | BB49: [2/10/2013=76166] | BC49: [2/9/2013=75261] | BD49: [2/9/2013=75716] | BE49: [2/9/2013=74998] | BF49: [2/9/2013=74859] | BG49: [2/9/2013=74665] | BH49: [2/9/2013=74627] | BI49: [2/9/2013=74456] | BL49: [2/9/2013=75585] | BM49: [2/9/2013=74185] | BN49: [2/9/2013=74024] | BO49: [2/9/2013=73894] | BP49: [2/9/2013=75415] | BQ49: [2/9/2013=75193] | BR49: [2/9/2013=75074] | BS49: [2/9/2013=74872] | BT49: [2/9/2013=74740] | BU49: [2/9/2013=74525] | BV49: [2/9/2013=74377] | BW49: [2/9/2013=74188] | BX49: [2/9/2013=74092] | BY49: [2/9/2013=73736] | BZ49: [2/9/2013=73574] | CA49: [2/8/2013=73337] | CB49: [2/8/2013=73091] | CC49: [2/8/2013=72613] | CD49: [2/8/2013=72299] | CE49: [2/8/2013=71968] | CF49: [2/8/2013=71747] | CG49: [2/8/2013=71434] | CH49: [2/8/2013=71227] | CI49: [2/9/2013=73716] | CJ49: [2/9/2013=73531] | CK49: [2/8/2013=73283] | CL49: [2/8/2013=73042] | CM49: [2/8/2013=72568] | CN49: [2/8/2013=72234] | CO49: [2/8/2013=72064] | CP49: [2/8/2013=71495] | CQ49: [2/8/2013=71394] | CS49: [2/9/2013=73767] | CT49: [2/9/2013=73566] | CU49: [2/8/2013=73316] | CV49: [2/8/2013=73120] | CW49: [2/8/2013=72655] | CX49: [2/8/2013=72300] | CY49: [2/8/2013=71969] | CZ49: [2/8/2013=71718] | DA49: [2/8/2013=71402] | DB49: [2/8/2013=71170] | DC49: [2/7/2013=69201][2/8/2013=70857] | DD49: [2/7/2013=68734][2/8/2013=70972] | DE49: [2/7/2013=68597][2/8/2013=72578] | DF49: [2/7/2013=68178][2/8/2013=72476] | DG49: [2/7/2013=69703][2/8/2013=72246] | DH49: [2/7/2013=67365][2/8/2013=72053] | DI49: [2/6/2013=66749][2/8/2013=71775] | DJ49: [2/7/2013=67088][2/8/2013=71608] | DK49: [2/6/2013=66063][2/8/2013=71521] | DL49: [2/8/2013=72741] | DM49: [2/8/2013=72810] | DN49: [2/6/2013=65979][2/8/2013=71031] | DO49: [2/8/2013=72827] | DP49: [2/8/2013=72854] | DQ49: [2/7/2013=68489][2/8/2013=70967] | DR49: [2/7/2013=67881] | DS49: [2/7/2013=67787] | DT49: [2/7/2013=67501] | DU49: [2/7/2013=67419] | DV49: [2/7/2013=67069] | DW49: [2/6/2013=66680] | DX49: [2/6/2013=65820] | DY49: [2/6/2013=65701] | DZ49: [2/6/2013=65622] | EA49: [2/6/2013=65361] | EB49: [2/6/2013=65113] | EC49: [2/7/2013=69212] | ED49: [2/7/2013=69415] | EE49: [2/7/2013=69575] | EF49: [2/7/2013=68313] | EG49: [2/7/2013=68363] | EH49: [2/7/2013=67833] | EI49: [2/7/2013=67690] | EJ49: [2/7/2013=67152] | EK49: [2/7/2013=67027] | EL49: [2/6/2013=66176] | EM49: [2/6/2013=66079] | EN49: [2/6/2013=64890] | EO49: [2/6/2013=64795] | EP49: [2/7/2013=68347] | EQ49: [2/7/2013=68240] | ER49: [2/7/2013=67929] | ES49: [2/7/2013=67851] | ET49: [2/7/2013=67321] | EU49: [2/7/2013=67658] | EV49: [2/7/2013=67082] | EW49: [2/6/2013=66797] | EX49: [2/7/2013=67204] | EY49: [2/6/2013=66120] | EZ49: [2/6/2013=66100] | FA49: [2/6/2013=65794] | FB49: [2/6/2013=66877] | FC49: [2/6/2013=65570] | FD49: [2/6/2013=65370] | FE49: [2/6/2013=63737] | FF49: [2/6/2013=65339] | FG49: [2/6/2013=64042] | FH49: [2/6/2013=63832] | FI49: [2/6/2013=63819]
AR50: [2/9/2013=75852] | AS50: [2/10/2013=75977] | AT50: [2/9/2013=75487] | AU50: [2/10/2013=79421] | AV50: [2/10/2013=79075] | AW50: [2/10/2013=78786] | AX50: [2/10/2013=78301] | AY50: [2/10/2013=77930] | AZ50: [2/10/2013=77312] | BA50: [2/10/2013=76919] | BB50: [2/10/2013=76162] | BC50: [2/9/2013=75259] | BD50: [2/9/2013=75720] | BE50: [2/9/2013=74996] | BF50: [2/9/2013=74861] | BG50: [2/9/2013=74641] | BH50: [2/9/2013=74628] | BI50: [2/9/2013=74457] | BL50: [2/9/2013=75583] | BM50: [2/9/2013=74183] | BN50: [2/9/2013=74026] | BO50: [2/9/2013=73893] | BP50: [2/9/2013=75417] | BQ50: [2/9/2013=75192] | BR50: [2/9/2013=75086] | BS50: [2/9/2013=74870] | BT50: [2/9/2013=74742] | BU50: [2/9/2013=74523] | BV50: [2/9/2013=74381] | BW50: [2/9/2013=74186] | BX50: [2/9/2013=73745] | BY50: [2/9/2013=73733] | BZ50: [2/9/2013=73577] | CA50: [2/8/2013=73330] | CB50: [2/8/2013=73094] | CC50: [2/8/2013=72610] | CD50: [2/8/2013=72304] | CE50: [2/8/2013=71965] | CF50: [2/8/2013=71768] | CG50: [2/8/2013=71430] | CH50: [2/8/2013=71229] | CI50: [2/9/2013=73714] | CJ50: [2/9/2013=73534] | CK50: [2/8/2013=73280] | CL50: [2/8/2013=73150] | CM50: [2/8/2013=72572] | CN50: [2/8/2013=72232] | CO50: [2/8/2013=72068] | CP50: [2/8/2013=71401] | CS50: [2/9/2013=73764] | CT50: [2/9/2013=73563] | CU50: [2/8/2013=73313] | CV50: [2/8/2013=73118] | CW50: [2/8/2013=72658] | CX50: [2/8/2013=72297] | CY50: [2/8/2013=71972] | CZ50: [2/8/2013=71716] | DA50: [2/8/2013=71406] | DB50: [2/8/2013=71165] | DC50: [2/7/2013=69197][2/8/2013=70856] | DD50: [2/7/2013=68740][2/8/2013=70974] | DE50: [2/7/2013=68594][2/8/2013=72582] | DF50: [2/7/2013=68181][2/8/2013=72475] | DG50: [2/7/2013=69704][2/8/2013=72251] | DH50: [2/7/2013=67369][2/8/2013=72057] | DI50: [2/6/2013=66746][2/8/2013=71778] | DJ50: [2/7/2013=67092][2/8/2013=71611] | DK50: [2/6/2013=66065][2/8/2013=71517] | DL50: [2/8/2013=72739] | DM50: [2/8/2013=72811] | DN50: [2/6/2013=65978][2/8/2013=71032] | DO50: [2/8/2013=72826] | DP50: [2/7/2013=68175][2/8/2013=70917] | DQ50: [2/7/2013=68485][2/8/2013=70965] | DR50: [2/7/2013=67884] | DS50: [2/7/2013=67784] | DT50: [2/7/2013=67503] | DU50: [2/7/2013=67415] | DV50: [2/7/2013=67073] | DW50: [2/6/2013=66675] | DX50: [2/6/2013=65822] | DY50: [2/6/2013=65704] | DZ50: [2/6/2013=65619] | EA50: [2/6/2013=65364] | EB50: [2/6/2013=65110] | EC50: [2/7/2013=69215] | ED50: [2/7/2013=69418] | EE50: [2/7/2013=69576] | EF50: [2/7/2013=68310] | EG50: [2/7/2013=68385] | EH50: [2/7/2013=67835] | EI50: [2/7/2013=67688] | EJ50: [2/7/2013=67155] | EK50: [2/7/2013=67023] | EL50: [2/6/2013=66180] | EM50: [2/6/2013=66077] | EN50: [2/6/2013=64894] | EO50: [2/6/2013=64792] | EP50: [2/7/2013=68350] | EQ50: [2/7/2013=68236] | ER50: [2/7/2013=67932] | ES50: [2/7/2013=67849] | ET50: [2/7/2013=67323] | EU50: [2/7/2013=67656] | EV50: [2/7/2013=67078] | EW50: [2/6/2013=66798] | EX50: [2/6/2013=66865] | EY50: [2/6/2013=66121] | EZ50: [2/6/2013=66098] | FA50: [2/6/2013=65793] | FB50: [2/6/2013=66878] | FC50: [2/6/2013=65567] | FD50: [2/6/2013=65373] | FE50: [2/6/2013=63733] | FF50: [2/6/2013=65336] | FG50: [2/6/2013=64038] | FH50: [2/6/2013=63834]
AR51: [2/9/2013=75848] | AS51: [2/10/2013=75980] | AT51: [2/9/2013=75485] | AU51: [2/10/2013=79420] | AV51: [2/10/2013=79082] | AW51: [2/10/2013=78783] | AX51: [2/10/2013=78306] | AY51: [2/10/2013=77926] | AZ51: [2/10/2013=77317] | BA51: [2/10/2013=76915] | BB51: [2/10/2013=76157] | BC51: [2/9/2013=75257] | BD51: [2/9/2013=75723] | BE51: [2/9/2013=74994] | BF51: [2/9/2013=74863] | BG51: [2/9/2013=74643] | BH51: [2/9/2013=74629] | BL51: [2/9/2013=75581] | BM51: [2/9/2013=74181] | BN51: [2/9/2013=74028] | BO51: [2/9/2013=73891] | BP51: [2/9/2013=75419] | BQ51: [2/9/2013=75191] | BR51: [2/9/2013=75087] | BS51: [2/9/2013=74868] | BT51: [2/9/2013=74744] | BU51: [2/9/2013=74521] | BV51: [2/9/2013=74383] | BW51: [2/9/2013=74182] | BX51: [2/9/2013=73748] | BY51: [2/9/2013=73730] | BZ51: [2/9/2013=73580] | CA51: [2/8/2013=73327] | CB51: [2/8/2013=73097] | CC51: [2/8/2013=72607] | CD51: [2/8/2013=72307] | CE51: [2/8/2013=71961] | CF51: [2/8/2013=71770] | CG51: [2/8/2013=71425] | CH51: [2/8/2013=71231] | CI51: [2/9/2013=73712] | CJ51: [2/9/2013=73541] | CK51: [2/8/2013=73277] | CL51: [2/8/2013=73152] | CM51: [2/8/2013=72576] | CN51: [2/8/2013=72228] | CO51: [2/8/2013=72072] | CP51: [2/8/2013=71404] | CS51: [2/9/2013=73761] | CT51: [2/9/2013=73560] | CU51: [2/8/2013=73310] | CV51: [2/8/2013=73116] | CW51: [2/8/2013=72661] | CX51: [2/8/2013=72293] | CY51: [2/8/2013=71976] | CZ51: [2/8/2013=71714] | DA51: [2/8/2013=71412] | DB51: [2/8/2013=71161] | DC51: [2/7/2013=69194][2/8/2013=70855] | DD51: [2/7/2013=68744][2/8/2013=70976] | DE51: [2/7/2013=68591][2/8/2013=72586] | DF51: [2/7/2013=68184][2/8/2013=72473] | DG51: [2/7/2013=69705][2/8/2013=72255] | DH51: [2/7/2013=67373][2/8/2013=72061] | DI51: [2/6/2013=66743][2/8/2013=71781] | DJ51: [2/7/2013=67096][2/8/2013=71615] | DK51: [2/6/2013=66068][2/8/2013=71513] | DL51: [2/8/2013=72738] | DM51: [2/8/2013=72812] | DN51: [2/6/2013=65977][2/8/2013=71033] | DO51: [2/8/2013=72825] | DP51: [2/7/2013=68167][2/8/2013=70915] | DQ51: [2/7/2013=68481][2/8/2013=70963] | DR51: [2/7/2013=67886] | DS51: [2/7/2013=67782] | DT51: [2/7/2013=67505] | DU51: [2/7/2013=67411] | DV51: [2/7/2013=67079] | DW51: [2/6/2013=66670] | DX51: [2/6/2013=65824] | DY51: [2/6/2013=65706] | DZ51: [2/6/2013=65616] | EA51: [2/6/2013=65366] | EB51: [2/6/2013=65107] | EC51: [2/7/2013=69218] | ED51: [2/7/2013=69421] | EE51: [2/7/2013=69577] | EF51: [2/7/2013=68307] | EG51: [2/7/2013=68392] | EH51: [2/7/2013=67837] | EI51: [2/7/2013=67686] | EJ51: [2/7/2013=67159] | EK51: [2/7/2013=67019] | EL51: [2/6/2013=66186] | EM51: [2/6/2013=66075] | EN51: [2/6/2013=64896] | EO51: [2/6/2013=64785] | EP51: [2/7/2013=68352] | EQ51: [2/7/2013=68227] | ER51: [2/7/2013=67935] | ES51: [2/7/2013=67846] | ET51: [2/7/2013=67326] | EU51: [2/7/2013=67654] | EV51: [2/7/2013=67074] | EW51: [2/6/2013=66799] | EX51: [2/6/2013=66863] | EY51: [2/6/2013=66122] | EZ51: [2/6/2013=66096] | FA51: [2/6/2013=65792] | FB51: [2/6/2013=66879] | FC51: [2/6/2013=65562] | FD51: [2/6/2013=65375] | FE51: [2/6/2013=63729] | FF51: [2/6/2013=65333] | FG51: [2/6/2013=64034] | FH51: [2/6/2013=63836]
AR52: [2/9/2013=75844] | AS52: [2/10/2013=75986] | AT52: [2/9/2013=75483] | AU52: [2/10/2013=79417] | AV52: [2/10/2013=79085] | AW52: [2/10/2013=78780] | AX52: [2/10/2013=78311] | AY52: [2/10/2013=77923] | AZ52: [2/10/2013=77321] | BA52: [2/10/2013=76911] | BB52: [2/10/2013=76152] | BC52: [2/9/2013=75255] | BD52: [2/9/2013=75726] | BE52: [2/9/2013=74990] | BF52: [2/9/2013=74865] | BG52: [2/9/2013=74645] | BH52: [2/9/2013=74631] | BL52: [2/9/2013=75579] | BM52: [2/9/2013=74179] | BN52: [2/9/2013=74030] | BO52: [2/9/2013=73889] | BP52: [2/9/2013=75421] | BQ52: [2/9/2013=75190] | BR52: [2/9/2013=75088] | BS52: [2/9/2013=74866] | BT52: [2/9/2013=74746] | BU52: [2/9/2013=74519] | BV52: [2/9/2013=74385] | BW52: [2/9/2013=74178] | BX52: [2/9/2013=73751] | BY52: [2/9/2013=73727] | BZ52: [2/9/2013=73583] | CA52: [2/8/2013=73324] | CB52: [2/8/2013=73100] | CC52: [2/8/2013=72604] | CD52: [2/8/2013=72310] | CE52: [2/8/2013=71959] | CF52: [2/8/2013=71772] | CG52: [2/8/2013=71421] | CH52: [2/8/2013=71234] | CI52: [2/9/2013=73709] | CJ52: [2/9/2013=73538] | CK52: [2/8/2013=73274] | CL52: [2/8/2013=73154] | CM52: [2/8/2013=72580] | CN52: [2/8/2013=72225] | CO52: [2/8/2013=72076] | CP52: [2/8/2013=71407] | CS52: [2/9/2013=73758] | CT52: [2/9/2013=73557] | CU52: [2/8/2013=73307] | CV52: [2/8/2013=73114] | CW52: [2/8/2013=72664] | CX52: [2/8/2013=72289] | CY52: [2/8/2013=71979] | CZ52: [2/8/2013=71712] | DA52: [2/8/2013=71415] | DB52: [2/8/2013=71157] | DC52: [2/7/2013=69190][2/8/2013=70854] | DD52: [2/7/2013=68748][2/8/2013=70978] | DE52: [2/7/2013=68588][2/8/2013=72589] | DF52: [2/7/2013=68187][2/8/2013=72471] | DG52: [2/7/2013=69706][2/8/2013=72259] | DH52: [2/7/2013=67376][2/8/2013=72065] | DI52: [2/6/2013=66739][2/8/2013=71784] | DJ52: [2/7/2013=67099][2/8/2013=71618] | DK52: [2/6/2013=66163][2/8/2013=71509] | DL52: [2/8/2013=72736] | DM52: [2/8/2013=72813] | DN52: [2/6/2013=65976][2/8/2013=71034] | DO52: [2/8/2013=72824] | DP52: [2/7/2013=68164][2/8/2013=70913] | DQ52: [2/7/2013=68477][2/8/2013=70961] | DR52: [2/7/2013=67888] | DS52: [2/7/2013=67780] | DT52: [2/7/2013=67509] | DU52: [2/7/2013=67407] | DV52: [2/7/2013=67083] | DW52: [2/6/2013=66665] | DX52: [2/6/2013=65826] | DY52: [2/6/2013=65709] | DZ52: [2/6/2013=65613] | EA52: [2/6/2013=65369] | EB52: [2/6/2013=65105] | EC52: [2/7/2013=69220] | ED52: [2/7/2013=69424] | EE52: [2/7/2013=69578] | EF52: [2/7/2013=68305] | EG52: [2/7/2013=68396] | EH52: [2/7/2013=67841] | EI52: [2/7/2013=67684] | EJ52: [2/7/2013=67163] | EK52: [2/7/2013=67015] | EL52: [2/6/2013=66190] | EM52: [2/6/2013=66062] | EN52: [2/6/2013=64898] | EO52: [2/6/2013=64781] | EP52: [2/7/2013=68354] | EQ52: [2/7/2013=68224] | ER52: [2/7/2013=67938] | ES52: [2/7/2013=67843] | ET52: [2/7/2013=67329] | EU52: [2/7/2013=67652] | EV52: [2/7/2013=67070] | EW52: [2/6/2013=66801] | EX52: [2/6/2013=66862] | EY52: [2/6/2013=66124] | EZ52: [2/6/2013=66094] | FA52: [2/6/2013=65791] | FB52: [2/6/2013=66880] | FC52: [2/6/2013=65559] | FD52: [2/6/2013=65378] | FE52: [2/6/2013=63726] | FF52: [2/6/2013=65330] | FG52: [2/6/2013=64030] | FH52: [2/6/2013=63838]
AR53: [2/9/2013=75309] | AS53: [2/10/2013=75990] | AT53: [2/9/2013=75481] | AU53: [2/10/2013=79416] | AV53: [2/10/2013=79089] | AW53: [2/10/2013=78777] | AX53: [2/10/2013=78316] | AY53: [2/10/2013=77920] | AZ53: [2/10/2013=77325] | BA53: [2/10/2013=76907] | BB53: [2/10/2013=76147] | BC53: [2/9/2013=75253] | BD53: [2/9/2013=75730] | BE53: [2/9/2013=74988] | BF53: [2/9/2013=74867] | BG53: [2/9/2013=74647] | BH53: [2/9/2013=74633] | BL53: [2/9/2013=75577] | BM53: [2/9/2013=74177] | BN53: [2/9/2013=74032] | BO53: [2/9/2013=73887] | BP53: [2/9/2013=75423] | BQ53: [2/9/2013=75189] | BR53: [2/9/2013=75090] | BS53: [2/9/2013=74864] | BT53: [2/9/2013=74748] | BU53: [2/9/2013=74517] | BV53: [2/9/2013=74387] | BW53: [2/9/2013=74176] | BX53: [2/9/2013=73756] | BY53: [2/9/2013=73725] | BZ53: [2/9/2013=73586] | CA53: [2/8/2013=73321] | CB53: [2/8/2013=73103] | CC53: [2/8/2013=72601] | CD53: [2/8/2013=72314] | CE53: [2/8/2013=71953] | CF53: [2/8/2013=71774] | CG53: [2/8/2013=71419] | CH53: [2/8/2013=71235] | CI53: [2/9/2013=73706] | CJ53: [2/9/2013=73544] | CK53: [2/8/2013=73271] | CL53: [2/8/2013=73155] | CM53: [2/8/2013=72584] | CN53: [2/8/2013=72221] | CO53: [2/8/2013=72080] | CP53: [2/8/2013=71409] | CS53: [2/9/2013=73755] | CT53: [2/9/2013=73554] | CU53: [2/8/2013=73304] | CV53: [2/8/2013=73110] | CW53: [2/8/2013=72666] | CX53: [2/8/2013=72285] | CY53: [2/8/2013=71982] | CZ53: [2/8/2013=71709] | DA53: [2/8/2013=71418] | DB53: [2/8/2013=71152] | DC53: [2/7/2013=69187][2/8/2013=70853] | DD53: [2/7/2013=68753][2/8/2013=70980] | DE53: [2/7/2013=68584][2/8/2013=72591] | DF53: [2/7/2013=68190][2/8/2013=72468] | DG53: [2/7/2013=69707][2/8/2013=72263] | DH53: [2/7/2013=67380][2/8/2013=72069] | DI53: [2/6/2013=66736][2/8/2013=71786] | DJ53: [2/7/2013=67103][2/8/2013=71622] | DK53: [2/6/2013=66166][2/8/2013=71506] | DL53: [2/8/2013=72735] | DM53: [2/8/2013=72814] | DN53: [2/6/2013=65975][2/8/2013=71035] | DO53: [2/7/2013=69406][2/8/2013=71200] | DP53: [2/7/2013=68160][2/8/2013=70911] | DQ53: [2/7/2013=68473][2/8/2013=70959] | DR53: [2/7/2013=67890] | DS53: [2/7/2013=67778] | DT53: [2/7/2013=67513] | DU53: [2/7/2013=67403] | DV53: [2/7/2013=67087] | DW53: [2/6/2013=66660] | DX53: [2/6/2013=65828] | DY53: [2/6/2013=65713] | DZ53: [2/6/2013=65610] | EA53: [2/6/2013=65371] | EB53: [2/6/2013=65102] | EC53: [2/7/2013=69223] | ED53: [2/7/2013=69427] | EE53: [2/7/2013=69580] | EF53: [2/7/2013=68303] | EG53: [2/7/2013=68400] | EH53: [2/7/2013=67847] | EI53: [2/7/2013=67682] | EJ53: [2/7/2013=67167] | EK53: [2/7/2013=67011] | EL53: [2/6/2013=66194] | EM53: [2/6/2013=66067] | EN53: [2/6/2013=64900] | EO53: [2/6/2013=64777] | EP53: [2/7/2013=68356] | EQ53: [2/7/2013=68214] | ER53: [2/7/2013=67939] | ES53: [2/7/2013=67842] | ET53: [2/7/2013=67332] | EU53: [2/7/2013=67649] | EV53: [2/7/2013=67066] | EW53: [2/6/2013=66803] | EX53: [2/6/2013=66860] | EY53: [2/6/2013=66126] | EZ53: [2/6/2013=66092] | FA53: [2/6/2013=65790] | FB53: [2/6/2013=66881] | FC53: [2/6/2013=65557] | FD53: [2/6/2013=65380] | FE53: [2/6/2013=63722] | FF53: [2/6/2013=65328] | FG53: [2/6/2013=64026] | FH53: [2/6/2013=63841]
AR54: [2/9/2013=75312] | AS54: [2/10/2013=75994] | AT54: [2/9/2013=75479] | AU54: [2/10/2013=79413] | AV54: [2/10/2013=79098] | AW54: [2/10/2013=78774] | AX54: [2/10/2013=78321] | AY54: [2/10/2013=77917] | AZ54: [2/10/2013=77328] | BA54: [2/10/2013=76903] | BB54: [2/10/2013=76142] | BC54: [2/9/2013=75251] | BD54: [2/9/2013=75734] | BE54: [2/9/2013=74987] | BF54: [2/9/2013=74869] | BG54: [2/9/2013=74649] | BH54: [2/9/2013=74636] | BL54: [2/9/2013=75575] | BM54: [2/9/2013=74175] | BN54: [2/9/2013=74034] | BO54: [2/9/2013=73886] | BP54: [2/9/2013=75425] | BQ54: [2/9/2013=75188] | BR54: [2/9/2013=75092] | BS54: [2/9/2013=74862] | BT54: [2/9/2013=74750] | BU54: [2/9/2013=74515] | BV54: [2/9/2013=74389] | BW54: [2/9/2013=74174] | BX54: [2/9/2013=73759] | BY54: [2/9/2013=73719] | BZ54: [2/9/2013=73589] | CA54: [2/8/2013=73318] | CB54: [2/8/2013=73108] | CC54: [2/8/2013=72598] | CD54: [2/8/2013=72320] | CE54: [2/8/2013=71950] | CF54: [2/8/2013=71780] | CG54: [2/8/2013=71416] | CH54: [2/8/2013=71237] | CI54: [2/9/2013=73703] | CJ54: [2/9/2013=73547] | CK54: [2/8/2013=73268] | CL54: [2/8/2013=73157] | CM54: [2/8/2013=72971] | CN54: [2/8/2013=72218] | CO54: [2/8/2013=72084] | CP54: [2/8/2013=71411] | CS54: [2/9/2013=73753] | CT54: [2/9/2013=73551] | CU54: [2/8/2013=73301] | CV54: [2/8/2013=73112] | CW54: [2/8/2013=72668] | CX54: [2/8/2013=72282] | CY54: [2/8/2013=71986] | CZ54: [2/8/2013=71707] | DA54: [2/8/2013=71422] | DB54: [2/8/2013=71147] | DC54: [2/7/2013=69184][2/8/2013=70852] | DD54: [2/7/2013=68757][2/8/2013=70982] | DE54: [2/7/2013=68580][2/8/2013=72594] | DF54: [2/7/2013=68192][2/8/2013=72465] | DG54: [2/7/2013=69708][2/8/2013=72266] | DH54: [2/7/2013=67383][2/8/2013=72073] | DI54: [2/6/2013=66732][2/8/2013=71788] | DJ54: [2/7/2013=67107][2/8/2013=71626] | DK54: [2/6/2013=66171][2/8/2013=71502] | DL54: [2/8/2013=72734] | DM54: [2/8/2013=72815] | DN54: [2/6/2013=65974][2/8/2013=71036] | DO54: [2/7/2013=69402][2/8/2013=71196] | DP54: [2/7/2013=68156][2/8/2013=70909] | DQ54: [2/7/2013=68469][2/8/2013=70957] | DR54: [2/7/2013=67893] | DS54: [2/7/2013=67776] | DT54: [2/7/2013=67517] | DU54: [2/7/2013=67399] | DV54: [2/7/2013=67091] | DW54: [2/6/2013=66655] | DX54: [2/6/2013=65830] | DY54: [2/6/2013=65716] | DZ54: [2/6/2013=65607] | EA54: [2/6/2013=65374] | EB54: [2/6/2013=65099] | EC54: [2/7/2013=69226] | ED54: [2/7/2013=69430] | EE54: [2/7/2013=69582] | EF54: [2/7/2013=68297] | EG54: [2/7/2013=68404] | EH54: [2/7/2013=67855] | EI54: [2/7/2013=67680] | EJ54: [2/7/2013=67171] | EK54: [2/7/2013=67008] | EL54: [2/6/2013=66199] | EM54: [2/6/2013=66070] | EN54: [2/6/2013=64902] | EO54: [2/6/2013=64769] | EP54: [2/7/2013=68358] | EQ54: [2/7/2013=68210] | ER54: [2/7/2013=67941] | ES54: [2/7/2013=67840] | ET54: [2/7/2013=67335] | EU54: [2/7/2013=67646] | EV54: [2/7/2013=67062] | EW54: [2/6/2013=66805] | EX54: [2/6/2013=66858] | EY54: [2/6/2013=66127] | EZ54: [2/6/2013=66090] | FA54: [2/6/2013=65789] | FB54: [2/6/2013=66882] | FC54: [2/6/2013=65555] | FD54: [2/6/2013=65382] | FE54: [2/6/2013=63718] | FF54: [2/6/2013=65326] | FG54: [2/6/2013=64022] | FH54: [2/6/2013=63843]
AR55: [2/9/2013=75315] | AS55: [2/10/2013=75998] | AT55: [2/9/2013=75477] | AU55: [2/10/2013=79411] | AV55: [2/10/2013=79103] | AW55: [2/10/2013=78771] | AX55: [2/10/2013=78325] | AY55: [2/10/2013=77914] | AZ55: [2/10/2013=77332] | BA55: [2/10/2013=76898] | BB55: [2/10/2013=76137] | BC55: [2/9/2013=75249] | BD55: [2/9/2013=75738] | BE55: [2/9/2013=74985] | BF55: [2/9/2013=74871] | BG55: [2/9/2013=74651] | BL55: [2/9/2013=75573] | BM55: [2/9/2013=74172] | BN55: [2/9/2013=74036] | BO55: [2/9/2013=73884] | BP55: [2/9/2013=75428] | BQ55: [2/9/2013=75187] | BR55: [2/9/2013=75094] | BS55: [2/9/2013=74860] | BT55: [2/9/2013=74752] | BU55: [2/9/2013=74513] | BV55: [2/9/2013=74391] | BW55: [2/9/2013=74171] | BX55: [2/9/2013=73762] | BY55: [2/9/2013=73715] | BZ55: [2/9/2013=73592] | CA55: [2/8/2013=73315] | CB55: [2/8/2013=73132] | CC55: [2/8/2013=72592] | CD55: [2/8/2013=72324] | CE55: [2/8/2013=71947] | CF55: [2/8/2013=71783] | CG55: [2/8/2013=71413] | CH55: [2/8/2013=71238] | CI55: [2/9/2013=73700] | CJ55: [2/9/2013=73550] | CK55: [2/8/2013=73265] | CL55: [2/8/2013=73159] | CM55: [2/8/2013=72975] | CN55: [2/8/2013=72214] | CO55: [2/8/2013=72087] | CP55: [2/8/2013=71414] | CS55: [2/9/2013=73750] | CT55: [2/9/2013=73548] | CU55: [2/8/2013=73298] | CV55: [2/8/2013=73106] | CW55: [2/8/2013=72670] | CX55: [2/8/2013=72278] | CY55: [2/8/2013=71989] | CZ55: [2/8/2013=71705] | DA55: [2/8/2013=71426] | DB55: [2/8/2013=71142] | DC55: [2/7/2013=69181][2/8/2013=70851] | DD55: [2/7/2013=68759][2/8/2013=70984] | DE55: [2/7/2013=68575][2/8/2013=72597] | DF55: [2/7/2013=68194][2/8/2013=72462] | DG55: [2/7/2013=69709][2/8/2013=72270] | DH55: [2/7/2013=67386][2/8/2013=72077] | DI55: [2/6/2013=66728][2/8/2013=71790] | DJ55: [2/7/2013=67111][2/8/2013=71629] | DK55: [2/6/2013=66174][2/8/2013=71498] | DL55: [2/8/2013=72733] | DM55: [2/8/2013=72816] | DN55: [2/6/2013=65973][2/8/2013=71037] | DO55: [2/7/2013=69398][2/8/2013=71192] | DP55: [2/7/2013=68153][2/8/2013=70907] | DQ55: [2/7/2013=68465][2/8/2013=70955] | DR55: [2/7/2013=67896] | DS55: [2/7/2013=67774] | DT55: [2/7/2013=67519] | DU55: [2/7/2013=67395] | DV55: [2/7/2013=67095] | DW55: [2/6/2013=66651] | DX55: [2/6/2013=65832] | DY55: [2/6/2013=65719] | DZ55: [2/6/2013=65604] | EA55: [2/6/2013=65376] | EB55: [2/6/2013=65096] | EC55: [2/7/2013=69228] | ED55: [2/7/2013=66956] | EE55: [2/7/2013=66957] | EF55: [2/7/2013=68294] | EG55: [2/7/2013=68409] | EH55: [2/7/2013=67860] | EI55: [2/7/2013=67678] | EJ55: [2/7/2013=67175] | EK55: [2/7/2013=67005] | EL55: [2/6/2013=66203] | EM55: [2/6/2013=66053] | EN55: [2/6/2013=64905] | EO55: [2/6/2013=64765] | EP55: [2/7/2013=68360] | EQ55: [2/7/2013=68207] | ER55: [2/7/2013=67944] | ES55: [2/7/2013=67838] | ET55: [2/7/2013=67342] | EU55: [2/7/2013=67643] | EV55: [2/7/2013=67058] | EW55: [2/6/2013=66808] | EX55: [2/6/2013=66856] | EY55: [2/6/2013=66129] | EZ55: [2/6/2013=66088] | FA55: [2/6/2013=65788] | FB55: [2/6/2013=65725] | FC55: [2/6/2013=65553] | FD55: [2/6/2013=65384] | FE55: [2/6/2013=63714] | FF55: [2/6/2013=65325] | FG55: [2/6/2013=64019] | FH55: [2/6/2013=63846]
AR56: [2/9/2013=75319] | AS56: [2/10/2013=76002] | AT56: [2/9/2013=75476] | AU56: [2/10/2013=79408] | AV56: [2/10/2013=79107] | AW56: [2/10/2013=78768] | AX56: [2/10/2013=78330] | AY56: [2/10/2013=77911] | AZ56: [2/10/2013=77336] | BA56: [2/10/2013=76894] | BB56: [2/10/2013=76132] | BC56: [2/9/2013=75234] | BD56: [2/9/2013=75741] | BE56: [2/9/2013=74981] | BF56: [2/9/2013=74873] | BG56: [2/9/2013=74654] | BK56: [2/9/2013=75522] | BL56: [2/9/2013=75571] | BM56: [2/9/2013=74168] | BN56: [2/9/2013=74038] | BO56: [2/9/2013=73885] | BP56: [2/9/2013=75429] | BQ56: [2/9/2013=75186] | BR56: [2/9/2013=75095] | BS56: [2/9/2013=74856] | BT56: [2/9/2013=74754] | BU56: [2/9/2013=74511] | BV56: [2/9/2013=74394] | BW56: [2/9/2013=74169] | BX56: [2/9/2013=73765] | BY56: [2/9/2013=73711] | BZ56: [2/9/2013=73595] | CA56: [2/8/2013=73312] | CB56: [2/8/2013=73134] | CC56: [2/8/2013=72588] | CD56: [2/8/2013=72333] | CE56: [2/8/2013=71944] | CF56: [2/8/2013=71797] | CG56: [2/8/2013=71410] | CH56: [2/8/2013=71239] | CI56: [2/9/2013=73697] | CJ56: [2/9/2013=73553] | CK56: [2/8/2013=73262] | CL56: [2/8/2013=73161] | CM56: [2/8/2013=72978] | CN56: [2/8/2013=72211] | CO56: [2/8/2013=72092] | CP56: [2/8/2013=71417] | CS56: [2/9/2013=73747] | CT56: [2/9/2013=73545] | CU56: [2/8/2013=73295] | CV56: [2/8/2013=73104] | CW56: [2/8/2013=72672] | CX56: [2/8/2013=72274] | CY56: [2/8/2013=71992] | CZ56: [2/8/2013=71703] | DA56: [2/8/2013=71433] | DB56: [2/8/2013=71139] | DC56: [2/7/2013=69179][2/8/2013=70850] | DD56: [2/7/2013=68763][2/8/2013=70986] | DE56: [2/7/2013=68570][2/8/2013=72600] | DF56: [2/7/2013=68197][2/8/2013=72460] | DG56: [2/7/2013=69710][2/8/2013=72275] | DH56: [2/7/2013=67390][2/8/2013=72081] | DI56: [2/6/2013=66725][2/8/2013=71792] | DJ56: [2/7/2013=67115][2/8/2013=71631] | DK56: [2/6/2013=66178][2/8/2013=71496] | DL56: [2/8/2013=72732] | DM56: [2/8/2013=72817] | DN56: [2/6/2013=65972][2/8/2013=71038] | DO56: [2/7/2013=69394][2/8/2013=71188] | DP56: [2/7/2013=68149][2/8/2013=70905] | DQ56: [2/7/2013=68461][2/8/2013=70953] | DR56: [2/7/2013=67899] | DS56: [2/7/2013=67772] | DT56: [2/7/2013=67523] | DU56: [2/7/2013=67392] | DV56: [2/7/2013=67098] | DW56: [2/6/2013=66648] | DX56: [2/6/2013=65834] | DY56: [2/6/2013=65722] | DZ56: [2/6/2013=65601] | EA56: [2/6/2013=65379] | EB56: [2/6/2013=65093] | EC56: [2/7/2013=69231] | ED56: [2/7/2013=66955] | EE56: [2/7/2013=66959] | EF56: [2/7/2013=68291] | EG56: [2/7/2013=68413] | EH56: [2/7/2013=67863] | EI56: [2/7/2013=67676] | EJ56: [2/7/2013=67179] | EK56: [2/7/2013=67001] | EL56: [2/6/2013=66207] | EM56: [2/6/2013=66048] | EN56: [2/6/2013=64907] | EO56: [2/6/2013=64761] | EP56: [2/7/2013=68362] | EQ56: [2/7/2013=68204] | ER56: [2/7/2013=67947] | ES56: [2/7/2013=67836] | ET56: [2/7/2013=67349] | EU56: [2/7/2013=67640] | EV56: [2/7/2013=67055] | EW56: [2/6/2013=66810] | EX56: [2/6/2013=66854] | EY56: [2/6/2013=66131] | EZ56: [2/6/2013=66086] | FA56: [2/6/2013=65787] | FB56: [2/6/2013=65720] | FC56: [2/6/2013=65551] | FD56: [2/6/2013=65386] | FE56: [2/6/2013=63710] | FF56: [2/6/2013=65323] | FG56: [2/6/2013=64016] | FH56: [2/6/2013=63849]
AR57: [2/9/2013=75322] | AS57: [2/10/2013=76007] | AT57: [2/9/2013=75474] | AU57: [2/10/2013=79405] | AV57: [2/10/2013=79111] | AW57: [2/10/2013=78765] | AX57: [2/10/2013=78335] | AY57: [2/10/2013=77908] | AZ57: [2/10/2013=77339] | BA57: [2/10/2013=76890] | BB57: [2/10/2013=76127] | BC57: [2/9/2013=75232] | BD57: [2/9/2013=75745] | BE57: [2/9/2013=74975] | BF57: [2/9/2013=74875] | BG57: [2/9/2013=74659] | BK57: [2/9/2013=75520] | BL57: [2/9/2013=75568] | BM57: [2/9/2013=74166] | BN57: [2/9/2013=74040] | BO57: [2/9/2013=73883] | BP57: [2/9/2013=75431] | BQ57: [2/9/2013=75185] | BR57: [2/9/2013=75096] | BS57: [2/9/2013=74854] | BT57: [2/9/2013=74755] | BU57: [2/9/2013=74509] | BV57: [2/9/2013=74396] | BW57: [2/9/2013=74167] | BX57: [2/9/2013=73768] | BY57: [2/9/2013=73708] | BZ57: [2/9/2013=73598] | CA57: [2/8/2013=73309] | CB57: [2/8/2013=73136] | CC57: [2/8/2013=72585] | CD57: [2/8/2013=72337] | CE57: [2/8/2013=71942] | CF57: [2/8/2013=71800] | CG57: [2/8/2013=71408] | CH57: [2/8/2013=71240] | CI57: [2/9/2013=73694] | CJ57: [2/9/2013=73556] | CK57: [2/8/2013=73259] | CL57: [2/8/2013=73163] | CM57: [2/8/2013=72981] | CN57: [2/8/2013=72208] | CO57: [2/8/2013=72096] | CP57: [2/8/2013=71420] | CS57: [2/9/2013=73744] | CT57: [2/9/2013=73542] | CU57: [2/8/2013=73292] | CV57: [2/8/2013=73101] | CW57: [2/8/2013=72674] | CX57: [2/8/2013=72271] | CY57: [2/8/2013=71995] | CZ57: [2/8/2013=71701] | DA57: [2/8/2013=71439] | DB57: [2/8/2013=71135] | DC57: [2/7/2013=69176][2/8/2013=70849] | DD57: [2/7/2013=68767][2/8/2013=70988] | DE57: [2/7/2013=68562][2/8/2013=72603] | DF57: [2/7/2013=68200][2/8/2013=72457] | DG57: [2/7/2013=69711][2/8/2013=72279] | DH57: [2/7/2013=67393][2/8/2013=72085] | DI57: [2/6/2013=66721][2/8/2013=71795] | DJ57: [2/7/2013=67119][2/8/2013=71634] | DK57: [2/6/2013=66182][2/8/2013=71492] | DL57: [2/8/2013=72731] | DM57: [2/8/2013=72818] | DN57: [2/6/2013=65971][2/8/2013=71039] | DO57: [2/7/2013=69391][2/8/2013=71185] | DP57: [2/7/2013=68146][2/8/2013=70903] | DQ57: [2/7/2013=68458][2/8/2013=70951] | DR57: [2/7/2013=67902] | DS57: [2/7/2013=67770] | DT57: [2/7/2013=67524] | DU57: [2/7/2013=67388] | DV57: [2/7/2013=67102] | DW57: [2/6/2013=66644] | DX57: [2/6/2013=65836] | DY57: [2/6/2013=65723] | DZ57: [2/6/2013=65598] | EA57: [2/6/2013=65381] | EB57: [2/6/2013=65091] | EC57: [2/7/2013=69233] | ED57: [2/7/2013=66954] | EE57: [2/7/2013=66961] | EF57: [2/7/2013=68288] | EG57: [2/7/2013=68417] | EH57: [2/7/2013=67870] | EI57: [2/7/2013=67674] | EJ57: [2/7/2013=67183] | EK57: [2/7/2013=66998] | EL57: [2/6/2013=66210] | EM57: [2/6/2013=66046] | EN57: [2/6/2013=64909] | EO57: [2/6/2013=64757] | EP57: [2/7/2013=68365] | EQ57: [2/7/2013=68201] | ER57: [2/7/2013=67949] | ES57: [2/7/2013=67834] | ET57: [2/7/2013=67353] | EU57: [2/7/2013=67637] | EV57: [2/7/2013=67051] | EW57: [2/6/2013=66812] | EX57: [2/6/2013=66852] | EY57: [2/6/2013=66133] | EZ57: [2/6/2013=66084] | FA57: [2/6/2013=65786] | FB57: [2/6/2013=65718] | FC57: [2/6/2013=65549] | FD57: [2/6/2013=65388] | FE57: [2/6/2013=63707] | FF57: [2/6/2013=65321] | FG57: [2/6/2013=64013] | FH57: [2/6/2013=63852]
AR58: [2/9/2013=75325] | AS58: [2/10/2013=76016] | AT58: [2/9/2013=75472] | AU58: [2/10/2013=79402] | AV58: [2/10/2013=79113] | AW58: [2/10/2013=78763] | AX58: [2/10/2013=78339] | AY58: [2/10/2013=77905] | AZ58: [2/10/2013=77343] | BA58: [2/10/2013=76886] | BB58: [2/10/2013=76122] | BC58: [2/9/2013=75230] | BD58: [2/9/2013=75748] | BE58: [2/9/2013=74973] | BF58: [2/9/2013=74877] | BG58: [2/9/2013=74661] | BK58: [2/9/2013=75518] | BL58: [2/9/2013=75566] | BM58: [2/9/2013=74164] | BN58: [2/9/2013=74044] | BO58: [2/9/2013=73882] | BP58: [2/9/2013=75433] | BQ58: [2/9/2013=75184] | BR58: [2/9/2013=75102] | BS58: [2/9/2013=74852] | BT58: [2/9/2013=74756] | BU58: [2/9/2013=74507] | BV58: [2/9/2013=74398] | BW58: [2/9/2013=74165] | BX58: [2/9/2013=73771] | BY58: [2/9/2013=73705] | BZ58: [2/9/2013=73601] | CA58: [2/8/2013=73306] | CB58: [2/8/2013=73176] | CC58: [2/8/2013=72581] | CD58: [2/8/2013=72341] | CE58: [2/8/2013=71939] | CF58: [2/8/2013=71803] | CG58: [2/8/2013=71405] | CH58: [2/8/2013=71241] | CI58: [2/9/2013=73691] | CJ58: [2/9/2013=73559] | CK58: [2/8/2013=73256] | CL58: [2/8/2013=73165] | CM58: [2/8/2013=72984] | CN58: [2/8/2013=72205] | CO58: [2/8/2013=72100] | CP58: [2/8/2013=71423] | CS58: [2/9/2013=73742] | CT58: [2/9/2013=73539] | CU58: [2/8/2013=73288] | CV58: [2/8/2013=73098] | CW58: [2/8/2013=72675] | CX58: [2/8/2013=72267] | CY58: [2/8/2013=71999] | CZ58: [2/8/2013=71699] | DA58: [2/8/2013=71443] | DB58: [2/8/2013=71132] | DC58: [2/7/2013=69174][2/8/2013=70848] | DD58: [2/7/2013=68770][2/8/2013=70990] | DE58: [2/7/2013=68559][2/8/2013=72606] | DF58: [2/7/2013=68202][2/8/2013=72454] | DG58: [2/7/2013=69712][2/8/2013=72283] | DH58: [2/7/2013=67398][2/8/2013=72088] | DI58: [2/6/2013=66692][2/8/2013=71796] | DJ58: [2/7/2013=67123][2/8/2013=71637] | DK58: [2/6/2013=66185][2/8/2013=71491] | DL58: [2/8/2013=72730] | DM58: [2/8/2013=72819] | DN58: [2/6/2013=65970][2/8/2013=71040] | DO58: [2/7/2013=69387][2/8/2013=71181] | DP58: [2/7/2013=68142][2/8/2013=70902] | DQ58: [2/7/2013=68454][2/8/2013=70949] | DR58: [2/7/2013=67904] | DS58: [2/7/2013=67768] | DT58: [2/7/2013=67526] | DU58: [2/7/2013=67385] | DV58: [2/7/2013=67105] | DW58: [2/6/2013=66640] | DX58: [2/6/2013=65838] | DY58: [2/6/2013=65726] | DZ58: [2/6/2013=65595] | EA58: [2/6/2013=65383] | EB58: [2/6/2013=65088] | EC58: [2/7/2013=69236] | ED58: [2/7/2013=66953] | EE58: [2/7/2013=66963] | EF58: [2/7/2013=68283] | EG58: [2/7/2013=68421] | EH58: [2/7/2013=67875] | EI58: [2/7/2013=67672] | EJ58: [2/7/2013=67187] | EK58: [2/7/2013=66995] | EL58: [2/6/2013=66214] | EM58: [2/6/2013=66044] | EN58: [2/6/2013=64913] | EO58: [2/6/2013=64753] | EP58: [2/7/2013=68368] | EQ58: [2/7/2013=68198] | ER58: [2/7/2013=67952] | ES58: [2/7/2013=67832] | ET58: [2/7/2013=67356] | EU58: [2/7/2013=67634] | EV58: [2/7/2013=67048] | EW58: [2/6/2013=66814] | EX58: [2/6/2013=66850] | EY58: [2/6/2013=66134] | EZ58: [2/6/2013=66082] | FA58: [2/6/2013=65785] | FB58: [2/6/2013=65715] | FC58: [2/6/2013=65544] | FD58: [2/6/2013=65390] | FE58: [2/6/2013=63703] | FF58: [2/6/2013=65319] | FG58: [2/6/2013=64009] | FH58: [2/6/2013=63855]
AR59: [2/9/2013=75328] | AS59: [2/10/2013=76019] | AT59: [2/9/2013=75470] | AU59: [2/10/2013=79399] | AV59: [2/10/2013=79116] | AW59: [2/10/2013=78760] | AX59: [2/10/2013=78344] | AY59: [2/10/2013=77902] | AZ59: [2/10/2013=77347] | BA59: [2/10/2013=76883] | BB59: [2/10/2013=76118] | BC59: [2/9/2013=75228] | BD59: [2/9/2013=75751] | BE59: [2/9/2013=74969] | BF59: [2/9/2013=74880] | BK59: [2/9/2013=75516] | BL59: [2/9/2013=75565] | BM59: [2/9/2013=74162] | BN59: [2/9/2013=74046] | BO59: [2/9/2013=73881] | BP59: [2/9/2013=75435] | BQ59: [2/9/2013=75183] | BR59: [2/9/2013=75104] | BS59: [2/9/2013=74850] | BT59: [2/9/2013=74758] | BU59: [2/9/2013=74505] | BV59: [2/9/2013=74400] | BW59: [2/9/2013=74163] | BX59: [2/9/2013=73774] | BY59: [2/9/2013=73702] | BZ59: [2/9/2013=73607] | CA59: [2/8/2013=73303] | CB59: [2/8/2013=73179] | CC59: [2/8/2013=72577] | CD59: [2/8/2013=72345] | CE59: [2/8/2013=71936] | CF59: [2/8/2013=71812] | CG59: [2/8/2013=71403] | CH59: [2/8/2013=71242] | CI59: [2/9/2013=73688] | CJ59: [2/9/2013=73562] | CK59: [2/8/2013=73254] | CL59: [2/8/2013=73167] | CM59: [2/8/2013=72987] | CN59: [2/8/2013=72201] | CO59: [2/8/2013=72103] | CP59: [2/8/2013=71427] | CS59: [2/9/2013=73740] | CT59: [2/9/2013=73536] | CU59: [2/8/2013=73285] | CV59: [2/8/2013=73095] | CW59: [2/8/2013=72677] | CX59: [2/8/2013=72262] | CY59: [2/8/2013=72007] | CZ59: [2/8/2013=71697] | DA59: [2/8/2013=71450] | DB59: [2/8/2013=71130] | DC59: [2/7/2013=69170][2/8/2013=70847] | DD59: [2/7/2013=68778][2/8/2013=70993] | DE59: [2/7/2013=68556][2/8/2013=72609] | DF59: [2/7/2013=68205][2/8/2013=72451] | DG59: [2/7/2013=69713][2/8/2013=72287] | DH59: [2/7/2013=67402][2/8/2013=72091] | DI59: [2/6/2013=66688][2/8/2013=71799] | DJ59: [2/7/2013=67127][2/8/2013=71641] | DK59: [2/6/2013=66189][2/8/2013=71488] | DL59: [2/8/2013=72729] | DM59: [2/8/2013=72820] | DN59: [2/6/2013=65969][2/8/2013=71041] | DO59: [2/7/2013=69384][2/8/2013=71177] | DP59: [2/7/2013=68139][2/8/2013=70900] | DQ59: [2/7/2013=68450][2/8/2013=70947] | DR59: [2/7/2013=67907] | DS59: [2/7/2013=67766] | DT59: [2/7/2013=67528] | DU59: [2/7/2013=67382] | DV59: [2/7/2013=67109] | DW59: [2/6/2013=66636] | DX59: [2/6/2013=65840] | DY59: [2/6/2013=65727] | DZ59: [2/6/2013=65593] | EA59: [2/6/2013=65385] | EB59: [2/6/2013=65085] | EC59: [2/7/2013=69238] | ED59: [2/7/2013=66952] | EE59: [2/7/2013=66965] | EF59: [2/7/2013=68279] | EG59: [2/7/2013=68425] | EH59: [2/7/2013=67883] | EI59: [2/7/2013=67671] | EJ59: [2/7/2013=67191] | EK59: [2/6/2013=66760] | EL59: [2/6/2013=66218] | EM59: [2/6/2013=66042] | EN59: [2/6/2013=64916] | EO59: [2/6/2013=64749] | EP59: [2/7/2013=68371] | EQ59: [2/7/2013=68195] | ER59: [2/7/2013=67955] | ES59: [2/7/2013=67830] | ET59: [2/7/2013=67359] | EU59: [2/7/2013=67631] | EV59: [2/7/2013=67044] | EW59: [2/6/2013=66816] | EX59: [2/6/2013=66848] | EY59: [2/6/2013=66135] | EZ59: [2/6/2013=66078] | FA59: [2/6/2013=65784] | FB59: [2/6/2013=65712] | FC59: [2/6/2013=65542] | FD59: [2/6/2013=65392] | FE59: [2/6/2013=63699] | FF59: [2/6/2013=65317] | FG59: [2/6/2013=64005] | FH59: [2/6/2013=63858]
AQ60: [2/10/2013=76492] | AR60: [2/9/2013=75340] | AS60: [2/10/2013=76024] | AT60: [2/9/2013=75468] | AU60: [2/10/2013=79397] | AV60: [2/10/2013=79119] | AW60: [2/10/2013=78756] | AX60: [2/10/2013=78350] | AY60: [2/10/2013=77899] | AZ60: [2/10/2013=77350] | BA60: [2/10/2013=76880] | BB60: [2/10/2013=76113] | BC60: [2/9/2013=75226] | BD60: [2/9/2013=75755] | BE60: [2/9/2013=74968] | BF60: [2/9/2013=74882] | BK60: [2/9/2013=75515] | BL60: [2/9/2013=75563] | BM60: [2/9/2013=74160] | BN60: [2/9/2013=74048] | BO60: [2/9/2013=73880] | BP60: [2/9/2013=75437] | BQ60: [2/9/2013=75182] | BR60: [2/9/2013=75105] | BS60: [2/9/2013=74848] | BT60: [2/9/2013=74759] | BU60: [2/9/2013=74504] | BV60: [2/9/2013=74404] | BW60: [2/9/2013=74161] | BX60: [2/9/2013=73777] | BY60: [2/9/2013=73699] | BZ60: [2/9/2013=73610] | CA60: [2/8/2013=73300] | CB60: [2/8/2013=73182] | CC60: [2/8/2013=72573] | CD60: [2/8/2013=72349] | CE60: [2/8/2013=71933] | CF60: [2/8/2013=71816] | CG60: [2/8/2013=71400] | CH60: [2/8/2013=71243] | CI60: [2/9/2013=73685] | CJ60: [2/9/2013=73564] | CK60: [2/8/2013=73251] | CL60: [2/8/2013=73169] | CM60: [2/8/2013=72989] | CN60: [2/8/2013=72197] | CO60: [2/8/2013=72106] | CP60: [2/8/2013=71431] | CR60: [2/9/2013=73847] | CS60: [2/9/2013=73738] | CT60: [2/9/2013=73533] | CU60: [2/8/2013=73282] | CV60: [2/8/2013=73092] | CW60: [2/8/2013=72679] | CX60: [2/8/2013=72258] | CY60: [2/8/2013=72011] | CZ60: [2/8/2013=71695] | DA60: [2/8/2013=71469] | DB60: [2/8/2013=71128] | DC60: [2/7/2013=69166][2/8/2013=70846] | DD60: [2/7/2013=68783][2/8/2013=70994] | DE60: [2/7/2013=68553][2/8/2013=72612] | DF60: [2/7/2013=68206][2/8/2013=72448] | DG60: [2/7/2013=69714][2/8/2013=72291] | DH60: [2/7/2013=67406][2/8/2013=72095] | DI60: [2/6/2013=66684][2/8/2013=71802] | DJ60: [2/7/2013=67131][2/8/2013=71645] | DK60: [2/6/2013=66192][2/8/2013=71485] | DL60: [2/8/2013=72728] | DM60: [2/8/2013=72821] | DN60: [2/6/2013=65968][2/8/2013=71042] | DO60: [2/7/2013=69379][2/8/2013=71174] | DP60: [2/7/2013=68136][2/8/2013=70898] | DQ60: [2/7/2013=68446][2/8/2013=70946] | DR60: [2/7/2013=67910] | DS60: [2/7/2013=67763] | DT60: [2/7/2013=67530] | DU60: [2/7/2013=67378] | DV60: [2/7/2013=67113] | DW60: [2/6/2013=66632] | DX60: [2/6/2013=65842] | DY60: [2/6/2013=65729] | DZ60: [2/6/2013=65592] | EA60: [2/6/2013=65387] | EB60: [2/6/2013=65083] | EC60: [2/7/2013=69241] | ED60: [2/7/2013=66950] | EE60: [2/7/2013=66967] | EF60: [2/7/2013=68277] | EG60: [2/7/2013=68429] | EH60: [2/7/2013=67887] | EI60: [2/7/2013=67670] | EJ60: [2/7/2013=67195] | EK60: [2/6/2013=66757] | EL60: [2/6/2013=66222] | EM60: [2/6/2013=66040] | EN60: [2/6/2013=64918] | EO60: [2/6/2013=64745] | EP60: [2/7/2013=68374] | EQ60: [2/7/2013=68193] | ER60: [2/7/2013=67958] | ES60: [2/7/2013=67827] | ET60: [2/7/2013=67363] | EU60: [2/7/2013=67628] | EV60: [2/7/2013=67040] | EW60: [2/6/2013=66817] | EX60: [2/6/2013=66847] | EY60: [2/6/2013=66136] | EZ60: [2/6/2013=66076] | FA60: [2/6/2013=65783] | FB60: [2/6/2013=65710] | FC60: [2/6/2013=65540] | FD60: [2/6/2013=65394] | FE60: [2/6/2013=63696] | FF60: [2/6/2013=65315] | FG60: [2/6/2013=64001] | FH60: [2/6/2013=63861]
AQ61: [2/10/2013=76494] | AR61: [2/9/2013=75342] | AS61: [2/10/2013=76028] | AT61: [2/9/2013=75466] | AU61: [2/10/2013=79394] | AV61: [2/10/2013=79122] | AW61: [2/10/2013=78752] | AX61: [2/10/2013=78354] | AY61: [2/10/2013=77895] | AZ61: [2/10/2013=77353] | BA61: [2/10/2013=76877] | BB61: [2/10/2013=76108] | BC61: [2/9/2013=75224] | BD61: [2/9/2013=75759] | BE61: [2/9/2013=74967] | BF61: [2/9/2013=74884] | BK61: [2/9/2013=75513] | BL61: [2/9/2013=75562] | BM61: [2/9/2013=74158] | BN61: [2/9/2013=74051] | BO61: [2/9/2013=73879] | BP61: [2/9/2013=75439] | BQ61: [2/9/2013=75181] | BR61: [2/9/2013=75108] | BS61: [2/9/2013=74846] | BT61: [2/9/2013=74763] | BU61: [2/9/2013=74502] | BV61: [2/9/2013=74408] | BW61: [2/9/2013=74159] | BX61: [2/9/2013=73780] | BY61: [2/9/2013=73696] | BZ61: [2/9/2013=73613] | CA61: [2/8/2013=73297] | CB61: [2/8/2013=73185] | CC61: [2/8/2013=72569] | CD61: [2/8/2013=72353] | CE61: [2/8/2013=71930] | CF61: [2/8/2013=71820] | CG61: [2/8/2013=71398] | CH61: [2/8/2013=71246] | CI61: [2/9/2013=73682] | CJ61: [2/9/2013=73567] | CK61: [2/8/2013=73249] | CL61: [2/8/2013=73171] | CM61: [2/8/2013=72992] | CN61: [2/8/2013=72195] | CO61: [2/8/2013=72109] | CP61: [2/8/2013=71435] | CR61: [2/9/2013=73846] | CS61: [2/9/2013=73735] | CT61: [2/9/2013=73530] | CU61: [2/8/2013=73279] | CV61: [2/8/2013=73089] | CW61: [2/8/2013=72681] | CX61: [2/8/2013=72254] | CY61: [2/8/2013=72025] | CZ61: [2/8/2013=71690] | DA61: [2/8/2013=71474] | DB61: [2/8/2013=71126] | DC61: [2/7/2013=69163][2/8/2013=70845] | DD61: [2/7/2013=68788][2/8/2013=70995] | DE61: [2/7/2013=68550][2/8/2013=72615] | DF61: [2/7/2013=68209][2/8/2013=72445] | DG61: [2/7/2013=69715][2/8/2013=72295] | DH61: [2/7/2013=67410][2/8/2013=72099] | DI61: [2/6/2013=66681][2/8/2013=71805] | DJ61: [2/7/2013=67134][2/8/2013=71648] | DK61: [2/6/2013=66196][2/8/2013=71482] | DL61: [2/8/2013=72727] | DM61: [2/8/2013=72822] | DN61: [2/6/2013=65967][2/8/2013=71043] | DO61: [2/7/2013=69376][2/8/2013=71171] | DP61: [2/7/2013=68133][2/8/2013=70896] | DQ61: [2/7/2013=68441][2/8/2013=70944] | DR61: [2/7/2013=67913] | DS61: [2/7/2013=67760] | DT61: [2/7/2013=67532] | DU61: [2/7/2013=67375] | DV61: [2/7/2013=67117] | DW61: [2/6/2013=66627] | DX61: [2/6/2013=65844] | DY61: [2/6/2013=65731] | DZ61: [2/6/2013=65590] | EA61: [2/6/2013=65389] | EB61: [2/6/2013=65080] | EC61: [2/7/2013=69244] | ED61: [2/7/2013=66948] | EE61: [2/7/2013=66969] | EF61: [2/7/2013=68274] | EG61: [2/7/2013=68435] | EH61: [2/7/2013=67889] | EI61: [2/7/2013=67669] | EJ61: [2/7/2013=67199] | EK61: [2/6/2013=66754] | EL61: [2/6/2013=66227] | EM61: [2/6/2013=66038] | EN61: [2/6/2013=64920] | EO61: [2/6/2013=64741] | EP61: [2/7/2013=68377] | EQ61: [2/7/2013=68191] | ER61: [2/7/2013=67961] | ES61: [2/7/2013=67825] | ET61: [2/7/2013=67366] | EU61: [2/7/2013=67625] | EV61: [2/7/2013=67036] | EW61: [2/6/2013=66818] | EX61: [2/6/2013=66845] | EY61: [2/6/2013=66138] | EZ61: [2/6/2013=66074] | FA61: [2/6/2013=65782] | FB61: [2/6/2013=65707] | FC61: [2/6/2013=65538] | FD61: [2/6/2013=65396] | FE61: [2/6/2013=63692] | FF61: [2/6/2013=65310] | FG61: [2/6/2013=63997] | FH61: [2/6/2013=63864]
AQ62: [2/10/2013=76496] | AR62: [2/9/2013=75345] | AS62: [2/10/2013=76032] | AT62: [2/9/2013=75464] | AU62: [2/10/2013=79391] | AV62: [2/10/2013=79125] | AW62: [2/10/2013=78748] | AX62: [2/10/2013=78358] | AY62: [2/10/2013=77892] | AZ62: [2/10/2013=77356] | BA62: [2/10/2013=76868] | BB62: [2/10/2013=76103] | BC62: [2/9/2013=75222] | BD62: [2/9/2013=75762] | BE62: [2/9/2013=74966] | BF62: [2/9/2013=74886] | BJ62: [2/9/2013=75178] | BK62: [2/9/2013=75512] | BL62: [2/9/2013=75560] | BM62: [2/9/2013=74156] | BN62: [2/9/2013=74054] | BO62: [2/9/2013=73878] | BP62: [2/9/2013=75441] | BQ62: [2/9/2013=75180] | BR62: [2/9/2013=75109] | BS62: [2/9/2013=74842] | BT62: [2/9/2013=74766] | BU62: [2/9/2013=74500] | BV62: [2/9/2013=74412] | BW62: [2/9/2013=74157] | BX62: [2/9/2013=73783] | BY62: [2/9/2013=73693] | BZ62: [2/9/2013=73618] | CA62: [2/8/2013=73293] | CB62: [2/8/2013=73188] | CC62: [2/8/2013=72565] | CD62: [2/8/2013=72358] | CE62: [2/8/2013=71927] | CF62: [2/8/2013=71823] | CG62: [2/8/2013=71396] | CH62: [2/8/2013=71249] | CI62: [2/9/2013=73679] | CJ62: [2/9/2013=73570] | CK62: [2/8/2013=73246] | CL62: [2/8/2013=73173] | CM62: [2/8/2013=72994] | CN62: [2/8/2013=72192] | CO62: [2/8/2013=72112] | CP62: [2/8/2013=71438] | CR62: [2/9/2013=73845] | CS62: [2/9/2013=73732] | CT62: [2/9/2013=73527] | CU62: [2/8/2013=73276] | CV62: [2/8/2013=73086] | CW62: [2/8/2013=72683] | CX62: [2/8/2013=72250] | CY62: [2/8/2013=72019] | CZ62: [2/8/2013=71687] | DA62: [2/8/2013=71477] | DB62: [2/8/2013=71125] | DC62: [2/7/2013=69160][2/8/2013=70844] | DD62: [2/7/2013=68793][2/8/2013=70996] | DE62: [2/7/2013=68547][2/8/2013=72618] | DF62: [2/7/2013=68213][2/8/2013=72442] | DG62: [2/7/2013=69716][2/8/2013=72298] | DH62: [2/7/2013=67414][2/8/2013=72102] | DI62: [2/6/2013=66677][2/8/2013=71807] | DJ62: [2/7/2013=67138][2/8/2013=71651] | DK62: [2/6/2013=66200][2/8/2013=71479] | DL62: [2/8/2013=72726] | DM62: [2/8/2013=72823] | DN62: [2/6/2013=65966][2/8/2013=71044] | DO62: [2/7/2013=69372][2/8/2013=71167] | DP62: [2/7/2013=68130][2/8/2013=70894] | DQ62: [2/7/2013=68436][2/8/2013=70943] | DR62: [2/7/2013=67916] | DS62: [2/7/2013=67757] | DT62: [2/7/2013=67534] | DU62: [2/7/2013=67371] | DV62: [2/7/2013=67121] | DW62: [2/6/2013=66622] | DX62: [2/6/2013=65845] | DY62: [2/6/2013=65732] | DZ62: [2/6/2013=65588] | EA62: [2/6/2013=65391] | EB62: [2/6/2013=65077] | EC62: [2/7/2013=69247] | ED62: [2/7/2013=66946] | EE62: [2/7/2013=66970] | EF62: [2/7/2013=68270] | EG62: [2/7/2013=68439] | EH62: [2/7/2013=67892] | EI62: [2/7/2013=67668] | EJ62: [2/7/2013=67203] | EK62: [2/6/2013=66751] | EL62: [2/6/2013=66230] | EM62: [2/6/2013=66036] | EN62: [2/6/2013=64923] | EO62: [2/6/2013=64737] | EP62: [2/7/2013=68379] | EQ62: [2/7/2013=68188] | ER62: [2/7/2013=67964] | ES62: [2/7/2013=67822] | ET62: [2/7/2013=67370] | EU62: [2/7/2013=67621] | EV62: [2/7/2013=67032] | EW62: [2/6/2013=66819] | EX62: [2/6/2013=66843] | EY62: [2/6/2013=66139] | EZ62: [2/6/2013=66073] | FA62: [2/6/2013=65781] | FB62: [2/6/2013=65700] | FC62: [2/6/2013=65536] | FD62: [2/6/2013=65398] | FE62: [2/6/2013=63688] | FF62: [2/6/2013=65307] | FG62: [2/6/2013=63993] | FH62: [2/6/2013=63867]
AQ63: [2/10/2013=76498] | AR63: [2/9/2013=75349] | AS63: [2/10/2013=76036] | AT63: [2/9/2013=75462] | AU63: [2/10/2013=79389] | AV63: [2/10/2013=79129] | AW63: [2/10/2013=78744] | AX63: [2/10/2013=78361] | AY63: [2/10/2013=77889] | AZ63: [2/10/2013=77360] | BA63: [2/10/2013=76873] | BB63: [2/10/2013=76098] | BC63: [2/9/2013=75220] | BD63: [2/9/2013=75764] | BE63: [2/9/2013=74964] | BF63: [2/9/2013=74888] | BJ63: [2/9/2013=75177] | BK63: [2/9/2013=75510] | BL63: [2/9/2013=75559] | BM63: [2/9/2013=74154] | BN63: [2/9/2013=74057] | BO63: [2/9/2013=73876] | BP63: [2/9/2013=75443] | BQ63: [2/9/2013=75179] | BR63: [2/9/2013=75110] | BS63: [2/9/2013=74840] | BT63: [2/9/2013=74768] | BU63: [2/9/2013=74497] | BV63: [2/9/2013=74414] | BW63: [2/9/2013=74155] | BX63: [2/9/2013=73786] | BY63: [2/9/2013=73690] | BZ63: [2/9/2013=73621] | CA63: [2/8/2013=73287] | CB63: [2/8/2013=73190] | CC63: [2/8/2013=72561] | CD63: [2/8/2013=72362] | CE63: [2/8/2013=71924] | CF63: [2/8/2013=71826] | CG63: [2/8/2013=71393] | CH63: [2/8/2013=71252] | CI63: [2/9/2013=73676] | CJ63: [2/9/2013=73573] | CK63: [2/8/2013=73243] | CL63: [2/8/2013=73175] | CM63: [2/8/2013=72996] | CN63: [2/8/2013=72190] | CO63: [2/8/2013=72115] | CP63: [2/8/2013=71442] | CR63: [2/9/2013=73844] | CS63: [2/9/2013=73728] | CT63: [2/9/2013=73524] | CU63: [2/8/2013=73273] | CV63: [2/8/2013=73081] | CW63: [2/8/2013=72686] | CX63: [2/8/2013=72247] | CY63: [2/8/2013=72030] | CZ63: [2/8/2013=71684] | DA63: [2/8/2013=71480] | DB63: [2/8/2013=71123] | DC63: [2/7/2013=69157][2/8/2013=70843] | DD63: [2/7/2013=68800][2/8/2013=70998] | DE63: [2/7/2013=68544][2/8/2013=72621] | DF63: [2/7/2013=68216][2/8/2013=72440] | DG63: [2/7/2013=69717][2/8/2013=72301] | DH63: [2/7/2013=67418][2/8/2013=72105] | DI63: [2/6/2013=66673][2/8/2013=71808] | DJ63: [2/7/2013=67141][2/8/2013=71655] | DK63: [2/6/2013=66204][2/8/2013=71476] | DL63: [2/8/2013=72725] | DM63: [2/6/2013=65928][2/8/2013=71316] | DN63: [2/6/2013=65965][2/8/2013=71045] | DO63: [2/7/2013=69368][2/8/2013=71163] | DP63: [2/7/2013=68127][2/8/2013=70892] | DQ63: [2/7/2013=68432][2/8/2013=70942] | DR63: [2/7/2013=67919] | DS63: [2/7/2013=67755] | DT63: [2/7/2013=67536] | DU63: [2/7/2013=67368] | DV63: [2/7/2013=67125] | DW63: [2/6/2013=66617] | DX63: [2/6/2013=65846] | DY63: [2/6/2013=65734] | DZ63: [2/6/2013=65586] | EA63: [2/6/2013=65393] | EB63: [2/6/2013=65074] | EC63: [2/7/2013=69252] | ED63: [2/7/2013=66944] | EE63: [2/7/2013=66971] | EF63: [2/7/2013=68266] | EG63: [2/7/2013=68443] | EH63: [2/7/2013=67895] | EI63: [2/7/2013=67667] | EJ63: [2/7/2013=67207] | EK63: [2/6/2013=66748] | EL63: [2/6/2013=66233] | EM63: [2/6/2013=66034] | EN63: [2/6/2013=64925] | EO63: [2/6/2013=64733] | EP63: [2/7/2013=68381] | EQ63: [2/7/2013=68185] | ER63: [2/7/2013=67967] | ES63: [2/7/2013=67819] | ET63: [2/7/2013=67374] | EU63: [2/7/2013=67618] | EV63: [2/7/2013=67030] | EW63: [2/6/2013=66820] | EX63: [2/6/2013=66842] | EY63: [2/6/2013=66140] | EZ63: [2/6/2013=66072] | FA63: [2/6/2013=65780] | FB63: [2/6/2013=65697] | FC63: [2/6/2013=65534] | FD63: [2/6/2013=65400] | FE63: [2/6/2013=63685] | FF63: [2/6/2013=65305] | FG63: [2/6/2013=63989] | FH63: [2/6/2013=63870]
AQ64: [2/10/2013=76500] | AR64: [2/9/2013=75357] | AS64: [2/10/2013=76039] | AT64: [2/9/2013=75460] | AU64: [2/10/2013=79386] | AV64: [2/10/2013=79134] | AW64: [2/10/2013=78740] | AX64: [2/10/2013=78364] | AY64: [2/10/2013=77886] | AZ64: [2/10/2013=77363] | BA64: [2/10/2013=76864] | BB64: [2/10/2013=76093] | BC64: [2/9/2013=75218] | BD64: [2/9/2013=75767] | BE64: [2/9/2013=74962] | BF64: [2/9/2013=74890] | BJ64: [2/9/2013=75176] | BK64: [2/9/2013=75508] | BL64: [2/9/2013=75557] | BM64: [2/9/2013=74150] | BN64: [2/9/2013=74062] | BO64: [2/9/2013=73874] | BP64: [2/9/2013=75445] | BQ64: [2/9/2013=75160] | BR64: [2/9/2013=75111] | BS64: [2/9/2013=74838] | BT64: [2/9/2013=74770] | BU64: [2/9/2013=74495] | BV64: [2/9/2013=74416] | BW64: [2/9/2013=74153] | BX64: [2/9/2013=73789] | BY64: [2/9/2013=73687] | BZ64: [2/9/2013=73623] | CA64: [2/8/2013=73284] | CB64: [2/8/2013=73193] | CC64: [2/8/2013=72557] | CD64: [2/8/2013=72366] | CE64: [2/8/2013=71922] | CF64: [2/8/2013=71829] | CG64: [2/8/2013=71390] | CH64: [2/8/2013=71256] | CI64: [2/9/2013=73674] | CJ64: [2/9/2013=73576] | CK64: [2/8/2013=73240] | CL64: [2/8/2013=73178] | CM64: [2/8/2013=72998] | CN64: [2/8/2013=72188] | CO64: [2/8/2013=72118] | CP64: [2/8/2013=71446] | CR64: [2/9/2013=73843] | CS64: [2/9/2013=73808] | CT64: [2/9/2013=73521] | CU64: [2/8/2013=73270] | CV64: [2/8/2013=72990] | CW64: [2/8/2013=72688] | CX64: [2/8/2013=72243] | CY64: [2/8/2013=72034] | CZ64: [2/8/2013=71681] | DA64: [2/8/2013=71483] | DB64: [2/8/2013=71121] | DC64: [2/7/2013=69154][2/8/2013=70842] | DD64: [2/7/2013=68805][2/8/2013=71000] | DE64: [2/7/2013=68541][2/8/2013=72623] | DF64: [2/7/2013=68228][2/8/2013=72437] | DG64: [2/7/2013=69718][2/8/2013=72309] | DH64: [2/7/2013=67422][2/8/2013=72108] | DI64: [2/6/2013=66669][2/8/2013=71810] | DJ64: [2/7/2013=67144][2/8/2013=71659] | DK64: [2/6/2013=66208][2/8/2013=71472] | DL64: [2/8/2013=72724] | DM64: [2/6/2013=65927][2/8/2013=71313] | DN64: [2/6/2013=65964][2/8/2013=71046] | DO64: [2/7/2013=69364][2/8/2013=71158] | DP64: [2/7/2013=68126][2/8/2013=70891] | DQ64: [2/7/2013=68428][2/8/2013=70941] | DR64: [2/7/2013=67922] | DS64: [2/7/2013=67752] | DT64: [2/7/2013=67538] | DU64: [2/7/2013=67364] | DV64: [2/7/2013=67129] | DW64: [2/6/2013=66613] | DX64: [2/6/2013=65847] | DY64: [2/6/2013=65736] | DZ64: [2/6/2013=65585] | EA64: [2/6/2013=65395] | EB64: [2/6/2013=65072] | EC64: [2/7/2013=66905] | ED64: [2/7/2013=66943] | EE64: [2/7/2013=66972] | EF64: [2/7/2013=68262] | EG64: [2/7/2013=68447] | EH64: [2/7/2013=67898] | EI64: [2/7/2013=67665] | EJ64: [2/7/2013=67210] | EK64: [2/6/2013=66745] | EL64: [2/6/2013=66236] | EM64: [2/6/2013=66032] | EN64: [2/6/2013=64928] | EO64: [2/6/2013=64729] | EP64: [2/7/2013=68383] | EQ64: [2/7/2013=68182] | ER64: [2/7/2013=67970] | ES64: [2/7/2013=67816] | ET64: [2/7/2013=67377] | EU64: [2/7/2013=67616] | EV64: [2/7/2013=67026] | EW64: [2/6/2013=66821] | EX64: [2/6/2013=66840] | EY64: [2/6/2013=66141] | EZ64: [2/6/2013=66071] | FA64: [2/6/2013=65779] | FB64: [2/6/2013=65694] | FC64: [2/6/2013=65532] | FD64: [2/6/2013=65402] | FE64: [2/6/2013=63681] | FF64: [2/6/2013=65302] | FG64: [2/6/2013=63985] | FH64: [2/6/2013=63873]
AQ65: [2/10/2013=76502] | AR65: [2/9/2013=75360] | AS65: [2/10/2013=76046] | AT65: [2/9/2013=75458] | AU65: [2/10/2013=79383] | AV65: [2/10/2013=79138] | AW65: [2/10/2013=78739] | AX65: [2/10/2013=78366] | AY65: [2/10/2013=77883] | AZ65: [2/10/2013=77365] | BA65: [2/10/2013=76862] | BB65: [2/10/2013=76088] | BC65: [2/9/2013=75216] | BD65: [2/9/2013=75770] | BE65: [2/9/2013=74960] | BF65: [2/9/2013=74892] | BH65: [2/9/2013=75144] | BJ65: [2/9/2013=75175] | BK65: [2/9/2013=75507] | BL65: [2/9/2013=75556] | BM65: [2/9/2013=74128] | BN65: [2/9/2013=74065] | BO65: [2/9/2013=73872] | BP65: [2/9/2013=75447] | BQ65: [2/9/2013=75159] | BR65: [2/9/2013=75112] | BS65: [2/9/2013=74836] | BT65: [2/9/2013=74772] | BU65: [2/9/2013=74493] | BV65: [2/9/2013=74418] | BW65: [2/9/2013=74151] | BX65: [2/9/2013=73791] | BY65: [2/9/2013=73684] | BZ65: [2/9/2013=73625] | CA65: [2/8/2013=73281] | CB65: [2/8/2013=73198] | CC65: [2/8/2013=72554] | CD65: [2/8/2013=72369] | CE65: [2/8/2013=71918] | CF65: [2/8/2013=71832] | CG65: [2/8/2013=71387] | CH65: [2/8/2013=71260] | CI65: [2/9/2013=73671] | CJ65: [2/9/2013=73579] | CK65: [2/8/2013=73237] | CL65: [2/8/2013=73181] | CM65: [2/8/2013=73006] | CN65: [2/8/2013=72186] | CO65: [2/8/2013=72121] | CP65: [2/8/2013=71449] | CR65: [2/9/2013=73842] | CS65: [2/9/2013=73811] | CT65: [2/9/2013=73518] | CU65: [2/8/2013=73267] | CV65: [2/8/2013=72988] | CW65: [2/8/2013=72690] | CX65: [2/8/2013=72239] | CY65: [2/8/2013=72039] | CZ65: [2/8/2013=71679] | DA65: [2/8/2013=71486] | DB65: [2/8/2013=71119] | DC65: [2/7/2013=69151][2/8/2013=70841] | DD65: [2/7/2013=68810][2/8/2013=71001] | DE65: [2/7/2013=68538][2/8/2013=72626] | DF65: [2/7/2013=68232][2/8/2013=72433] | DG65: [2/7/2013=69719][2/8/2013=72313] | DH65: [2/7/2013=67426][2/8/2013=72111] | DI65: [2/6/2013=66666][2/8/2013=71813] | DJ65: [2/7/2013=67147][2/8/2013=71661] | DK65: [2/6/2013=66212][2/8/2013=71470] | DL65: [2/8/2013=72723] | DM65: [2/6/2013=65925][2/8/2013=71310] | DN65: [2/6/2013=65963][2/8/2013=71047] | DO65: [2/7/2013=69361][2/8/2013=71154] | DP65: [2/7/2013=68124][2/8/2013=70889] | DQ65: [2/7/2013=68423][2/8/2013=70940] | DR65: [2/7/2013=67925] | DS65: [2/7/2013=67749] | DT65: [2/7/2013=67540] | DU65: [2/7/2013=67361] | DV65: [2/7/2013=67133] | DW65: [2/6/2013=66608] | DX65: [2/6/2013=65848] | DY65: [2/6/2013=65737] | DZ65: [2/6/2013=65583] | EA65: [2/6/2013=65397] | EB65: [2/6/2013=65069] | EC65: [2/7/2013=66907] | ED65: [2/7/2013=66942] | EE65: [2/7/2013=66973] | EF65: [2/7/2013=68257] | EG65: [2/7/2013=68451] | EH65: [2/7/2013=67901] | EI65: [2/7/2013=67663] | EJ65: [2/7/2013=67213] | EK65: [2/6/2013=66742] | EL65: [2/6/2013=66239] | EM65: [2/6/2013=66030] | EN65: [2/6/2013=64931] | EO65: [2/6/2013=64725] | EP65: [2/7/2013=68386] | EQ65: [2/7/2013=68179] | ER65: [2/7/2013=67973] | ES65: [2/7/2013=67814] | ET65: [2/7/2013=67381] | EU65: [2/7/2013=67613] | EV65: [2/7/2013=67022] | EW65: [2/6/2013=66822] | EX65: [2/6/2013=66839] | EY65: [2/6/2013=66143] | EZ65: [2/6/2013=66069] | FA65: [2/6/2013=65778] | FB65: [2/6/2013=65692] | FC65: [2/6/2013=65530] | FD65: [2/6/2013=65404] | FE65: [2/6/2013=63677] | FF65: [2/6/2013=65301] | FG65: [2/6/2013=63982] | FH65: [2/6/2013=63876]
AQ66: [2/10/2013=76504] | AR66: [2/9/2013=75363] | AS66: [2/10/2013=76056] | AT66: [2/9/2013=75456] | AU66: [2/10/2013=79380] | AV66: [2/10/2013=79143] | AW66: [2/10/2013=78737] | AX66: [2/10/2013=78368] | AY66: [2/10/2013=77880] | AZ66: [2/10/2013=77368] | BA66: [2/10/2013=76859] | BB66: [2/10/2013=76084] | BC66: [2/9/2013=75214] | BD66: [2/9/2013=75773] | BE66: [2/9/2013=74958] | BF66: [2/9/2013=74894] | BH66: [2/9/2013=75141] | BJ66: [2/9/2013=75174] | BK66: [2/9/2013=75505] | BL66: [2/9/2013=75554] | BM66: [2/9/2013=74125] | BN66: [2/9/2013=74068] | BO66: [2/9/2013=73870] | BP66: [2/9/2013=75449] | BQ66: [2/9/2013=75158] | BR66: [2/9/2013=75113] | BS66: [2/9/2013=74834] | BT66: [2/9/2013=74774] | BU66: [2/9/2013=74491] | BV66: [2/9/2013=74420] | BW66: [2/9/2013=74149] | BX66: [2/9/2013=73794] | BY66: [2/9/2013=73681] | BZ66: [2/9/2013=73628] | CA66: [2/8/2013=73278] | CB66: [2/8/2013=73200] | CC66: [2/8/2013=72550] | CD66: [2/8/2013=72372] | CE66: [2/8/2013=71912] | CF66: [2/8/2013=71835] | CG66: [2/8/2013=71384] | CH66: [2/8/2013=71264] | CI66: [2/9/2013=73668] | CJ66: [2/9/2013=73582] | CK66: [2/8/2013=73234] | CL66: [2/8/2013=73183] | CM66: [2/8/2013=73008] | CN66: [2/8/2013=72183] | CO66: [2/8/2013=72124] | CP66: [2/8/2013=71453] | CR66: [2/9/2013=73841] | CS66: [2/9/2013=73701] | CT66: [2/9/2013=73515] | CU66: [2/8/2013=73264] | CV66: [2/8/2013=72985] | CW66: [2/8/2013=72692] | CX66: [2/8/2013=72235] | CY66: [2/8/2013=72043] | CZ66: [2/8/2013=71677] | DA66: [2/8/2013=71489] | DB66: [2/8/2013=71116] | DC66: [2/7/2013=69148][2/8/2013=70840] | DD66: [2/7/2013=68815][2/8/2013=71002] | DE66: [2/7/2013=68535][2/8/2013=72629] | DF66: [2/7/2013=68235][2/8/2013=72429] | DG66: [2/7/2013=69720][2/8/2013=72317] | DH66: [2/7/2013=67430][2/8/2013=72114] | DI66: [2/6/2013=66662][2/8/2013=71815] | DJ66: [2/7/2013=67151][2/8/2013=71663] | DK66: [2/6/2013=66216][2/8/2013=71467] | DL66: [2/8/2013=72722] | DM66: [2/6/2013=65923][2/8/2013=71307] | DN66: [2/6/2013=65962][2/8/2013=71048] | DO66: [2/7/2013=69357][2/8/2013=71150] | DP66: [2/7/2013=68122][2/8/2013=70887] | DQ66: [2/7/2013=68419][2/8/2013=70939] | DR66: [2/7/2013=67928] | DS66: [2/7/2013=67746] | DT66: [2/7/2013=67543] | DU66: [2/7/2013=67357] | DV66: [2/7/2013=67136] | DW66: [2/6/2013=66604] | DX66: [2/6/2013=65849] | DY66: [2/6/2013=66223] | DZ66: [2/6/2013=65581] | EA66: [2/6/2013=65399] | EB66: [2/6/2013=65066] | EC66: [2/7/2013=66908] | ED66: [2/7/2013=66941] | EE66: [2/7/2013=66974] | EF66: [2/7/2013=68249] | EG66: [2/7/2013=68455] | EH66: [2/7/2013=67905] | EI66: [2/7/2013=67659] | EJ66: [2/7/2013=67216] | EK66: [2/6/2013=66738] | EL66: [2/6/2013=66242] | EM66: [2/6/2013=66028] | EN66: [2/6/2013=64933] | EO66: [2/6/2013=64721] | EP66: [2/7/2013=68388] | EQ66: [2/7/2013=68176] | ER66: [2/7/2013=67976] | ES66: [2/7/2013=67811] | ET66: [2/7/2013=67384] | EU66: [2/7/2013=67610] | EV66: [2/7/2013=67018] | EW66: [2/6/2013=66823] | EX66: [2/6/2013=66834] | EY66: [2/6/2013=66144] | EZ66: [2/6/2013=66066] | FA66: [2/6/2013=65777] | FB66: [2/6/2013=65689] | FC66: [2/6/2013=65528] | FD66: [2/6/2013=65407] | FE66: [2/6/2013=63674] | FF66: [2/6/2013=65299] | FG66: [2/6/2013=63979] | FH66: [2/6/2013=63879]
AQ67: [2/10/2013=76506] | AR67: [2/9/2013=75367] | AS67: [2/10/2013=76061] | AT67: [2/9/2013=75454] | AU67: [2/10/2013=79377] | AV67: [2/10/2013=79147] | AW67: [2/10/2013=78734] | AX67: [2/10/2013=78370] | AY67: [2/10/2013=77876] | AZ67: [2/10/2013=77370] | BA67: [2/10/2013=76856] | BB67: [2/10/2013=76080] | BC67: [2/9/2013=75212] | BD67: [2/9/2013=75776] | BE67: [2/9/2013=74954] | BF67: [2/9/2013=74896] | BH67: [2/9/2013=75139] | BJ67: [2/9/2013=75173] | BK67: [2/9/2013=75503] | BL67: [2/9/2013=75553] | BM67: [2/9/2013=74122] | BN67: [2/9/2013=74069] | BO67: [2/9/2013=73868] | BP67: [2/9/2013=75451] | BQ67: [2/9/2013=75157] | BR67: [2/9/2013=75114] | BS67: [2/9/2013=74832] | BT67: [2/9/2013=74779] | BU67: [2/9/2013=74489] | BV67: [2/9/2013=74427] | BW67: [2/9/2013=74145] | BX67: [2/9/2013=73796] | BY67: [2/9/2013=73678] | BZ67: [2/9/2013=73631] | CA67: [2/8/2013=73275] | CB67: [2/8/2013=73202] | CC67: [2/8/2013=72546] | CD67: [2/8/2013=72375] | CE67: [2/8/2013=71909] | CF67: [2/8/2013=71838] | CG67: [2/8/2013=71378] | CH67: [2/8/2013=71268] | CI67: [2/9/2013=73665] | CJ67: [2/9/2013=73585] | CK67: [2/8/2013=73232] | CL67: [2/8/2013=73186] | CM67: [2/8/2013=73010] | CN67: [2/8/2013=72180] | CO67: [2/8/2013=72127] | CP67: [2/8/2013=71456] | CR67: [2/9/2013=73840] | CS67: [2/9/2013=73698] | CT67: [2/9/2013=73512] | CU67: [2/8/2013=73261] | CV67: [2/8/2013=72982] | CW67: [2/8/2013=72694] | CX67: [2/8/2013=72231] | CY67: [2/8/2013=72047] | CZ67: [2/8/2013=71674] | DA67: [2/8/2013=71494] | DB67: [2/8/2013=71115] | DC67: [2/7/2013=69135][2/8/2013=70839] | DD67: [2/7/2013=68820][2/8/2013=71004] | DE67: [2/7/2013=68532][2/8/2013=72632] | DF67: [2/7/2013=68239][2/8/2013=72425] | DG67: [2/7/2013=69728][2/8/2013=72321] | DH67: [2/7/2013=67433][2/8/2013=72117] | DI67: [2/6/2013=66658][2/8/2013=71817] | DJ67: [2/7/2013=67154][2/8/2013=71665] | DK67: [2/6/2013=66220][2/8/2013=71464] | DL67: [2/8/2013=72721] | DM67: [2/6/2013=65921][2/8/2013=71304] | DN67: [2/6/2013=65961][2/8/2013=71049] | DO67: [2/7/2013=69354][2/8/2013=71146] | DP67: [2/7/2013=68120][2/8/2013=70885] | DQ67: [2/7/2013=68415][2/8/2013=70938] | DR67: [2/7/2013=67931] | DS67: [2/7/2013=67744] | DT67: [2/7/2013=67545] | DU67: [2/7/2013=67354] | DV67: [2/7/2013=67140] | DW67: [2/6/2013=66599] | DX67: [2/6/2013=65850] | DY67: [2/6/2013=66219] | DZ67: [2/6/2013=65580] | EA67: [2/6/2013=65401] | EB67: [2/6/2013=65063] | EC67: [2/7/2013=66909] | ED67: [2/7/2013=66940] | EE67: [2/7/2013=66975] | EF67: [2/7/2013=68245] | EG67: [2/7/2013=68459] | EH67: [2/7/2013=67911] | EI67: [2/7/2013=67655] | EJ67: [2/7/2013=67219] | EK67: [2/6/2013=66734] | EL67: [2/6/2013=66245] | EM67: [2/6/2013=66026] | EN67: [2/6/2013=64935] | EO67: [2/6/2013=64717] | EP67: [2/7/2013=68390] | EQ67: [2/7/2013=68173] | ER67: [2/7/2013=67979] | ES67: [2/7/2013=67808] | ET67: [2/7/2013=67387] | EU67: [2/7/2013=67607] | EV67: [2/7/2013=67014] | EW67: [2/6/2013=66824] | EX67: [2/6/2013=66832] | EY67: [2/6/2013=66147] | EZ67: [2/6/2013=66064] | FA67: [2/6/2013=65776] | FB67: [2/6/2013=65686] | FC67: [2/6/2013=65526] | FD67: [2/6/2013=65409] | FE67: [2/6/2013=63670] | FF67: [2/6/2013=65297] | FG67: [2/6/2013=63977] | FH67: [2/6/2013=63882]
AQ68: [2/10/2013=76508] | AR68: [2/9/2013=75370] | AS68: [2/10/2013=76066] | AT68: [2/9/2013=75452] | AU68: [2/10/2013=79375] | AV68: [2/10/2013=79151] | AW68: [2/10/2013=78731] | AX68: [2/10/2013=78374] | AY68: [2/10/2013=77872] | AZ68: [2/10/2013=77373] | BA68: [2/10/2013=76853] | BB68: [2/10/2013=76076] | BC68: [2/9/2013=75210] | BD68: [2/9/2013=75779] | BE68: [2/9/2013=74952] | BF68: [2/9/2013=74898] | BH68: [2/9/2013=75138] | BJ68: [2/9/2013=75172] | BK68: [2/9/2013=75502] | BL68: [2/9/2013=75552] | BM68: [2/9/2013=74119] | BN68: [2/9/2013=74072] | BO68: [2/9/2013=73869] | BP68: [2/9/2013=75453] | BQ68: [2/9/2013=75156] | BR68: [2/9/2013=75116] | BS68: [2/9/2013=74831] | BT68: [2/9/2013=74781] | BU68: [2/9/2013=74485] | BV68: [2/9/2013=74429] | BW68: [2/9/2013=74143] | BX68: [2/9/2013=73798] | BY68: [2/9/2013=73675] | BZ68: [2/9/2013=73634] | CA68: [2/8/2013=73272] | CB68: [2/8/2013=73204] | CC68: [2/8/2013=72542] | CD68: [2/8/2013=72378] | CE68: [2/8/2013=71906] | CF68: [2/8/2013=71842] | CG68: [2/8/2013=71375] | CH68: [2/8/2013=71270] | CI68: [2/9/2013=73663] | CJ68: [2/9/2013=73588] | CK68: [2/8/2013=73230] | CL68: [2/8/2013=73189] | CM68: [2/8/2013=73012] | CN68: [2/8/2013=72177] | CO68: [2/8/2013=72130] | CP68: [2/8/2013=71458] | CR68: [2/9/2013=73839] | CS68: [2/9/2013=73695] | CT68: [2/9/2013=73509] | CU68: [2/8/2013=73258] | CV68: [2/8/2013=72979] | CW68: [2/8/2013=72696] | CX68: [2/8/2013=72227] | CY68: [2/8/2013=72051] | CZ68: [2/8/2013=71671] | DA68: [2/8/2013=71500] | DB68: [2/8/2013=71113] | DC68: [2/7/2013=69131][2/8/2013=70838] | DD68: [2/7/2013=68825][2/8/2013=71005] | DE68: [2/7/2013=68529][2/8/2013=72635] | DF68: [2/7/2013=68243][2/8/2013=72422] | DG68: [2/7/2013=69722][2/8/2013=72325] | DH68: [2/7/2013=67436][2/8/2013=72120] | DI68: [2/6/2013=66656][2/8/2013=71819] | DJ68: [2/7/2013=67157][2/8/2013=71666] | DK68: [2/6/2013=66224][2/8/2013=71462] | DL68: [2/8/2013=72720] | DM68: [2/6/2013=65919][2/8/2013=71300] | DN68: [2/6/2013=65960][2/8/2013=71050] | DO68: [2/7/2013=69351][2/8/2013=71143] | DP68: [2/7/2013=68118][2/8/2013=70884] | DQ68: [2/7/2013=68411][2/8/2013=70937] | DR68: [2/7/2013=67934] | DS68: [2/7/2013=67742] | DT68: [2/7/2013=67548] | DU68: [2/7/2013=67351] | DV68: [2/7/2013=67143] | DW68: [2/6/2013=66595] | DX68: [2/6/2013=65851] | DY68: [2/6/2013=66215] | DZ68: [2/6/2013=65578] | EA68: [2/6/2013=65403] | EB68: [2/6/2013=65060] | EC68: [2/7/2013=66910] | ED68: [2/7/2013=66938] | EE68: [2/7/2013=66976] | EF68: [2/7/2013=68241] | EG68: [2/7/2013=68462] | EH68: [2/7/2013=67917] | EI68: [2/7/2013=67653] | EJ68: [2/7/2013=67222] | EK68: [2/6/2013=66731] | EL68: [2/6/2013=66248] | EM68: [2/6/2013=66024] | EN68: [2/6/2013=64937] | EO68: [2/6/2013=64711] | EP68: [2/7/2013=68393] | EQ68: [2/7/2013=68171] | ER68: [2/7/2013=67982] | ES68: [2/7/2013=67806] | ET68: [2/7/2013=67391] | EU68: [2/7/2013=67604] | EV68: [2/7/2013=67010] | EW68: [2/6/2013=66825] | EX68: [2/6/2013=66830] | EY68: [2/6/2013=66149] | EZ68: [2/6/2013=66061] | FA68: [2/6/2013=65775] | FB68: [2/6/2013=65683] | FC68: [2/6/2013=65524] | FD68: [2/6/2013=65412] | FE68: [2/6/2013=63666] | FF68: [2/6/2013=65295] | FG68: [2/6/2013=63974] | FH68: [2/6/2013=63885]
